Workbook

Sheet Spreadsheet Change Management (hidden)
A1: Chesapeake Utilities Corporation
A2: Spreadsheet Change Management Review
A3: Updated: September 2019
A5: # | B5: Date | C5: Time | D5: Who | E5: Change | F5: Sheet | G5: Range | H5: New Value | I5: Old Value | J5: Change Detail (what and why) | K5: Change Approved? | L5: Date of Approval | M5: Reviewed and Approved By
A6: 1
A7: 2
A8: 3
A9: 4
A10: 5
A11: 6
A12: 7
A13: 8
A14: 9
A15: 10
A16: 11
A17: 12
A18: 13
A19: 14
A20: 15
A21: 16
A22: 17
A23: 18
A24: 19
A25: 20

Sheet Index
A1: FLORIDA PUBLIC UTILITIES COMPANY
A2: CONSOLIDATED ELECTRIC DIVISIONS | K2: 2019 CONSOLIDATED ELECTRIC DIVISIONS
A3: 2019 DEPRECIATION STUDY
J4: MOST CURRENT YEAR END | K4: 2018
A8: SCHEDULE INDEX
A10: Schedule | C10: Description
A12: 1 | C12: Comparison of Current and Proposed Depreciation Rates
A13: 2 | C13: Comparison of Current and Proposed Depreciation Components
A14: 3 | C14: Comparison of Annual Depreciation Expenses
A15: 4 | C15: Comparison of Accumulated Book Reserve and Theorectical Reserve
A16: 5 | C16: Proposed Reserve Allocations
A18: A | C18: 2019 Projected Aged Retirements
A19: A (HM) | C19: 2019 Aged Retirements (Hurricane Michael)
A20: B | C20: 2015 Aged Retirements
A21: C | C21: 2016 Aged Retirements
A22: D | C22: 2017 Aged Retirements
A23: E | C23: 2018 Aged Retirements
A24: E (HM) | C24: 2018 Aged Retirements (Hurricane Michael)
A26: F | C26: Plant In Service and Reserve Summaries with Notes (2015 through 2019 Projected)
A27: G | C27: 2019 Projected Monthly Plant Additions (Actual through June)
A28: H | C28: 2019 Projected Monthly Plant Retirements (Actual through June)
A29: I | C29: 2015 - 2019 Net Salvage Computation and Percentage
A30: I (HM) | C30: 2018 - 2019 Net Salvage Percentage (Hurricane Michael)
A31: J | C31: 2019 Projected Monthly Depreciation Expense (Actual through June)
A33: K | C33: Aged Vehicle Listing (2018 through 2019 Projected)
A34: L | C34: Computation of Projected Asset Age
A35: M | C35: Calculated Asset Aged at December 31, 2018

Sheet Sch. 1
A1: FLORIDA PUBLIC UTILITIES
A2: =+Index!K2 -> 2019 CONSOLIDATED ELECTRIC DIVISIONS
A3: COMPARISON OF CURRENT AND PROPOSED DEPRECIATION RATES
F5: CURRENT | L5: COMPANY PROPOSED
F7: AVERAGE | G7: AVERAGE | L7: AVERAGE | M7: AVERAGE
C8: 2020-01-01 | D8: =+C8 -> 2020-01-01 | F8: SERVICE | G8: REMAINING | H8: NET | L8: SERVICE | M8: REMAINING | N8: NET | O8: (Sch. L)
C9: INVESTMENT | D9: RESERVE | F9: LIFE | G9: LIFE | H9: SALVAGE | I9: AGE | J9: CURVE | L9: LIFE | M9: LIFE | N9: SALVAGE | O9: AGE | P9: CURVE
A10: ACCOUNT | F10: (YRS.) | G10: (YRS.) | H10: (%) | I10: (YRS.) | L10: (YRS.) | M10: (YRS.) | N10: (%) | O10: (YRS.)
A12: TRANSMISSION PLANT
B13: 350.1 - Land Rights | C13: =+'Sch. F 2019 EST'!G10 -> 0 | D13: =+'Sch. F 2019 EST'!P10 -> 0.14 | F13: 70 | G13: 26 | H13: 0 | I13: 44.2 | J13: SQ | L13: 75 | M13: 75 | N13: =+H13 -> 0 | O13: ='Sch. L'!E15 -> 0 | P13: SQ
B14: 352 - Structures and Improvements | C14: =+'Sch. F 2019 EST'!G11 -> 1919496.17 | D14: =+'Sch. 5'!G8 -> 59504 | E14: * | F14: 55 | G14: 50 | H14: 0 | I14: 5.2 | J14: S5 | L14: 60 | M14: 57 | N14: =+H14 -> 0 | O14: ='Sch. L'!K15 -> 3.2 | P14: S5
B15: 353 - Station Equipment | C15: =+'Sch. F 2019 EST'!G12 -> 7581692.31 | D15: =+'Sch. F 2019 EST'!P12 -> 1623570.396 | F15: 40 | G15: 27 | H15: 5 | I15: 13.4 | J15: S2 | L15: 45 | M15: 35 | N15: 0 | O15: ='Sch. L'!E26 -> 10.2 | P15: S3
B16: 354 - Towers and Fixtures | C16: =+'Sch. F 2019 EST'!G13 -> 249798 | D16: =+'Sch. 5'!G9 -> 197091 | E16: * | F16: 55 | G16: 14.5 | H16: -15 | I16: =F16-G16 -> 40.5 | J16: S6 | L16: 60 | M16: =L16-O16 -> 19 | N16: -15 | O16: ='Sch. L'!K26 -> 41 | P16: S6
B17: 355 - Poles and Fixtures | C17: =+'Sch. F 2019 EST'!G14 -> 1659808.85 | D17: =+'Sch. 5'!G10 -> 487283 | E17: * | F17: 40 | G17: 16.9 | H17: -40 | I17: 23.2 | J17: R5 | L17: 40 | M17: 17.8 | N17: -50 | O17: ='Sch. L'!E37 -> 23 | P17: R4
B18: 355.1 - Poles and Fixtures - Concrete | C18: =+'Sch. F 2019 EST'!G15 -> 4014730.41 | D18: =+'Sch. 5'!G11 -> 678489 | E18: * | F18: 45 | G18: 41 | H18: -30 | I18: 4.5 | J18: R4 | L18: 45 | M18: 39 | N18: -30 | O18: ='Sch. L'!K37 -> 5.8 | P18: R4
B19: 356 - Overhead Conductors and Devices | C19: =+'Sch. F 2019 EST'!G16 -> 3674652.52 | D19: =+'Sch. F 2019 EST'!P16 -> 563667.041 | F19: 50 | G19: 36 | H19: -20 | I19: 14.1 | J19: S2 | L19: 55 | M19: 46 | N19: -20 | O19: ='Sch. L'!E48 -> 9.2 | P19: S2
B20: 359 - Roads and Trails | C20: =+'Sch. F 2019 EST'!G17 -> 6788 | D20: =+'Sch. F 2019 EST'!P17 -> 6009.07 | F20: 65 | G20: 12.5 | H20: 0 | I20: =F20-G20 -> 52.5 | J20: SQ | L20: 70 | M20: 12.5 | N20: 0 | O20: ='Sch. L'!K48 -> 57.5 | P20: SQ
B21: Total Transmission Assets | C21: =SUM(C13:C20) -> 19106966.26 | D21: =SUM(D13:D20) -> 3615613.647
A23: DISTRIBUTION PLANT
B24: 360.1 - Land Rights | C24: =+'Sch. F 2019 EST'!G19 -> 56995 | D24: =+'Sch. F 2019 EST'!P19 -> 34099.96 | F24: 60 | G24: 31 | H24: 0 | I24: 29.5 | J24: SQ | L24: =F24 -> 60 | M24: 26 | N24: =+H24 -> 0 | O24: ='Sch. L'!E59 -> 34.5 | P24: SQ
B25: 361 - Structures and Improvements | C25: =+'Sch. F 2019 EST'!G20 -> 1198983.12 | D25: =+'Sch. F 2019 EST'!P20 -> 108222.7565 | F25: 60 | G25: 47 | H25: -5 | I25: =F25-G25 -> 13 | J25: SQ | L25: 60 | M25: 54 | N25: -5 | O25: ='Sch. L'!K59 -> 5.6 | P25: SQ
B26: 362 - Station Equipment | C26: =+'Sch. F 2019 EST'!G21 -> 13235886.76 | D26: =+'Sch. F 2019 EST'!P21 -> 3869925.021 | F26: 45 | G26: 34 | H26: -10 | I26: 11.2 | J26: S3 | L26: 50 | M26: 38 | N26: -10 | O26: ='Sch. L'!E70 -> 11.9 | P26: S3
B27: 364 - Poles, Towers, and Fixtures | C27: =+'Sch. F 2019 EST'!G22 -> 25869789.06 | D27: =+'Sch. F 2019 EST'!P22 -> 14268607.37 | E27: ** | F27: 38 | G27: 24 | H27: -45 | I27: 14.4 | J27: R4 | L27: 38 | M27: 28 | N27: -50 | O27: ='Sch. L'!K70 -> 10.2 | P27: R4
B28: 365 - Overhead Conductors & Devices | C28: =+'Sch. F 2019 EST'!G23 -> 20427592.9 | D28: =+'Sch. F 2019 EST'!P23 -> 12211537.43 | E28: ** | F28: 40 | G28: 21 | H28: -35 | I28: 19.3 | J28: R5 | L28: 45 | M28: 30 | N28: -35 | O28: ='Sch. L'!E81 -> 15.1 | P28: R5
B29: 366 - Underground Conduit | C29: =+'Sch. F 2019 EST'!G24 -> 7034164.18 | D29: =+'Sch. F 2019 EST'!P24 -> 1359792.5 | F29: 60 | G29: 50 | H29: -5 | I29: 10.4 | J29: R5 | L29: 60 | M29: 47 | N29: -5 | O29: ='Sch. L'!K81 -> 12.6 | P29: R5
B30: 367 - Underground Conductors & Devices | C30: =+'Sch. F 2019 EST'!G25 -> 10218344.4 | D30: =+'Sch. F 2019 EST'!P25 -> 3955509.44 | F30: 35 | G30: 23 | H30: -5 | I30: 12.2 | J30: R4 | L30: 35 | M30: 21 | N30: -5 | O30: ='Sch. L'!E92 -> 13.9 | P30: R4
B31: 368 - Line Transformers | C31: =+'Sch. F 2019 EST'!G26 -> 22458863.19 | D31: =+'Sch. F 2019 EST'!P26 -> 15102001.85 | E31: ** | F31: 30 | G31: 12.4 | H31: -20 | I31: 17.7 | J31: S4 | L31: 30 | M31: 13.6 | N31: -20 | O31: ='Sch. L'!K92 -> 16.5 | P31: S4
B32: 369 - Services | C32: =+'Sch. F 2019 EST'!G27 -> 14341344.02 | D32: =+'Sch. F 2019 EST'!P27 -> 8430545.775 | E32: ** | F32: 37 | G32: 19.9 | H32: -35 | I32: =F32-G32 -> 17.1 | J32: R5 | L32: 40 | M32: 25 | N32: -40 | O32: ='Sch. L'!E103 -> 15.4 | P32: R5
B33: 370 - Meters | C33: =+'Sch. F 2019 EST'!G28 -> 5085098.56 | D33: =+'Sch. F 2019 EST'!P28 -> 3228618.443 | E33: ** | F33: 30 | G33: 11.9 | H33: -10 | I33: 18.2 | J33: R5 | L33: 30 | M33: 13 | N33: -10 | O33: ='Sch. L'!K103 -> 17 | P33: R5
B34: 371 - Installation on Customers' Premises | C34: =+'Sch. F 2019 EST'!G29 -> 3263291.29 | D34: =+'Sch. F 2019 EST'!P29 -> 1788633.878 | E34: ** | F34: 20 | G34: 9.6 | H34: 10 | I34: 10.7 | J34: S3 | L34: 25 | M34: 13.6 | N34: 5 | O34: ='Sch. L'!E114 -> 11.6 | P34: S3
B35: 373 - Street Lighting & Signal Systems | C35: =+'Sch. F 2019 EST'!G30 -> 2725584.38 | D35: =+'Sch. F 2019 EST'!P30 -> 1443139.909 | E35: ** | F35: 22 | G35: 7.6 | H35: -10 | I35: 16.6 | J35: R3 | L35: 22 | M35: 11.4 | N35: -10 | O35: ='Sch. L'!K114 -> 11.5 | P35: R3
B36: Total Distribution Assets | C36: =SUM(C24:C35) -> 125915936.9 | D36: =SUM(D24:D35) -> 65800634.33
A38: GENERAL PLANT
B39: 390 - Structures & Improvements | C39: =+'Sch. F 2019 EST'!G33 -> 4044796.46 | D39: =+'Sch. F 2019 EST'!P33 -> 1006938.027 | F39: 50 | G39: 41 | H39: 0 | I39: 9 | J39: R4 | L39: =F39 -> 50 | M39: 38 | N39: =+H39 -> 0 | O39: ='Sch. L'!E125 -> 12.7 | P39: R4
B40: 392.1 - Transportation-Cars | C40: =+'Sch. F 2019 EST'!G39 -> 23951 | D40: ='Sch. 4'!E38 -> 10768 | E40: * | F40: 7 | G40: 6 | H40: 15 | I40: 1 | J40: S2 | L40: 11 | M40: 5.2 | N40: 15 | O40: ='Sch. L'!K125 -> 6.5 | P40: S2
B41: 392.2 - Transportation-Light Trucks & Vans | C41: =+'Sch. F 2019 EST'!G40 -> 1041834.14 | D41: 575092 | E41: * | F41: 9 | G41: 4.9 | H41: 12 | I41: 4.1 | J41: S4 | L41: 11 | M41: 4.1 | N41: 12 | O41: ='Sch. L'!E137 -> 7 | P41: S4
B42: 392.3 - Transportation - Heavy Trucks | C42: =+'Sch. F 2019 EST'!G41 -> 3755921.91 | D42: =+'Sch. 4'!E40 -> 2005662 | E42: * | F42: 13 | G42: 6.4 | H42: 10 | I42: 6.8 | J42: S3 | L42: 15 | M42: 6.1 | N42: 10 | O42: ='Sch. L'!K137 -> 9.4 | P42: S3
B43: 392.4 - Transporation - Trailers | C43: =+'Sch. F 2019 EST'!G42 -> 144084 | D43: =+'Sch. F 2019 EST'!P42 -> 94052.774 | F43: 25 | G43: 13.8 | H43: 5 | I43: 11.4 | J43: R4 | L43: 25 | M43: 9.4 | N43: 5 | O43: ='Sch. L'!E148 -> 16.4 | P43: R4
B44: 396 - Power Operated Equipment | C44: =+'Sch. F 2019 EST'!G46 -> 898523 | D44: =+'Sch. F 2019 EST'!P46 -> 335751.8277 | F44: 25 | G44: 8.4 | H44: 0 | I44: 16.6 | J44: S6 | L44: 25 | M44: =L44-O44 -> 15.4 | N44: 0 | O44: ='Sch. L'!K148 -> 9.6 | P44: S6
B46: Total General Plant Assets | C46: =SUM(C39:C45) -> 9909110.51 | D46: =SUM(D39:D45) -> 4028264.628
B48: GRAND TOTAL | C48: =+C46+C36+C21 -> 154932013.6 | D48: =+D46+D36+D21 -> 73444512.61
A51: * | B51: Reflects restated reserve after proposed corrective reserve allocations and amortization of transportation reserve surplus.
A52: ** | B52: Reflects reserve adjusted for Hurricane Michael unrecovered costs addressed in Docket No. 20190155-EI.
B54: check sch f | C54: =+SUM('Sch. F 2019 EST'!G46,'Sch. F 2019 EST'!G39:G42,'Sch. F 2019 EST'!G33,'Sch. F 2019 EST'!G19:G30,'Sch. F 2019 EST'!G10:G17) -> 154932013.6 | D54: =+SUM('Sch. F 2019 EST'!P46,'Sch. F 2019 EST'!P39:P42,'Sch. F 2019 EST'!P33,'Sch. F 2019 EST'!P19:P30,'Sch. F 2019 EST'!P10:P17) -> 73958408.23
C55: =+C48-C54 -> 0 | D55: =+D48-D54 -> -513895.6278 | F55: Imbalance

Sheet Sch. 2
A1: FLORIDA PUBLIC UTILITIES
A2: ='Sch. 1'!A2:O2 -> 2019 CONSOLIDATED ELECTRIC DIVISIONS
A3: COMPARISON OF CURRENT AND PROPOSED DEPRECIATION COMPONENTS
C5: CURRENT EFFECTIVE 1/1/2015 | G5: COMPANY PROPOSED - Proposed Effective Date 1/1/2020
C6: AVERAGE | E6: REMAINING | G6: AVERAGE | K6: REMAINING
C7: REMAINING | D7: NET | E7: LIFE | G7: REMAINING | H7: NET | I7: =+'Sch. 1'!C8 -> 2020-01-01 | K7: LIFE
C8: LIFE | D8: SALVAGE | E8: RATE | G8: LIFE | H8: SALVAGE | I8: RESERVE | K8: RATE
A9: ACCOUNT | C9: (YRS.) | D9: (%) | E9: (%) | G9: (YRS.) | H9: (%) | I9: (%) | K9: (%)
A11: TRANSMISSION PLANT
B12: 350.1 - Land Rights | C12: ='Sch. 1'!G13 -> 26 | D12: ='Sch. 1'!H13 -> 0 | E12: 1.4 | G12: ='Sch. 1'!M13 -> 75 | H12: ='Sch. 1'!N13 -> 0 | I12: =IFERROR(ROUND('Sch. 1'!D13/'Sch. 1'!C13*100,2),0) -> 0 | K12: =ROUND((100-H12-I12)/G12,1) -> 1.3
B13: 352 - Structures and Improvements | C13: ='Sch. 1'!G14 -> 50 | D13: ='Sch. 1'!H14 -> 0 | E13: 1.8 | G13: ='Sch. 1'!M14 -> 57 | H13: ='Sch. 1'!N14 -> 0 | I13: =IFERROR(ROUND('Sch. 1'!D14/'Sch. 1'!C14*100,2),0) -> 3.1 | J13: * | K13: =ROUND((100-H13-I13)/G13,1) -> 1.7
B14: 353 - Station Equipment | C14: ='Sch. 1'!G15 -> 27 | D14: ='Sch. 1'!H15 -> 5 | E14: 2.6 | G14: ='Sch. 1'!M15 -> 35 | H14: ='Sch. 1'!N15 -> 0 | I14: =IFERROR(ROUND('Sch. 1'!D15/'Sch. 1'!C15*100,2),0) -> 21.41 | K14: 2.2
B15: 354 - Towers and Fixtures | C15: ='Sch. 1'!G16 -> 14.5 | D15: ='Sch. 1'!H16 -> -15 | E15: 2.1 | G15: ='Sch. 1'!M16 -> 19 | H15: ='Sch. 1'!N16 -> -15 | I15: =IFERROR(ROUND('Sch. 1'!D16/'Sch. 1'!C16*100,2),0) -> 78.9 | J15: * | K15: 1.9
B16: 355 - Poles and Fixtures | C16: ='Sch. 1'!G17 -> 16.9 | D16: ='Sch. 1'!H17 -> -40 | E16: 4.1 | G16: ='Sch. 1'!M17 -> 17.8 | H16: ='Sch. 1'!N17 -> -50 | I16: =IFERROR(ROUND('Sch. 1'!D17/'Sch. 1'!C17*100,2),0) -> 29.36 | J16: * | K16: 6.8
B17: 355.1 - Poles and Fixtures - Concrete | C17: ='Sch. 1'!G18 -> 41 | D17: ='Sch. 1'!H18 -> -30 | E17: 2.9 | G17: ='Sch. 1'!M18 -> 39 | H17: ='Sch. 1'!N18 -> -30 | I17: =IFERROR(ROUND('Sch. 1'!D18/'Sch. 1'!C18*100,2),0) -> 16.9 | J17: * | K17: 2.9
B18: 356 - Overhead Conductors and Devices | C18: ='Sch. 1'!G19 -> 36 | D18: ='Sch. 1'!H19 -> -20 | E18: 2.5 | G18: ='Sch. 1'!M19 -> 46 | H18: ='Sch. 1'!N19 -> -20 | I18: =IFERROR(ROUND('Sch. 1'!D19/'Sch. 1'!C19*100,2),0) -> 15.34 | K18: 2.3
B19: 359 - Roads and Trails | C19: ='Sch. 1'!G20 -> 12.5 | D19: ='Sch. 1'!H20 -> 0 | E19: 1.5 | G19: ='Sch. 1'!M20 -> 12.5 | H19: ='Sch. 1'!N20 -> 0 | I19: =IFERROR(ROUND('Sch. 1'!D20/'Sch. 1'!C20*100,2),0) -> 88.52 | K19: 0.9
A22: DISTRIBUTION PLANT
B23: 360.1 - Land Rights | C23: ='Sch. 1'!G24 -> 31 | D23: ='Sch. 1'!H24 -> 0 | E23: 1.6 | G23: ='Sch. 1'!M24 -> 26 | H23: ='Sch. 1'!N24 -> 0 | I23: =ROUND('Sch. 1'!D24/'Sch. 1'!C24*100,2) -> 59.83 | K23: =ROUND((100-H23-I23)/G23,1) -> 1.5
B24: 361 - Structures and Improvements | C24: ='Sch. 1'!G25 -> 47 | D24: ='Sch. 1'!H25 -> -5 | E24: 1.7 | G24: ='Sch. 1'!M25 -> 54 | H24: ='Sch. 1'!N25 -> -5 | I24: =ROUND('Sch. 1'!D25/'Sch. 1'!C25*100,2) -> 9.03 | K24: =ROUND((100-H24-I24)/G24,1) -> 1.8
B25: 362 - Station Equipment | C25: ='Sch. 1'!G26 -> 34 | D25: ='Sch. 1'!H26 -> -10 | E25: 2.4 | G25: ='Sch. 1'!M26 -> 38 | H25: ='Sch. 1'!N26 -> -10 | I25: =ROUND('Sch. 1'!D26/'Sch. 1'!C26*100,2) -> 29.24 | K25: =ROUND((100-H25-I25)/G25,1) -> 2.1
B26: 364 - Poles, Towers, and Fixtures | C26: ='Sch. 1'!G27 -> 24 | D26: ='Sch. 1'!H27 -> -45 | E26: 3.9 | G26: ='Sch. 1'!M27 -> 28 | H26: ='Sch. 1'!N27 -> -50 | I26: =ROUND('Sch. 1'!D27/'Sch. 1'!C27*100,2) -> 55.16 | J26: ** | K26: =ROUND((100-H26-I26)/G26,1) -> 3.4
B27: 365 - Overhead Conductors & Devices | C27: ='Sch. 1'!G28 -> 21 | D27: ='Sch. 1'!H28 -> -35 | E27: 3.4 | G27: ='Sch. 1'!M28 -> 30 | H27: ='Sch. 1'!N28 -> -35 | I27: =ROUND('Sch. 1'!D28/'Sch. 1'!C28*100,2) -> 59.78 | J27: ** | K27: 2.5
B28: 366 - Underground Conduit | C28: ='Sch. 1'!G29 -> 50 | D28: ='Sch. 1'!H29 -> -5 | E28: 1.8 | G28: ='Sch. 1'!M29 -> 47 | H28: ='Sch. 1'!N29 -> -5 | I28: =ROUND('Sch. 1'!D29/'Sch. 1'!C29*100,2) -> 19.33 | K28: 1.8
B29: 367 - Underground Conductors & Devices | C29: ='Sch. 1'!G30 -> 23 | D29: ='Sch. 1'!H30 -> -5 | E29: 3.2 | G29: ='Sch. 1'!M30 -> 21 | H29: ='Sch. 1'!N30 -> -5 | I29: =ROUND('Sch. 1'!D30/'Sch. 1'!C30*100,2) -> 38.71 | K29: 3.2
B30: 368 - Line Transformers | C30: ='Sch. 1'!G31 -> 12.4 | D30: ='Sch. 1'!H31 -> -20 | E30: 4 | G30: ='Sch. 1'!M31 -> 13.6 | H30: ='Sch. 1'!N31 -> -20 | I30: =ROUND('Sch. 1'!D31/'Sch. 1'!C31*100,2) -> 67.24 | J30: ** | K30: =ROUND((100-H30-I30)/G30,1) -> 3.9
B31: 369 - Services | C31: ='Sch. 1'!G32 -> 19.9 | D31: ='Sch. 1'!H32 -> -35 | E31: 3.6 | G31: ='Sch. 1'!M32 -> 25 | H31: ='Sch. 1'!N32 -> -40 | I31: =ROUND('Sch. 1'!D32/'Sch. 1'!C32*100,2) -> 58.78 | J31: ** | K31: =ROUND((100-H31-I31)/G31,1) -> 3.2
B32: 370 - Meters | C32: ='Sch. 1'!G33 -> 11.9 | D32: ='Sch. 1'!H33 -> -10 | E32: 3.7 | G32: ='Sch. 1'!M33 -> 13 | H32: ='Sch. 1'!N33 -> -10 | I32: =ROUND('Sch. 1'!D33/'Sch. 1'!C33*100,2) -> 63.49 | J32: ** | K32: =ROUND((100-H32-I32)/G32,1) -> 3.6
B33: 371 - Installation on Customers' Premises | C33: ='Sch. 1'!G34 -> 9.6 | D33: ='Sch. 1'!H34 -> 10 | E33: 4.5 | G33: ='Sch. 1'!M34 -> 13.6 | H33: ='Sch. 1'!N34 -> 5 | I33: =ROUND('Sch. 1'!D34/'Sch. 1'!C34*100,2) -> 54.81 | J33: ** | K33: =ROUND((100-H33-I33)/G33,1) -> 3
B34: 373 - Street Lighting & Signal Systems | C34: ='Sch. 1'!G35 -> 7.6 | D34: ='Sch. 1'!H35 -> -10 | E34: 4.9 | G34: ='Sch. 1'!M35 -> 11.4 | H34: ='Sch. 1'!N35 -> -10 | I34: =ROUND('Sch. 1'!D35/'Sch. 1'!C35*100,2) -> 52.95 | J34: ** | K34: =ROUND((100-H34-I34)/G34,1) -> 5
A37: GENERAL PLANT
B38: 390 - Structures & Improvements | C38: ='Sch. 1'!G39 -> 41 | D38: ='Sch. 1'!H39 -> 0 | E38: 2 | G38: ='Sch. 1'!M39 -> 38 | H38: ='Sch. 1'!N39 -> 0 | I38: =ROUND('Sch. 1'!D39/'Sch. 1'!C39*100,2) -> 24.89 | K38: =ROUND((100-H38-I38)/G38,1) -> 2
B39: 392.1 - Transportation-Cars | C39: ='Sch. 1'!G40 -> 6 | D39: ='Sch. 1'!H40 -> 15 | E39: ='Sch. J'!C38*100 -> 11.9 | G39: ='Sch. 1'!M40 -> 5.2 | H39: ='Sch. 1'!N40 -> 15 | I39: =ROUND('Sch. 1'!D40/'Sch. 1'!C40*100,2) -> 44.96 | J39: * | K39: 7.7
B40: 392.2 - Transportation-Light Trucks & Vans | C40: ='Sch. 1'!G41 -> 4.9 | D40: ='Sch. 1'!H41 -> 12 | E40: 7.8 | G40: ='Sch. 1'!M41 -> 4.1 | H40: ='Sch. 1'!N41 -> 12 | I40: =ROUND('Sch. 1'!D41/'Sch. 1'!C41*100,2) -> 55.2 | J40: * | K40: 8
B41: 392.3 - Transportation - Heavy Trucks | C41: ='Sch. 1'!G42 -> 6.4 | D41: ='Sch. 1'!H42 -> 10 | E41: 7 | G41: ='Sch. 1'!M42 -> 6.1 | H41: ='Sch. 1'!N42 -> 10 | I41: =ROUND('Sch. 1'!D42/'Sch. 1'!C42*100,2) -> 53.4 | J41: * | K41: 6
B42: 392.4 - Transporation - Trailers | C42: ='Sch. 1'!G43 -> 13.8 | D42: ='Sch. 1'!H43 -> 5 | E42: 3.7 | G42: ='Sch. 1'!M43 -> 9.4 | H42: ='Sch. 1'!N43 -> 5 | I42: =ROUND('Sch. 1'!D43/'Sch. 1'!C43*100,2) -> 65.28 | K42: 3.2
B43: 396 - Power Operated Equipment | C43: ='Sch. 1'!G44 -> 8.4 | D43: ='Sch. 1'!H44 -> 0 | E43: 4.4 | G43: ='Sch. 1'!M44 -> 15.4 | H43: ='Sch. 1'!N44 -> 0 | I43: =ROUND('Sch. 1'!D44/'Sch. 1'!C44*100,2) -> 37.37 | K43: 4.1
A45: * | B45: Reflects restated reserve after proposed corrective reserve allocations and amortization of transportation reserve surplus.
A46: ** | B46: Reflects reserve adjusted for Hurricane Michael unrecovered costs addressed in Docket No. 20190155-EI.

Sheet Sch. 3
A1: FLORIDA PUBLIC UTILITIES
A2: ='Sch. 1'!A2:O2 -> 2019 CONSOLIDATED ELECTRIC DIVISIONS
A3: COMPARISON OF ANNUAL DEPRECIATION EXPENSES
F6: CURRENT | I6: COMPANY PROPOSED
C7: ='Sch. 1'!C8 -> 2020-01-01 | D7: ='Sch. 1'!D8 -> 2020-01-01 | L7: CHANGE
A8: ACCOUNT | C8: INVESTMENT | D8: RESERVE | F8: RATE | G8: EXPENSES | I8: RATE | K8: EXPENSES | L8: EXPENSES
A10: TRANSMISSION PLANT
B11: 350.1 - Land Rights | C11: ='Sch. 1'!C13 -> 0 | D11: ='Sch. 1'!D13 -> 0.14 | F11: ='Sch. 2'!E12 -> 1.4 | G11: =ROUND(F11/100*$C11,0) -> 0 | I11: ='Sch. 2'!K12 -> 1.3 | K11: =ROUND(I11/100*$C11,0) -> 0 | L11: =+K11-G11 -> 0
B12: 352 - Structures and Improvements | C12: ='Sch. 1'!C14 -> 1919496.17 | D12: ='Sch. 1'!D14 -> 59504 | E12: * | F12: ='Sch. 2'!E13 -> 1.8 | G12: =ROUND(F12/100*$C12,0) -> 34551 | I12: ='Sch. 2'!K13 -> 1.7 | J12: * | K12: =ROUND(I12/100*$C12,0) -> 32631 | L12: =+K12-G12 -> -1920
B13: 353 - Station Equipment | C13: ='Sch. 1'!C15 -> 7581692.31 | D13: ='Sch. 1'!D15 -> 1623570.396 | F13: ='Sch. 2'!E14 -> 2.6 | G13: 197124 | I13: ='Sch. 2'!K14 -> 2.2 | K13: 166797 | L13: -30327
B14: 354 - Towers and Fixtures | C14: ='Sch. 1'!C16 -> 249798 | D14: ='Sch. 1'!D16 -> 197091 | E14: * | F14: ='Sch. 2'!E15 -> 2.1 | G14: 5246 | I14: ='Sch. 2'!K15 -> 1.9 | J14: * | K14: 4746 | L14: -500
B15: 355 - Poles and Fixtures | C15: ='Sch. 1'!C17 -> 1659808.85 | D15: ='Sch. 1'!D17 -> 487283 | E15: * | F15: ='Sch. 2'!E16 -> 4.1 | G15: 68052 | I15: ='Sch. 2'!K16 -> 6.8 | J15: * | K15: =ROUND(I15/100*$C15,0) -> 112867 | L15: 44815
B16: 355.1 - Poles and Fixtures - Concrete | C16: ='Sch. 1'!C18 -> 4014730.41 | D16: ='Sch. 1'!D18 -> 678489 | E16: * | F16: ='Sch. 2'!E17 -> 2.9 | G16: =ROUND(F16/100*$C16,0) -> 116427 | I16: ='Sch. 2'!K17 -> 2.9 | J16: * | K16: =ROUND(I16/100*$C16,0) -> 116427 | L16: =+K16-G16 -> 0
B17: 356 - Overhead Conductors and Devices | C17: ='Sch. 1'!C19 -> 3674652.52 | D17: ='Sch. 1'!D19 -> 563667.041 | F17: ='Sch. 2'!E18 -> 2.5 | G17: 91866 | I17: ='Sch. 2'!K18 -> 2.3 | K17: 84517 | L17: -7349
B18: 359 - Roads and Trails | C18: ='Sch. 1'!C20 -> 6788 | D18: ='Sch. 1'!D20 -> 6009.07 | F18: ='Sch. 2'!E19 -> 1.5 | G18: 102 | I18: ='Sch. 2'!K19 -> 0.9 | K18: 61 | L18: -41
B19: TOTAL TRANSMISSION PLANT | C19: =SUM(C11:C18) -> 19106966.26 | D19: =SUM(D11:D18) -> 3615613.647 | G19: =SUM(G11:G18) -> 513368 | K19: =SUM(K11:K18) -> 518046 | L19: =SUM(L11:L18) -> 4678
A21: DISTRIBUTION PLANT
B22: 360.1 - Land Rights | C22: ='Sch. 1'!C24 -> 56995 | D22: ='Sch. 1'!D24 -> 34099.96 | F22: ='Sch. 2'!E23 -> 1.6 | G22: =ROUND(F22/100*$C22,0) -> 912 | I22: ='Sch. 2'!K23 -> 1.5 | K22: =ROUND(I22/100*$C22,0) -> 855 | L22: =+K22-G22 -> -57
B23: 361 - Structures and Improvements | C23: ='Sch. 1'!C25 -> 1198983.12 | D23: ='Sch. 1'!D25 -> 108222.7565 | F23: ='Sch. 2'!E24 -> 1.7 | G23: =ROUND(F23/100*$C23,0) -> 20383 | I23: ='Sch. 2'!K24 -> 1.8 | K23: =ROUND(I23/100*$C23,0) -> 21582 | L23: =+K23-G23 -> 1199
B24: 362 - Station Equipment | C24: ='Sch. 1'!C26 -> 13235886.76 | D24: ='Sch. 1'!D26 -> 3869925.021 | F24: ='Sch. 2'!E25 -> 2.4 | G24: 317661 | I24: ='Sch. 2'!K25 -> 2.1 | K24: 277954 | L24: -39707
B25: 364 - Poles, Towers, and Fixtures | C25: ='Sch. 1'!C27 -> 25869789.06 | D25: ='Sch. 1'!D27 -> 14268607.37 | E25: ** | F25: ='Sch. 2'!E26 -> 3.9 | G25: 1008922 | I25: ='Sch. 2'!K26 -> 3.4 | J25: ** | K25: 879573 | L25: -129349
B26: 365 - Overhead Conductors & Devices | C26: ='Sch. 1'!C28 -> 20427592.9 | D26: ='Sch. 1'!D28 -> 12211537.43 | E26: ** | F26: ='Sch. 2'!E27 -> 3.4 | G26: 694538 | I26: ='Sch. 2'!K27 -> 2.5 | J26: ** | K26: 510690 | L26: -183848
B27: 366 - Underground Conduit | C27: ='Sch. 1'!C29 -> 7034164.18 | D27: ='Sch. 1'!D29 -> 1359792.5 | F27: ='Sch. 2'!E28 -> 1.8 | G27: 126615 | I27: ='Sch. 2'!K28 -> 1.8 | K27: 126615 | L27: 0
B28: 367 - Underground Conductors & Devices | C28: ='Sch. 1'!C30 -> 10218344.4 | D28: ='Sch. 1'!D30 -> 3955509.44 | F28: ='Sch. 2'!E29 -> 3.2 | G28: 326987 | I28: ='Sch. 2'!K29 -> 3.2 | K28: 326987 | L28: 0
B29: 368 - Line Transformers | C29: ='Sch. 1'!C31 -> 22458863.19 | D29: ='Sch. 1'!D31 -> 15102001.85 | E29: ** | F29: ='Sch. 2'!E30 -> 4 | G29: =ROUND(F29/100*$C29,0) -> 898355 | I29: ='Sch. 2'!K30 -> 3.9 | J29: ** | K29: 875896 | L29: -22459
B30: 369 - Services | C30: ='Sch. 1'!C32 -> 14341344.02 | D30: ='Sch. 1'!D32 -> 8430545.775 | E30: ** | F30: ='Sch. 2'!E31 -> 3.6 | G30: 516288 | I30: ='Sch. 2'!K31 -> 3.2 | J30: ** | K30: 458923 | L30: -57365
B31: 370 - Meters | C31: ='Sch. 1'!C33 -> 5085098.56 | D31: ='Sch. 1'!D33 -> 3228618.443 | E31: ** | F31: ='Sch. 2'!E32 -> 3.7 | G31: 188149 | I31: ='Sch. 2'!K32 -> 3.6 | J31: ** | K31: 183064 | L31: -5085
B32: 371 - Installation on Customers' Premises | C32: ='Sch. 1'!C34 -> 3263291.29 | D32: ='Sch. 1'!D34 -> 1788633.878 | E32: ** | F32: ='Sch. 2'!E33 -> 4.5 | G32: 146848 | I32: ='Sch. 2'!K33 -> 3 | J32: ** | K32: 97899 | L32: -48949
B33: 373 - Street Lighting & Signal Systems | C33: ='Sch. 1'!C35 -> 2725584.38 | D33: ='Sch. 1'!D35 -> 1443139.909 | E33: ** | F33: ='Sch. 2'!E34 -> 4.9 | G33: 133554 | I33: ='Sch. 2'!K34 -> 5 | J33: ** | K33: 136279 | L33: 2725
B34: TOTAL DISTRIBUTION PLANT | C34: =SUM(C22:C33) -> 125915936.9 | D34: =SUM(D22:D33) -> 65800634.33 | G34: =SUM(G22:G33) -> 4379212 | K34: =SUM(K22:K33) -> 3896317 | L34: =SUM(L22:L33) -> -482895
A36: GENERAL PLANT
B37: 390 - Structures & Improvements | C37: ='Sch. 1'!C39 -> 4044796.46 | D37: ='Sch. 1'!D39 -> 1006938.027 | F37: ='Sch. 2'!E38 -> 2 | G37: =ROUND(F37/100*$C37,0) -> 80896 | I37: ='Sch. 2'!K38 -> 2 | K37: =ROUND(I37/100*$C37,0) -> 80896 | L37: =+K37-G37 -> 0
B38: 392.1 - Transportation-Cars | C38: ='Sch. 1'!C40 -> 23951 | D38: ='Sch. 1'!D40 -> 10768 | E38: * | F38: ='Sch. 2'!E39 -> 11.9 | G38: 2850 | I38: ='Sch. 2'!K39 -> 7.7 | J38: * | K38: 1844 | L38: -1006
B39: 392.2 - Transportation-Light Trucks & Vans | C39: ='Sch. 1'!C41 -> 1041834.14 | D39: ='Sch. 1'!D41 -> 575092 | E39: * | F39: ='Sch. 2'!E40 -> 7.8 | G39: 81263 | I39: ='Sch. 2'!K40 -> 8 | J39: * | K39: 83347 | L39: 2084
B40: 392.3 - Transportation - Heavy Trucks | C40: ='Sch. 1'!C42 -> 3755921.91 | D40: ='Sch. 1'!D42 -> 2005662 | E40: * | F40: ='Sch. 2'!E41 -> 7 | G40: 262915 | I40: ='Sch. 2'!K41 -> 6 | J40: * | K40: 225355 | L40: -37560
B41: 392.4 - Transpiration - Vans | C41: ='Sch. 1'!C43 -> 144084 | D41: ='Sch. 1'!D43 -> 94052.774 | F41: ='Sch. 2'!E42 -> 3.7 | G41: 5331 | I41: ='Sch. 2'!K42 -> 3.2 | K41: 4611 | L41: -720
B42: 396 - Power Operated Equipment | C42: ='Sch. 1'!C44 -> 898523 | D42: ='Sch. 1'!D44 -> 335751.8277 | F42: ='Sch. 2'!E43 -> 4.4 | G42: 39535 | I42: ='Sch. 2'!K43 -> 4.1 | K42: 36839 | L42: -2696
B43: TOTAL GENERAL PROPERTY | C43: =SUM(C37:C42) -> 9909110.51 | D43: =SUM(D37:D42) -> 4028264.628 | G43: =SUM(G37:G42) -> 472790 | K43: =SUM(K37:K42) -> 432892 | L43: =SUM(L37:L42) -> -39898
I44: 4-Yr Amort | K44: =+'Sch. 5'!F23 -> -128474 | L44: =+K44 -> -128474
B45: TOTAL RATES | C45: =+C43+C34+C19 -> 154932013.6 | D45: =+D43+D34+D19 -> 73444512.61 | G45: =+G43+G34+G19 -> 5365370 | K45: =+K43+K34+K19+K44 -> 4718781 | L45: =+L43+L34+L19+L44 -> -646589
A47: * | B47: Reflects restated reserve after proposed corrective reserve allocations and amortization of transportation reserve surplus.
A48: ** | B48: Reflects reserve adjusted for Hurricane Michael unrecovered costs addressed in Docket No. 20190155-EI.

Sheet Sch. 4
A1: FLORIDA PUBLIC UTILITIES
A2: ='Sch. 1'!A2:O2 -> 2019 CONSOLIDATED ELECTRIC DIVISIONS
A3: COMPARISON OF ACCUMULATED BOOK RESERVE AND THEORETICAL RESERVE - PROPOSED RATES
D6: ='Sch. 1'!C8 -> 2020-01-01 | E6: ='Sch. 1'!D8 -> 2020-01-01 | G6: THEORETICAL | H6: THEORETICAL | L6: NET
D7: INVESTMENT | E7: RESERVE | G7: RESERVE | H7: RESERVE | I7: IMBALANCE | J7: WLR | K7: ARL | L7: SALV
A8: ACCOUNT | G8: (%) | J8: (%) | K8: (YEARS) | L8: (%)
A10: TRANSMISSION PLANT
B11: 350.1 - Land Rights | D11: ='Sch. 1'!C13 -> 0 | E11: ='Sch. 1'!D13 -> 0.14 | G11: =ROUND(100-(K11*J11)-L11,2) -> 2.5 | H11: =ROUND(G11*D11/100,0) -> 0 | I11: =SUM(E11-H11) -> 0.14 | J11: =ROUND((100-'Sch. 1'!N13)/'Sch. 1'!L13,1) -> 1.3 | K11: ='Sch. 2'!G12 -> 75 | L11: ='Sch. 2'!H12 -> 0
B12: 352 - Structures and Improvements | D12: ='Sch. 1'!C14 -> 1919496.17 | E12: =+'Sch. 5'!G8 -> 59504 | F12: * | G12: =ROUND(100-(K12*J12)-L12,2) -> 3.1 | H12: =ROUND(G12*D12/100,0) -> 59504 | I12: 0 | J12: =ROUND((100-'Sch. 1'!N14)/'Sch. 1'!L14,1) -> 1.7 | K12: ='Sch. 2'!G13 -> 57 | L12: ='Sch. 2'!H13 -> 0
B13: 353 - Station Equipment | D13: ='Sch. 1'!C15 -> 7581692.31 | E13: ='Sch. 1'!D15 -> 1623570.396 | G13: 23 | H13: 1743789 | I13: -120218.6037 | J13: =ROUND((100-'Sch. 1'!N15)/'Sch. 1'!L15,1) -> 2.2 | K13: ='Sch. 2'!G14 -> 35 | L13: ='Sch. 2'!H14 -> 0
B14: 354 - Towers and Fixtures | D14: ='Sch. 1'!C16 -> 249798 | E14: ='Sch. 5'!G9 -> 197091 | F14: * | G14: =ROUND(100-(K14*J14)-L14,2) -> 78.9 | H14: 197091 | I14: 0 | J14: =ROUND((100-'Sch. 1'!N16)/'Sch. 1'!L16,1) -> 1.9 | K14: ='Sch. 2'!G15 -> 19 | L14: ='Sch. 2'!H15 -> -15
B15: 355 - Poles and Fixtures | D15: ='Sch. 1'!C17 -> 1659808.85 | E15: ='Sch. 5'!G10 -> 487283 | F15: * | G15: 82.36 | H15: 1367019 | I15: -879736 | J15: =ROUND((100-'Sch. 1'!N17)/'Sch. 1'!L17,1) -> 3.8 | K15: ='Sch. 2'!G16 -> 17.8 | L15: ='Sch. 2'!H16 -> -50
B16: 355.1 - Poles and Fixtures - Concrete | D16: ='Sch. 1'!C18 -> 4014730.41 | E16: ='Sch. 5'!G11 -> 678489 | F16: * | G16: =ROUND(100-(K16*J16)-L16,2) -> 16.9 | H16: =ROUND(G16*D16/100,0) -> 678489 | I16: =SUM(E16-H16) -> 0 | J16: =ROUND((100-'Sch. 1'!N18)/'Sch. 1'!L18,1) -> 2.9 | K16: ='Sch. 2'!G17 -> 39 | L16: ='Sch. 2'!H17 -> -30
B17: 356 - Overhead Conductors and Devices | D17: ='Sch. 1'!C19 -> 3674652.52 | E17: ='Sch. 1'!D19 -> 563667.041 | G17: 18.8 | H17: 690835 | I17: -127167.959 | J17: =ROUND((100-'Sch. 1'!N19)/'Sch. 1'!L19,1) -> 2.2 | K17: ='Sch. 2'!G18 -> 46 | L17: ='Sch. 2'!H18 -> -20
B18: 359 - Roads and Trails | D18: ='Sch. 1'!C20 -> 6788 | E18: ='Sch. 1'!D20 -> 6009.07 | G18: 82.5 | H18: 5600 | I18: 409.07 | J18: =ROUND((100-'Sch. 1'!N20)/'Sch. 1'!L20,1) -> 1.4 | K18: ='Sch. 2'!G19 -> 12.5 | L18: ='Sch. 2'!H19 -> 0
B19: Total Transmission Assets | D19: =SUM(D11:D18) -> 19106966.26 | E19: =SUM(E11:E18) -> 3615613.647 | H19: =SUM(H11:H18) -> 4742327 | I19: =SUM(I11:I18) -> -1126713.353
A21: DISTRIBUTION PLANT
B22: 360.1 - Land Rights | D22: ='Sch. 1'!C24 -> 56995 | E22: ='Sch. 1'!D24 -> 34099.96 | G22: =ROUND(100-(K22*J22)-L22,2) -> 55.8 | H22: =ROUND(G22*D22/100,0) -> 31803 | I22: =SUM(E22-H22) -> 2296.96 | J22: =ROUND((100-'Sch. 1'!N24)/'Sch. 1'!L24,1) -> 1.7 | K22: ='Sch. 2'!G23 -> 26 | L22: ='Sch. 2'!H23 -> 0
B23: 361 - Structures and Improvements | D23: ='Sch. 1'!C25 -> 1198983.12 | E23: ='Sch. 1'!D25 -> 108222.7565 | G23: =ROUND(100-(K23*J23)-L23,2) -> 7.8 | H23: =ROUND(G23*D23/100,0) -> 93521 | I23: 14701.75652 | J23: =ROUND((100-'Sch. 1'!N25)/'Sch. 1'!L25,1) -> 1.8 | K23: ='Sch. 2'!G24 -> 54 | L23: ='Sch. 2'!H24 -> -5
B24: 362 - Station Equipment | D24: ='Sch. 1'!C26 -> 13235886.76 | E24: ='Sch. 1'!D26 -> 3869925.021 | G24: 26.4 | H24: 3494274 | I24: 375651.0213 | J24: =ROUND((100-'Sch. 1'!N26)/'Sch. 1'!L26,1) -> 2.2 | K24: ='Sch. 2'!G25 -> 38 | L24: ='Sch. 2'!H25 -> -10
B25: 364 - Poles, Towers, and Fixtures | D25: ='Sch. 1'!C27 -> 25869789.06 | E25: ='Sch. 1'!D27 -> 14268607.37 | F25: ** | G25: 40.8 | H25: 10554874 | I25: 3713733.369 | J25: =ROUND((100-'Sch. 1'!N27)/'Sch. 1'!L27,1) -> 3.9 | K25: ='Sch. 2'!G26 -> 28 | L25: ='Sch. 2'!H26 -> -50
B26: 365 - Overhead Conductors & Devices | D26: ='Sch. 1'!C28 -> 20427592.9 | E26: ='Sch. 1'!D28 -> 12211537.43 | F26: ** | G26: 45 | H26: 9192417 | I26: 3019120.43 | J26: =ROUND((100-'Sch. 1'!N28)/'Sch. 1'!L28,1) -> 3 | K26: ='Sch. 2'!G27 -> 30 | L26: ='Sch. 2'!H27 -> -35
B27: 366 - Underground Conduit | D27: ='Sch. 1'!C29 -> 7034164.18 | E27: ='Sch. 1'!D29 -> 1359792.5 | G27: 20.4 | H27: 1434969 | I27: -75176.49965 | J27: =ROUND((100-'Sch. 1'!N29)/'Sch. 1'!L29,1) -> 1.8 | K27: ='Sch. 2'!G28 -> 47 | L27: ='Sch. 2'!H28 -> -5
B28: 367 - Underground Conductors & Devices | D28: ='Sch. 1'!C30 -> 10218344.4 | E28: ='Sch. 1'!D30 -> 3955509.44 | G28: 42 | H28: 4291705 | I28: -336195.5595 | J28: =ROUND((100-'Sch. 1'!N30)/'Sch. 1'!L30,1) -> 3 | K28: ='Sch. 2'!G29 -> 21 | L28: ='Sch. 2'!H29 -> -5
B29: 368 - Line Transformers | D29: ='Sch. 1'!C31 -> 22458863.19 | E29: ='Sch. 1'!D31 -> 15102001.85 | F29: ** | G29: =ROUND(100-(K29*J29)-L29,2) -> 65.6 | H29: 14733014 | I29: 368987.848 | J29: =ROUND((100-'Sch. 1'!N31)/'Sch. 1'!L31,1) -> 4 | K29: ='Sch. 2'!G30 -> 13.6 | L29: ='Sch. 2'!H30 -> -20
B30: 369 - Services | D30: ='Sch. 1'!C32 -> 14341344.02 | E30: ='Sch. 1'!D32 -> 8430545.775 | F30: ** | G30: 52.5 | H30: 7529206 | I30: 901339.7753 | J30: =ROUND((100-'Sch. 1'!N32)/'Sch. 1'!L32,1) -> 3.5 | K30: ='Sch. 2'!G31 -> 25 | L30: ='Sch. 2'!H31 -> -40
B31: 370 - Meters | D31: ='Sch. 1'!C33 -> 5085098.56 | E31: ='Sch. 1'!D33 -> 3228618.443 | F31: ** | G31: 61.9 | H31: 3147676 | I31: 80942.44263 | J31: =ROUND((100-'Sch. 1'!N33)/'Sch. 1'!L33,1) -> 3.7 | K31: ='Sch. 2'!G32 -> 13 | L31: ='Sch. 2'!H32 -> -10
B32: 371 - Installation on Customers' Premises | D32: ='Sch. 1'!C34 -> 3263291.29 | E32: ='Sch. 1'!D34 -> 1788633.878 | F32: ** | G32: 43.32 | H32: 1413658 | I32: 374975.8781 | J32: =ROUND((100-'Sch. 1'!N34)/'Sch. 1'!L34,1) -> 3.8 | K32: ='Sch. 2'!G33 -> 13.6 | L32: ='Sch. 2'!H33 -> 5
B33: 373 - Street Lighting & Signal Systems | D33: ='Sch. 1'!C35 -> 2725584.38 | E33: ='Sch. 1'!D35 -> 1443139.909 | F33: ** | G33: =ROUND(100-(K33*J33)-L33,2) -> 53 | H33: 1444560 | I33: -1420.090702 | J33: =ROUND((100-'Sch. 1'!N35)/'Sch. 1'!L35,1) -> 5 | K33: ='Sch. 2'!G34 -> 11.4 | L33: ='Sch. 2'!H34 -> -10
B34: Total Distribution Assets | D34: =SUM(D22:D33) -> 125915936.9 | E34: =SUM(E22:E33) -> 65800634.33 | H34: =SUM(H22:H33) -> 57361677 | I34: =SUM(I22:I33) -> 8438957.331
A36: GENERAL PLANT
B37: 390 - Structures & Improvements | D37: ='Sch. 1'!C39 -> 4044796.46 | E37: ='Sch. 1'!D39 -> 1006938.027 | G37: =ROUND(100-(K37*J37)-L37,2) -> 24 | H37: =ROUND(G37*D37/100,0) -> 970751 | I37: =SUM(E37-H37) -> 36187.02667 | J37: =ROUND((100-'Sch. 1'!N39)/'Sch. 1'!L39,1) -> 2 | K37: ='Sch. 2'!G38 -> 38 | L37: ='Sch. 2'!H38 -> 0
B38: 392.1 - Transportation-Cars | D38: ='Sch. 1'!C40 -> 23951 | E38: =+'Sch. 5'!D19 -> 10768 | F38: * | G38: 44.96 | H38: 10768 | I38: 0 | J38: =ROUND((100-'Sch. 1'!N40)/'Sch. 1'!L40,1) -> 7.7 | K38: ='Sch. 2'!G39 -> 5.2 | L38: ='Sch. 2'!H39 -> 15
B39: 392.2 - Transportation-Light Trucks & Vans | D39: ='Sch. 1'!C41 -> 1041834.14 | E39: =+'Sch. 5'!D20 -> 575092 | F39: * | G39: 55.2 | H39: 575092 | I39: =SUM(E39-H39) -> 0 | J39: =ROUND((100-'Sch. 1'!N41)/'Sch. 1'!L41,1) -> 8 | K39: ='Sch. 2'!G40 -> 4.1 | L39: ='Sch. 2'!H40 -> 12
B40: 392.3 - Transportation - Heavy Trucks | D40: ='Sch. 1'!C42 -> 3755921.91 | E40: =+'Sch. 5'!D21 -> 2005662 | F40: * | G40: 53.4 | H40: 2005662 | I40: 0 | J40: =ROUND((100-'Sch. 1'!N42)/'Sch. 1'!L42,1) -> 6 | K40: ='Sch. 2'!G41 -> 6.1 | L40: ='Sch. 2'!H41 -> 10
B41: 392.4 - Transpiration - Vans | D41: ='Sch. 1'!C43 -> 144084 | E41: ='Sch. 1'!D43 -> 94052.774 | G41: 59.28 | H41: 85413 | I41: 8639.774 | J41: =ROUND((100-'Sch. 1'!N43)/'Sch. 1'!L43,1) -> 3.8 | K41: ='Sch. 2'!G42 -> 9.4 | L41: ='Sch. 2'!H42 -> 5
B42: 396 - Power Operated Equipment | D42: ='Sch. 1'!C44 -> 898523 | E42: ='Sch. 1'!D44 -> 335751.8277 | G42: 38.4 | H42: 345033 | I42: -9281.17232 | J42: =ROUND((100-'Sch. 1'!N44)/'Sch. 1'!L44,1) -> 4 | K42: ='Sch. 2'!G43 -> 15.4 | L42: ='Sch. 2'!H43 -> 0
B44: Total General Plant Assets | D44: =SUM(D37:D43) -> 9909110.51 | E44: =SUM(E37:E43) -> 4028264.628 | H44: =SUM(H37:H43) -> 3992719 | I44: =SUM(I37:I43) -> 35545.62835
B46: GRAND TOTAL | D46: =+D44+D34+D19 -> 154932013.6 | E46: =+E44+E34+E19 -> 73444512.61 | H46: =+H44+H34+H19 -> 66096723 | I46: =+I44+I34+I19 -> 7347789.607
A48: * | B48: Reflects restated reserve after proposed corrective reserve allocations and amortization of transportation reserve surplus.
A49: ** | B49: Reflects reserve adjusted for Hurricane Michael unrecovered costs addressed in Docket No. 20190155-EI.
E51: Reserve Surplus | G51: 4-yr Amortization
B52: 392.1-Transportation-Cars | E52: =+'Sch. 5'!E19 -> 22780.23 | G52: =-E52/4 -> -5695.0575
B53: 392.3-Transportation-Heavy Trucks | E53: =+'Sch. 5'!E21 -> 435322.5289 | G53: =-E53/4 -> -108830.6322
E54: =SUM(E52:E53) -> 458102.7589 | G54: =SUM(G52:G53) -> -114525.6897
B56: 392.2 - Transportation-Light Trucks & Vans | E56: =+'Sch. 5'!E20 -> 55792.99876 | G56: =-E56/4 -> -13948.24969
E57: =SUM(E54:E56) -> 513895.7577 | G57: =SUM(G54:G56) -> -128473.9394

Sheet Sch. 5
A1: FLORIDA PUBLIC UTILITIES
A2: ='Sch. 1'!A2:O2 -> 2019 CONSOLIDATED ELECTRIC DIVISIONS
A3: PROPOSED RESERVE ALLOCATIONS
F5: PROPOSED
C6: =+'Sch. 1'!C8 -> 2020-01-01 | D6: THEORETICAL | F6: RESERVE | G6: RESTATED
A7: ACCOUNT | C7: BOOK RESERVE | D7: RESERVE | E7: IMBALANCE | F7: ALLOCATIONS | G7: RESERVE
A8: 352 | B8: Structures and Improvements | C8: 96690 | D8: 59504 | E8: =C8-D8 -> 37186 | F8: -37186 | G8: =C8+F8 -> 59504
A9: 354 | B9: Towers and Fixtures | C9: 214014 | D9: 197091 | E9: 16923 | F9: -16923 | G9: 197091
A10: 355 | B10: Poles and Fixtures | C10: 189827 | D10: 1367019 | E10: -1177192 | F10: 297456 | G10: 487283
A11: 355.1 | B11: Poles and Fixtures - Concrete | C11: 921836 | D11: 678489 | E11: 243347 | F11: -243347 | G11: 678489
B13: TOTAL | C13: =SUM(C8:C12) -> 1422367 | D13: 42311066 | E13: 42311066 | F13: =SUM(F8:F12) -> 0 | G13: =SUM(G8:G12) -> 1422367
C17: 2020-01-01 | D17: THEORETICAL | F17: 4-YR.
A18: ACCOUNT | C18: BOOK RESERVE | D18: RESERVE | E18: IMBALANCE | F18: AMORTIZATION
A19: 392.1 | B19: Transportation-Cars | C19: =+'Sch. F 2019 EST'!P39 -> 33548.23 | D19: 10768 | E19: =C19-D19 -> 22780.23 | F19: =-ROUND(E19/4,0) -> -5695
A20: 392.2 | B20: Transportation-Light Trucks & Vans | C20: =+'Sch. F 2019 EST'!P40 -> 630884.9988 | D20: 575092 | E20: =C20-D20 -> 55792.99876 | F20: =-ROUND(E20/4,0) -> -13948
A21: 392.3 | B21: Transportation-Heavy Trucks | C21: =+'Sch. F 2019 EST'!P41 -> 2440984.529 | D21: 2005662 | E21: =C21-D21 -> 435322.5289 | F21: =-ROUND(E21/4,0) -> -108831
B23: TOTAL | C23: =SUM(C19:C21) -> 3105417.758 | D23: =SUM(D19:D21) -> 2591522 | E23: =SUM(E19:E21) -> 513895.7577 | F23: =SUM(F19:G21) -> -128474
A25: * | B25: Sch. F 2019

Sheet Sch. A
C1: FLORIDA PUBLIC UTILITIES COMPANY | M1: FLORIDA PUBLIC UTILITIES COMPANY | W1: FLORIDA PUBLIC UTILITIES COMPANY | AG1: FLORIDA PUBLIC UTILITIES COMPANY | AQ1: FLORIDA PUBLIC UTILITIES COMPANY | BA1: FLORIDA PUBLIC UTILITIES COMPANY | BK1: FLORIDA PUBLIC UTILITIES COMPANY | BU1: FLORIDA PUBLIC UTILITIES COMPANY
C2: =+Index!K2 -> 2019 CONSOLIDATED ELECTRIC DIVISIONS | M2: =+C2 -> 2019 CONSOLIDATED ELECTRIC DIVISIONS | W2: =+M2 -> 2019 CONSOLIDATED ELECTRIC DIVISIONS | AG2: =+W2 -> 2019 CONSOLIDATED ELECTRIC DIVISIONS | AQ2: =+AG2 -> 2019 CONSOLIDATED ELECTRIC DIVISIONS | BA2: =+AQ2 -> 2019 CONSOLIDATED ELECTRIC DIVISIONS | BK2: =+BA2 -> 2019 CONSOLIDATED ELECTRIC DIVISIONS | BU2: =+BK2 -> 2019 CONSOLIDATED ELECTRIC DIVISIONS
C3: =+Index!C18 -> 2019 Projected Aged Retirements | M3: =+C3 -> 2019 Projected Aged Retirements | W3: 2019 Projected Aged Retirements | AG3: 2019 Projected Aged Retirements | AQ3: 2019 Projected Aged Retirements | BA3: 2019 Projected Aged Retirements | BK3: 2019 Projected Aged Retirements | BU3: 2019 Projected Aged Retirements
C4: *ADJUSTED TO REFLECT ACTUAL, BUDGETED AND/OR ANTICIPATED ACTIVITY & EXCLUDE HURRICANE MICHAEL ACTIVITY | M4: *ADJUSTED TO REFLECT ACTUAL, BUDGETED AND/OR ANTICIPATED ACTIVITY & EXCLUDE HURRICANE MICHAEL ACTIVITY | W4: *ADJUSTED TO REFLECT ACTUAL, BUDGETED AND/OR ANTICIPATED ACTIVITY & EXCLUDE HURRICANE MICHAEL ACTIVITY | AG4: *ADJUSTED TO REFLECT ACTUAL, BUDGETED AND/OR ANTICIPATED ACTIVITY & EXCLUDE HURRICANE MICHAEL ACTIVITY | AQ4: *ADJUSTED TO REFLECT ACTUAL, BUDGETED AND/OR ANTICIPATED ACTIVITY & EXCLUDE HURRICANE MICHAEL ACTIVITY | BA4: *ADJUSTED TO REFLECT ACTUAL, BUDGETED AND/OR ANTICIPATED ACTIVITY & EXCLUDE HURRICANE MICHAEL ACTIVITY | BK4: *ADJUSTED TO REFLECT ACTUAL, BUDGETED AND/OR ANTICIPATED ACTIVITY & EXCLUDE HURRICANE MICHAEL ACTIVITY | BU4: *ADJUSTED TO REFLECT ACTUAL, BUDGETED AND/OR ANTICIPATED ACTIVITY & EXCLUDE HURRICANE MICHAEL ACTIVITY
A5: AGE | B5: YEAR | C5: 350.1 | D5: WT AVG | E5: 352 | F5: WT AVG | G5: 353 | H5: WT AVG | I5: 354 | J5: WT AVG | K5: 355 | L5: WT AVG | M5: 356 | N5: WT AVG | O5: 359 | P5: WT AVG | Q5: 3601 | R5: WT AVG | S5: 361 | T5: WT AVG | U5: 362 | V5: WT AVG | W5: 364 | X5: WT AVG | Y5: 365 | Z5: WT AVG | AA5: 366 | AB5: WT AVG | AC5: 367 | AD5: WT AVG | AE5: 368 | AF5: WT AVG | AG5: 369 | AH5: WT AVG | AI5: 370 | AJ5: WT AVG | AK5: 371 | AL5: WT AVG | AM5: 373 | AN5: WT AVG | AO5: 390 | AP5: WT AVG | AQ5: 3910 | AR5: WT AVG | AS5: 3911 | AT5: WT AVG | AU5: 3912 | AV5: WT AVG | AW5: 3913 | AX5: WT AVG | AY5: 3914 | AZ5: WT AVG | BA5: 3921 | BB5: WT AVG | BC5: 3922 | BD5: WT AVG | BE5: 3923 | BF5: WT AVG | BG5: 3924 | BH5: WT AVG | BI5: 393 | BJ5: WT AVG | BK5: 394 | BL5: WT AVG | BM5: 395 | BN5: WT AVG | BO5: 396 | BP5: WT AVG | BQ5: 397 | BR5: WT AVG | BS5: 398 | BT5: WT AVG | BU5: 399 | BV5: WT AVG | BX5: WT AVG | BZ5: WT AVG | CA5: TOTAL | CB5: WT AVG
A6: =+Index!$K$4+1+0.5-B6 -> 79.5 | B6: 1940 | C6: =ROUND(('Sch. B'!C6+'Sch. C'!C6+'Sch. D'!C6+'Sch. E'!C6)/4/12*6,2) -> 0 | D6: =+C6*$A6 -> 0 | E6: =ROUND(('Sch. B'!E6+'Sch. C'!E6+'Sch. D'!E6+'Sch. E'!E6)/4/12*6,2) -> 0 | F6: =+E6*$A6 -> 0 | G6: =ROUND(('Sch. B'!G6+'Sch. C'!G6+'Sch. D'!G6+'Sch. E'!G6)/4/12*6,2) -> 0 | H6: =+G6*$A6 -> 0 | I6: =ROUND(('Sch. B'!I6+'Sch. C'!I6+'Sch. D'!I6+'Sch. E'!I6)/4/12*6,2) -> 0 | J6: =+I6*$A6 -> 0 | K6: =ROUND(('Sch. B'!K6+'Sch. C'!K6+'Sch. D'!K6+'Sch. E'!K6)/4/12*6,2) -> 0 | L6: =+K6*$A6 -> 0 | M6: =ROUND(('Sch. B'!M6+'Sch. C'!M6+'Sch. D'!M6+'Sch. E'!M6)/4/12*6,2) -> 0 | N6: =+M6*$A6 -> 0 | O6: =ROUND(('Sch. B'!O6+'Sch. C'!O6+'Sch. D'!O6+'Sch. E'!O6)/4/12*6,2) -> 0 | P6: =+O6*$A6 -> 0 | Q6: =ROUND(('Sch. B'!Q6+'Sch. C'!Q6+'Sch. D'!Q6+'Sch. E'!Q6)/4/12*6,2) -> 0 | R6: =+Q6*$A6 -> 0 | S6: =ROUND(('Sch. B'!S6+'Sch. C'!S6+'Sch. D'!S6+'Sch. E'!S6)/4/12*6,2) -> 0 | T6: =+S6*$A6 -> 0 | U6: =ROUND(('Sch. B'!U6+'Sch. C'!U6+'Sch. D'!U6+'Sch. E'!U6)/4/12*6,2) -> 0 | V6: =+U6*$A6 -> 0 | W6: =ROUND(('Sch. B'!W6+'Sch. C'!W6+'Sch. D'!W6+'Sch. E'!W6)/4/12*6,2) -> 51.44 | X6: =+W6*$A6 -> 4089.48 | Y6: =ROUND(('Sch. B'!Y6+'Sch. C'!Y6+'Sch. D'!Y6+'Sch. E'!Y6)/4/12*6,2) -> 0 | Z6: =+Y6*$A6 -> 0 | AA6: =ROUND(('Sch. B'!AA6+'Sch. C'!AA6+'Sch. D'!AA6+'Sch. E'!AA6)/4/12*6,2) -> 0 | AB6: =+AA6*$A6 -> 0 | AC6: =ROUND(('Sch. B'!AC6+'Sch. C'!AC6+'Sch. D'!AC6+'Sch. E'!AC6)/4/12*6,2) -> 0 | AD6: =+AC6*$A6 -> 0 | AE6: =ROUND(('Sch. B'!AE6+'Sch. C'!AE6+'Sch. D'!AE6+'Sch. E'!AE6)/4/12*6,2) -> 0 | AF6: =+AE6*$A6 -> 0 | AG6: =ROUND(('Sch. B'!AG6+'Sch. C'!AG6+'Sch. D'!AG6+'Sch. E'!AG6)/4/12*6,2) -> 0 | AH6: =+AG6*$A6 -> 0 | AI6: =ROUND(('Sch. B'!AI6+'Sch. C'!AI6+'Sch. D'!AI6+'Sch. E'!AI6)/4/12*6,2) -> 0 | AJ6: =+AI6*$A6 -> 0 | AK6: =ROUND(('Sch. B'!AK6+'Sch. C'!AK6+'Sch. D'!AK6+'Sch. E'!AK6)/4/12*6,2) -> 0 | AL6: =+AK6*$A6 -> 0 | AM6: =ROUND(('Sch. B'!AM6+'Sch. C'!AM6+'Sch. D'!AM6+'Sch. E'!AM6)/4/12*6,2) -> 0 | AN6: =+AM6*$A6 -> 0 | AO6: =ROUND(('Sch. B'!AO6+'Sch. C'!AO6+'Sch. D'!AO6+'Sch. E'!AO6)/4/12*6,2) -> 0 | AP6: =+AO6*$A6 -> 0 | AQ6: =ROUND(('Sch. B'!AQ6+'Sch. C'!AQ6+'Sch. D'!AQ6+'Sch. E'!AQ6)/4/12*6,2) -> 0 | AR6: =+AQ6*$A6 -> 0 | AS6: =ROUND(('Sch. B'!AS6+'Sch. C'!AS6+'Sch. D'!AS6+'Sch. E'!AS6)/4/12*6,2) -> 0 | AT6: =+AS6*$A6 -> 0 | AU6: =ROUND(('Sch. B'!AU6+'Sch. C'!AU6+'Sch. D'!AU6+'Sch. E'!AU6)/4/12*6,2) -> 0 | AV6: =+AU6*$A6 -> 0 | AW6: =ROUND(('Sch. B'!AW6+'Sch. C'!AW6+'Sch. D'!AW6+'Sch. E'!AW6)/4/12*6,2) -> 0 | AX6: =+AW6*$A6 -> 0 | AY6: =ROUND(('Sch. B'!AY6+'Sch. C'!AY6+'Sch. D'!AY6+'Sch. E'!AY6)/4/12*6,2) -> 0 | AZ6: =+AY6*$A6 -> 0 | BA6: =ROUND(('Sch. B'!BA6+'Sch. C'!BA6+'Sch. D'!BA6+'Sch. E'!BA6)/4/12*6,2) -> 0 | BB6: =+BA6*$A6 -> 0 | BC6: =ROUND(('Sch. B'!BC6+'Sch. C'!BC6+'Sch. D'!BC6+'Sch. E'!BC6)/4/12*6,2) -> 0 | BD6: =+BC6*$A6 -> 0 | BE6: =ROUND(('Sch. B'!BE6+'Sch. C'!BE6+'Sch. D'!BE6+'Sch. E'!BE6)/4/12*6,2) -> 0 | BF6: =+BE6*$A6 -> 0 | BG6: =ROUND(('Sch. B'!BG6+'Sch. C'!BG6+'Sch. D'!BG6+'Sch. E'!BG6)/4/12*6,2) -> 0 | BH6: =+BG6*$A6 -> 0 | BI6: =ROUND(('Sch. B'!BI6+'Sch. C'!BI6+'Sch. D'!BI6+'Sch. E'!BI6)/4/12*6,2) -> 0 | BJ6: =+BI6*$A6 -> 0 | BK6: =ROUND(('Sch. B'!BK6+'Sch. C'!BK6+'Sch. D'!BK6+'Sch. E'!BK6)/4/12*6,2) -> 0 | BL6: =+BK6*$A6 -> 0 | BM6: =ROUND(('Sch. B'!BM6+'Sch. C'!BM6+'Sch. D'!BM6+'Sch. E'!BM6)/4/12*6,2) -> 0 | BN6: =+BM6*$A6 -> 0 | BO6: =ROUND(('Sch. B'!BO6+'Sch. C'!BO6+'Sch. D'!BO6+'Sch. E'!BO6)/4/12*6,2) -> 0 | BP6: =+BO6*$A6 -> 0 | BQ6: =ROUND(('Sch. B'!BQ6+'Sch. C'!BQ6+'Sch. D'!BQ6+'Sch. E'!BQ6)/4/12*6,2) -> 0 | BR6: =+BQ6*$A6 -> 0 | BS6: =ROUND(('Sch. B'!BS6+'Sch. C'!BS6+'Sch. D'!BS6+'Sch. E'!BS6)/4/12*6,2) -> 0 | BT6: =+BS6*$A6 -> 0 | BU6: =ROUND(('Sch. B'!BU6+'Sch. C'!BU6+'Sch. D'!BU6+'Sch. E'!BU6)/4/12*6,2) -> 0 | BV6: =+BU6*$A6 -> 0 | BW6: =ROUND(('Sch. B'!BW6+'Sch. C'!BW6+'Sch. D'!BW6+'Sch. E'!BW6)/4/12*6,2) -> 0 | BX6: =+BW6*$A6 -> 0 | BY6: =ROUND(('Sch. B'!BY6+'Sch. C'!BY6+'Sch. D'!BY6+'Sch. E'!BY6)/4/12*6,2) -> 0 | BZ6: =+BY6*$A6 -> 0 | CA6: =+C6+E6+G6+I6+K6+M6+O6+Q6+S6+U6+W6+Y6+AA6+AC6+AE6+AG6+AI6+AK6+AM6+AO6+AQ6+AS6+AU6+AW6+AY6+BA6+BC6+BE6+BG6+BI6+BK6+BM6+BO6+BQ6+BS6+BU6 -> 51.44 | CB6: =+CA6*$A6 -> 4089.48
A7: =+Index!$K$4+1+0.5-B7 -> 78.5 | B7: =+B6+1 -> 1941 | C7: =ROUND(('Sch. B'!C7+'Sch. C'!C7+'Sch. D'!C7+'Sch. E'!C7)/4/12*6,2) -> 0 | D7: =+C7*$A7 -> 0 | E7: =ROUND(('Sch. B'!E7+'Sch. C'!E7+'Sch. D'!E7+'Sch. E'!E7)/4/12*6,2) -> 0 | F7: =+E7*$A7 -> 0 | G7: =ROUND(('Sch. B'!G7+'Sch. C'!G7+'Sch. D'!G7+'Sch. E'!G7)/4/12*6,2) -> 0 | H7: =+G7*$A7 -> 0 | I7: =ROUND(('Sch. B'!I7+'Sch. C'!I7+'Sch. D'!I7+'Sch. E'!I7)/4/12*6,2) -> 0 | J7: =+I7*$A7 -> 0 | K7: =ROUND(('Sch. B'!K7+'Sch. C'!K7+'Sch. D'!K7+'Sch. E'!K7)/4/12*6,2) -> 0 | L7: =+K7*$A7 -> 0 | M7: =ROUND(('Sch. B'!M7+'Sch. C'!M7+'Sch. D'!M7+'Sch. E'!M7)/4/12*6,2) -> 0 | N7: =+M7*$A7 -> 0 | O7: =ROUND(('Sch. B'!O7+'Sch. C'!O7+'Sch. D'!O7+'Sch. E'!O7)/4/12*6,2) -> 0 | P7: =+O7*$A7 -> 0 | Q7: =ROUND(('Sch. B'!Q7+'Sch. C'!Q7+'Sch. D'!Q7+'Sch. E'!Q7)/4/12*6,2) -> 0 | R7: =+Q7*$A7 -> 0 | S7: =ROUND(('Sch. B'!S7+'Sch. C'!S7+'Sch. D'!S7+'Sch. E'!S7)/4/12*6,2) -> 0 | T7: =+S7*$A7 -> 0 | U7: =ROUND(('Sch. B'!U7+'Sch. C'!U7+'Sch. D'!U7+'Sch. E'!U7)/4/12*6,2) -> 0 | V7: =+U7*$A7 -> 0 | W7: =ROUND(('Sch. B'!W7+'Sch. C'!W7+'Sch. D'!W7+'Sch. E'!W7)/4/12*6,2) -> 0 | X7: =+W7*$A7 -> 0 | Y7: =ROUND(('Sch. B'!Y7+'Sch. C'!Y7+'Sch. D'!Y7+'Sch. E'!Y7)/4/12*6,2) -> 0 | Z7: =+Y7*$A7 -> 0 | AA7: =ROUND(('Sch. B'!AA7+'Sch. C'!AA7+'Sch. D'!AA7+'Sch. E'!AA7)/4/12*6,2) -> 0 | AB7: =+AA7*$A7 -> 0 | AC7: =ROUND(('Sch. B'!AC7+'Sch. C'!AC7+'Sch. D'!AC7+'Sch. E'!AC7)/4/12*6,2) -> 0 | AD7: =+AC7*$A7 -> 0 | AE7: =ROUND(('Sch. B'!AE7+'Sch. C'!AE7+'Sch. D'!AE7+'Sch. E'!AE7)/4/12*6,2) -> 0 | AF7: =+AE7*$A7 -> 0 | AG7: =ROUND(('Sch. B'!AG7+'Sch. C'!AG7+'Sch. D'!AG7+'Sch. E'!AG7)/4/12*6,2) -> 6.51 | AH7: =+AG7*$A7 -> 511.035 | AI7: =ROUND(('Sch. B'!AI7+'Sch. C'!AI7+'Sch. D'!AI7+'Sch. E'!AI7)/4/12*6,2) -> 0 | AJ7: =+AI7*$A7 -> 0 | AK7: =ROUND(('Sch. B'!AK7+'Sch. C'!AK7+'Sch. D'!AK7+'Sch. E'!AK7)/4/12*6,2) -> 0 | AL7: =+AK7*$A7 -> 0 | AM7: =ROUND(('Sch. B'!AM7+'Sch. C'!AM7+'Sch. D'!AM7+'Sch. E'!AM7)/4/12*6,2) -> 0 | AN7: =+AM7*$A7 -> 0 | AO7: =ROUND(('Sch. B'!AO7+'Sch. C'!AO7+'Sch. D'!AO7+'Sch. E'!AO7)/4/12*6,2) -> 0 | AP7: =+AO7*$A7 -> 0 | AQ7: =ROUND(('Sch. B'!AQ7+'Sch. C'!AQ7+'Sch. D'!AQ7+'Sch. E'!AQ7)/4/12*6,2) -> 0 | AR7: =+AQ7*$A7 -> 0 | AS7: =ROUND(('Sch. B'!AS7+'Sch. C'!AS7+'Sch. D'!AS7+'Sch. E'!AS7)/4/12*6,2) -> 0 | AT7: =+AS7*$A7 -> 0 | AU7: =ROUND(('Sch. B'!AU7+'Sch. C'!AU7+'Sch. D'!AU7+'Sch. E'!AU7)/4/12*6,2) -> 0 | AV7: =+AU7*$A7 -> 0 | AW7: =ROUND(('Sch. B'!AW7+'Sch. C'!AW7+'Sch. D'!AW7+'Sch. E'!AW7)/4/12*6,2) -> 0 | AX7: =+AW7*$A7 -> 0 | AY7: =ROUND(('Sch. B'!AY7+'Sch. C'!AY7+'Sch. D'!AY7+'Sch. E'!AY7)/4/12*6,2) -> 0 | AZ7: =+AY7*$A7 -> 0 | BA7: =ROUND(('Sch. B'!BA7+'Sch. C'!BA7+'Sch. D'!BA7+'Sch. E'!BA7)/4/12*6,2) -> 0 | BB7: =+BA7*$A7 -> 0 | BC7: =ROUND(('Sch. B'!BC7+'Sch. C'!BC7+'Sch. D'!BC7+'Sch. E'!BC7)/4/12*6,2) -> 0 | BD7: =+BC7*$A7 -> 0 | BE7: =ROUND(('Sch. B'!BE7+'Sch. C'!BE7+'Sch. D'!BE7+'Sch. E'!BE7)/4/12*6,2) -> 0 | BF7: =+BE7*$A7 -> 0 | BG7: =ROUND(('Sch. B'!BG7+'Sch. C'!BG7+'Sch. D'!BG7+'Sch. E'!BG7)/4/12*6,2) -> 0 | BH7: =+BG7*$A7 -> 0 | BI7: =ROUND(('Sch. B'!BI7+'Sch. C'!BI7+'Sch. D'!BI7+'Sch. E'!BI7)/4/12*6,2) -> 0 | BJ7: =+BI7*$A7 -> 0 | BK7: =ROUND(('Sch. B'!BK7+'Sch. C'!BK7+'Sch. D'!BK7+'Sch. E'!BK7)/4/12*6,2) -> 0 | BL7: =+BK7*$A7 -> 0 | BM7: =ROUND(('Sch. B'!BM7+'Sch. C'!BM7+'Sch. D'!BM7+'Sch. E'!BM7)/4/12*6,2) -> 0 | BN7: =+BM7*$A7 -> 0 | BO7: =ROUND(('Sch. B'!BO7+'Sch. C'!BO7+'Sch. D'!BO7+'Sch. E'!BO7)/4/12*6,2) -> 0 | BP7: =+BO7*$A7 -> 0 | BQ7: =ROUND(('Sch. B'!BQ7+'Sch. C'!BQ7+'Sch. D'!BQ7+'Sch. E'!BQ7)/4/12*6,2) -> 0 | BR7: =+BQ7*$A7 -> 0 | BS7: =ROUND(('Sch. B'!BS7+'Sch. C'!BS7+'Sch. D'!BS7+'Sch. E'!BS7)/4/12*6,2) -> 0 | BT7: =+BS7*$A7 -> 0 | BU7: =ROUND(('Sch. B'!BU7+'Sch. C'!BU7+'Sch. D'!BU7+'Sch. E'!BU7)/4/12*6,2) -> 0 | BV7: =+BU7*$A7 -> 0 | BW7: =ROUND(('Sch. B'!BW7+'Sch. C'!BW7+'Sch. D'!BW7+'Sch. E'!BW7)/4/12*6,2) -> 0 | BX7: =+BW7*$A7 -> 0 | BY7: =ROUND(('Sch. B'!BY7+'Sch. C'!BY7+'Sch. D'!BY7+'Sch. E'!BY7)/4/12*6,2) -> 0 | BZ7: =+BY7*$A7 -> 0 | CA7: 6.51 | CB7: =+CA7*$A7 -> 511.035
A8: =+Index!$K$4+1+0.5-B8 -> 77.5 | B8: 1942 | C8: =ROUND(('Sch. B'!C8+'Sch. C'!C8+'Sch. D'!C8+'Sch. E'!C8)/4/12*6,2) -> 0 | D8: 0 | E8: =ROUND(('Sch. B'!E8+'Sch. C'!E8+'Sch. D'!E8+'Sch. E'!E8)/4/12*6,2) -> 0 | F8: 0 | G8: =ROUND(('Sch. B'!G8+'Sch. C'!G8+'Sch. D'!G8+'Sch. E'!G8)/4/12*6,2) -> 0 | H8: 0 | I8: =ROUND(('Sch. B'!I8+'Sch. C'!I8+'Sch. D'!I8+'Sch. E'!I8)/4/12*6,2) -> 0 | J8: 0 | K8: =ROUND(('Sch. B'!K8+'Sch. C'!K8+'Sch. D'!K8+'Sch. E'!K8)/4/12*6,2) -> 0 | L8: 0 | M8: =ROUND(('Sch. B'!M8+'Sch. C'!M8+'Sch. D'!M8+'Sch. E'!M8)/4/12*6,2) -> 0 | N8: 0 | O8: =ROUND(('Sch. B'!O8+'Sch. C'!O8+'Sch. D'!O8+'Sch. E'!O8)/4/12*6,2) -> 0 | P8: 0 | Q8: =ROUND(('Sch. B'!Q8+'Sch. C'!Q8+'Sch. D'!Q8+'Sch. E'!Q8)/4/12*6,2) -> 0 | R8: 0 | S8: =ROUND(('Sch. B'!S8+'Sch. C'!S8+'Sch. D'!S8+'Sch. E'!S8)/4/12*6,2) -> 0 | T8: 0 | U8: =ROUND(('Sch. B'!U8+'Sch. C'!U8+'Sch. D'!U8+'Sch. E'!U8)/4/12*6,2) -> 0 | V8: 0 | W8: =ROUND(('Sch. B'!W8+'Sch. C'!W8+'Sch. D'!W8+'Sch. E'!W8)/4/12*6,2) -> 0 | X8: 0 | Y8: =ROUND(('Sch. B'!Y8+'Sch. C'!Y8+'Sch. D'!Y8+'Sch. E'!Y8)/4/12*6,2) -> 0 | Z8: 0 | AA8: =ROUND(('Sch. B'!AA8+'Sch. C'!AA8+'Sch. D'!AA8+'Sch. E'!AA8)/4/12*6,2) -> 0 | AB8: 0 | AC8: =ROUND(('Sch. B'!AC8+'Sch. C'!AC8+'Sch. D'!AC8+'Sch. E'!AC8)/4/12*6,2) -> 0 | AD8: 0 | AE8: =ROUND(('Sch. B'!AE8+'Sch. C'!AE8+'Sch. D'!AE8+'Sch. E'!AE8)/4/12*6,2) -> 0 | AF8: 0 | AG8: =ROUND(('Sch. B'!AG8+'Sch. C'!AG8+'Sch. D'!AG8+'Sch. E'!AG8)/4/12*6,2) -> 0 | AH8: 0 | AI8: =ROUND(('Sch. B'!AI8+'Sch. C'!AI8+'Sch. D'!AI8+'Sch. E'!AI8)/4/12*6,2) -> 0 | AJ8: 0 | AK8: =ROUND(('Sch. B'!AK8+'Sch. C'!AK8+'Sch. D'!AK8+'Sch. E'!AK8)/4/12*6,2) -> 0 | AL8: 0 | AM8: =ROUND(('Sch. B'!AM8+'Sch. C'!AM8+'Sch. D'!AM8+'Sch. E'!AM8)/4/12*6,2) -> 0 | AN8: 0 | AO8: =ROUND(('Sch. B'!AO8+'Sch. C'!AO8+'Sch. D'!AO8+'Sch. E'!AO8)/4/12*6,2) -> 0 | AP8: 0 | AQ8: =ROUND(('Sch. B'!AQ8+'Sch. C'!AQ8+'Sch. D'!AQ8+'Sch. E'!AQ8)/4/12*6,2) -> 0 | AR8: 0 | AS8: =ROUND(('Sch. B'!AS8+'Sch. C'!AS8+'Sch. D'!AS8+'Sch. E'!AS8)/4/12*6,2) -> 0 | AT8: 0 | AU8: =ROUND(('Sch. B'!AU8+'Sch. C'!AU8+'Sch. D'!AU8+'Sch. E'!AU8)/4/12*6,2) -> 0 | AV8: 0 | AW8: =ROUND(('Sch. B'!AW8+'Sch. C'!AW8+'Sch. D'!AW8+'Sch. E'!AW8)/4/12*6,2) -> 0 | AX8: 0 | AY8: =ROUND(('Sch. B'!AY8+'Sch. C'!AY8+'Sch. D'!AY8+'Sch. E'!AY8)/4/12*6,2) -> 0 | AZ8: 0 | BA8: =ROUND(('Sch. B'!BA8+'Sch. C'!BA8+'Sch. D'!BA8+'Sch. E'!BA8)/4/12*6,2) -> 0 | BB8: 0 | BC8: =ROUND(('Sch. B'!BC8+'Sch. C'!BC8+'Sch. D'!BC8+'Sch. E'!BC8)/4/12*6,2) -> 0 | BD8: 0 | BE8: =ROUND(('Sch. B'!BE8+'Sch. C'!BE8+'Sch. D'!BE8+'Sch. E'!BE8)/4/12*6,2) -> 0 | BF8: 0 | BG8: =ROUND(('Sch. B'!BG8+'Sch. C'!BG8+'Sch. D'!BG8+'Sch. E'!BG8)/4/12*6,2) -> 0 | BH8: 0 | BI8: =ROUND(('Sch. B'!BI8+'Sch. C'!BI8+'Sch. D'!BI8+'Sch. E'!BI8)/4/12*6,2) -> 0 | BJ8: 0 | BK8: =ROUND(('Sch. B'!BK8+'Sch. C'!BK8+'Sch. D'!BK8+'Sch. E'!BK8)/4/12*6,2) -> 0 | BL8: 0 | BM8: =ROUND(('Sch. B'!BM8+'Sch. C'!BM8+'Sch. D'!BM8+'Sch. E'!BM8)/4/12*6,2) -> 0 | BN8: 0 | BO8: =ROUND(('Sch. B'!BO8+'Sch. C'!BO8+'Sch. D'!BO8+'Sch. E'!BO8)/4/12*6,2) -> 0 | BP8: 0 | BQ8: =ROUND(('Sch. B'!BQ8+'Sch. C'!BQ8+'Sch. D'!BQ8+'Sch. E'!BQ8)/4/12*6,2) -> 0 | BR8: 0 | BS8: =ROUND(('Sch. B'!BS8+'Sch. C'!BS8+'Sch. D'!BS8+'Sch. E'!BS8)/4/12*6,2) -> 0 | BT8: 0 | BU8: =ROUND(('Sch. B'!BU8+'Sch. C'!BU8+'Sch. D'!BU8+'Sch. E'!BU8)/4/12*6,2) -> 0 | BV8: 0 | BW8: =ROUND(('Sch. B'!BW8+'Sch. C'!BW8+'Sch. D'!BW8+'Sch. E'!BW8)/4/12*6,2) -> 0 | BX8: 0 | BY8: =ROUND(('Sch. B'!BY8+'Sch. C'!BY8+'Sch. D'!BY8+'Sch. E'!BY8)/4/12*6,2) -> 0 | BZ8: 0 | CA8: 0 | CB8: 0
A9: =+Index!$K$4+1+0.5-B9 -> 76.5 | B9: 1943 | C9: =ROUND(('Sch. B'!C9+'Sch. C'!C9+'Sch. D'!C9+'Sch. E'!C9)/4/12*6,2) -> 0 | D9: 0 | E9: =ROUND(('Sch. B'!E9+'Sch. C'!E9+'Sch. D'!E9+'Sch. E'!E9)/4/12*6,2) -> 0 | F9: 0 | G9: =ROUND(('Sch. B'!G9+'Sch. C'!G9+'Sch. D'!G9+'Sch. E'!G9)/4/12*6,2) -> 0 | H9: 0 | I9: =ROUND(('Sch. B'!I9+'Sch. C'!I9+'Sch. D'!I9+'Sch. E'!I9)/4/12*6,2) -> 0 | J9: 0 | K9: =ROUND(('Sch. B'!K9+'Sch. C'!K9+'Sch. D'!K9+'Sch. E'!K9)/4/12*6,2) -> 0 | L9: 0 | M9: =ROUND(('Sch. B'!M9+'Sch. C'!M9+'Sch. D'!M9+'Sch. E'!M9)/4/12*6,2) -> 0 | N9: 0 | O9: =ROUND(('Sch. B'!O9+'Sch. C'!O9+'Sch. D'!O9+'Sch. E'!O9)/4/12*6,2) -> 0 | P9: 0 | Q9: =ROUND(('Sch. B'!Q9+'Sch. C'!Q9+'Sch. D'!Q9+'Sch. E'!Q9)/4/12*6,2) -> 0 | R9: 0 | S9: =ROUND(('Sch. B'!S9+'Sch. C'!S9+'Sch. D'!S9+'Sch. E'!S9)/4/12*6,2) -> 0 | T9: 0 | U9: =ROUND(('Sch. B'!U9+'Sch. C'!U9+'Sch. D'!U9+'Sch. E'!U9)/4/12*6,2) -> 0 | V9: 0 | W9: =ROUND(('Sch. B'!W9+'Sch. C'!W9+'Sch. D'!W9+'Sch. E'!W9)/4/12*6,2) -> 0 | X9: 0 | Y9: =ROUND(('Sch. B'!Y9+'Sch. C'!Y9+'Sch. D'!Y9+'Sch. E'!Y9)/4/12*6,2) -> 0 | Z9: 0 | AA9: =ROUND(('Sch. B'!AA9+'Sch. C'!AA9+'Sch. D'!AA9+'Sch. E'!AA9)/4/12*6,2) -> 0 | AB9: 0 | AC9: =ROUND(('Sch. B'!AC9+'Sch. C'!AC9+'Sch. D'!AC9+'Sch. E'!AC9)/4/12*6,2) -> 0 | AD9: 0 | AE9: =ROUND(('Sch. B'!AE9+'Sch. C'!AE9+'Sch. D'!AE9+'Sch. E'!AE9)/4/12*6,2) -> 0 | AF9: 0 | AG9: =ROUND(('Sch. B'!AG9+'Sch. C'!AG9+'Sch. D'!AG9+'Sch. E'!AG9)/4/12*6,2) -> 0 | AH9: 0 | AI9: =ROUND(('Sch. B'!AI9+'Sch. C'!AI9+'Sch. D'!AI9+'Sch. E'!AI9)/4/12*6,2) -> 0 | AJ9: 0 | AK9: =ROUND(('Sch. B'!AK9+'Sch. C'!AK9+'Sch. D'!AK9+'Sch. E'!AK9)/4/12*6,2) -> 0 | AL9: 0 | AM9: =ROUND(('Sch. B'!AM9+'Sch. C'!AM9+'Sch. D'!AM9+'Sch. E'!AM9)/4/12*6,2) -> 0 | AN9: 0 | AO9: =ROUND(('Sch. B'!AO9+'Sch. C'!AO9+'Sch. D'!AO9+'Sch. E'!AO9)/4/12*6,2) -> 0 | AP9: 0 | AQ9: =ROUND(('Sch. B'!AQ9+'Sch. C'!AQ9+'Sch. D'!AQ9+'Sch. E'!AQ9)/4/12*6,2) -> 0 | AR9: 0 | AS9: =ROUND(('Sch. B'!AS9+'Sch. C'!AS9+'Sch. D'!AS9+'Sch. E'!AS9)/4/12*6,2) -> 0 | AT9: 0 | AU9: =ROUND(('Sch. B'!AU9+'Sch. C'!AU9+'Sch. D'!AU9+'Sch. E'!AU9)/4/12*6,2) -> 0 | AV9: 0 | AW9: =ROUND(('Sch. B'!AW9+'Sch. C'!AW9+'Sch. D'!AW9+'Sch. E'!AW9)/4/12*6,2) -> 0 | AX9: 0 | AY9: =ROUND(('Sch. B'!AY9+'Sch. C'!AY9+'Sch. D'!AY9+'Sch. E'!AY9)/4/12*6,2) -> 0 | AZ9: 0 | BA9: =ROUND(('Sch. B'!BA9+'Sch. C'!BA9+'Sch. D'!BA9+'Sch. E'!BA9)/4/12*6,2) -> 0 | BB9: 0 | BC9: =ROUND(('Sch. B'!BC9+'Sch. C'!BC9+'Sch. D'!BC9+'Sch. E'!BC9)/4/12*6,2) -> 0 | BD9: 0 | BE9: =ROUND(('Sch. B'!BE9+'Sch. C'!BE9+'Sch. D'!BE9+'Sch. E'!BE9)/4/12*6,2) -> 0 | BF9: 0 | BG9: =ROUND(('Sch. B'!BG9+'Sch. C'!BG9+'Sch. D'!BG9+'Sch. E'!BG9)/4/12*6,2) -> 0 | BH9: 0 | BI9: =ROUND(('Sch. B'!BI9+'Sch. C'!BI9+'Sch. D'!BI9+'Sch. E'!BI9)/4/12*6,2) -> 0 | BJ9: 0 | BK9: =ROUND(('Sch. B'!BK9+'Sch. C'!BK9+'Sch. D'!BK9+'Sch. E'!BK9)/4/12*6,2) -> 0 | BL9: 0 | BM9: =ROUND(('Sch. B'!BM9+'Sch. C'!BM9+'Sch. D'!BM9+'Sch. E'!BM9)/4/12*6,2) -> 0 | BN9: 0 | BO9: =ROUND(('Sch. B'!BO9+'Sch. C'!BO9+'Sch. D'!BO9+'Sch. E'!BO9)/4/12*6,2) -> 0 | BP9: 0 | BQ9: =ROUND(('Sch. B'!BQ9+'Sch. C'!BQ9+'Sch. D'!BQ9+'Sch. E'!BQ9)/4/12*6,2) -> 0 | BR9: 0 | BS9: =ROUND(('Sch. B'!BS9+'Sch. C'!BS9+'Sch. D'!BS9+'Sch. E'!BS9)/4/12*6,2) -> 0 | BT9: 0 | BU9: =ROUND(('Sch. B'!BU9+'Sch. C'!BU9+'Sch. D'!BU9+'Sch. E'!BU9)/4/12*6,2) -> 0 | BV9: 0 | BW9: =ROUND(('Sch. B'!BW9+'Sch. C'!BW9+'Sch. D'!BW9+'Sch. E'!BW9)/4/12*6,2) -> 0 | BX9: 0 | BY9: =ROUND(('Sch. B'!BY9+'Sch. C'!BY9+'Sch. D'!BY9+'Sch. E'!BY9)/4/12*6,2) -> 0 | BZ9: 0 | CA9: 0 | CB9: 0
A10: =+Index!$K$4+1+0.5-B10 -> 75.5 | B10: 1944 | C10: =ROUND(('Sch. B'!C10+'Sch. C'!C10+'Sch. D'!C10+'Sch. E'!C10)/4/12*6,2) -> 0 | D10: 0 | E10: =ROUND(('Sch. B'!E10+'Sch. C'!E10+'Sch. D'!E10+'Sch. E'!E10)/4/12*6,2) -> 0 | F10: 0 | G10: =ROUND(('Sch. B'!G10+'Sch. C'!G10+'Sch. D'!G10+'Sch. E'!G10)/4/12*6,2) -> 0 | H10: 0 | I10: =ROUND(('Sch. B'!I10+'Sch. C'!I10+'Sch. D'!I10+'Sch. E'!I10)/4/12*6,2) -> 0 | J10: 0 | K10: =ROUND(('Sch. B'!K10+'Sch. C'!K10+'Sch. D'!K10+'Sch. E'!K10)/4/12*6,2) -> 0 | L10: 0 | M10: =ROUND(('Sch. B'!M10+'Sch. C'!M10+'Sch. D'!M10+'Sch. E'!M10)/4/12*6,2) -> 0 | N10: 0 | O10: =ROUND(('Sch. B'!O10+'Sch. C'!O10+'Sch. D'!O10+'Sch. E'!O10)/4/12*6,2) -> 0 | P10: 0 | Q10: =ROUND(('Sch. B'!Q10+'Sch. C'!Q10+'Sch. D'!Q10+'Sch. E'!Q10)/4/12*6,2) -> 0 | R10: 0 | S10: =ROUND(('Sch. B'!S10+'Sch. C'!S10+'Sch. D'!S10+'Sch. E'!S10)/4/12*6,2) -> 0 | T10: 0 | U10: =ROUND(('Sch. B'!U10+'Sch. C'!U10+'Sch. D'!U10+'Sch. E'!U10)/4/12*6,2) -> 0 | V10: 0 | W10: =ROUND(('Sch. B'!W10+'Sch. C'!W10+'Sch. D'!W10+'Sch. E'!W10)/4/12*6,2) -> 0 | X10: 0 | Y10: =ROUND(('Sch. B'!Y10+'Sch. C'!Y10+'Sch. D'!Y10+'Sch. E'!Y10)/4/12*6,2) -> 13.55 | Z10: 1023.025 | AA10: =ROUND(('Sch. B'!AA10+'Sch. C'!AA10+'Sch. D'!AA10+'Sch. E'!AA10)/4/12*6,2) -> 0 | AB10: 0 | AC10: =ROUND(('Sch. B'!AC10+'Sch. C'!AC10+'Sch. D'!AC10+'Sch. E'!AC10)/4/12*6,2) -> 0 | AD10: 0 | AE10: =ROUND(('Sch. B'!AE10+'Sch. C'!AE10+'Sch. D'!AE10+'Sch. E'!AE10)/4/12*6,2) -> 0 | AF10: 0 | AG10: =ROUND(('Sch. B'!AG10+'Sch. C'!AG10+'Sch. D'!AG10+'Sch. E'!AG10)/4/12*6,2) -> 2.43 | AH10: 183.465 | AI10: =ROUND(('Sch. B'!AI10+'Sch. C'!AI10+'Sch. D'!AI10+'Sch. E'!AI10)/4/12*6,2) -> 0 | AJ10: 0 | AK10: =ROUND(('Sch. B'!AK10+'Sch. C'!AK10+'Sch. D'!AK10+'Sch. E'!AK10)/4/12*6,2) -> 0 | AL10: 0 | AM10: =ROUND(('Sch. B'!AM10+'Sch. C'!AM10+'Sch. D'!AM10+'Sch. E'!AM10)/4/12*6,2) -> 0 | AN10: 0 | AO10: =ROUND(('Sch. B'!AO10+'Sch. C'!AO10+'Sch. D'!AO10+'Sch. E'!AO10)/4/12*6,2) -> 0 | AP10: 0 | AQ10: =ROUND(('Sch. B'!AQ10+'Sch. C'!AQ10+'Sch. D'!AQ10+'Sch. E'!AQ10)/4/12*6,2) -> 0 | AR10: 0 | AS10: =ROUND(('Sch. B'!AS10+'Sch. C'!AS10+'Sch. D'!AS10+'Sch. E'!AS10)/4/12*6,2) -> 0 | AT10: 0 | AU10: =ROUND(('Sch. B'!AU10+'Sch. C'!AU10+'Sch. D'!AU10+'Sch. E'!AU10)/4/12*6,2) -> 0 | AV10: 0 | AW10: =ROUND(('Sch. B'!AW10+'Sch. C'!AW10+'Sch. D'!AW10+'Sch. E'!AW10)/4/12*6,2) -> 0 | AX10: 0 | AY10: =ROUND(('Sch. B'!AY10+'Sch. C'!AY10+'Sch. D'!AY10+'Sch. E'!AY10)/4/12*6,2) -> 0 | AZ10: 0 | BA10: =ROUND(('Sch. B'!BA10+'Sch. C'!BA10+'Sch. D'!BA10+'Sch. E'!BA10)/4/12*6,2) -> 0 | BB10: 0 | BC10: =ROUND(('Sch. B'!BC10+'Sch. C'!BC10+'Sch. D'!BC10+'Sch. E'!BC10)/4/12*6,2) -> 0 | BD10: 0 | BE10: =ROUND(('Sch. B'!BE10+'Sch. C'!BE10+'Sch. D'!BE10+'Sch. E'!BE10)/4/12*6,2) -> 0 | BF10: 0 | BG10: =ROUND(('Sch. B'!BG10+'Sch. C'!BG10+'Sch. D'!BG10+'Sch. E'!BG10)/4/12*6,2) -> 0 | BH10: 0 | BI10: =ROUND(('Sch. B'!BI10+'Sch. C'!BI10+'Sch. D'!BI10+'Sch. E'!BI10)/4/12*6,2) -> 0 | BJ10: 0 | BK10: =ROUND(('Sch. B'!BK10+'Sch. C'!BK10+'Sch. D'!BK10+'Sch. E'!BK10)/4/12*6,2) -> 0 | BL10: 0 | BM10: =ROUND(('Sch. B'!BM10+'Sch. C'!BM10+'Sch. D'!BM10+'Sch. E'!BM10)/4/12*6,2) -> 0 | BN10: 0 | BO10: =ROUND(('Sch. B'!BO10+'Sch. C'!BO10+'Sch. D'!BO10+'Sch. E'!BO10)/4/12*6,2) -> 0 | BP10: 0 | BQ10: =ROUND(('Sch. B'!BQ10+'Sch. C'!BQ10+'Sch. D'!BQ10+'Sch. E'!BQ10)/4/12*6,2) -> 0 | BR10: 0 | BS10: =ROUND(('Sch. B'!BS10+'Sch. C'!BS10+'Sch. D'!BS10+'Sch. E'!BS10)/4/12*6,2) -> 0 | BT10: 0 | BU10: =ROUND(('Sch. B'!BU10+'Sch. C'!BU10+'Sch. D'!BU10+'Sch. E'!BU10)/4/12*6,2) -> 0 | BV10: 0 | BW10: =ROUND(('Sch. B'!BW10+'Sch. C'!BW10+'Sch. D'!BW10+'Sch. E'!BW10)/4/12*6,2) -> 0 | BX10: 0 | BY10: =ROUND(('Sch. B'!BY10+'Sch. C'!BY10+'Sch. D'!BY10+'Sch. E'!BY10)/4/12*6,2) -> 0 | BZ10: 0 | CA10: 15.98 | CB10: 1206.49
A11: =+Index!$K$4+1+0.5-B11 -> 74.5 | B11: 1945 | C11: =ROUND(('Sch. B'!C11+'Sch. C'!C11+'Sch. D'!C11+'Sch. E'!C11)/4/12*6,2) -> 0 | D11: 0 | E11: =ROUND(('Sch. B'!E11+'Sch. C'!E11+'Sch. D'!E11+'Sch. E'!E11)/4/12*6,2) -> 0 | F11: 0 | G11: =ROUND(('Sch. B'!G11+'Sch. C'!G11+'Sch. D'!G11+'Sch. E'!G11)/4/12*6,2) -> 0 | H11: 0 | I11: =ROUND(('Sch. B'!I11+'Sch. C'!I11+'Sch. D'!I11+'Sch. E'!I11)/4/12*6,2) -> 0 | J11: 0 | K11: =ROUND(('Sch. B'!K11+'Sch. C'!K11+'Sch. D'!K11+'Sch. E'!K11)/4/12*6,2) -> 0 | L11: 0 | M11: =ROUND(('Sch. B'!M11+'Sch. C'!M11+'Sch. D'!M11+'Sch. E'!M11)/4/12*6,2) -> 0 | N11: 0 | O11: =ROUND(('Sch. B'!O11+'Sch. C'!O11+'Sch. D'!O11+'Sch. E'!O11)/4/12*6,2) -> 0 | P11: 0 | Q11: =ROUND(('Sch. B'!Q11+'Sch. C'!Q11+'Sch. D'!Q11+'Sch. E'!Q11)/4/12*6,2) -> 0 | R11: 0 | S11: =ROUND(('Sch. B'!S11+'Sch. C'!S11+'Sch. D'!S11+'Sch. E'!S11)/4/12*6,2) -> 0 | T11: 0 | U11: =ROUND(('Sch. B'!U11+'Sch. C'!U11+'Sch. D'!U11+'Sch. E'!U11)/4/12*6,2) -> 0 | V11: 0 | W11: =ROUND(('Sch. B'!W11+'Sch. C'!W11+'Sch. D'!W11+'Sch. E'!W11)/4/12*6,2) -> 0 | X11: 0 | Y11: =ROUND(('Sch. B'!Y11+'Sch. C'!Y11+'Sch. D'!Y11+'Sch. E'!Y11)/4/12*6,2) -> 0 | Z11: 0 | AA11: =ROUND(('Sch. B'!AA11+'Sch. C'!AA11+'Sch. D'!AA11+'Sch. E'!AA11)/4/12*6,2) -> 0 | AB11: 0 | AC11: =ROUND(('Sch. B'!AC11+'Sch. C'!AC11+'Sch. D'!AC11+'Sch. E'!AC11)/4/12*6,2) -> 0 | AD11: 0 | AE11: =ROUND(('Sch. B'!AE11+'Sch. C'!AE11+'Sch. D'!AE11+'Sch. E'!AE11)/4/12*6,2) -> 0 | AF11: 0 | AG11: =ROUND(('Sch. B'!AG11+'Sch. C'!AG11+'Sch. D'!AG11+'Sch. E'!AG11)/4/12*6,2) -> 0 | AH11: 0 | AI11: =ROUND(('Sch. B'!AI11+'Sch. C'!AI11+'Sch. D'!AI11+'Sch. E'!AI11)/4/12*6,2) -> 0 | AJ11: 0 | AK11: =ROUND(('Sch. B'!AK11+'Sch. C'!AK11+'Sch. D'!AK11+'Sch. E'!AK11)/4/12*6,2) -> 0 | AL11: 0 | AM11: =ROUND(('Sch. B'!AM11+'Sch. C'!AM11+'Sch. D'!AM11+'Sch. E'!AM11)/4/12*6,2) -> 0 | AN11: 0 | AO11: =ROUND(('Sch. B'!AO11+'Sch. C'!AO11+'Sch. D'!AO11+'Sch. E'!AO11)/4/12*6,2) -> 0 | AP11: 0 | AQ11: =ROUND(('Sch. B'!AQ11+'Sch. C'!AQ11+'Sch. D'!AQ11+'Sch. E'!AQ11)/4/12*6,2) -> 0 | AR11: 0 | AS11: =ROUND(('Sch. B'!AS11+'Sch. C'!AS11+'Sch. D'!AS11+'Sch. E'!AS11)/4/12*6,2) -> 0 | AT11: 0 | AU11: =ROUND(('Sch. B'!AU11+'Sch. C'!AU11+'Sch. D'!AU11+'Sch. E'!AU11)/4/12*6,2) -> 0 | AV11: 0 | AW11: =ROUND(('Sch. B'!AW11+'Sch. C'!AW11+'Sch. D'!AW11+'Sch. E'!AW11)/4/12*6,2) -> 0 | AX11: 0 | AY11: =ROUND(('Sch. B'!AY11+'Sch. C'!AY11+'Sch. D'!AY11+'Sch. E'!AY11)/4/12*6,2) -> 0 | AZ11: 0 | BA11: =ROUND(('Sch. B'!BA11+'Sch. C'!BA11+'Sch. D'!BA11+'Sch. E'!BA11)/4/12*6,2) -> 0 | BB11: 0 | BC11: =ROUND(('Sch. B'!BC11+'Sch. C'!BC11+'Sch. D'!BC11+'Sch. E'!BC11)/4/12*6,2) -> 0 | BD11: 0 | BE11: =ROUND(('Sch. B'!BE11+'Sch. C'!BE11+'Sch. D'!BE11+'Sch. E'!BE11)/4/12*6,2) -> 0 | BF11: 0 | BG11: =ROUND(('Sch. B'!BG11+'Sch. C'!BG11+'Sch. D'!BG11+'Sch. E'!BG11)/4/12*6,2) -> 0 | BH11: 0 | BI11: =ROUND(('Sch. B'!BI11+'Sch. C'!BI11+'Sch. D'!BI11+'Sch. E'!BI11)/4/12*6,2) -> 0 | BJ11: 0 | BK11: =ROUND(('Sch. B'!BK11+'Sch. C'!BK11+'Sch. D'!BK11+'Sch. E'!BK11)/4/12*6,2) -> 0 | BL11: 0 | BM11: =ROUND(('Sch. B'!BM11+'Sch. C'!BM11+'Sch. D'!BM11+'Sch. E'!BM11)/4/12*6,2) -> 0 | BN11: 0 | BO11: =ROUND(('Sch. B'!BO11+'Sch. C'!BO11+'Sch. D'!BO11+'Sch. E'!BO11)/4/12*6,2) -> 0 | BP11: 0 | BQ11: =ROUND(('Sch. B'!BQ11+'Sch. C'!BQ11+'Sch. D'!BQ11+'Sch. E'!BQ11)/4/12*6,2) -> 0 | BR11: 0 | BS11: =ROUND(('Sch. B'!BS11+'Sch. C'!BS11+'Sch. D'!BS11+'Sch. E'!BS11)/4/12*6,2) -> 0 | BT11: 0 | BU11: =ROUND(('Sch. B'!BU11+'Sch. C'!BU11+'Sch. D'!BU11+'Sch. E'!BU11)/4/12*6,2) -> 0 | BV11: 0 | BW11: =ROUND(('Sch. B'!BW11+'Sch. C'!BW11+'Sch. D'!BW11+'Sch. E'!BW11)/4/12*6,2) -> 0 | BX11: 0 | BY11: =ROUND(('Sch. B'!BY11+'Sch. C'!BY11+'Sch. D'!BY11+'Sch. E'!BY11)/4/12*6,2) -> 0 | BZ11: 0 | CA11: 0 | CB11: 0
A12: =+Index!$K$4+1+0.5-B12 -> 73.5 | B12: 1946 | C12: =ROUND(('Sch. B'!C12+'Sch. C'!C12+'Sch. D'!C12+'Sch. E'!C12)/4/12*6,2) -> 0 | D12: =+C12*$A12 -> 0 | E12: =ROUND(('Sch. B'!E12+'Sch. C'!E12+'Sch. D'!E12+'Sch. E'!E12)/4/12*6,2) -> 0 | F12: =+E12*$A12 -> 0 | G12: =ROUND(('Sch. B'!G12+'Sch. C'!G12+'Sch. D'!G12+'Sch. E'!G12)/4/12*6,2) -> 0 | H12: =+G12*$A12 -> 0 | I12: =ROUND(('Sch. B'!I12+'Sch. C'!I12+'Sch. D'!I12+'Sch. E'!I12)/4/12*6,2) -> 0 | J12: =+I12*$A12 -> 0 | K12: =ROUND(('Sch. B'!K12+'Sch. C'!K12+'Sch. D'!K12+'Sch. E'!K12)/4/12*6,2) -> 0 | L12: =+K12*$A12 -> 0 | M12: =ROUND(('Sch. B'!M12+'Sch. C'!M12+'Sch. D'!M12+'Sch. E'!M12)/4/12*6,2) -> 0 | N12: =+M12*$A12 -> 0 | O12: =ROUND(('Sch. B'!O12+'Sch. C'!O12+'Sch. D'!O12+'Sch. E'!O12)/4/12*6,2) -> 0 | P12: =+O12*$A12 -> 0 | Q12: =ROUND(('Sch. B'!Q12+'Sch. C'!Q12+'Sch. D'!Q12+'Sch. E'!Q12)/4/12*6,2) -> 0 | R12: =+Q12*$A12 -> 0 | S12: =ROUND(('Sch. B'!S12+'Sch. C'!S12+'Sch. D'!S12+'Sch. E'!S12)/4/12*6,2) -> 0 | T12: =+S12*$A12 -> 0 | U12: =ROUND(('Sch. B'!U12+'Sch. C'!U12+'Sch. D'!U12+'Sch. E'!U12)/4/12*6,2) -> 0 | V12: =+U12*$A12 -> 0 | W12: =ROUND(('Sch. B'!W12+'Sch. C'!W12+'Sch. D'!W12+'Sch. E'!W12)/4/12*6,2) -> 0 | X12: =+W12*$A12 -> 0 | Y12: =ROUND(('Sch. B'!Y12+'Sch. C'!Y12+'Sch. D'!Y12+'Sch. E'!Y12)/4/12*6,2) -> 0 | Z12: =+Y12*$A12 -> 0 | AA12: =ROUND(('Sch. B'!AA12+'Sch. C'!AA12+'Sch. D'!AA12+'Sch. E'!AA12)/4/12*6,2) -> 0 | AB12: =+AA12*$A12 -> 0 | AC12: =ROUND(('Sch. B'!AC12+'Sch. C'!AC12+'Sch. D'!AC12+'Sch. E'!AC12)/4/12*6,2) -> 0 | AD12: =+AC12*$A12 -> 0 | AE12: =ROUND(('Sch. B'!AE12+'Sch. C'!AE12+'Sch. D'!AE12+'Sch. E'!AE12)/4/12*6,2) -> 0 | AF12: =+AE12*$A12 -> 0 | AG12: =ROUND(('Sch. B'!AG12+'Sch. C'!AG12+'Sch. D'!AG12+'Sch. E'!AG12)/4/12*6,2) -> 0 | AH12: =+AG12*$A12 -> 0 | AI12: =ROUND(('Sch. B'!AI12+'Sch. C'!AI12+'Sch. D'!AI12+'Sch. E'!AI12)/4/12*6,2) -> 0 | AJ12: =+AI12*$A12 -> 0 | AK12: =ROUND(('Sch. B'!AK12+'Sch. C'!AK12+'Sch. D'!AK12+'Sch. E'!AK12)/4/12*6,2) -> 0 | AL12: =+AK12*$A12 -> 0 | AM12: =ROUND(('Sch. B'!AM12+'Sch. C'!AM12+'Sch. D'!AM12+'Sch. E'!AM12)/4/12*6,2) -> 0 | AN12: =+AM12*$A12 -> 0 | AO12: =ROUND(('Sch. B'!AO12+'Sch. C'!AO12+'Sch. D'!AO12+'Sch. E'!AO12)/4/12*6,2) -> 0 | AP12: =+AO12*$A12 -> 0 | AQ12: =ROUND(('Sch. B'!AQ12+'Sch. C'!AQ12+'Sch. D'!AQ12+'Sch. E'!AQ12)/4/12*6,2) -> 0 | AR12: =+AQ12*$A12 -> 0 | AS12: =ROUND(('Sch. B'!AS12+'Sch. C'!AS12+'Sch. D'!AS12+'Sch. E'!AS12)/4/12*6,2) -> 0 | AT12: =+AS12*$A12 -> 0 | AU12: =ROUND(('Sch. B'!AU12+'Sch. C'!AU12+'Sch. D'!AU12+'Sch. E'!AU12)/4/12*6,2) -> 0 | AV12: =+AU12*$A12 -> 0 | AW12: =ROUND(('Sch. B'!AW12+'Sch. C'!AW12+'Sch. D'!AW12+'Sch. E'!AW12)/4/12*6,2) -> 0 | AX12: =+AW12*$A12 -> 0 | AY12: =ROUND(('Sch. B'!AY12+'Sch. C'!AY12+'Sch. D'!AY12+'Sch. E'!AY12)/4/12*6,2) -> 0 | AZ12: =+AY12*$A12 -> 0 | BA12: =ROUND(('Sch. B'!BA12+'Sch. C'!BA12+'Sch. D'!BA12+'Sch. E'!BA12)/4/12*6,2) -> 0 | BB12: =+BA12*$A12 -> 0 | BC12: =ROUND(('Sch. B'!BC12+'Sch. C'!BC12+'Sch. D'!BC12+'Sch. E'!BC12)/4/12*6,2) -> 0 | BD12: =+BC12*$A12 -> 0 | BE12: =ROUND(('Sch. B'!BE12+'Sch. C'!BE12+'Sch. D'!BE12+'Sch. E'!BE12)/4/12*6,2) -> 0 | BF12: =+BE12*$A12 -> 0 | BG12: =ROUND(('Sch. B'!BG12+'Sch. C'!BG12+'Sch. D'!BG12+'Sch. E'!BG12)/4/12*6,2) -> 0 | BH12: =+BG12*$A12 -> 0 | BI12: =ROUND(('Sch. B'!BI12+'Sch. C'!BI12+'Sch. D'!BI12+'Sch. E'!BI12)/4/12*6,2) -> 0 | BJ12: =+BI12*$A12 -> 0 | BK12: =ROUND(('Sch. B'!BK12+'Sch. C'!BK12+'Sch. D'!BK12+'Sch. E'!BK12)/4/12*6,2) -> 0 | BL12: =+BK12*$A12 -> 0 | BM12: =ROUND(('Sch. B'!BM12+'Sch. C'!BM12+'Sch. D'!BM12+'Sch. E'!BM12)/4/12*6,2) -> 0 | BN12: =+BM12*$A12 -> 0 | BO12: =ROUND(('Sch. B'!BO12+'Sch. C'!BO12+'Sch. D'!BO12+'Sch. E'!BO12)/4/12*6,2) -> 0 | BP12: =+BO12*$A12 -> 0 | BQ12: =ROUND(('Sch. B'!BQ12+'Sch. C'!BQ12+'Sch. D'!BQ12+'Sch. E'!BQ12)/4/12*6,2) -> 0 | BR12: =+BQ12*$A12 -> 0 | BS12: =ROUND(('Sch. B'!BS12+'Sch. C'!BS12+'Sch. D'!BS12+'Sch. E'!BS12)/4/12*6,2) -> 0 | BT12: =+BS12*$A12 -> 0 | BU12: =ROUND(('Sch. B'!BU12+'Sch. C'!BU12+'Sch. D'!BU12+'Sch. E'!BU12)/4/12*6,2) -> 0 | BV12: =+BU12*$A12 -> 0 | BW12: =ROUND(('Sch. B'!BW12+'Sch. C'!BW12+'Sch. D'!BW12+'Sch. E'!BW12)/4/12*6,2) -> 0 | BX12: 0 | BY12: =ROUND(('Sch. B'!BY12+'Sch. C'!BY12+'Sch. D'!BY12+'Sch. E'!BY12)/4/12*6,2) -> 0 | BZ12: 0 | CA12: 0 | CB12: 0
A13: =+Index!$K$4+1+0.5-B13 -> 72.5 | B13: 1947 | C13: =ROUND(('Sch. B'!C13+'Sch. C'!C13+'Sch. D'!C13+'Sch. E'!C13)/4/12*6,2) -> 0 | D13: 0 | E13: =ROUND(('Sch. B'!E13+'Sch. C'!E13+'Sch. D'!E13+'Sch. E'!E13)/4/12*6,2) -> 0 | F13: 0 | G13: =ROUND(('Sch. B'!G13+'Sch. C'!G13+'Sch. D'!G13+'Sch. E'!G13)/4/12*6,2) -> 0 | H13: 0 | I13: =ROUND(('Sch. B'!I13+'Sch. C'!I13+'Sch. D'!I13+'Sch. E'!I13)/4/12*6,2) -> 0 | J13: 0 | K13: =ROUND(('Sch. B'!K13+'Sch. C'!K13+'Sch. D'!K13+'Sch. E'!K13)/4/12*6,2) -> 0 | L13: 0 | M13: =ROUND(('Sch. B'!M13+'Sch. C'!M13+'Sch. D'!M13+'Sch. E'!M13)/4/12*6,2) -> 0 | N13: 0 | O13: =ROUND(('Sch. B'!O13+'Sch. C'!O13+'Sch. D'!O13+'Sch. E'!O13)/4/12*6,2) -> 0 | P13: 0 | Q13: =ROUND(('Sch. B'!Q13+'Sch. C'!Q13+'Sch. D'!Q13+'Sch. E'!Q13)/4/12*6,2) -> 0 | R13: 0 | S13: =ROUND(('Sch. B'!S13+'Sch. C'!S13+'Sch. D'!S13+'Sch. E'!S13)/4/12*6,2) -> 0 | T13: 0 | U13: =ROUND(('Sch. B'!U13+'Sch. C'!U13+'Sch. D'!U13+'Sch. E'!U13)/4/12*6,2) -> 0 | V13: 0 | W13: =ROUND(('Sch. B'!W13+'Sch. C'!W13+'Sch. D'!W13+'Sch. E'!W13)/4/12*6,2) -> 117.74 | X13: 8536.15 | Y13: =ROUND(('Sch. B'!Y13+'Sch. C'!Y13+'Sch. D'!Y13+'Sch. E'!Y13)/4/12*6,2) -> 91.49 | Z13: 6633.025 | AA13: =ROUND(('Sch. B'!AA13+'Sch. C'!AA13+'Sch. D'!AA13+'Sch. E'!AA13)/4/12*6,2) -> 0 | AB13: 0 | AC13: =ROUND(('Sch. B'!AC13+'Sch. C'!AC13+'Sch. D'!AC13+'Sch. E'!AC13)/4/12*6,2) -> 0 | AD13: 0 | AE13: =ROUND(('Sch. B'!AE13+'Sch. C'!AE13+'Sch. D'!AE13+'Sch. E'!AE13)/4/12*6,2) -> 0 | AF13: 0 | AG13: =ROUND(('Sch. B'!AG13+'Sch. C'!AG13+'Sch. D'!AG13+'Sch. E'!AG13)/4/12*6,2) -> 0 | AH13: 0 | AI13: =ROUND(('Sch. B'!AI13+'Sch. C'!AI13+'Sch. D'!AI13+'Sch. E'!AI13)/4/12*6,2) -> 0 | AJ13: 0 | AK13: =ROUND(('Sch. B'!AK13+'Sch. C'!AK13+'Sch. D'!AK13+'Sch. E'!AK13)/4/12*6,2) -> 0 | AL13: 0 | AM13: =ROUND(('Sch. B'!AM13+'Sch. C'!AM13+'Sch. D'!AM13+'Sch. E'!AM13)/4/12*6,2) -> 0 | AN13: 0 | AO13: =ROUND(('Sch. B'!AO13+'Sch. C'!AO13+'Sch. D'!AO13+'Sch. E'!AO13)/4/12*6,2) -> 0 | AP13: 0 | AQ13: =ROUND(('Sch. B'!AQ13+'Sch. C'!AQ13+'Sch. D'!AQ13+'Sch. E'!AQ13)/4/12*6,2) -> 0 | AR13: 0 | AS13: =ROUND(('Sch. B'!AS13+'Sch. C'!AS13+'Sch. D'!AS13+'Sch. E'!AS13)/4/12*6,2) -> 0 | AT13: 0 | AU13: =ROUND(('Sch. B'!AU13+'Sch. C'!AU13+'Sch. D'!AU13+'Sch. E'!AU13)/4/12*6,2) -> 0 | AV13: 0 | AW13: =ROUND(('Sch. B'!AW13+'Sch. C'!AW13+'Sch. D'!AW13+'Sch. E'!AW13)/4/12*6,2) -> 0 | AX13: 0 | AY13: =ROUND(('Sch. B'!AY13+'Sch. C'!AY13+'Sch. D'!AY13+'Sch. E'!AY13)/4/12*6,2) -> 0 | AZ13: 0 | BA13: =ROUND(('Sch. B'!BA13+'Sch. C'!BA13+'Sch. D'!BA13+'Sch. E'!BA13)/4/12*6,2) -> 0 | BB13: 0 | BC13: =ROUND(('Sch. B'!BC13+'Sch. C'!BC13+'Sch. D'!BC13+'Sch. E'!BC13)/4/12*6,2) -> 0 | BD13: 0 | BE13: =ROUND(('Sch. B'!BE13+'Sch. C'!BE13+'Sch. D'!BE13+'Sch. E'!BE13)/4/12*6,2) -> 0 | BF13: 0 | BG13: =ROUND(('Sch. B'!BG13+'Sch. C'!BG13+'Sch. D'!BG13+'Sch. E'!BG13)/4/12*6,2) -> 0 | BH13: 0 | BI13: =ROUND(('Sch. B'!BI13+'Sch. C'!BI13+'Sch. D'!BI13+'Sch. E'!BI13)/4/12*6,2) -> 0 | BJ13: 0 | BK13: =ROUND(('Sch. B'!BK13+'Sch. C'!BK13+'Sch. D'!BK13+'Sch. E'!BK13)/4/12*6,2) -> 0 | BL13: 0 | BM13: =ROUND(('Sch. B'!BM13+'Sch. C'!BM13+'Sch. D'!BM13+'Sch. E'!BM13)/4/12*6,2) -> 0 | BN13: 0 | BO13: =ROUND(('Sch. B'!BO13+'Sch. C'!BO13+'Sch. D'!BO13+'Sch. E'!BO13)/4/12*6,2) -> 0 | BP13: 0 | BQ13: =ROUND(('Sch. B'!BQ13+'Sch. C'!BQ13+'Sch. D'!BQ13+'Sch. E'!BQ13)/4/12*6,2) -> 0 | BR13: 0 | BS13: =ROUND(('Sch. B'!BS13+'Sch. C'!BS13+'Sch. D'!BS13+'Sch. E'!BS13)/4/12*6,2) -> 0 | BT13: 0 | BU13: =ROUND(('Sch. B'!BU13+'Sch. C'!BU13+'Sch. D'!BU13+'Sch. E'!BU13)/4/12*6,2) -> 0 | BV13: 0 | BW13: =ROUND(('Sch. B'!BW13+'Sch. C'!BW13+'Sch. D'!BW13+'Sch. E'!BW13)/4/12*6,2) -> 0 | BX13: 0 | BY13: =ROUND(('Sch. B'!BY13+'Sch. C'!BY13+'Sch. D'!BY13+'Sch. E'!BY13)/4/12*6,2) -> 0 | BZ13: 0 | CA13: 209.23 | CB13: 15169.175
A14: =+Index!$K$4+1+0.5-B14 -> 71.5 | B14: 1948 | C14: =ROUND(('Sch. B'!C14+'Sch. C'!C14+'Sch. D'!C14+'Sch. E'!C14)/4/12*6,2) -> 0 | D14: 0 | E14: =ROUND(('Sch. B'!E14+'Sch. C'!E14+'Sch. D'!E14+'Sch. E'!E14)/4/12*6,2) -> 0 | F14: 0 | G14: =ROUND(('Sch. B'!G14+'Sch. C'!G14+'Sch. D'!G14+'Sch. E'!G14)/4/12*6,2) -> 0 | H14: 0 | I14: =ROUND(('Sch. B'!I14+'Sch. C'!I14+'Sch. D'!I14+'Sch. E'!I14)/4/12*6,2) -> 0 | J14: 0 | K14: =ROUND(('Sch. B'!K14+'Sch. C'!K14+'Sch. D'!K14+'Sch. E'!K14)/4/12*6,2) -> 0 | L14: 0 | M14: =ROUND(('Sch. B'!M14+'Sch. C'!M14+'Sch. D'!M14+'Sch. E'!M14)/4/12*6,2) -> 0 | N14: 0 | O14: =ROUND(('Sch. B'!O14+'Sch. C'!O14+'Sch. D'!O14+'Sch. E'!O14)/4/12*6,2) -> 0 | P14: 0 | Q14: =ROUND(('Sch. B'!Q14+'Sch. C'!Q14+'Sch. D'!Q14+'Sch. E'!Q14)/4/12*6,2) -> 0 | R14: 0 | S14: =ROUND(('Sch. B'!S14+'Sch. C'!S14+'Sch. D'!S14+'Sch. E'!S14)/4/12*6,2) -> 0 | T14: 0 | U14: =ROUND(('Sch. B'!U14+'Sch. C'!U14+'Sch. D'!U14+'Sch. E'!U14)/4/12*6,2) -> 0 | V14: 0 | W14: =ROUND(('Sch. B'!W14+'Sch. C'!W14+'Sch. D'!W14+'Sch. E'!W14)/4/12*6,2) -> 0 | X14: 0 | Y14: =ROUND(('Sch. B'!Y14+'Sch. C'!Y14+'Sch. D'!Y14+'Sch. E'!Y14)/4/12*6,2) -> 0 | Z14: 0 | AA14: =ROUND(('Sch. B'!AA14+'Sch. C'!AA14+'Sch. D'!AA14+'Sch. E'!AA14)/4/12*6,2) -> 0 | AB14: 0 | AC14: =ROUND(('Sch. B'!AC14+'Sch. C'!AC14+'Sch. D'!AC14+'Sch. E'!AC14)/4/12*6,2) -> 0 | AD14: 0 | AE14: =ROUND(('Sch. B'!AE14+'Sch. C'!AE14+'Sch. D'!AE14+'Sch. E'!AE14)/4/12*6,2) -> 0 | AF14: 0 | AG14: =ROUND(('Sch. B'!AG14+'Sch. C'!AG14+'Sch. D'!AG14+'Sch. E'!AG14)/4/12*6,2) -> 0 | AH14: 0 | AI14: =ROUND(('Sch. B'!AI14+'Sch. C'!AI14+'Sch. D'!AI14+'Sch. E'!AI14)/4/12*6,2) -> 0 | AJ14: 0 | AK14: =ROUND(('Sch. B'!AK14+'Sch. C'!AK14+'Sch. D'!AK14+'Sch. E'!AK14)/4/12*6,2) -> 0 | AL14: 0 | AM14: =ROUND(('Sch. B'!AM14+'Sch. C'!AM14+'Sch. D'!AM14+'Sch. E'!AM14)/4/12*6,2) -> 0 | AN14: 0 | AO14: =ROUND(('Sch. B'!AO14+'Sch. C'!AO14+'Sch. D'!AO14+'Sch. E'!AO14)/4/12*6,2) -> 0 | AP14: 0 | AQ14: =ROUND(('Sch. B'!AQ14+'Sch. C'!AQ14+'Sch. D'!AQ14+'Sch. E'!AQ14)/4/12*6,2) -> 0 | AR14: 0 | AS14: =ROUND(('Sch. B'!AS14+'Sch. C'!AS14+'Sch. D'!AS14+'Sch. E'!AS14)/4/12*6,2) -> 0 | AT14: 0 | AU14: =ROUND(('Sch. B'!AU14+'Sch. C'!AU14+'Sch. D'!AU14+'Sch. E'!AU14)/4/12*6,2) -> 0 | AV14: 0 | AW14: =ROUND(('Sch. B'!AW14+'Sch. C'!AW14+'Sch. D'!AW14+'Sch. E'!AW14)/4/12*6,2) -> 0 | AX14: 0 | AY14: =ROUND(('Sch. B'!AY14+'Sch. C'!AY14+'Sch. D'!AY14+'Sch. E'!AY14)/4/12*6,2) -> 0 | AZ14: 0 | BA14: =ROUND(('Sch. B'!BA14+'Sch. C'!BA14+'Sch. D'!BA14+'Sch. E'!BA14)/4/12*6,2) -> 0 | BB14: 0 | BC14: =ROUND(('Sch. B'!BC14+'Sch. C'!BC14+'Sch. D'!BC14+'Sch. E'!BC14)/4/12*6,2) -> 0 | BD14: 0 | BE14: =ROUND(('Sch. B'!BE14+'Sch. C'!BE14+'Sch. D'!BE14+'Sch. E'!BE14)/4/12*6,2) -> 0 | BF14: 0 | BG14: =ROUND(('Sch. B'!BG14+'Sch. C'!BG14+'Sch. D'!BG14+'Sch. E'!BG14)/4/12*6,2) -> 0 | BH14: 0 | BI14: =ROUND(('Sch. B'!BI14+'Sch. C'!BI14+'Sch. D'!BI14+'Sch. E'!BI14)/4/12*6,2) -> 0 | BJ14: 0 | BK14: =ROUND(('Sch. B'!BK14+'Sch. C'!BK14+'Sch. D'!BK14+'Sch. E'!BK14)/4/12*6,2) -> 0 | BL14: 0 | BM14: =ROUND(('Sch. B'!BM14+'Sch. C'!BM14+'Sch. D'!BM14+'Sch. E'!BM14)/4/12*6,2) -> 0 | BN14: 0 | BO14: =ROUND(('Sch. B'!BO14+'Sch. C'!BO14+'Sch. D'!BO14+'Sch. E'!BO14)/4/12*6,2) -> 0 | BP14: 0 | BQ14: =ROUND(('Sch. B'!BQ14+'Sch. C'!BQ14+'Sch. D'!BQ14+'Sch. E'!BQ14)/4/12*6,2) -> 0 | BR14: 0 | BS14: =ROUND(('Sch. B'!BS14+'Sch. C'!BS14+'Sch. D'!BS14+'Sch. E'!BS14)/4/12*6,2) -> 0 | BT14: 0 | BU14: =ROUND(('Sch. B'!BU14+'Sch. C'!BU14+'Sch. D'!BU14+'Sch. E'!BU14)/4/12*6,2) -> 0 | BV14: 0 | BW14: =ROUND(('Sch. B'!BW14+'Sch. C'!BW14+'Sch. D'!BW14+'Sch. E'!BW14)/4/12*6,2) -> 0 | BX14: 0 | BY14: =ROUND(('Sch. B'!BY14+'Sch. C'!BY14+'Sch. D'!BY14+'Sch. E'!BY14)/4/12*6,2) -> 0 | BZ14: 0 | CA14: 0 | CB14: 0
A15: =+Index!$K$4+1+0.5-B15 -> 70.5 | B15: 1949 | C15: =ROUND(('Sch. B'!C15+'Sch. C'!C15+'Sch. D'!C15+'Sch. E'!C15)/4/12*6,2) -> 0 | D15: 0 | E15: =ROUND(('Sch. B'!E15+'Sch. C'!E15+'Sch. D'!E15+'Sch. E'!E15)/4/12*6,2) -> 0 | F15: 0 | G15: =ROUND(('Sch. B'!G15+'Sch. C'!G15+'Sch. D'!G15+'Sch. E'!G15)/4/12*6,2) -> 0 | H15: 0 | I15: =ROUND(('Sch. B'!I15+'Sch. C'!I15+'Sch. D'!I15+'Sch. E'!I15)/4/12*6,2) -> 0 | J15: 0 | K15: =ROUND(('Sch. B'!K15+'Sch. C'!K15+'Sch. D'!K15+'Sch. E'!K15)/4/12*6,2) -> 0 | L15: 0 | M15: =ROUND(('Sch. B'!M15+'Sch. C'!M15+'Sch. D'!M15+'Sch. E'!M15)/4/12*6,2) -> 0 | N15: 0 | O15: =ROUND(('Sch. B'!O15+'Sch. C'!O15+'Sch. D'!O15+'Sch. E'!O15)/4/12*6,2) -> 0 | P15: 0 | Q15: =ROUND(('Sch. B'!Q15+'Sch. C'!Q15+'Sch. D'!Q15+'Sch. E'!Q15)/4/12*6,2) -> 0 | R15: 0 | S15: =ROUND(('Sch. B'!S15+'Sch. C'!S15+'Sch. D'!S15+'Sch. E'!S15)/4/12*6,2) -> 0 | T15: 0 | U15: =ROUND(('Sch. B'!U15+'Sch. C'!U15+'Sch. D'!U15+'Sch. E'!U15)/4/12*6,2) -> 0 | V15: 0 | W15: =ROUND(('Sch. B'!W15+'Sch. C'!W15+'Sch. D'!W15+'Sch. E'!W15)/4/12*6,2) -> 2.8 | X15: 197.4 | Y15: =ROUND(('Sch. B'!Y15+'Sch. C'!Y15+'Sch. D'!Y15+'Sch. E'!Y15)/4/12*6,2) -> 0 | Z15: 0 | AA15: =ROUND(('Sch. B'!AA15+'Sch. C'!AA15+'Sch. D'!AA15+'Sch. E'!AA15)/4/12*6,2) -> 0 | AB15: 0 | AC15: =ROUND(('Sch. B'!AC15+'Sch. C'!AC15+'Sch. D'!AC15+'Sch. E'!AC15)/4/12*6,2) -> 0 | AD15: 0 | AE15: =ROUND(('Sch. B'!AE15+'Sch. C'!AE15+'Sch. D'!AE15+'Sch. E'!AE15)/4/12*6,2) -> 0 | AF15: 0 | AG15: =ROUND(('Sch. B'!AG15+'Sch. C'!AG15+'Sch. D'!AG15+'Sch. E'!AG15)/4/12*6,2) -> 0 | AH15: 0 | AI15: =ROUND(('Sch. B'!AI15+'Sch. C'!AI15+'Sch. D'!AI15+'Sch. E'!AI15)/4/12*6,2) -> 0 | AJ15: 0 | AK15: =ROUND(('Sch. B'!AK15+'Sch. C'!AK15+'Sch. D'!AK15+'Sch. E'!AK15)/4/12*6,2) -> 0 | AL15: 0 | AM15: =ROUND(('Sch. B'!AM15+'Sch. C'!AM15+'Sch. D'!AM15+'Sch. E'!AM15)/4/12*6,2) -> 0 | AN15: 0 | AO15: =ROUND(('Sch. B'!AO15+'Sch. C'!AO15+'Sch. D'!AO15+'Sch. E'!AO15)/4/12*6,2) -> 0 | AP15: 0 | AQ15: =ROUND(('Sch. B'!AQ15+'Sch. C'!AQ15+'Sch. D'!AQ15+'Sch. E'!AQ15)/4/12*6,2) -> 0 | AR15: 0 | AS15: =ROUND(('Sch. B'!AS15+'Sch. C'!AS15+'Sch. D'!AS15+'Sch. E'!AS15)/4/12*6,2) -> 0 | AT15: 0 | AU15: =ROUND(('Sch. B'!AU15+'Sch. C'!AU15+'Sch. D'!AU15+'Sch. E'!AU15)/4/12*6,2) -> 0 | AV15: 0 | AW15: =ROUND(('Sch. B'!AW15+'Sch. C'!AW15+'Sch. D'!AW15+'Sch. E'!AW15)/4/12*6,2) -> 0 | AX15: 0 | AY15: =ROUND(('Sch. B'!AY15+'Sch. C'!AY15+'Sch. D'!AY15+'Sch. E'!AY15)/4/12*6,2) -> 0 | AZ15: 0 | BA15: =ROUND(('Sch. B'!BA15+'Sch. C'!BA15+'Sch. D'!BA15+'Sch. E'!BA15)/4/12*6,2) -> 0 | BB15: 0 | BC15: =ROUND(('Sch. B'!BC15+'Sch. C'!BC15+'Sch. D'!BC15+'Sch. E'!BC15)/4/12*6,2) -> 0 | BD15: 0 | BE15: =ROUND(('Sch. B'!BE15+'Sch. C'!BE15+'Sch. D'!BE15+'Sch. E'!BE15)/4/12*6,2) -> 0 | BF15: 0 | BG15: =ROUND(('Sch. B'!BG15+'Sch. C'!BG15+'Sch. D'!BG15+'Sch. E'!BG15)/4/12*6,2) -> 0 | BH15: 0 | BI15: =ROUND(('Sch. B'!BI15+'Sch. C'!BI15+'Sch. D'!BI15+'Sch. E'!BI15)/4/12*6,2) -> 0 | BJ15: 0 | BK15: =ROUND(('Sch. B'!BK15+'Sch. C'!BK15+'Sch. D'!BK15+'Sch. E'!BK15)/4/12*6,2) -> 0 | BL15: 0 | BM15: =ROUND(('Sch. B'!BM15+'Sch. C'!BM15+'Sch. D'!BM15+'Sch. E'!BM15)/4/12*6,2) -> 0 | BN15: 0 | BO15: =ROUND(('Sch. B'!BO15+'Sch. C'!BO15+'Sch. D'!BO15+'Sch. E'!BO15)/4/12*6,2) -> 0 | BP15: 0 | BQ15: =ROUND(('Sch. B'!BQ15+'Sch. C'!BQ15+'Sch. D'!BQ15+'Sch. E'!BQ15)/4/12*6,2) -> 0 | BR15: 0 | BS15: =ROUND(('Sch. B'!BS15+'Sch. C'!BS15+'Sch. D'!BS15+'Sch. E'!BS15)/4/12*6,2) -> 0 | BT15: 0 | BU15: =ROUND(('Sch. B'!BU15+'Sch. C'!BU15+'Sch. D'!BU15+'Sch. E'!BU15)/4/12*6,2) -> 0 | BV15: 0 | BW15: =ROUND(('Sch. B'!BW15+'Sch. C'!BW15+'Sch. D'!BW15+'Sch. E'!BW15)/4/12*6,2) -> 0 | BX15: 0 | BY15: =ROUND(('Sch. B'!BY15+'Sch. C'!BY15+'Sch. D'!BY15+'Sch. E'!BY15)/4/12*6,2) -> 0 | BZ15: 0 | CA15: 2.8 | CB15: 197.4
A16: =+Index!$K$4+1+0.5-B16 -> 69.5 | B16: 1950 | C16: =ROUND(('Sch. B'!C16+'Sch. C'!C16+'Sch. D'!C16+'Sch. E'!C16)/4/12*6,2) -> 0 | D16: 0 | E16: =ROUND(('Sch. B'!E16+'Sch. C'!E16+'Sch. D'!E16+'Sch. E'!E16)/4/12*6,2) -> 0 | F16: 0 | G16: =ROUND(('Sch. B'!G16+'Sch. C'!G16+'Sch. D'!G16+'Sch. E'!G16)/4/12*6,2) -> 0 | H16: 0 | I16: =ROUND(('Sch. B'!I16+'Sch. C'!I16+'Sch. D'!I16+'Sch. E'!I16)/4/12*6,2) -> 0 | J16: 0 | K16: =ROUND(('Sch. B'!K16+'Sch. C'!K16+'Sch. D'!K16+'Sch. E'!K16)/4/12*6,2) -> 0 | L16: 0 | M16: =ROUND(('Sch. B'!M16+'Sch. C'!M16+'Sch. D'!M16+'Sch. E'!M16)/4/12*6,2) -> 0 | N16: 0 | O16: =ROUND(('Sch. B'!O16+'Sch. C'!O16+'Sch. D'!O16+'Sch. E'!O16)/4/12*6,2) -> 0 | P16: 0 | Q16: =ROUND(('Sch. B'!Q16+'Sch. C'!Q16+'Sch. D'!Q16+'Sch. E'!Q16)/4/12*6,2) -> 0 | R16: 0 | S16: =ROUND(('Sch. B'!S16+'Sch. C'!S16+'Sch. D'!S16+'Sch. E'!S16)/4/12*6,2) -> 0 | T16: 0 | U16: =ROUND(('Sch. B'!U16+'Sch. C'!U16+'Sch. D'!U16+'Sch. E'!U16)/4/12*6,2) -> 0 | V16: 0 | W16: =ROUND(('Sch. B'!W16+'Sch. C'!W16+'Sch. D'!W16+'Sch. E'!W16)/4/12*6,2) -> 0 | X16: 0 | Y16: =ROUND(('Sch. B'!Y16+'Sch. C'!Y16+'Sch. D'!Y16+'Sch. E'!Y16)/4/12*6,2) -> 0 | Z16: 0 | AA16: =ROUND(('Sch. B'!AA16+'Sch. C'!AA16+'Sch. D'!AA16+'Sch. E'!AA16)/4/12*6,2) -> 0 | AB16: 0 | AC16: =ROUND(('Sch. B'!AC16+'Sch. C'!AC16+'Sch. D'!AC16+'Sch. E'!AC16)/4/12*6,2) -> 0 | AD16: 0 | AE16: =ROUND(('Sch. B'!AE16+'Sch. C'!AE16+'Sch. D'!AE16+'Sch. E'!AE16)/4/12*6,2) -> 0 | AF16: 0 | AG16: =ROUND(('Sch. B'!AG16+'Sch. C'!AG16+'Sch. D'!AG16+'Sch. E'!AG16)/4/12*6,2) -> 0 | AH16: 0 | AI16: =ROUND(('Sch. B'!AI16+'Sch. C'!AI16+'Sch. D'!AI16+'Sch. E'!AI16)/4/12*6,2) -> 0 | AJ16: 0 | AK16: =ROUND(('Sch. B'!AK16+'Sch. C'!AK16+'Sch. D'!AK16+'Sch. E'!AK16)/4/12*6,2) -> 0 | AL16: 0 | AM16: =ROUND(('Sch. B'!AM16+'Sch. C'!AM16+'Sch. D'!AM16+'Sch. E'!AM16)/4/12*6,2) -> 0 | AN16: 0 | AO16: =ROUND(('Sch. B'!AO16+'Sch. C'!AO16+'Sch. D'!AO16+'Sch. E'!AO16)/4/12*6,2) -> 0 | AP16: 0 | AQ16: =ROUND(('Sch. B'!AQ16+'Sch. C'!AQ16+'Sch. D'!AQ16+'Sch. E'!AQ16)/4/12*6,2) -> 0 | AR16: 0 | AS16: =ROUND(('Sch. B'!AS16+'Sch. C'!AS16+'Sch. D'!AS16+'Sch. E'!AS16)/4/12*6,2) -> 0 | AT16: 0 | AU16: =ROUND(('Sch. B'!AU16+'Sch. C'!AU16+'Sch. D'!AU16+'Sch. E'!AU16)/4/12*6,2) -> 0 | AV16: 0 | AW16: =ROUND(('Sch. B'!AW16+'Sch. C'!AW16+'Sch. D'!AW16+'Sch. E'!AW16)/4/12*6,2) -> 0 | AX16: 0 | AY16: =ROUND(('Sch. B'!AY16+'Sch. C'!AY16+'Sch. D'!AY16+'Sch. E'!AY16)/4/12*6,2) -> 0 | AZ16: 0 | BA16: =ROUND(('Sch. B'!BA16+'Sch. C'!BA16+'Sch. D'!BA16+'Sch. E'!BA16)/4/12*6,2) -> 0 | BB16: 0 | BC16: =ROUND(('Sch. B'!BC16+'Sch. C'!BC16+'Sch. D'!BC16+'Sch. E'!BC16)/4/12*6,2) -> 0 | BD16: 0 | BE16: =ROUND(('Sch. B'!BE16+'Sch. C'!BE16+'Sch. D'!BE16+'Sch. E'!BE16)/4/12*6,2) -> 0 | BF16: 0 | BG16: =ROUND(('Sch. B'!BG16+'Sch. C'!BG16+'Sch. D'!BG16+'Sch. E'!BG16)/4/12*6,2) -> 0 | BH16: 0 | BI16: =ROUND(('Sch. B'!BI16+'Sch. C'!BI16+'Sch. D'!BI16+'Sch. E'!BI16)/4/12*6,2) -> 0 | BJ16: 0 | BK16: =ROUND(('Sch. B'!BK16+'Sch. C'!BK16+'Sch. D'!BK16+'Sch. E'!BK16)/4/12*6,2) -> 0 | BL16: 0 | BM16: =ROUND(('Sch. B'!BM16+'Sch. C'!BM16+'Sch. D'!BM16+'Sch. E'!BM16)/4/12*6,2) -> 0 | BN16: 0 | BO16: =ROUND(('Sch. B'!BO16+'Sch. C'!BO16+'Sch. D'!BO16+'Sch. E'!BO16)/4/12*6,2) -> 0 | BP16: 0 | BQ16: =ROUND(('Sch. B'!BQ16+'Sch. C'!BQ16+'Sch. D'!BQ16+'Sch. E'!BQ16)/4/12*6,2) -> 0 | BR16: 0 | BS16: =ROUND(('Sch. B'!BS16+'Sch. C'!BS16+'Sch. D'!BS16+'Sch. E'!BS16)/4/12*6,2) -> 0 | BT16: 0 | BU16: =ROUND(('Sch. B'!BU16+'Sch. C'!BU16+'Sch. D'!BU16+'Sch. E'!BU16)/4/12*6,2) -> 0 | BV16: 0 | BW16: =ROUND(('Sch. B'!BW16+'Sch. C'!BW16+'Sch. D'!BW16+'Sch. E'!BW16)/4/12*6,2) -> 0 | BX16: 0 | BY16: =ROUND(('Sch. B'!BY16+'Sch. C'!BY16+'Sch. D'!BY16+'Sch. E'!BY16)/4/12*6,2) -> 0 | BZ16: 0 | CA16: 0 | CB16: 0
A17: =+Index!$K$4+1+0.5-B17 -> 68.5 | B17: 1951 | C17: =ROUND(('Sch. B'!C17+'Sch. C'!C17+'Sch. D'!C17+'Sch. E'!C17)/4/12*6,2) -> 0 | D17: 0 | E17: =ROUND(('Sch. B'!E17+'Sch. C'!E17+'Sch. D'!E17+'Sch. E'!E17)/4/12*6,2) -> 0 | F17: 0 | G17: =ROUND(('Sch. B'!G17+'Sch. C'!G17+'Sch. D'!G17+'Sch. E'!G17)/4/12*6,2) -> 0 | H17: 0 | I17: =ROUND(('Sch. B'!I17+'Sch. C'!I17+'Sch. D'!I17+'Sch. E'!I17)/4/12*6,2) -> 0 | J17: 0 | K17: =ROUND(('Sch. B'!K17+'Sch. C'!K17+'Sch. D'!K17+'Sch. E'!K17)/4/12*6,2) -> 0 | L17: 0 | M17: =ROUND(('Sch. B'!M17+'Sch. C'!M17+'Sch. D'!M17+'Sch. E'!M17)/4/12*6,2) -> 0 | N17: 0 | O17: =ROUND(('Sch. B'!O17+'Sch. C'!O17+'Sch. D'!O17+'Sch. E'!O17)/4/12*6,2) -> 0 | P17: 0 | Q17: =ROUND(('Sch. B'!Q17+'Sch. C'!Q17+'Sch. D'!Q17+'Sch. E'!Q17)/4/12*6,2) -> 0 | R17: 0 | S17: =ROUND(('Sch. B'!S17+'Sch. C'!S17+'Sch. D'!S17+'Sch. E'!S17)/4/12*6,2) -> 0 | T17: 0 | U17: =ROUND(('Sch. B'!U17+'Sch. C'!U17+'Sch. D'!U17+'Sch. E'!U17)/4/12*6,2) -> 0 | V17: 0 | W17: =ROUND(('Sch. B'!W17+'Sch. C'!W17+'Sch. D'!W17+'Sch. E'!W17)/4/12*6,2) -> 7.56 | X17: 517.86 | Y17: =ROUND(('Sch. B'!Y17+'Sch. C'!Y17+'Sch. D'!Y17+'Sch. E'!Y17)/4/12*6,2) -> 331.26 | Z17: 22691.31 | AA17: =ROUND(('Sch. B'!AA17+'Sch. C'!AA17+'Sch. D'!AA17+'Sch. E'!AA17)/4/12*6,2) -> 0 | AB17: 0 | AC17: =ROUND(('Sch. B'!AC17+'Sch. C'!AC17+'Sch. D'!AC17+'Sch. E'!AC17)/4/12*6,2) -> 0 | AD17: 0 | AE17: =ROUND(('Sch. B'!AE17+'Sch. C'!AE17+'Sch. D'!AE17+'Sch. E'!AE17)/4/12*6,2) -> 4.69 | AF17: 321.265 | AG17: =ROUND(('Sch. B'!AG17+'Sch. C'!AG17+'Sch. D'!AG17+'Sch. E'!AG17)/4/12*6,2) -> 550.47 | AH17: 37707.195 | AI17: =ROUND(('Sch. B'!AI17+'Sch. C'!AI17+'Sch. D'!AI17+'Sch. E'!AI17)/4/12*6,2) -> 0 | AJ17: 0 | AK17: =ROUND(('Sch. B'!AK17+'Sch. C'!AK17+'Sch. D'!AK17+'Sch. E'!AK17)/4/12*6,2) -> 0 | AL17: 0 | AM17: =ROUND(('Sch. B'!AM17+'Sch. C'!AM17+'Sch. D'!AM17+'Sch. E'!AM17)/4/12*6,2) -> 0 | AN17: 0 | AO17: =ROUND(('Sch. B'!AO17+'Sch. C'!AO17+'Sch. D'!AO17+'Sch. E'!AO17)/4/12*6,2) -> 0 | AP17: 0 | AQ17: =ROUND(('Sch. B'!AQ17+'Sch. C'!AQ17+'Sch. D'!AQ17+'Sch. E'!AQ17)/4/12*6,2) -> 0 | AR17: 0 | AS17: =ROUND(('Sch. B'!AS17+'Sch. C'!AS17+'Sch. D'!AS17+'Sch. E'!AS17)/4/12*6,2) -> 0 | AT17: 0 | AU17: =ROUND(('Sch. B'!AU17+'Sch. C'!AU17+'Sch. D'!AU17+'Sch. E'!AU17)/4/12*6,2) -> 0 | AV17: 0 | AW17: =ROUND(('Sch. B'!AW17+'Sch. C'!AW17+'Sch. D'!AW17+'Sch. E'!AW17)/4/12*6,2) -> 0 | AX17: 0 | AY17: =ROUND(('Sch. B'!AY17+'Sch. C'!AY17+'Sch. D'!AY17+'Sch. E'!AY17)/4/12*6,2) -> 0 | AZ17: 0 | BA17: =ROUND(('Sch. B'!BA17+'Sch. C'!BA17+'Sch. D'!BA17+'Sch. E'!BA17)/4/12*6,2) -> 0 | BB17: 0 | BC17: =ROUND(('Sch. B'!BC17+'Sch. C'!BC17+'Sch. D'!BC17+'Sch. E'!BC17)/4/12*6,2) -> 0 | BD17: 0 | BE17: =ROUND(('Sch. B'!BE17+'Sch. C'!BE17+'Sch. D'!BE17+'Sch. E'!BE17)/4/12*6,2) -> 0 | BF17: 0 | BG17: =ROUND(('Sch. B'!BG17+'Sch. C'!BG17+'Sch. D'!BG17+'Sch. E'!BG17)/4/12*6,2) -> 0 | BH17: 0 | BI17: =ROUND(('Sch. B'!BI17+'Sch. C'!BI17+'Sch. D'!BI17+'Sch. E'!BI17)/4/12*6,2) -> 0 | BJ17: 0 | BK17: =ROUND(('Sch. B'!BK17+'Sch. C'!BK17+'Sch. D'!BK17+'Sch. E'!BK17)/4/12*6,2) -> 0 | BL17: 0 | BM17: =ROUND(('Sch. B'!BM17+'Sch. C'!BM17+'Sch. D'!BM17+'Sch. E'!BM17)/4/12*6,2) -> 0 | BN17: 0 | BO17: =ROUND(('Sch. B'!BO17+'Sch. C'!BO17+'Sch. D'!BO17+'Sch. E'!BO17)/4/12*6,2) -> 0 | BP17: 0 | BQ17: =ROUND(('Sch. B'!BQ17+'Sch. C'!BQ17+'Sch. D'!BQ17+'Sch. E'!BQ17)/4/12*6,2) -> 0 | BR17: 0 | BS17: =ROUND(('Sch. B'!BS17+'Sch. C'!BS17+'Sch. D'!BS17+'Sch. E'!BS17)/4/12*6,2) -> 0 | BT17: 0 | BU17: =ROUND(('Sch. B'!BU17+'Sch. C'!BU17+'Sch. D'!BU17+'Sch. E'!BU17)/4/12*6,2) -> 0 | BV17: 0 | BW17: =ROUND(('Sch. B'!BW17+'Sch. C'!BW17+'Sch. D'!BW17+'Sch. E'!BW17)/4/12*6,2) -> 0 | BX17: 0 | BY17: =ROUND(('Sch. B'!BY17+'Sch. C'!BY17+'Sch. D'!BY17+'Sch. E'!BY17)/4/12*6,2) -> 0 | BZ17: 0 | CA17: 893.98 | CB17: 61237.63
A18: =+Index!$K$4+1+0.5-B18 -> 67.5 | B18: 1952 | C18: =ROUND(('Sch. B'!C18+'Sch. C'!C18+'Sch. D'!C18+'Sch. E'!C18)/4/12*6,2) -> 0 | D18: 0 | E18: =ROUND(('Sch. B'!E18+'Sch. C'!E18+'Sch. D'!E18+'Sch. E'!E18)/4/12*6,2) -> 0 | F18: 0 | G18: =ROUND(('Sch. B'!G18+'Sch. C'!G18+'Sch. D'!G18+'Sch. E'!G18)/4/12*6,2) -> 0 | H18: 0 | I18: =ROUND(('Sch. B'!I18+'Sch. C'!I18+'Sch. D'!I18+'Sch. E'!I18)/4/12*6,2) -> 0 | J18: 0 | K18: =ROUND(('Sch. B'!K18+'Sch. C'!K18+'Sch. D'!K18+'Sch. E'!K18)/4/12*6,2) -> 0 | L18: 0 | M18: =ROUND(('Sch. B'!M18+'Sch. C'!M18+'Sch. D'!M18+'Sch. E'!M18)/4/12*6,2) -> 0 | N18: 0 | O18: =ROUND(('Sch. B'!O18+'Sch. C'!O18+'Sch. D'!O18+'Sch. E'!O18)/4/12*6,2) -> 0 | P18: 0 | Q18: =ROUND(('Sch. B'!Q18+'Sch. C'!Q18+'Sch. D'!Q18+'Sch. E'!Q18)/4/12*6,2) -> 0 | R18: 0 | S18: =ROUND(('Sch. B'!S18+'Sch. C'!S18+'Sch. D'!S18+'Sch. E'!S18)/4/12*6,2) -> 0 | T18: 0 | U18: =ROUND(('Sch. B'!U18+'Sch. C'!U18+'Sch. D'!U18+'Sch. E'!U18)/4/12*6,2) -> 0 | V18: 0 | W18: =ROUND(('Sch. B'!W18+'Sch. C'!W18+'Sch. D'!W18+'Sch. E'!W18)/4/12*6,2) -> 0 | X18: 0 | Y18: =ROUND(('Sch. B'!Y18+'Sch. C'!Y18+'Sch. D'!Y18+'Sch. E'!Y18)/4/12*6,2) -> 0 | Z18: 0 | AA18: =ROUND(('Sch. B'!AA18+'Sch. C'!AA18+'Sch. D'!AA18+'Sch. E'!AA18)/4/12*6,2) -> 0 | AB18: 0 | AC18: =ROUND(('Sch. B'!AC18+'Sch. C'!AC18+'Sch. D'!AC18+'Sch. E'!AC18)/4/12*6,2) -> 0 | AD18: 0 | AE18: =ROUND(('Sch. B'!AE18+'Sch. C'!AE18+'Sch. D'!AE18+'Sch. E'!AE18)/4/12*6,2) -> 0 | AF18: 0 | AG18: =ROUND(('Sch. B'!AG18+'Sch. C'!AG18+'Sch. D'!AG18+'Sch. E'!AG18)/4/12*6,2) -> 772.63 | AH18: 52152.525 | AI18: =ROUND(('Sch. B'!AI18+'Sch. C'!AI18+'Sch. D'!AI18+'Sch. E'!AI18)/4/12*6,2) -> 1.48 | AJ18: 99.9 | AK18: =ROUND(('Sch. B'!AK18+'Sch. C'!AK18+'Sch. D'!AK18+'Sch. E'!AK18)/4/12*6,2) -> 0 | AL18: 0 | AM18: =ROUND(('Sch. B'!AM18+'Sch. C'!AM18+'Sch. D'!AM18+'Sch. E'!AM18)/4/12*6,2) -> 0 | AN18: 0 | AO18: =ROUND(('Sch. B'!AO18+'Sch. C'!AO18+'Sch. D'!AO18+'Sch. E'!AO18)/4/12*6,2) -> 0 | AP18: 0 | AQ18: =ROUND(('Sch. B'!AQ18+'Sch. C'!AQ18+'Sch. D'!AQ18+'Sch. E'!AQ18)/4/12*6,2) -> 0 | AR18: 0 | AS18: =ROUND(('Sch. B'!AS18+'Sch. C'!AS18+'Sch. D'!AS18+'Sch. E'!AS18)/4/12*6,2) -> 0 | AT18: 0 | AU18: =ROUND(('Sch. B'!AU18+'Sch. C'!AU18+'Sch. D'!AU18+'Sch. E'!AU18)/4/12*6,2) -> 0 | AV18: 0 | AW18: =ROUND(('Sch. B'!AW18+'Sch. C'!AW18+'Sch. D'!AW18+'Sch. E'!AW18)/4/12*6,2) -> 0 | AX18: 0 | AY18: =ROUND(('Sch. B'!AY18+'Sch. C'!AY18+'Sch. D'!AY18+'Sch. E'!AY18)/4/12*6,2) -> 0 | AZ18: 0 | BA18: =ROUND(('Sch. B'!BA18+'Sch. C'!BA18+'Sch. D'!BA18+'Sch. E'!BA18)/4/12*6,2) -> 0 | BB18: 0 | BC18: =ROUND(('Sch. B'!BC18+'Sch. C'!BC18+'Sch. D'!BC18+'Sch. E'!BC18)/4/12*6,2) -> 0 | BD18: 0 | BE18: =ROUND(('Sch. B'!BE18+'Sch. C'!BE18+'Sch. D'!BE18+'Sch. E'!BE18)/4/12*6,2) -> 0 | BF18: 0 | BG18: =ROUND(('Sch. B'!BG18+'Sch. C'!BG18+'Sch. D'!BG18+'Sch. E'!BG18)/4/12*6,2) -> 0 | BH18: 0 | BI18: =ROUND(('Sch. B'!BI18+'Sch. C'!BI18+'Sch. D'!BI18+'Sch. E'!BI18)/4/12*6,2) -> 0 | BJ18: 0 | BK18: =ROUND(('Sch. B'!BK18+'Sch. C'!BK18+'Sch. D'!BK18+'Sch. E'!BK18)/4/12*6,2) -> 0 | BL18: 0 | BM18: =ROUND(('Sch. B'!BM18+'Sch. C'!BM18+'Sch. D'!BM18+'Sch. E'!BM18)/4/12*6,2) -> 0 | BN18: 0 | BO18: =ROUND(('Sch. B'!BO18+'Sch. C'!BO18+'Sch. D'!BO18+'Sch. E'!BO18)/4/12*6,2) -> 0 | BP18: 0 | BQ18: =ROUND(('Sch. B'!BQ18+'Sch. C'!BQ18+'Sch. D'!BQ18+'Sch. E'!BQ18)/4/12*6,2) -> 0 | BR18: 0 | BS18: =ROUND(('Sch. B'!BS18+'Sch. C'!BS18+'Sch. D'!BS18+'Sch. E'!BS18)/4/12*6,2) -> 0 | BT18: 0 | BU18: =ROUND(('Sch. B'!BU18+'Sch. C'!BU18+'Sch. D'!BU18+'Sch. E'!BU18)/4/12*6,2) -> 0 | BV18: 0 | BW18: =ROUND(('Sch. B'!BW18+'Sch. C'!BW18+'Sch. D'!BW18+'Sch. E'!BW18)/4/12*6,2) -> 0 | BX18: 0 | BY18: =ROUND(('Sch. B'!BY18+'Sch. C'!BY18+'Sch. D'!BY18+'Sch. E'!BY18)/4/12*6,2) -> 0 | BZ18: 0 | CA18: 774.11 | CB18: 52252.425
A19: =+Index!$K$4+1+0.5-B19 -> 66.5 | B19: 1953 | C19: =ROUND(('Sch. B'!C19+'Sch. C'!C19+'Sch. D'!C19+'Sch. E'!C19)/4/12*6,2) -> 0 | D19: 0 | E19: =ROUND(('Sch. B'!E19+'Sch. C'!E19+'Sch. D'!E19+'Sch. E'!E19)/4/12*6,2) -> 0 | F19: 0 | G19: =ROUND(('Sch. B'!G19+'Sch. C'!G19+'Sch. D'!G19+'Sch. E'!G19)/4/12*6,2) -> 0 | H19: 0 | I19: =ROUND(('Sch. B'!I19+'Sch. C'!I19+'Sch. D'!I19+'Sch. E'!I19)/4/12*6,2) -> 0 | J19: 0 | K19: =ROUND(('Sch. B'!K19+'Sch. C'!K19+'Sch. D'!K19+'Sch. E'!K19)/4/12*6,2) -> 0 | L19: 0 | M19: =ROUND(('Sch. B'!M19+'Sch. C'!M19+'Sch. D'!M19+'Sch. E'!M19)/4/12*6,2) -> 0 | N19: 0 | O19: =ROUND(('Sch. B'!O19+'Sch. C'!O19+'Sch. D'!O19+'Sch. E'!O19)/4/12*6,2) -> 0 | P19: 0 | Q19: =ROUND(('Sch. B'!Q19+'Sch. C'!Q19+'Sch. D'!Q19+'Sch. E'!Q19)/4/12*6,2) -> 0 | R19: 0 | S19: =ROUND(('Sch. B'!S19+'Sch. C'!S19+'Sch. D'!S19+'Sch. E'!S19)/4/12*6,2) -> 0 | T19: 0 | U19: =ROUND(('Sch. B'!U19+'Sch. C'!U19+'Sch. D'!U19+'Sch. E'!U19)/4/12*6,2) -> 0 | V19: 0 | W19: =ROUND(('Sch. B'!W19+'Sch. C'!W19+'Sch. D'!W19+'Sch. E'!W19)/4/12*6,2) -> 0 | X19: 0 | Y19: =ROUND(('Sch. B'!Y19+'Sch. C'!Y19+'Sch. D'!Y19+'Sch. E'!Y19)/4/12*6,2) -> 0 | Z19: 0 | AA19: =ROUND(('Sch. B'!AA19+'Sch. C'!AA19+'Sch. D'!AA19+'Sch. E'!AA19)/4/12*6,2) -> 0 | AB19: 0 | AC19: =ROUND(('Sch. B'!AC19+'Sch. C'!AC19+'Sch. D'!AC19+'Sch. E'!AC19)/4/12*6,2) -> 0 | AD19: 0 | AE19: =ROUND(('Sch. B'!AE19+'Sch. C'!AE19+'Sch. D'!AE19+'Sch. E'!AE19)/4/12*6,2) -> 0 | AF19: 0 | AG19: =ROUND(('Sch. B'!AG19+'Sch. C'!AG19+'Sch. D'!AG19+'Sch. E'!AG19)/4/12*6,2) -> 0 | AH19: 0 | AI19: =ROUND(('Sch. B'!AI19+'Sch. C'!AI19+'Sch. D'!AI19+'Sch. E'!AI19)/4/12*6,2) -> 0.46 | AJ19: 30.59 | AK19: =ROUND(('Sch. B'!AK19+'Sch. C'!AK19+'Sch. D'!AK19+'Sch. E'!AK19)/4/12*6,2) -> 0 | AL19: 0 | AM19: =ROUND(('Sch. B'!AM19+'Sch. C'!AM19+'Sch. D'!AM19+'Sch. E'!AM19)/4/12*6,2) -> 0 | AN19: 0 | AO19: =ROUND(('Sch. B'!AO19+'Sch. C'!AO19+'Sch. D'!AO19+'Sch. E'!AO19)/4/12*6,2) -> 0 | AP19: 0 | AQ19: =ROUND(('Sch. B'!AQ19+'Sch. C'!AQ19+'Sch. D'!AQ19+'Sch. E'!AQ19)/4/12*6,2) -> 0 | AR19: 0 | AS19: =ROUND(('Sch. B'!AS19+'Sch. C'!AS19+'Sch. D'!AS19+'Sch. E'!AS19)/4/12*6,2) -> 0 | AT19: 0 | AU19: =ROUND(('Sch. B'!AU19+'Sch. C'!AU19+'Sch. D'!AU19+'Sch. E'!AU19)/4/12*6,2) -> 0 | AV19: 0 | AW19: =ROUND(('Sch. B'!AW19+'Sch. C'!AW19+'Sch. D'!AW19+'Sch. E'!AW19)/4/12*6,2) -> 0 | AX19: 0 | AY19: =ROUND(('Sch. B'!AY19+'Sch. C'!AY19+'Sch. D'!AY19+'Sch. E'!AY19)/4/12*6,2) -> 0 | AZ19: 0 | BA19: =ROUND(('Sch. B'!BA19+'Sch. C'!BA19+'Sch. D'!BA19+'Sch. E'!BA19)/4/12*6,2) -> 0 | BB19: 0 | BC19: =ROUND(('Sch. B'!BC19+'Sch. C'!BC19+'Sch. D'!BC19+'Sch. E'!BC19)/4/12*6,2) -> 0 | BD19: 0 | BE19: =ROUND(('Sch. B'!BE19+'Sch. C'!BE19+'Sch. D'!BE19+'Sch. E'!BE19)/4/12*6,2) -> 0 | BF19: 0 | BG19: =ROUND(('Sch. B'!BG19+'Sch. C'!BG19+'Sch. D'!BG19+'Sch. E'!BG19)/4/12*6,2) -> 0 | BH19: 0 | BI19: =ROUND(('Sch. B'!BI19+'Sch. C'!BI19+'Sch. D'!BI19+'Sch. E'!BI19)/4/12*6,2) -> 0 | BJ19: 0 | BK19: =ROUND(('Sch. B'!BK19+'Sch. C'!BK19+'Sch. D'!BK19+'Sch. E'!BK19)/4/12*6,2) -> 0 | BL19: 0 | BM19: =ROUND(('Sch. B'!BM19+'Sch. C'!BM19+'Sch. D'!BM19+'Sch. E'!BM19)/4/12*6,2) -> 0 | BN19: 0 | BO19: =ROUND(('Sch. B'!BO19+'Sch. C'!BO19+'Sch. D'!BO19+'Sch. E'!BO19)/4/12*6,2) -> 0 | BP19: 0 | BQ19: =ROUND(('Sch. B'!BQ19+'Sch. C'!BQ19+'Sch. D'!BQ19+'Sch. E'!BQ19)/4/12*6,2) -> 0 | BR19: 0 | BS19: =ROUND(('Sch. B'!BS19+'Sch. C'!BS19+'Sch. D'!BS19+'Sch. E'!BS19)/4/12*6,2) -> 0 | BT19: 0 | BU19: =ROUND(('Sch. B'!BU19+'Sch. C'!BU19+'Sch. D'!BU19+'Sch. E'!BU19)/4/12*6,2) -> 0 | BV19: 0 | BW19: =ROUND(('Sch. B'!BW19+'Sch. C'!BW19+'Sch. D'!BW19+'Sch. E'!BW19)/4/12*6,2) -> 0 | BX19: 0 | BY19: =ROUND(('Sch. B'!BY19+'Sch. C'!BY19+'Sch. D'!BY19+'Sch. E'!BY19)/4/12*6,2) -> 0 | BZ19: 0 | CA19: 0.46 | CB19: 30.59
A20: =+Index!$K$4+1+0.5-B20 -> 65.5 | B20: 1954 | C20: =ROUND(('Sch. B'!C20+'Sch. C'!C20+'Sch. D'!C20+'Sch. E'!C20)/4/12*6,2) -> 0 | D20: 0 | E20: =ROUND(('Sch. B'!E20+'Sch. C'!E20+'Sch. D'!E20+'Sch. E'!E20)/4/12*6,2) -> 0 | F20: 0 | G20: =ROUND(('Sch. B'!G20+'Sch. C'!G20+'Sch. D'!G20+'Sch. E'!G20)/4/12*6,2) -> 0 | H20: 0 | I20: =ROUND(('Sch. B'!I20+'Sch. C'!I20+'Sch. D'!I20+'Sch. E'!I20)/4/12*6,2) -> 0 | J20: 0 | K20: =ROUND(('Sch. B'!K20+'Sch. C'!K20+'Sch. D'!K20+'Sch. E'!K20)/4/12*6,2) -> 0 | L20: 0 | M20: =ROUND(('Sch. B'!M20+'Sch. C'!M20+'Sch. D'!M20+'Sch. E'!M20)/4/12*6,2) -> 0 | N20: 0 | O20: =ROUND(('Sch. B'!O20+'Sch. C'!O20+'Sch. D'!O20+'Sch. E'!O20)/4/12*6,2) -> 0 | P20: 0 | Q20: =ROUND(('Sch. B'!Q20+'Sch. C'!Q20+'Sch. D'!Q20+'Sch. E'!Q20)/4/12*6,2) -> 0 | R20: 0 | S20: =ROUND(('Sch. B'!S20+'Sch. C'!S20+'Sch. D'!S20+'Sch. E'!S20)/4/12*6,2) -> 0 | T20: 0 | U20: =ROUND(('Sch. B'!U20+'Sch. C'!U20+'Sch. D'!U20+'Sch. E'!U20)/4/12*6,2) -> 0 | V20: 0 | W20: =ROUND(('Sch. B'!W20+'Sch. C'!W20+'Sch. D'!W20+'Sch. E'!W20)/4/12*6,2) -> 0 | X20: 0 | Y20: =ROUND(('Sch. B'!Y20+'Sch. C'!Y20+'Sch. D'!Y20+'Sch. E'!Y20)/4/12*6,2) -> 1536.44 | Z20: 100636.82 | AA20: =ROUND(('Sch. B'!AA20+'Sch. C'!AA20+'Sch. D'!AA20+'Sch. E'!AA20)/4/12*6,2) -> 0 | AB20: 0 | AC20: =ROUND(('Sch. B'!AC20+'Sch. C'!AC20+'Sch. D'!AC20+'Sch. E'!AC20)/4/12*6,2) -> 0 | AD20: 0 | AE20: =ROUND(('Sch. B'!AE20+'Sch. C'!AE20+'Sch. D'!AE20+'Sch. E'!AE20)/4/12*6,2) -> 9.2 | AF20: 602.6 | AG20: =ROUND(('Sch. B'!AG20+'Sch. C'!AG20+'Sch. D'!AG20+'Sch. E'!AG20)/4/12*6,2) -> 188.1 | AH20: 12320.55 | AI20: =ROUND(('Sch. B'!AI20+'Sch. C'!AI20+'Sch. D'!AI20+'Sch. E'!AI20)/4/12*6,2) -> 0 | AJ20: 0 | AK20: =ROUND(('Sch. B'!AK20+'Sch. C'!AK20+'Sch. D'!AK20+'Sch. E'!AK20)/4/12*6,2) -> 0 | AL20: 0 | AM20: =ROUND(('Sch. B'!AM20+'Sch. C'!AM20+'Sch. D'!AM20+'Sch. E'!AM20)/4/12*6,2) -> 0 | AN20: 0 | AO20: =ROUND(('Sch. B'!AO20+'Sch. C'!AO20+'Sch. D'!AO20+'Sch. E'!AO20)/4/12*6,2) -> 0 | AP20: 0 | AQ20: =ROUND(('Sch. B'!AQ20+'Sch. C'!AQ20+'Sch. D'!AQ20+'Sch. E'!AQ20)/4/12*6,2) -> 0 | AR20: 0 | AS20: =ROUND(('Sch. B'!AS20+'Sch. C'!AS20+'Sch. D'!AS20+'Sch. E'!AS20)/4/12*6,2) -> 0 | AT20: 0 | AU20: =ROUND(('Sch. B'!AU20+'Sch. C'!AU20+'Sch. D'!AU20+'Sch. E'!AU20)/4/12*6,2) -> 0 | AV20: 0 | AW20: =ROUND(('Sch. B'!AW20+'Sch. C'!AW20+'Sch. D'!AW20+'Sch. E'!AW20)/4/12*6,2) -> 0 | AX20: 0 | AY20: =ROUND(('Sch. B'!AY20+'Sch. C'!AY20+'Sch. D'!AY20+'Sch. E'!AY20)/4/12*6,2) -> 0 | AZ20: 0 | BA20: =ROUND(('Sch. B'!BA20+'Sch. C'!BA20+'Sch. D'!BA20+'Sch. E'!BA20)/4/12*6,2) -> 0 | BB20: 0 | BC20: =ROUND(('Sch. B'!BC20+'Sch. C'!BC20+'Sch. D'!BC20+'Sch. E'!BC20)/4/12*6,2) -> 0 | BD20: 0 | BE20: =ROUND(('Sch. B'!BE20+'Sch. C'!BE20+'Sch. D'!BE20+'Sch. E'!BE20)/4/12*6,2) -> 0 | BF20: 0 | BG20: =ROUND(('Sch. B'!BG20+'Sch. C'!BG20+'Sch. D'!BG20+'Sch. E'!BG20)/4/12*6,2) -> 0 | BH20: 0 | BI20: =ROUND(('Sch. B'!BI20+'Sch. C'!BI20+'Sch. D'!BI20+'Sch. E'!BI20)/4/12*6,2) -> 0 | BJ20: 0 | BK20: =ROUND(('Sch. B'!BK20+'Sch. C'!BK20+'Sch. D'!BK20+'Sch. E'!BK20)/4/12*6,2) -> 0 | BL20: 0 | BM20: =ROUND(('Sch. B'!BM20+'Sch. C'!BM20+'Sch. D'!BM20+'Sch. E'!BM20)/4/12*6,2) -> 0 | BN20: 0 | BO20: =ROUND(('Sch. B'!BO20+'Sch. C'!BO20+'Sch. D'!BO20+'Sch. E'!BO20)/4/12*6,2) -> 0 | BP20: 0 | BQ20: =ROUND(('Sch. B'!BQ20+'Sch. C'!BQ20+'Sch. D'!BQ20+'Sch. E'!BQ20)/4/12*6,2) -> 0 | BR20: 0 | BS20: =ROUND(('Sch. B'!BS20+'Sch. C'!BS20+'Sch. D'!BS20+'Sch. E'!BS20)/4/12*6,2) -> 0 | BT20: 0 | BU20: =ROUND(('Sch. B'!BU20+'Sch. C'!BU20+'Sch. D'!BU20+'Sch. E'!BU20)/4/12*6,2) -> 0 | BV20: 0 | BW20: =ROUND(('Sch. B'!BW20+'Sch. C'!BW20+'Sch. D'!BW20+'Sch. E'!BW20)/4/12*6,2) -> 0 | BX20: 0 | BY20: =ROUND(('Sch. B'!BY20+'Sch. C'!BY20+'Sch. D'!BY20+'Sch. E'!BY20)/4/12*6,2) -> 0 | BZ20: 0 | CA20: 1733.74 | CB20: 113559.97
A21: =+Index!$K$4+1+0.5-B21 -> 64.5 | B21: 1955 | C21: =ROUND(('Sch. B'!C21+'Sch. C'!C21+'Sch. D'!C21+'Sch. E'!C21)/4/12*6,2) -> 0 | D21: 0 | E21: =ROUND(('Sch. B'!E21+'Sch. C'!E21+'Sch. D'!E21+'Sch. E'!E21)/4/12*6,2) -> 0 | F21: 0 | G21: =ROUND(('Sch. B'!G21+'Sch. C'!G21+'Sch. D'!G21+'Sch. E'!G21)/4/12*6,2) -> 0 | H21: 0 | I21: =ROUND(('Sch. B'!I21+'Sch. C'!I21+'Sch. D'!I21+'Sch. E'!I21)/4/12*6,2) -> 0 | J21: 0 | K21: =ROUND(('Sch. B'!K21+'Sch. C'!K21+'Sch. D'!K21+'Sch. E'!K21)/4/12*6,2) -> 0 | L21: 0 | M21: =ROUND(('Sch. B'!M21+'Sch. C'!M21+'Sch. D'!M21+'Sch. E'!M21)/4/12*6,2) -> 0 | N21: 0 | O21: =ROUND(('Sch. B'!O21+'Sch. C'!O21+'Sch. D'!O21+'Sch. E'!O21)/4/12*6,2) -> 0 | P21: 0 | Q21: =ROUND(('Sch. B'!Q21+'Sch. C'!Q21+'Sch. D'!Q21+'Sch. E'!Q21)/4/12*6,2) -> 0 | R21: 0 | S21: =ROUND(('Sch. B'!S21+'Sch. C'!S21+'Sch. D'!S21+'Sch. E'!S21)/4/12*6,2) -> 0 | T21: 0 | U21: =ROUND(('Sch. B'!U21+'Sch. C'!U21+'Sch. D'!U21+'Sch. E'!U21)/4/12*6,2) -> 0 | V21: 0 | W21: =ROUND(('Sch. B'!W21+'Sch. C'!W21+'Sch. D'!W21+'Sch. E'!W21)/4/12*6,2)+36.66 -> 54.21 | X21: 3496.545 | Y21: =ROUND(('Sch. B'!Y21+'Sch. C'!Y21+'Sch. D'!Y21+'Sch. E'!Y21)/4/12*6,2) -> 0 | Z21: 0 | AA21: =ROUND(('Sch. B'!AA21+'Sch. C'!AA21+'Sch. D'!AA21+'Sch. E'!AA21)/4/12*6,2) -> 0 | AB21: 0 | AC21: =ROUND(('Sch. B'!AC21+'Sch. C'!AC21+'Sch. D'!AC21+'Sch. E'!AC21)/4/12*6,2) -> 0 | AD21: 0 | AE21: =ROUND(('Sch. B'!AE21+'Sch. C'!AE21+'Sch. D'!AE21+'Sch. E'!AE21)/4/12*6,2) -> 148.39 | AF21: 9571.155 | AG21: =ROUND(('Sch. B'!AG21+'Sch. C'!AG21+'Sch. D'!AG21+'Sch. E'!AG21)/4/12*6,2) -> 8.35 | AH21: 538.575 | AI21: =ROUND(('Sch. B'!AI21+'Sch. C'!AI21+'Sch. D'!AI21+'Sch. E'!AI21)/4/12*6,2) -> 0 | AJ21: 0 | AK21: =ROUND(('Sch. B'!AK21+'Sch. C'!AK21+'Sch. D'!AK21+'Sch. E'!AK21)/4/12*6,2) -> 0 | AL21: 0 | AM21: =ROUND(('Sch. B'!AM21+'Sch. C'!AM21+'Sch. D'!AM21+'Sch. E'!AM21)/4/12*6,2) -> 0 | AN21: 0 | AO21: =ROUND(('Sch. B'!AO21+'Sch. C'!AO21+'Sch. D'!AO21+'Sch. E'!AO21)/4/12*6,2) -> 0 | AP21: 0 | AQ21: =ROUND(('Sch. B'!AQ21+'Sch. C'!AQ21+'Sch. D'!AQ21+'Sch. E'!AQ21)/4/12*6,2) -> 0 | AR21: 0 | AS21: =ROUND(('Sch. B'!AS21+'Sch. C'!AS21+'Sch. D'!AS21+'Sch. E'!AS21)/4/12*6,2) -> 0 | AT21: 0 | AU21: =ROUND(('Sch. B'!AU21+'Sch. C'!AU21+'Sch. D'!AU21+'Sch. E'!AU21)/4/12*6,2) -> 0 | AV21: 0 | AW21: =ROUND(('Sch. B'!AW21+'Sch. C'!AW21+'Sch. D'!AW21+'Sch. E'!AW21)/4/12*6,2) -> 0 | AX21: 0 | AY21: =ROUND(('Sch. B'!AY21+'Sch. C'!AY21+'Sch. D'!AY21+'Sch. E'!AY21)/4/12*6,2) -> 0 | AZ21: 0 | BA21: =ROUND(('Sch. B'!BA21+'Sch. C'!BA21+'Sch. D'!BA21+'Sch. E'!BA21)/4/12*6,2) -> 0 | BB21: 0 | BC21: =ROUND(('Sch. B'!BC21+'Sch. C'!BC21+'Sch. D'!BC21+'Sch. E'!BC21)/4/12*6,2) -> 0 | BD21: 0 | BE21: =ROUND(('Sch. B'!BE21+'Sch. C'!BE21+'Sch. D'!BE21+'Sch. E'!BE21)/4/12*6,2) -> 0 | BF21: 0 | BG21: =ROUND(('Sch. B'!BG21+'Sch. C'!BG21+'Sch. D'!BG21+'Sch. E'!BG21)/4/12*6,2) -> 0 | BH21: 0 | BI21: =ROUND(('Sch. B'!BI21+'Sch. C'!BI21+'Sch. D'!BI21+'Sch. E'!BI21)/4/12*6,2) -> 0 | BJ21: 0 | BK21: =ROUND(('Sch. B'!BK21+'Sch. C'!BK21+'Sch. D'!BK21+'Sch. E'!BK21)/4/12*6,2) -> 0 | BL21: 0 | BM21: =ROUND(('Sch. B'!BM21+'Sch. C'!BM21+'Sch. D'!BM21+'Sch. E'!BM21)/4/12*6,2) -> 0 | BN21: 0 | BO21: =ROUND(('Sch. B'!BO21+'Sch. C'!BO21+'Sch. D'!BO21+'Sch. E'!BO21)/4/12*6,2) -> 0 | BP21: 0 | BQ21: =ROUND(('Sch. B'!BQ21+'Sch. C'!BQ21+'Sch. D'!BQ21+'Sch. E'!BQ21)/4/12*6,2) -> 0 | BR21: 0 | BS21: =ROUND(('Sch. B'!BS21+'Sch. C'!BS21+'Sch. D'!BS21+'Sch. E'!BS21)/4/12*6,2) -> 0 | BT21: 0 | BU21: =ROUND(('Sch. B'!BU21+'Sch. C'!BU21+'Sch. D'!BU21+'Sch. E'!BU21)/4/12*6,2) -> 0 | BV21: 0 | BW21: =ROUND(('Sch. B'!BW21+'Sch. C'!BW21+'Sch. D'!BW21+'Sch. E'!BW21)/4/12*6,2) -> 0 | BX21: 0 | BY21: =ROUND(('Sch. B'!BY21+'Sch. C'!BY21+'Sch. D'!BY21+'Sch. E'!BY21)/4/12*6,2) -> 0 | BZ21: 0 | CA21: 210.95 | CB21: 13606.275
A22: =+Index!$K$4+1+0.5-B22 -> 63.5 | B22: 1956 | C22: =ROUND(('Sch. B'!C22+'Sch. C'!C22+'Sch. D'!C22+'Sch. E'!C22)/4/12*6,2) -> 0 | D22: 0 | E22: =ROUND(('Sch. B'!E22+'Sch. C'!E22+'Sch. D'!E22+'Sch. E'!E22)/4/12*6,2) -> 0 | F22: 0 | G22: =ROUND(('Sch. B'!G22+'Sch. C'!G22+'Sch. D'!G22+'Sch. E'!G22)/4/12*6,2) -> 0 | H22: 0 | I22: =ROUND(('Sch. B'!I22+'Sch. C'!I22+'Sch. D'!I22+'Sch. E'!I22)/4/12*6,2) -> 0 | J22: 0 | K22: =ROUND(('Sch. B'!K22+'Sch. C'!K22+'Sch. D'!K22+'Sch. E'!K22)/4/12*6,2) -> 0 | L22: 0 | M22: =ROUND(('Sch. B'!M22+'Sch. C'!M22+'Sch. D'!M22+'Sch. E'!M22)/4/12*6,2) -> 0 | N22: 0 | O22: =ROUND(('Sch. B'!O22+'Sch. C'!O22+'Sch. D'!O22+'Sch. E'!O22)/4/12*6,2) -> 0 | P22: 0 | Q22: =ROUND(('Sch. B'!Q22+'Sch. C'!Q22+'Sch. D'!Q22+'Sch. E'!Q22)/4/12*6,2) -> 0 | R22: 0 | S22: =ROUND(('Sch. B'!S22+'Sch. C'!S22+'Sch. D'!S22+'Sch. E'!S22)/4/12*6,2) -> 0 | T22: 0 | U22: =ROUND(('Sch. B'!U22+'Sch. C'!U22+'Sch. D'!U22+'Sch. E'!U22)/4/12*6,2) -> 0 | V22: 0 | W22: =ROUND(('Sch. B'!W22+'Sch. C'!W22+'Sch. D'!W22+'Sch. E'!W22)/4/12*6,2) -> 0 | X22: 0 | Y22: =ROUND(('Sch. B'!Y22+'Sch. C'!Y22+'Sch. D'!Y22+'Sch. E'!Y22)/4/12*6,2) -> 0 | Z22: 0 | AA22: =ROUND(('Sch. B'!AA22+'Sch. C'!AA22+'Sch. D'!AA22+'Sch. E'!AA22)/4/12*6,2) -> 0 | AB22: 0 | AC22: =ROUND(('Sch. B'!AC22+'Sch. C'!AC22+'Sch. D'!AC22+'Sch. E'!AC22)/4/12*6,2) -> 0 | AD22: 0 | AE22: =ROUND(('Sch. B'!AE22+'Sch. C'!AE22+'Sch. D'!AE22+'Sch. E'!AE22)/4/12*6,2) -> 73.9 | AF22: 4692.65 | AG22: =ROUND(('Sch. B'!AG22+'Sch. C'!AG22+'Sch. D'!AG22+'Sch. E'!AG22)/4/12*6,2) -> 0 | AH22: 0 | AI22: =ROUND(('Sch. B'!AI22+'Sch. C'!AI22+'Sch. D'!AI22+'Sch. E'!AI22)/4/12*6,2) -> 12.82 | AJ22: 814.07 | AK22: =ROUND(('Sch. B'!AK22+'Sch. C'!AK22+'Sch. D'!AK22+'Sch. E'!AK22)/4/12*6,2) -> 0 | AL22: 0 | AM22: =ROUND(('Sch. B'!AM22+'Sch. C'!AM22+'Sch. D'!AM22+'Sch. E'!AM22)/4/12*6,2) -> 0 | AN22: 0 | AO22: =ROUND(('Sch. B'!AO22+'Sch. C'!AO22+'Sch. D'!AO22+'Sch. E'!AO22)/4/12*6,2) -> 0 | AP22: 0 | AQ22: =ROUND(('Sch. B'!AQ22+'Sch. C'!AQ22+'Sch. D'!AQ22+'Sch. E'!AQ22)/4/12*6,2) -> 0 | AR22: 0 | AS22: =ROUND(('Sch. B'!AS22+'Sch. C'!AS22+'Sch. D'!AS22+'Sch. E'!AS22)/4/12*6,2) -> 0 | AT22: 0 | AU22: =ROUND(('Sch. B'!AU22+'Sch. C'!AU22+'Sch. D'!AU22+'Sch. E'!AU22)/4/12*6,2) -> 0 | AV22: 0 | AW22: =ROUND(('Sch. B'!AW22+'Sch. C'!AW22+'Sch. D'!AW22+'Sch. E'!AW22)/4/12*6,2) -> 0 | AX22: 0 | AY22: =ROUND(('Sch. B'!AY22+'Sch. C'!AY22+'Sch. D'!AY22+'Sch. E'!AY22)/4/12*6,2) -> 0 | AZ22: 0 | BA22: =ROUND(('Sch. B'!BA22+'Sch. C'!BA22+'Sch. D'!BA22+'Sch. E'!BA22)/4/12*6,2) -> 0 | BB22: 0 | BC22: =ROUND(('Sch. B'!BC22+'Sch. C'!BC22+'Sch. D'!BC22+'Sch. E'!BC22)/4/12*6,2) -> 0 | BD22: 0 | BE22: =ROUND(('Sch. B'!BE22+'Sch. C'!BE22+'Sch. D'!BE22+'Sch. E'!BE22)/4/12*6,2) -> 0 | BF22: 0 | BG22: =ROUND(('Sch. B'!BG22+'Sch. C'!BG22+'Sch. D'!BG22+'Sch. E'!BG22)/4/12*6,2) -> 0 | BH22: 0 | BI22: =ROUND(('Sch. B'!BI22+'Sch. C'!BI22+'Sch. D'!BI22+'Sch. E'!BI22)/4/12*6,2) -> 0 | BJ22: 0 | BK22: =ROUND(('Sch. B'!BK22+'Sch. C'!BK22+'Sch. D'!BK22+'Sch. E'!BK22)/4/12*6,2) -> 0 | BL22: 0 | BM22: =ROUND(('Sch. B'!BM22+'Sch. C'!BM22+'Sch. D'!BM22+'Sch. E'!BM22)/4/12*6,2) -> 0 | BN22: 0 | BO22: =ROUND(('Sch. B'!BO22+'Sch. C'!BO22+'Sch. D'!BO22+'Sch. E'!BO22)/4/12*6,2) -> 0 | BP22: 0 | BQ22: =ROUND(('Sch. B'!BQ22+'Sch. C'!BQ22+'Sch. D'!BQ22+'Sch. E'!BQ22)/4/12*6,2) -> 0 | BR22: 0 | BS22: =ROUND(('Sch. B'!BS22+'Sch. C'!BS22+'Sch. D'!BS22+'Sch. E'!BS22)/4/12*6,2) -> 0 | BT22: 0 | BU22: =ROUND(('Sch. B'!BU22+'Sch. C'!BU22+'Sch. D'!BU22+'Sch. E'!BU22)/4/12*6,2) -> 0 | BV22: 0 | BW22: =ROUND(('Sch. B'!BW22+'Sch. C'!BW22+'Sch. D'!BW22+'Sch. E'!BW22)/4/12*6,2) -> 0 | BX22: 0 | BY22: =ROUND(('Sch. B'!BY22+'Sch. C'!BY22+'Sch. D'!BY22+'Sch. E'!BY22)/4/12*6,2) -> 0 | BZ22: 0 | CA22: 86.72 | CB22: 5506.72
A23: =+Index!$K$4+1+0.5-B23 -> 62.5 | B23: 1957 | C23: =ROUND(('Sch. B'!C23+'Sch. C'!C23+'Sch. D'!C23+'Sch. E'!C23)/4/12*6,2) -> 0 | D23: 0 | E23: =ROUND(('Sch. B'!E23+'Sch. C'!E23+'Sch. D'!E23+'Sch. E'!E23)/4/12*6,2) -> 0 | F23: 0 | G23: =ROUND(('Sch. B'!G23+'Sch. C'!G23+'Sch. D'!G23+'Sch. E'!G23)/4/12*6,2) -> 0 | H23: 0 | I23: =ROUND(('Sch. B'!I23+'Sch. C'!I23+'Sch. D'!I23+'Sch. E'!I23)/4/12*6,2) -> 0 | J23: 0 | K23: =ROUND(('Sch. B'!K23+'Sch. C'!K23+'Sch. D'!K23+'Sch. E'!K23)/4/12*6,2) -> 0 | L23: 0 | M23: =ROUND(('Sch. B'!M23+'Sch. C'!M23+'Sch. D'!M23+'Sch. E'!M23)/4/12*6,2) -> 0 | N23: 0 | O23: =ROUND(('Sch. B'!O23+'Sch. C'!O23+'Sch. D'!O23+'Sch. E'!O23)/4/12*6,2) -> 0 | P23: 0 | Q23: =ROUND(('Sch. B'!Q23+'Sch. C'!Q23+'Sch. D'!Q23+'Sch. E'!Q23)/4/12*6,2) -> 0 | R23: 0 | S23: =ROUND(('Sch. B'!S23+'Sch. C'!S23+'Sch. D'!S23+'Sch. E'!S23)/4/12*6,2) -> 0 | T23: 0 | U23: =ROUND(('Sch. B'!U23+'Sch. C'!U23+'Sch. D'!U23+'Sch. E'!U23)/4/12*6,2) -> 0 | V23: 0 | W23: =ROUND(('Sch. B'!W23+'Sch. C'!W23+'Sch. D'!W23+'Sch. E'!W23)/4/12*6,2) -> 16.86 | X23: 1053.75 | Y23: =ROUND(('Sch. B'!Y23+'Sch. C'!Y23+'Sch. D'!Y23+'Sch. E'!Y23)/4/12*6,2) -> 0 | Z23: 0 | AA23: =ROUND(('Sch. B'!AA23+'Sch. C'!AA23+'Sch. D'!AA23+'Sch. E'!AA23)/4/12*6,2) -> 0 | AB23: 0 | AC23: =ROUND(('Sch. B'!AC23+'Sch. C'!AC23+'Sch. D'!AC23+'Sch. E'!AC23)/4/12*6,2) -> 0 | AD23: 0 | AE23: =ROUND(('Sch. B'!AE23+'Sch. C'!AE23+'Sch. D'!AE23+'Sch. E'!AE23)/4/12*6,2) -> 40.01 | AF23: 2500.625 | AG23: =ROUND(('Sch. B'!AG23+'Sch. C'!AG23+'Sch. D'!AG23+'Sch. E'!AG23)/4/12*6,2) -> 0 | AH23: 0 | AI23: =ROUND(('Sch. B'!AI23+'Sch. C'!AI23+'Sch. D'!AI23+'Sch. E'!AI23)/4/12*6,2) -> 28.31 | AJ23: 1769.375 | AK23: =ROUND(('Sch. B'!AK23+'Sch. C'!AK23+'Sch. D'!AK23+'Sch. E'!AK23)/4/12*6,2) -> 0 | AL23: 0 | AM23: =ROUND(('Sch. B'!AM23+'Sch. C'!AM23+'Sch. D'!AM23+'Sch. E'!AM23)/4/12*6,2) -> 0 | AN23: 0 | AO23: =ROUND(('Sch. B'!AO23+'Sch. C'!AO23+'Sch. D'!AO23+'Sch. E'!AO23)/4/12*6,2) -> 0 | AP23: 0 | AQ23: =ROUND(('Sch. B'!AQ23+'Sch. C'!AQ23+'Sch. D'!AQ23+'Sch. E'!AQ23)/4/12*6,2) -> 0 | AR23: 0 | AS23: =ROUND(('Sch. B'!AS23+'Sch. C'!AS23+'Sch. D'!AS23+'Sch. E'!AS23)/4/12*6,2) -> 0 | AT23: 0 | AU23: =ROUND(('Sch. B'!AU23+'Sch. C'!AU23+'Sch. D'!AU23+'Sch. E'!AU23)/4/12*6,2) -> 0 | AV23: 0 | AW23: =ROUND(('Sch. B'!AW23+'Sch. C'!AW23+'Sch. D'!AW23+'Sch. E'!AW23)/4/12*6,2) -> 0 | AX23: 0 | AY23: =ROUND(('Sch. B'!AY23+'Sch. C'!AY23+'Sch. D'!AY23+'Sch. E'!AY23)/4/12*6,2) -> 0 | AZ23: 0 | BA23: =ROUND(('Sch. B'!BA23+'Sch. C'!BA23+'Sch. D'!BA23+'Sch. E'!BA23)/4/12*6,2) -> 0 | BB23: 0 | BC23: =ROUND(('Sch. B'!BC23+'Sch. C'!BC23+'Sch. D'!BC23+'Sch. E'!BC23)/4/12*6,2) -> 0 | BD23: 0 | BE23: =ROUND(('Sch. B'!BE23+'Sch. C'!BE23+'Sch. D'!BE23+'Sch. E'!BE23)/4/12*6,2) -> 0 | BF23: 0 | BG23: =ROUND(('Sch. B'!BG23+'Sch. C'!BG23+'Sch. D'!BG23+'Sch. E'!BG23)/4/12*6,2) -> 0 | BH23: 0 | BI23: =ROUND(('Sch. B'!BI23+'Sch. C'!BI23+'Sch. D'!BI23+'Sch. E'!BI23)/4/12*6,2) -> 0 | BJ23: 0 | BK23: =ROUND(('Sch. B'!BK23+'Sch. C'!BK23+'Sch. D'!BK23+'Sch. E'!BK23)/4/12*6,2) -> 0 | BL23: 0 | BM23: =ROUND(('Sch. B'!BM23+'Sch. C'!BM23+'Sch. D'!BM23+'Sch. E'!BM23)/4/12*6,2) -> 0 | BN23: 0 | BO23: =ROUND(('Sch. B'!BO23+'Sch. C'!BO23+'Sch. D'!BO23+'Sch. E'!BO23)/4/12*6,2) -> 0 | BP23: 0 | BQ23: =ROUND(('Sch. B'!BQ23+'Sch. C'!BQ23+'Sch. D'!BQ23+'Sch. E'!BQ23)/4/12*6,2) -> 0 | BR23: 0 | BS23: =ROUND(('Sch. B'!BS23+'Sch. C'!BS23+'Sch. D'!BS23+'Sch. E'!BS23)/4/12*6,2) -> 0 | BT23: 0 | BU23: =ROUND(('Sch. B'!BU23+'Sch. C'!BU23+'Sch. D'!BU23+'Sch. E'!BU23)/4/12*6,2) -> 0 | BV23: 0 | BW23: =ROUND(('Sch. B'!BW23+'Sch. C'!BW23+'Sch. D'!BW23+'Sch. E'!BW23)/4/12*6,2) -> 0 | BX23: 0 | BY23: =ROUND(('Sch. B'!BY23+'Sch. C'!BY23+'Sch. D'!BY23+'Sch. E'!BY23)/4/12*6,2) -> 0 | BZ23: 0 | CA23: 85.18 | CB23: 5323.75
A24: =+Index!$K$4+1+0.5-B24 -> 61.5 | B24: 1958 | C24: =ROUND(('Sch. B'!C24+'Sch. C'!C24+'Sch. D'!C24+'Sch. E'!C24)/4/12*6,2) -> 0 | D24: 0 | E24: =ROUND(('Sch. B'!E24+'Sch. C'!E24+'Sch. D'!E24+'Sch. E'!E24)/4/12*6,2) -> 0 | F24: 0 | G24: =ROUND(('Sch. B'!G24+'Sch. C'!G24+'Sch. D'!G24+'Sch. E'!G24)/4/12*6,2) -> 0 | H24: 0 | I24: =ROUND(('Sch. B'!I24+'Sch. C'!I24+'Sch. D'!I24+'Sch. E'!I24)/4/12*6,2) -> 0 | J24: 0 | K24: =ROUND(('Sch. B'!K24+'Sch. C'!K24+'Sch. D'!K24+'Sch. E'!K24)/4/12*6,2) -> 0 | L24: 0 | M24: =ROUND(('Sch. B'!M24+'Sch. C'!M24+'Sch. D'!M24+'Sch. E'!M24)/4/12*6,2) -> 0 | N24: 0 | O24: =ROUND(('Sch. B'!O24+'Sch. C'!O24+'Sch. D'!O24+'Sch. E'!O24)/4/12*6,2) -> 0 | P24: 0 | Q24: =ROUND(('Sch. B'!Q24+'Sch. C'!Q24+'Sch. D'!Q24+'Sch. E'!Q24)/4/12*6,2) -> 0 | R24: 0 | S24: =ROUND(('Sch. B'!S24+'Sch. C'!S24+'Sch. D'!S24+'Sch. E'!S24)/4/12*6,2) -> 0 | T24: 0 | U24: =ROUND(('Sch. B'!U24+'Sch. C'!U24+'Sch. D'!U24+'Sch. E'!U24)/4/12*6,2) -> 0 | V24: 0 | W24: =ROUND(('Sch. B'!W24+'Sch. C'!W24+'Sch. D'!W24+'Sch. E'!W24)/4/12*6,2)+243.43 -> 243.43 | X24: 14970.945 | Y24: =ROUND(('Sch. B'!Y24+'Sch. C'!Y24+'Sch. D'!Y24+'Sch. E'!Y24)/4/12*6,2) -> 0 | Z24: 0 | AA24: =ROUND(('Sch. B'!AA24+'Sch. C'!AA24+'Sch. D'!AA24+'Sch. E'!AA24)/4/12*6,2) -> 0 | AB24: 0 | AC24: =ROUND(('Sch. B'!AC24+'Sch. C'!AC24+'Sch. D'!AC24+'Sch. E'!AC24)/4/12*6,2) -> 0 | AD24: 0 | AE24: =ROUND(('Sch. B'!AE24+'Sch. C'!AE24+'Sch. D'!AE24+'Sch. E'!AE24)/4/12*6,2) -> 22.6 | AF24: 1389.9 | AG24: =ROUND(('Sch. B'!AG24+'Sch. C'!AG24+'Sch. D'!AG24+'Sch. E'!AG24)/4/12*6,2) -> 0 | AH24: 0 | AI24: =ROUND(('Sch. B'!AI24+'Sch. C'!AI24+'Sch. D'!AI24+'Sch. E'!AI24)/4/12*6,2) -> 23.26 | AJ24: 1430.49 | AK24: =ROUND(('Sch. B'!AK24+'Sch. C'!AK24+'Sch. D'!AK24+'Sch. E'!AK24)/4/12*6,2) -> 0 | AL24: 0 | AM24: =ROUND(('Sch. B'!AM24+'Sch. C'!AM24+'Sch. D'!AM24+'Sch. E'!AM24)/4/12*6,2) -> 0 | AN24: 0 | AO24: =ROUND(('Sch. B'!AO24+'Sch. C'!AO24+'Sch. D'!AO24+'Sch. E'!AO24)/4/12*6,2) -> 0 | AP24: 0 | AQ24: =ROUND(('Sch. B'!AQ24+'Sch. C'!AQ24+'Sch. D'!AQ24+'Sch. E'!AQ24)/4/12*6,2) -> 0 | AR24: 0 | AS24: =ROUND(('Sch. B'!AS24+'Sch. C'!AS24+'Sch. D'!AS24+'Sch. E'!AS24)/4/12*6,2) -> 0 | AT24: 0 | AU24: =ROUND(('Sch. B'!AU24+'Sch. C'!AU24+'Sch. D'!AU24+'Sch. E'!AU24)/4/12*6,2) -> 0 | AV24: 0 | AW24: =ROUND(('Sch. B'!AW24+'Sch. C'!AW24+'Sch. D'!AW24+'Sch. E'!AW24)/4/12*6,2) -> 0 | AX24: 0 | AY24: =ROUND(('Sch. B'!AY24+'Sch. C'!AY24+'Sch. D'!AY24+'Sch. E'!AY24)/4/12*6,2) -> 0 | AZ24: 0 | BA24: =ROUND(('Sch. B'!BA24+'Sch. C'!BA24+'Sch. D'!BA24+'Sch. E'!BA24)/4/12*6,2) -> 0 | BB24: 0 | BC24: =ROUND(('Sch. B'!BC24+'Sch. C'!BC24+'Sch. D'!BC24+'Sch. E'!BC24)/4/12*6,2) -> 0 | BD24: 0 | BE24: =ROUND(('Sch. B'!BE24+'Sch. C'!BE24+'Sch. D'!BE24+'Sch. E'!BE24)/4/12*6,2) -> 0 | BF24: 0 | BG24: =ROUND(('Sch. B'!BG24+'Sch. C'!BG24+'Sch. D'!BG24+'Sch. E'!BG24)/4/12*6,2) -> 0 | BH24: 0 | BI24: =ROUND(('Sch. B'!BI24+'Sch. C'!BI24+'Sch. D'!BI24+'Sch. E'!BI24)/4/12*6,2) -> 0 | BJ24: 0 | BK24: =ROUND(('Sch. B'!BK24+'Sch. C'!BK24+'Sch. D'!BK24+'Sch. E'!BK24)/4/12*6,2) -> 0 | BL24: 0 | BM24: =ROUND(('Sch. B'!BM24+'Sch. C'!BM24+'Sch. D'!BM24+'Sch. E'!BM24)/4/12*6,2) -> 0 | BN24: 0 | BO24: =ROUND(('Sch. B'!BO24+'Sch. C'!BO24+'Sch. D'!BO24+'Sch. E'!BO24)/4/12*6,2) -> 0 | BP24: 0 | BQ24: =ROUND(('Sch. B'!BQ24+'Sch. C'!BQ24+'Sch. D'!BQ24+'Sch. E'!BQ24)/4/12*6,2) -> 0 | BR24: 0 | BS24: =ROUND(('Sch. B'!BS24+'Sch. C'!BS24+'Sch. D'!BS24+'Sch. E'!BS24)/4/12*6,2) -> 0 | BT24: 0 | BU24: =ROUND(('Sch. B'!BU24+'Sch. C'!BU24+'Sch. D'!BU24+'Sch. E'!BU24)/4/12*6,2) -> 0 | BV24: 0 | BW24: =ROUND(('Sch. B'!BW24+'Sch. C'!BW24+'Sch. D'!BW24+'Sch. E'!BW24)/4/12*6,2) -> 0 | BX24: 0 | BY24: =ROUND(('Sch. B'!BY24+'Sch. C'!BY24+'Sch. D'!BY24+'Sch. E'!BY24)/4/12*6,2) -> 0 | BZ24: 0 | CA24: 289.29 | CB24: 17791.335
A25: =+Index!$K$4+1+0.5-B25 -> 60.5 | B25: 1959 | C25: =ROUND(('Sch. B'!C25+'Sch. C'!C25+'Sch. D'!C25+'Sch. E'!C25)/4/12*6,2) -> 0 | D25: 0 | E25: =ROUND(('Sch. B'!E25+'Sch. C'!E25+'Sch. D'!E25+'Sch. E'!E25)/4/12*6,2) -> 0 | F25: 0 | G25: =ROUND(('Sch. B'!G25+'Sch. C'!G25+'Sch. D'!G25+'Sch. E'!G25)/4/12*6,2) -> 0 | H25: 0 | I25: =ROUND(('Sch. B'!I25+'Sch. C'!I25+'Sch. D'!I25+'Sch. E'!I25)/4/12*6,2) -> 0 | J25: 0 | K25: =ROUND(('Sch. B'!K25+'Sch. C'!K25+'Sch. D'!K25+'Sch. E'!K25)/4/12*6,2) -> 0 | L25: 0 | M25: =ROUND(('Sch. B'!M25+'Sch. C'!M25+'Sch. D'!M25+'Sch. E'!M25)/4/12*6,2) -> 0 | N25: 0 | O25: =ROUND(('Sch. B'!O25+'Sch. C'!O25+'Sch. D'!O25+'Sch. E'!O25)/4/12*6,2) -> 0 | P25: 0 | Q25: =ROUND(('Sch. B'!Q25+'Sch. C'!Q25+'Sch. D'!Q25+'Sch. E'!Q25)/4/12*6,2) -> 0 | R25: 0 | S25: =ROUND(('Sch. B'!S25+'Sch. C'!S25+'Sch. D'!S25+'Sch. E'!S25)/4/12*6,2) -> 0 | T25: 0 | U25: =ROUND(('Sch. B'!U25+'Sch. C'!U25+'Sch. D'!U25+'Sch. E'!U25)/4/12*6,2) -> 0 | V25: 0 | W25: =ROUND(('Sch. B'!W25+'Sch. C'!W25+'Sch. D'!W25+'Sch. E'!W25)/4/12*6,2) -> 0 | X25: 0 | Y25: =ROUND(('Sch. B'!Y25+'Sch. C'!Y25+'Sch. D'!Y25+'Sch. E'!Y25)/4/12*6,2) -> 0 | Z25: 0 | AA25: =ROUND(('Sch. B'!AA25+'Sch. C'!AA25+'Sch. D'!AA25+'Sch. E'!AA25)/4/12*6,2) -> 0 | AB25: 0 | AC25: =ROUND(('Sch. B'!AC25+'Sch. C'!AC25+'Sch. D'!AC25+'Sch. E'!AC25)/4/12*6,2) -> 0 | AD25: 0 | AE25: =ROUND(('Sch. B'!AE25+'Sch. C'!AE25+'Sch. D'!AE25+'Sch. E'!AE25)/4/12*6,2) -> 398 | AF25: 24079 | AG25: =ROUND(('Sch. B'!AG25+'Sch. C'!AG25+'Sch. D'!AG25+'Sch. E'!AG25)/4/12*6,2) -> 0 | AH25: 0 | AI25: =ROUND(('Sch. B'!AI25+'Sch. C'!AI25+'Sch. D'!AI25+'Sch. E'!AI25)/4/12*6,2) -> 40.99 | AJ25: 2479.895 | AK25: =ROUND(('Sch. B'!AK25+'Sch. C'!AK25+'Sch. D'!AK25+'Sch. E'!AK25)/4/12*6,2) -> 0 | AL25: 0 | AM25: =ROUND(('Sch. B'!AM25+'Sch. C'!AM25+'Sch. D'!AM25+'Sch. E'!AM25)/4/12*6,2) -> 0 | AN25: 0 | AO25: =ROUND(('Sch. B'!AO25+'Sch. C'!AO25+'Sch. D'!AO25+'Sch. E'!AO25)/4/12*6,2) -> 0 | AP25: 0 | AQ25: =ROUND(('Sch. B'!AQ25+'Sch. C'!AQ25+'Sch. D'!AQ25+'Sch. E'!AQ25)/4/12*6,2) -> 0 | AR25: 0 | AS25: =ROUND(('Sch. B'!AS25+'Sch. C'!AS25+'Sch. D'!AS25+'Sch. E'!AS25)/4/12*6,2) -> 0 | AT25: 0 | AU25: =ROUND(('Sch. B'!AU25+'Sch. C'!AU25+'Sch. D'!AU25+'Sch. E'!AU25)/4/12*6,2) -> 0 | AV25: 0 | AW25: =ROUND(('Sch. B'!AW25+'Sch. C'!AW25+'Sch. D'!AW25+'Sch. E'!AW25)/4/12*6,2) -> 0 | AX25: 0 | AY25: =ROUND(('Sch. B'!AY25+'Sch. C'!AY25+'Sch. D'!AY25+'Sch. E'!AY25)/4/12*6,2) -> 0 | AZ25: 0 | BA25: =ROUND(('Sch. B'!BA25+'Sch. C'!BA25+'Sch. D'!BA25+'Sch. E'!BA25)/4/12*6,2) -> 0 | BB25: 0 | BC25: =ROUND(('Sch. B'!BC25+'Sch. C'!BC25+'Sch. D'!BC25+'Sch. E'!BC25)/4/12*6,2) -> 0 | BD25: 0 | BE25: =ROUND(('Sch. B'!BE25+'Sch. C'!BE25+'Sch. D'!BE25+'Sch. E'!BE25)/4/12*6,2) -> 0 | BF25: 0 | BG25: =ROUND(('Sch. B'!BG25+'Sch. C'!BG25+'Sch. D'!BG25+'Sch. E'!BG25)/4/12*6,2) -> 0 | BH25: 0 | BI25: =ROUND(('Sch. B'!BI25+'Sch. C'!BI25+'Sch. D'!BI25+'Sch. E'!BI25)/4/12*6,2) -> 0 | BJ25: 0 | BK25: =ROUND(('Sch. B'!BK25+'Sch. C'!BK25+'Sch. D'!BK25+'Sch. E'!BK25)/4/12*6,2) -> 0 | BL25: 0 | BM25: =ROUND(('Sch. B'!BM25+'Sch. C'!BM25+'Sch. D'!BM25+'Sch. E'!BM25)/4/12*6,2) -> 0 | BN25: 0 | BO25: =ROUND(('Sch. B'!BO25+'Sch. C'!BO25+'Sch. D'!BO25+'Sch. E'!BO25)/4/12*6,2) -> 0 | BP25: 0 | BQ25: =ROUND(('Sch. B'!BQ25+'Sch. C'!BQ25+'Sch. D'!BQ25+'Sch. E'!BQ25)/4/12*6,2) -> 0 | BR25: 0 | BS25: =ROUND(('Sch. B'!BS25+'Sch. C'!BS25+'Sch. D'!BS25+'Sch. E'!BS25)/4/12*6,2) -> 0 | BT25: 0 | BU25: =ROUND(('Sch. B'!BU25+'Sch. C'!BU25+'Sch. D'!BU25+'Sch. E'!BU25)/4/12*6,2) -> 0 | BV25: 0 | BW25: =ROUND(('Sch. B'!BW25+'Sch. C'!BW25+'Sch. D'!BW25+'Sch. E'!BW25)/4/12*6,2) -> 0 | BX25: 0 | BY25: =ROUND(('Sch. B'!BY25+'Sch. C'!BY25+'Sch. D'!BY25+'Sch. E'!BY25)/4/12*6,2) -> 0 | BZ25: 0 | CA25: 438.99 | CB25: 26558.895
A26: =+Index!$K$4+1+0.5-B26 -> 59.5 | B26: 1960 | C26: =ROUND(('Sch. B'!C26+'Sch. C'!C26+'Sch. D'!C26+'Sch. E'!C26)/4/12*6,2) -> 0 | D26: 0 | E26: =ROUND(('Sch. B'!E26+'Sch. C'!E26+'Sch. D'!E26+'Sch. E'!E26)/4/12*6,2) -> 0 | F26: 0 | G26: =ROUND(('Sch. B'!G26+'Sch. C'!G26+'Sch. D'!G26+'Sch. E'!G26)/4/12*6,2) -> 0 | H26: 0 | I26: =ROUND(('Sch. B'!I26+'Sch. C'!I26+'Sch. D'!I26+'Sch. E'!I26)/4/12*6,2) -> 0 | J26: 0 | K26: =ROUND(('Sch. B'!K26+'Sch. C'!K26+'Sch. D'!K26+'Sch. E'!K26)/4/12*6,2) -> 0 | L26: 0 | M26: =ROUND(('Sch. B'!M26+'Sch. C'!M26+'Sch. D'!M26+'Sch. E'!M26)/4/12*6,2) -> 0 | N26: 0 | O26: =ROUND(('Sch. B'!O26+'Sch. C'!O26+'Sch. D'!O26+'Sch. E'!O26)/4/12*6,2) -> 0 | P26: 0 | Q26: =ROUND(('Sch. B'!Q26+'Sch. C'!Q26+'Sch. D'!Q26+'Sch. E'!Q26)/4/12*6,2) -> 0 | R26: 0 | S26: =ROUND(('Sch. B'!S26+'Sch. C'!S26+'Sch. D'!S26+'Sch. E'!S26)/4/12*6,2) -> 0 | T26: 0 | U26: =ROUND(('Sch. B'!U26+'Sch. C'!U26+'Sch. D'!U26+'Sch. E'!U26)/4/12*6,2) -> 0 | V26: 0 | W26: =ROUND(('Sch. B'!W26+'Sch. C'!W26+'Sch. D'!W26+'Sch. E'!W26)/4/12*6,2) -> 0 | X26: 0 | Y26: =ROUND(('Sch. B'!Y26+'Sch. C'!Y26+'Sch. D'!Y26+'Sch. E'!Y26)/4/12*6,2) -> 0 | Z26: 0 | AA26: =ROUND(('Sch. B'!AA26+'Sch. C'!AA26+'Sch. D'!AA26+'Sch. E'!AA26)/4/12*6,2) -> 0 | AB26: 0 | AC26: =ROUND(('Sch. B'!AC26+'Sch. C'!AC26+'Sch. D'!AC26+'Sch. E'!AC26)/4/12*6,2) -> 0 | AD26: 0 | AE26: =ROUND(('Sch. B'!AE26+'Sch. C'!AE26+'Sch. D'!AE26+'Sch. E'!AE26)/4/12*6,2) -> 265.67 | AF26: 15807.365 | AG26: =ROUND(('Sch. B'!AG26+'Sch. C'!AG26+'Sch. D'!AG26+'Sch. E'!AG26)/4/12*6,2) -> 0 | AH26: 0 | AI26: =ROUND(('Sch. B'!AI26+'Sch. C'!AI26+'Sch. D'!AI26+'Sch. E'!AI26)/4/12*6,2) -> 26.52 | AJ26: 1577.94 | AK26: =ROUND(('Sch. B'!AK26+'Sch. C'!AK26+'Sch. D'!AK26+'Sch. E'!AK26)/4/12*6,2) -> 0 | AL26: 0 | AM26: =ROUND(('Sch. B'!AM26+'Sch. C'!AM26+'Sch. D'!AM26+'Sch. E'!AM26)/4/12*6,2) -> 0 | AN26: 0 | AO26: =ROUND(('Sch. B'!AO26+'Sch. C'!AO26+'Sch. D'!AO26+'Sch. E'!AO26)/4/12*6,2) -> 0 | AP26: 0 | AQ26: =ROUND(('Sch. B'!AQ26+'Sch. C'!AQ26+'Sch. D'!AQ26+'Sch. E'!AQ26)/4/12*6,2) -> 0 | AR26: 0 | AS26: =ROUND(('Sch. B'!AS26+'Sch. C'!AS26+'Sch. D'!AS26+'Sch. E'!AS26)/4/12*6,2) -> 0 | AT26: 0 | AU26: =ROUND(('Sch. B'!AU26+'Sch. C'!AU26+'Sch. D'!AU26+'Sch. E'!AU26)/4/12*6,2) -> 0 | AV26: 0 | AW26: =ROUND(('Sch. B'!AW26+'Sch. C'!AW26+'Sch. D'!AW26+'Sch. E'!AW26)/4/12*6,2) -> 0 | AX26: 0 | AY26: =ROUND(('Sch. B'!AY26+'Sch. C'!AY26+'Sch. D'!AY26+'Sch. E'!AY26)/4/12*6,2) -> 0 | AZ26: 0 | BA26: =ROUND(('Sch. B'!BA26+'Sch. C'!BA26+'Sch. D'!BA26+'Sch. E'!BA26)/4/12*6,2) -> 0 | BB26: 0 | BC26: =ROUND(('Sch. B'!BC26+'Sch. C'!BC26+'Sch. D'!BC26+'Sch. E'!BC26)/4/12*6,2) -> 0 | BD26: 0 | BE26: =ROUND(('Sch. B'!BE26+'Sch. C'!BE26+'Sch. D'!BE26+'Sch. E'!BE26)/4/12*6,2) -> 0 | BF26: 0 | BG26: =ROUND(('Sch. B'!BG26+'Sch. C'!BG26+'Sch. D'!BG26+'Sch. E'!BG26)/4/12*6,2) -> 0 | BH26: 0 | BI26: =ROUND(('Sch. B'!BI26+'Sch. C'!BI26+'Sch. D'!BI26+'Sch. E'!BI26)/4/12*6,2) -> 0 | BJ26: 0 | BK26: =ROUND(('Sch. B'!BK26+'Sch. C'!BK26+'Sch. D'!BK26+'Sch. E'!BK26)/4/12*6,2) -> 0 | BL26: 0 | BM26: =ROUND(('Sch. B'!BM26+'Sch. C'!BM26+'Sch. D'!BM26+'Sch. E'!BM26)/4/12*6,2) -> 0 | BN26: 0 | BO26: =ROUND(('Sch. B'!BO26+'Sch. C'!BO26+'Sch. D'!BO26+'Sch. E'!BO26)/4/12*6,2) -> 0 | BP26: 0 | BQ26: =ROUND(('Sch. B'!BQ26+'Sch. C'!BQ26+'Sch. D'!BQ26+'Sch. E'!BQ26)/4/12*6,2) -> 0 | BR26: 0 | BS26: =ROUND(('Sch. B'!BS26+'Sch. C'!BS26+'Sch. D'!BS26+'Sch. E'!BS26)/4/12*6,2) -> 0 | BT26: 0 | BU26: =ROUND(('Sch. B'!BU26+'Sch. C'!BU26+'Sch. D'!BU26+'Sch. E'!BU26)/4/12*6,2) -> 0 | BV26: 0 | BW26: =ROUND(('Sch. B'!BW26+'Sch. C'!BW26+'Sch. D'!BW26+'Sch. E'!BW26)/4/12*6,2) -> 0 | BX26: 0 | BY26: =ROUND(('Sch. B'!BY26+'Sch. C'!BY26+'Sch. D'!BY26+'Sch. E'!BY26)/4/12*6,2) -> 0 | BZ26: 0 | CA26: 292.19 | CB26: 17385.305
A27: =+Index!$K$4+1+0.5-B27 -> 58.5 | B27: 1961 | C27: =ROUND(('Sch. B'!C27+'Sch. C'!C27+'Sch. D'!C27+'Sch. E'!C27)/4/12*6,2) -> 0 | D27: 0 | E27: =ROUND(('Sch. B'!E27+'Sch. C'!E27+'Sch. D'!E27+'Sch. E'!E27)/4/12*6,2) -> 0 | F27: 0 | G27: =ROUND(('Sch. B'!G27+'Sch. C'!G27+'Sch. D'!G27+'Sch. E'!G27)/4/12*6,2) -> 0 | H27: 0 | I27: =ROUND(('Sch. B'!I27+'Sch. C'!I27+'Sch. D'!I27+'Sch. E'!I27)/4/12*6,2) -> 0 | J27: 0 | K27: =ROUND(('Sch. B'!K27+'Sch. C'!K27+'Sch. D'!K27+'Sch. E'!K27)/4/12*6,2) -> 0 | L27: 0 | M27: =ROUND(('Sch. B'!M27+'Sch. C'!M27+'Sch. D'!M27+'Sch. E'!M27)/4/12*6,2) -> 0 | N27: 0 | O27: =ROUND(('Sch. B'!O27+'Sch. C'!O27+'Sch. D'!O27+'Sch. E'!O27)/4/12*6,2) -> 0 | P27: 0 | Q27: =ROUND(('Sch. B'!Q27+'Sch. C'!Q27+'Sch. D'!Q27+'Sch. E'!Q27)/4/12*6,2) -> 0 | R27: 0 | S27: =ROUND(('Sch. B'!S27+'Sch. C'!S27+'Sch. D'!S27+'Sch. E'!S27)/4/12*6,2) -> 0 | T27: 0 | U27: =ROUND(('Sch. B'!U27+'Sch. C'!U27+'Sch. D'!U27+'Sch. E'!U27)/4/12*6,2) -> 0 | V27: 0 | W27: =ROUND(('Sch. B'!W27+'Sch. C'!W27+'Sch. D'!W27+'Sch. E'!W27)/4/12*6,2) -> 16.04 | X27: 938.34 | Y27: =ROUND(('Sch. B'!Y27+'Sch. C'!Y27+'Sch. D'!Y27+'Sch. E'!Y27)/4/12*6,2) -> 0 | Z27: 0 | AA27: =ROUND(('Sch. B'!AA27+'Sch. C'!AA27+'Sch. D'!AA27+'Sch. E'!AA27)/4/12*6,2) -> 0 | AB27: 0 | AC27: =ROUND(('Sch. B'!AC27+'Sch. C'!AC27+'Sch. D'!AC27+'Sch. E'!AC27)/4/12*6,2) -> 0 | AD27: 0 | AE27: =ROUND(('Sch. B'!AE27+'Sch. C'!AE27+'Sch. D'!AE27+'Sch. E'!AE27)/4/12*6,2) -> 45.25 | AF27: 2647.125 | AG27: =ROUND(('Sch. B'!AG27+'Sch. C'!AG27+'Sch. D'!AG27+'Sch. E'!AG27)/4/12*6,2) -> 5.32 | AH27: 311.22 | AI27: =ROUND(('Sch. B'!AI27+'Sch. C'!AI27+'Sch. D'!AI27+'Sch. E'!AI27)/4/12*6,2) -> 20.76 | AJ27: 1214.46 | AK27: =ROUND(('Sch. B'!AK27+'Sch. C'!AK27+'Sch. D'!AK27+'Sch. E'!AK27)/4/12*6,2) -> 0 | AL27: 0 | AM27: =ROUND(('Sch. B'!AM27+'Sch. C'!AM27+'Sch. D'!AM27+'Sch. E'!AM27)/4/12*6,2) -> 0 | AN27: 0 | AO27: =ROUND(('Sch. B'!AO27+'Sch. C'!AO27+'Sch. D'!AO27+'Sch. E'!AO27)/4/12*6,2) -> 0 | AP27: 0 | AQ27: =ROUND(('Sch. B'!AQ27+'Sch. C'!AQ27+'Sch. D'!AQ27+'Sch. E'!AQ27)/4/12*6,2) -> 0 | AR27: 0 | AS27: =ROUND(('Sch. B'!AS27+'Sch. C'!AS27+'Sch. D'!AS27+'Sch. E'!AS27)/4/12*6,2) -> 0 | AT27: 0 | AU27: =ROUND(('Sch. B'!AU27+'Sch. C'!AU27+'Sch. D'!AU27+'Sch. E'!AU27)/4/12*6,2) -> 0 | AV27: 0 | AW27: =ROUND(('Sch. B'!AW27+'Sch. C'!AW27+'Sch. D'!AW27+'Sch. E'!AW27)/4/12*6,2) -> 0 | AX27: 0 | AY27: =ROUND(('Sch. B'!AY27+'Sch. C'!AY27+'Sch. D'!AY27+'Sch. E'!AY27)/4/12*6,2) -> 0 | AZ27: 0 | BA27: =ROUND(('Sch. B'!BA27+'Sch. C'!BA27+'Sch. D'!BA27+'Sch. E'!BA27)/4/12*6,2) -> 0 | BB27: 0 | BC27: =ROUND(('Sch. B'!BC27+'Sch. C'!BC27+'Sch. D'!BC27+'Sch. E'!BC27)/4/12*6,2) -> 0 | BD27: 0 | BE27: =ROUND(('Sch. B'!BE27+'Sch. C'!BE27+'Sch. D'!BE27+'Sch. E'!BE27)/4/12*6,2) -> 0 | BF27: 0 | BG27: =ROUND(('Sch. B'!BG27+'Sch. C'!BG27+'Sch. D'!BG27+'Sch. E'!BG27)/4/12*6,2) -> 0 | BH27: 0 | BI27: =ROUND(('Sch. B'!BI27+'Sch. C'!BI27+'Sch. D'!BI27+'Sch. E'!BI27)/4/12*6,2) -> 0 | BJ27: 0 | BK27: =ROUND(('Sch. B'!BK27+'Sch. C'!BK27+'Sch. D'!BK27+'Sch. E'!BK27)/4/12*6,2) -> 0 | BL27: 0 | BM27: =ROUND(('Sch. B'!BM27+'Sch. C'!BM27+'Sch. D'!BM27+'Sch. E'!BM27)/4/12*6,2) -> 0 | BN27: 0 | BO27: =ROUND(('Sch. B'!BO27+'Sch. C'!BO27+'Sch. D'!BO27+'Sch. E'!BO27)/4/12*6,2) -> 0 | BP27: 0 | BQ27: =ROUND(('Sch. B'!BQ27+'Sch. C'!BQ27+'Sch. D'!BQ27+'Sch. E'!BQ27)/4/12*6,2) -> 0 | BR27: 0 | BS27: =ROUND(('Sch. B'!BS27+'Sch. C'!BS27+'Sch. D'!BS27+'Sch. E'!BS27)/4/12*6,2) -> 0 | BT27: 0 | BU27: =ROUND(('Sch. B'!BU27+'Sch. C'!BU27+'Sch. D'!BU27+'Sch. E'!BU27)/4/12*6,2) -> 0 | BV27: 0 | BW27: =ROUND(('Sch. B'!BW27+'Sch. C'!BW27+'Sch. D'!BW27+'Sch. E'!BW27)/4/12*6,2) -> 0 | BX27: 0 | BY27: =ROUND(('Sch. B'!BY27+'Sch. C'!BY27+'Sch. D'!BY27+'Sch. E'!BY27)/4/12*6,2) -> 0 | BZ27: 0 | CA27: 87.37 | CB27: 5111.145
A28: =+Index!$K$4+1+0.5-B28 -> 57.5 | B28: 1962 | C28: =ROUND(('Sch. B'!C28+'Sch. C'!C28+'Sch. D'!C28+'Sch. E'!C28)/4/12*6,2)-917.75 -> 0 | D28: 0 | E28: =ROUND(('Sch. B'!E28+'Sch. C'!E28+'Sch. D'!E28+'Sch. E'!E28)/4/12*6,2) -> 0 | F28: 0 | G28: =ROUND(('Sch. B'!G28+'Sch. C'!G28+'Sch. D'!G28+'Sch. E'!G28)/4/12*6,2) -> 0 | H28: 0 | I28: =ROUND(('Sch. B'!I28+'Sch. C'!I28+'Sch. D'!I28+'Sch. E'!I28)/4/12*6,2) -> 0 | J28: 0 | K28: =ROUND(('Sch. B'!K28+'Sch. C'!K28+'Sch. D'!K28+'Sch. E'!K28)/4/12*6,2) -> 0 | L28: 0 | M28: =ROUND(('Sch. B'!M28+'Sch. C'!M28+'Sch. D'!M28+'Sch. E'!M28)/4/12*6,2) -> 0 | N28: 0 | O28: =ROUND(('Sch. B'!O28+'Sch. C'!O28+'Sch. D'!O28+'Sch. E'!O28)/4/12*6,2) -> 0 | P28: 0 | Q28: =ROUND(('Sch. B'!Q28+'Sch. C'!Q28+'Sch. D'!Q28+'Sch. E'!Q28)/4/12*6,2) -> 0 | R28: 0 | S28: =ROUND(('Sch. B'!S28+'Sch. C'!S28+'Sch. D'!S28+'Sch. E'!S28)/4/12*6,2) -> 0 | T28: 0 | U28: =ROUND(('Sch. B'!U28+'Sch. C'!U28+'Sch. D'!U28+'Sch. E'!U28)/4/12*6,2) -> 0 | V28: 0 | W28: =ROUND(('Sch. B'!W28+'Sch. C'!W28+'Sch. D'!W28+'Sch. E'!W28)/4/12*6,2) -> 0 | X28: 0 | Y28: =ROUND(('Sch. B'!Y28+'Sch. C'!Y28+'Sch. D'!Y28+'Sch. E'!Y28)/4/12*6,2) -> 87.47 | Z28: 5029.525 | AA28: =ROUND(('Sch. B'!AA28+'Sch. C'!AA28+'Sch. D'!AA28+'Sch. E'!AA28)/4/12*6,2) -> 0 | AB28: 0 | AC28: =ROUND(('Sch. B'!AC28+'Sch. C'!AC28+'Sch. D'!AC28+'Sch. E'!AC28)/4/12*6,2) -> 0 | AD28: 0 | AE28: =ROUND(('Sch. B'!AE28+'Sch. C'!AE28+'Sch. D'!AE28+'Sch. E'!AE28)/4/12*6,2) -> 0 | AF28: 0 | AG28: =ROUND(('Sch. B'!AG28+'Sch. C'!AG28+'Sch. D'!AG28+'Sch. E'!AG28)/4/12*6,2) -> 0 | AH28: 0 | AI28: =ROUND(('Sch. B'!AI28+'Sch. C'!AI28+'Sch. D'!AI28+'Sch. E'!AI28)/4/12*6,2) -> 65.6 | AJ28: 3772 | AK28: =ROUND(('Sch. B'!AK28+'Sch. C'!AK28+'Sch. D'!AK28+'Sch. E'!AK28)/4/12*6,2) -> 0 | AL28: 0 | AM28: =ROUND(('Sch. B'!AM28+'Sch. C'!AM28+'Sch. D'!AM28+'Sch. E'!AM28)/4/12*6,2) -> 0 | AN28: 0 | AO28: =ROUND(('Sch. B'!AO28+'Sch. C'!AO28+'Sch. D'!AO28+'Sch. E'!AO28)/4/12*6,2) -> 0 | AP28: 0 | AQ28: =ROUND(('Sch. B'!AQ28+'Sch. C'!AQ28+'Sch. D'!AQ28+'Sch. E'!AQ28)/4/12*6,2) -> 0 | AR28: 0 | AS28: =ROUND(('Sch. B'!AS28+'Sch. C'!AS28+'Sch. D'!AS28+'Sch. E'!AS28)/4/12*6,2) -> 0 | AT28: 0 | AU28: =ROUND(('Sch. B'!AU28+'Sch. C'!AU28+'Sch. D'!AU28+'Sch. E'!AU28)/4/12*6,2) -> 0 | AV28: 0 | AW28: =ROUND(('Sch. B'!AW28+'Sch. C'!AW28+'Sch. D'!AW28+'Sch. E'!AW28)/4/12*6,2) -> 0 | AX28: 0 | AY28: =ROUND(('Sch. B'!AY28+'Sch. C'!AY28+'Sch. D'!AY28+'Sch. E'!AY28)/4/12*6,2) -> 0 | AZ28: 0 | BA28: =ROUND(('Sch. B'!BA28+'Sch. C'!BA28+'Sch. D'!BA28+'Sch. E'!BA28)/4/12*6,2) -> 0 | BB28: 0 | BC28: =ROUND(('Sch. B'!BC28+'Sch. C'!BC28+'Sch. D'!BC28+'Sch. E'!BC28)/4/12*6,2) -> 0 | BD28: 0 | BE28: =ROUND(('Sch. B'!BE28+'Sch. C'!BE28+'Sch. D'!BE28+'Sch. E'!BE28)/4/12*6,2) -> 0 | BF28: 0 | BG28: =ROUND(('Sch. B'!BG28+'Sch. C'!BG28+'Sch. D'!BG28+'Sch. E'!BG28)/4/12*6,2) -> 0 | BH28: 0 | BI28: =ROUND(('Sch. B'!BI28+'Sch. C'!BI28+'Sch. D'!BI28+'Sch. E'!BI28)/4/12*6,2) -> 0 | BJ28: 0 | BK28: =ROUND(('Sch. B'!BK28+'Sch. C'!BK28+'Sch. D'!BK28+'Sch. E'!BK28)/4/12*6,2) -> 0 | BL28: 0 | BM28: =ROUND(('Sch. B'!BM28+'Sch. C'!BM28+'Sch. D'!BM28+'Sch. E'!BM28)/4/12*6,2) -> 0 | BN28: 0 | BO28: =ROUND(('Sch. B'!BO28+'Sch. C'!BO28+'Sch. D'!BO28+'Sch. E'!BO28)/4/12*6,2) -> 0 | BP28: 0 | BQ28: =ROUND(('Sch. B'!BQ28+'Sch. C'!BQ28+'Sch. D'!BQ28+'Sch. E'!BQ28)/4/12*6,2) -> 0 | BR28: 0 | BS28: =ROUND(('Sch. B'!BS28+'Sch. C'!BS28+'Sch. D'!BS28+'Sch. E'!BS28)/4/12*6,2) -> 0 | BT28: 0 | BU28: =ROUND(('Sch. B'!BU28+'Sch. C'!BU28+'Sch. D'!BU28+'Sch. E'!BU28)/4/12*6,2) -> 0 | BV28: 0 | BW28: =ROUND(('Sch. B'!BW28+'Sch. C'!BW28+'Sch. D'!BW28+'Sch. E'!BW28)/4/12*6,2) -> 0 | BX28: 0 | BY28: =ROUND(('Sch. B'!BY28+'Sch. C'!BY28+'Sch. D'!BY28+'Sch. E'!BY28)/4/12*6,2) -> 0 | BZ28: 0 | CA28: 153.07 | CB28: 8801.525
A29: =+Index!$K$4+1+0.5-B29 -> 56.5 | B29: 1963 | C29: =ROUND(('Sch. B'!C29+'Sch. C'!C29+'Sch. D'!C29+'Sch. E'!C29)/4/12*6,2) -> 0 | D29: 0 | E29: =ROUND(('Sch. B'!E29+'Sch. C'!E29+'Sch. D'!E29+'Sch. E'!E29)/4/12*6,2) -> 0 | F29: 0 | G29: =ROUND(('Sch. B'!G29+'Sch. C'!G29+'Sch. D'!G29+'Sch. E'!G29)/4/12*6,2) -> 0 | H29: 0 | I29: =ROUND(('Sch. B'!I29+'Sch. C'!I29+'Sch. D'!I29+'Sch. E'!I29)/4/12*6,2) -> 0 | J29: 0 | K29: =ROUND(('Sch. B'!K29+'Sch. C'!K29+'Sch. D'!K29+'Sch. E'!K29)/4/12*6,2) -> 0 | L29: 0 | M29: =ROUND(('Sch. B'!M29+'Sch. C'!M29+'Sch. D'!M29+'Sch. E'!M29)/4/12*6,2) -> 0 | N29: 0 | O29: =ROUND(('Sch. B'!O29+'Sch. C'!O29+'Sch. D'!O29+'Sch. E'!O29)/4/12*6,2) -> 0 | P29: 0 | Q29: =ROUND(('Sch. B'!Q29+'Sch. C'!Q29+'Sch. D'!Q29+'Sch. E'!Q29)/4/12*6,2) -> 0 | R29: 0 | S29: =ROUND(('Sch. B'!S29+'Sch. C'!S29+'Sch. D'!S29+'Sch. E'!S29)/4/12*6,2) -> 0 | T29: 0 | U29: =ROUND(('Sch. B'!U29+'Sch. C'!U29+'Sch. D'!U29+'Sch. E'!U29)/4/12*6,2) -> 0 | V29: 0 | W29: =ROUND(('Sch. B'!W29+'Sch. C'!W29+'Sch. D'!W29+'Sch. E'!W29)/4/12*6,2) -> 111.11 | X29: 6277.715 | Y29: =ROUND(('Sch. B'!Y29+'Sch. C'!Y29+'Sch. D'!Y29+'Sch. E'!Y29)/4/12*6,2) -> 0 | Z29: 0 | AA29: =ROUND(('Sch. B'!AA29+'Sch. C'!AA29+'Sch. D'!AA29+'Sch. E'!AA29)/4/12*6,2) -> 0 | AB29: 0 | AC29: =ROUND(('Sch. B'!AC29+'Sch. C'!AC29+'Sch. D'!AC29+'Sch. E'!AC29)/4/12*6,2) -> 0 | AD29: 0 | AE29: =ROUND(('Sch. B'!AE29+'Sch. C'!AE29+'Sch. D'!AE29+'Sch. E'!AE29)/4/12*6,2) -> 105.09 | AF29: 5937.585 | AG29: =ROUND(('Sch. B'!AG29+'Sch. C'!AG29+'Sch. D'!AG29+'Sch. E'!AG29)/4/12*6,2) -> 0 | AH29: 0 | AI29: =ROUND(('Sch. B'!AI29+'Sch. C'!AI29+'Sch. D'!AI29+'Sch. E'!AI29)/4/12*6,2) -> 39.8 | AJ29: 2248.7 | AK29: =ROUND(('Sch. B'!AK29+'Sch. C'!AK29+'Sch. D'!AK29+'Sch. E'!AK29)/4/12*6,2) -> 0 | AL29: 0 | AM29: =ROUND(('Sch. B'!AM29+'Sch. C'!AM29+'Sch. D'!AM29+'Sch. E'!AM29)/4/12*6,2) -> 0 | AN29: 0 | AO29: =ROUND(('Sch. B'!AO29+'Sch. C'!AO29+'Sch. D'!AO29+'Sch. E'!AO29)/4/12*6,2) -> 0 | AP29: 0 | AQ29: =ROUND(('Sch. B'!AQ29+'Sch. C'!AQ29+'Sch. D'!AQ29+'Sch. E'!AQ29)/4/12*6,2) -> 0 | AR29: 0 | AS29: =ROUND(('Sch. B'!AS29+'Sch. C'!AS29+'Sch. D'!AS29+'Sch. E'!AS29)/4/12*6,2) -> 0 | AT29: 0 | AU29: =ROUND(('Sch. B'!AU29+'Sch. C'!AU29+'Sch. D'!AU29+'Sch. E'!AU29)/4/12*6,2) -> 0 | AV29: 0 | AW29: =ROUND(('Sch. B'!AW29+'Sch. C'!AW29+'Sch. D'!AW29+'Sch. E'!AW29)/4/12*6,2) -> 0 | AX29: 0 | AY29: =ROUND(('Sch. B'!AY29+'Sch. C'!AY29+'Sch. D'!AY29+'Sch. E'!AY29)/4/12*6,2) -> 0 | AZ29: 0 | BA29: =ROUND(('Sch. B'!BA29+'Sch. C'!BA29+'Sch. D'!BA29+'Sch. E'!BA29)/4/12*6,2) -> 0 | BB29: 0 | BC29: =ROUND(('Sch. B'!BC29+'Sch. C'!BC29+'Sch. D'!BC29+'Sch. E'!BC29)/4/12*6,2) -> 0 | BD29: 0 | BE29: =ROUND(('Sch. B'!BE29+'Sch. C'!BE29+'Sch. D'!BE29+'Sch. E'!BE29)/4/12*6,2) -> 0 | BF29: 0 | BG29: =ROUND(('Sch. B'!BG29+'Sch. C'!BG29+'Sch. D'!BG29+'Sch. E'!BG29)/4/12*6,2) -> 0 | BH29: 0 | BI29: =ROUND(('Sch. B'!BI29+'Sch. C'!BI29+'Sch. D'!BI29+'Sch. E'!BI29)/4/12*6,2) -> 0 | BJ29: 0 | BK29: =ROUND(('Sch. B'!BK29+'Sch. C'!BK29+'Sch. D'!BK29+'Sch. E'!BK29)/4/12*6,2) -> 0 | BL29: 0 | BM29: =ROUND(('Sch. B'!BM29+'Sch. C'!BM29+'Sch. D'!BM29+'Sch. E'!BM29)/4/12*6,2) -> 0 | BN29: 0 | BO29: =ROUND(('Sch. B'!BO29+'Sch. C'!BO29+'Sch. D'!BO29+'Sch. E'!BO29)/4/12*6,2) -> 0 | BP29: 0 | BQ29: =ROUND(('Sch. B'!BQ29+'Sch. C'!BQ29+'Sch. D'!BQ29+'Sch. E'!BQ29)/4/12*6,2) -> 0 | BR29: 0 | BS29: =ROUND(('Sch. B'!BS29+'Sch. C'!BS29+'Sch. D'!BS29+'Sch. E'!BS29)/4/12*6,2) -> 0 | BT29: 0 | BU29: =ROUND(('Sch. B'!BU29+'Sch. C'!BU29+'Sch. D'!BU29+'Sch. E'!BU29)/4/12*6,2) -> 0 | BV29: 0 | BW29: =ROUND(('Sch. B'!BW29+'Sch. C'!BW29+'Sch. D'!BW29+'Sch. E'!BW29)/4/12*6,2) -> 0 | BX29: 0 | BY29: =ROUND(('Sch. B'!BY29+'Sch. C'!BY29+'Sch. D'!BY29+'Sch. E'!BY29)/4/12*6,2) -> 0 | BZ29: 0 | CA29: 256 | CB29: 14464
A30: =+Index!$K$4+1+0.5-B30 -> 55.5 | B30: 1964 | C30: =ROUND(('Sch. B'!C30+'Sch. C'!C30+'Sch. D'!C30+'Sch. E'!C30)/4/12*6,2) -> 0 | D30: 0 | E30: =ROUND(('Sch. B'!E30+'Sch. C'!E30+'Sch. D'!E30+'Sch. E'!E30)/4/12*6,2) -> 0 | F30: 0 | G30: =ROUND(('Sch. B'!G30+'Sch. C'!G30+'Sch. D'!G30+'Sch. E'!G30)/4/12*6,2) -> 0 | H30: 0 | I30: =ROUND(('Sch. B'!I30+'Sch. C'!I30+'Sch. D'!I30+'Sch. E'!I30)/4/12*6,2) -> 0 | J30: 0 | K30: =ROUND(('Sch. B'!K30+'Sch. C'!K30+'Sch. D'!K30+'Sch. E'!K30)/4/12*6,2) -> 0 | L30: 0 | M30: =ROUND(('Sch. B'!M30+'Sch. C'!M30+'Sch. D'!M30+'Sch. E'!M30)/4/12*6,2) -> 0 | N30: 0 | O30: =ROUND(('Sch. B'!O30+'Sch. C'!O30+'Sch. D'!O30+'Sch. E'!O30)/4/12*6,2) -> 0 | P30: 0 | Q30: =ROUND(('Sch. B'!Q30+'Sch. C'!Q30+'Sch. D'!Q30+'Sch. E'!Q30)/4/12*6,2) -> 0 | R30: 0 | S30: =ROUND(('Sch. B'!S30+'Sch. C'!S30+'Sch. D'!S30+'Sch. E'!S30)/4/12*6,2) -> 0 | T30: 0 | U30: =ROUND(('Sch. B'!U30+'Sch. C'!U30+'Sch. D'!U30+'Sch. E'!U30)/4/12*6,2) -> 0 | V30: 0 | W30: =ROUND(('Sch. B'!W30+'Sch. C'!W30+'Sch. D'!W30+'Sch. E'!W30)/4/12*6,2)+71.64 -> 81.26 | X30: 4509.93 | Y30: =ROUND(('Sch. B'!Y30+'Sch. C'!Y30+'Sch. D'!Y30+'Sch. E'!Y30)/4/12*6,2) -> 0 | Z30: 0 | AA30: =ROUND(('Sch. B'!AA30+'Sch. C'!AA30+'Sch. D'!AA30+'Sch. E'!AA30)/4/12*6,2) -> 0 | AB30: 0 | AC30: =ROUND(('Sch. B'!AC30+'Sch. C'!AC30+'Sch. D'!AC30+'Sch. E'!AC30)/4/12*6,2) -> 0 | AD30: 0 | AE30: =ROUND(('Sch. B'!AE30+'Sch. C'!AE30+'Sch. D'!AE30+'Sch. E'!AE30)/4/12*6,2) -> 17.79 | AF30: 987.345 | AG30: =ROUND(('Sch. B'!AG30+'Sch. C'!AG30+'Sch. D'!AG30+'Sch. E'!AG30)/4/12*6,2) -> 12.86 | AH30: 713.73 | AI30: =ROUND(('Sch. B'!AI30+'Sch. C'!AI30+'Sch. D'!AI30+'Sch. E'!AI30)/4/12*6,2) -> 26.33 | AJ30: 1461.315 | AK30: =ROUND(('Sch. B'!AK30+'Sch. C'!AK30+'Sch. D'!AK30+'Sch. E'!AK30)/4/12*6,2) -> 0 | AL30: 0 | AM30: =ROUND(('Sch. B'!AM30+'Sch. C'!AM30+'Sch. D'!AM30+'Sch. E'!AM30)/4/12*6,2) -> 131.02 | AN30: 7271.61 | AO30: =ROUND(('Sch. B'!AO30+'Sch. C'!AO30+'Sch. D'!AO30+'Sch. E'!AO30)/4/12*6,2) -> 0 | AP30: 0 | AQ30: =ROUND(('Sch. B'!AQ30+'Sch. C'!AQ30+'Sch. D'!AQ30+'Sch. E'!AQ30)/4/12*6,2) -> 0 | AR30: 0 | AS30: =ROUND(('Sch. B'!AS30+'Sch. C'!AS30+'Sch. D'!AS30+'Sch. E'!AS30)/4/12*6,2) -> 0 | AT30: 0 | AU30: =ROUND(('Sch. B'!AU30+'Sch. C'!AU30+'Sch. D'!AU30+'Sch. E'!AU30)/4/12*6,2) -> 0 | AV30: 0 | AW30: =ROUND(('Sch. B'!AW30+'Sch. C'!AW30+'Sch. D'!AW30+'Sch. E'!AW30)/4/12*6,2) -> 0 | AX30: 0 | AY30: =ROUND(('Sch. B'!AY30+'Sch. C'!AY30+'Sch. D'!AY30+'Sch. E'!AY30)/4/12*6,2) -> 0 | AZ30: 0 | BA30: =ROUND(('Sch. B'!BA30+'Sch. C'!BA30+'Sch. D'!BA30+'Sch. E'!BA30)/4/12*6,2) -> 0 | BB30: 0 | BC30: =ROUND(('Sch. B'!BC30+'Sch. C'!BC30+'Sch. D'!BC30+'Sch. E'!BC30)/4/12*6,2) -> 0 | BD30: 0 | BE30: =ROUND(('Sch. B'!BE30+'Sch. C'!BE30+'Sch. D'!BE30+'Sch. E'!BE30)/4/12*6,2) -> 0 | BF30: 0 | BG30: =ROUND(('Sch. B'!BG30+'Sch. C'!BG30+'Sch. D'!BG30+'Sch. E'!BG30)/4/12*6,2) -> 0 | BH30: 0 | BI30: =ROUND(('Sch. B'!BI30+'Sch. C'!BI30+'Sch. D'!BI30+'Sch. E'!BI30)/4/12*6,2) -> 0 | BJ30: 0 | BK30: =ROUND(('Sch. B'!BK30+'Sch. C'!BK30+'Sch. D'!BK30+'Sch. E'!BK30)/4/12*6,2) -> 0 | BL30: 0 | BM30: =ROUND(('Sch. B'!BM30+'Sch. C'!BM30+'Sch. D'!BM30+'Sch. E'!BM30)/4/12*6,2) -> 0 | BN30: 0 | BO30: =ROUND(('Sch. B'!BO30+'Sch. C'!BO30+'Sch. D'!BO30+'Sch. E'!BO30)/4/12*6,2) -> 0 | BP30: 0 | BQ30: =ROUND(('Sch. B'!BQ30+'Sch. C'!BQ30+'Sch. D'!BQ30+'Sch. E'!BQ30)/4/12*6,2) -> 0 | BR30: 0 | BS30: =ROUND(('Sch. B'!BS30+'Sch. C'!BS30+'Sch. D'!BS30+'Sch. E'!BS30)/4/12*6,2) -> 0 | BT30: 0 | BU30: =ROUND(('Sch. B'!BU30+'Sch. C'!BU30+'Sch. D'!BU30+'Sch. E'!BU30)/4/12*6,2) -> 0 | BV30: 0 | BW30: =ROUND(('Sch. B'!BW30+'Sch. C'!BW30+'Sch. D'!BW30+'Sch. E'!BW30)/4/12*6,2) -> 0 | BX30: 0 | BY30: =ROUND(('Sch. B'!BY30+'Sch. C'!BY30+'Sch. D'!BY30+'Sch. E'!BY30)/4/12*6,2) -> 0 | BZ30: 0 | CA30: 269.26 | CB30: 14943.93
A31: =+Index!$K$4+1+0.5-B31 -> 54.5 | B31: 1965 | C31: =ROUND(('Sch. B'!C31+'Sch. C'!C31+'Sch. D'!C31+'Sch. E'!C31)/4/12*6,2) -> 0 | D31: 0 | E31: =ROUND(('Sch. B'!E31+'Sch. C'!E31+'Sch. D'!E31+'Sch. E'!E31)/4/12*6,2) -> 0 | F31: 0 | G31: =ROUND(('Sch. B'!G31+'Sch. C'!G31+'Sch. D'!G31+'Sch. E'!G31)/4/12*6,2) -> 0 | H31: 0 | I31: =ROUND(('Sch. B'!I31+'Sch. C'!I31+'Sch. D'!I31+'Sch. E'!I31)/4/12*6,2) -> 0 | J31: 0 | K31: =ROUND(('Sch. B'!K31+'Sch. C'!K31+'Sch. D'!K31+'Sch. E'!K31)/4/12*6,2) -> 0 | L31: 0 | M31: =ROUND(('Sch. B'!M31+'Sch. C'!M31+'Sch. D'!M31+'Sch. E'!M31)/4/12*6,2) -> 0 | N31: 0 | O31: =ROUND(('Sch. B'!O31+'Sch. C'!O31+'Sch. D'!O31+'Sch. E'!O31)/4/12*6,2) -> 0 | P31: 0 | Q31: =ROUND(('Sch. B'!Q31+'Sch. C'!Q31+'Sch. D'!Q31+'Sch. E'!Q31)/4/12*6,2) -> 0 | R31: 0 | S31: =ROUND(('Sch. B'!S31+'Sch. C'!S31+'Sch. D'!S31+'Sch. E'!S31)/4/12*6,2) -> 0 | T31: 0 | U31: =ROUND(('Sch. B'!U31+'Sch. C'!U31+'Sch. D'!U31+'Sch. E'!U31)/4/12*6,2) -> 0 | V31: 0 | W31: =ROUND(('Sch. B'!W31+'Sch. C'!W31+'Sch. D'!W31+'Sch. E'!W31)/4/12*6,2) -> 59.98 | X31: 3268.91 | Y31: =ROUND(('Sch. B'!Y31+'Sch. C'!Y31+'Sch. D'!Y31+'Sch. E'!Y31)/4/12*6,2) -> 3.75 | Z31: 204.375 | AA31: =ROUND(('Sch. B'!AA31+'Sch. C'!AA31+'Sch. D'!AA31+'Sch. E'!AA31)/4/12*6,2) -> 0 | AB31: 0 | AC31: =ROUND(('Sch. B'!AC31+'Sch. C'!AC31+'Sch. D'!AC31+'Sch. E'!AC31)/4/12*6,2) -> 0 | AD31: 0 | AE31: =ROUND(('Sch. B'!AE31+'Sch. C'!AE31+'Sch. D'!AE31+'Sch. E'!AE31)/4/12*6,2) -> 198.99 | AF31: 10844.955 | AG31: =ROUND(('Sch. B'!AG31+'Sch. C'!AG31+'Sch. D'!AG31+'Sch. E'!AG31)/4/12*6,2) -> 0 | AH31: 0 | AI31: =ROUND(('Sch. B'!AI31+'Sch. C'!AI31+'Sch. D'!AI31+'Sch. E'!AI31)/4/12*6,2) -> 60.13 | AJ31: 3277.085 | AK31: =ROUND(('Sch. B'!AK31+'Sch. C'!AK31+'Sch. D'!AK31+'Sch. E'!AK31)/4/12*6,2) -> 0 | AL31: 0 | AM31: =ROUND(('Sch. B'!AM31+'Sch. C'!AM31+'Sch. D'!AM31+'Sch. E'!AM31)/4/12*6,2) -> 0 | AN31: 0 | AO31: =ROUND(('Sch. B'!AO31+'Sch. C'!AO31+'Sch. D'!AO31+'Sch. E'!AO31)/4/12*6,2) -> 0 | AP31: 0 | AQ31: =ROUND(('Sch. B'!AQ31+'Sch. C'!AQ31+'Sch. D'!AQ31+'Sch. E'!AQ31)/4/12*6,2) -> 0 | AR31: 0 | AS31: =ROUND(('Sch. B'!AS31+'Sch. C'!AS31+'Sch. D'!AS31+'Sch. E'!AS31)/4/12*6,2) -> 0 | AT31: 0 | AU31: =ROUND(('Sch. B'!AU31+'Sch. C'!AU31+'Sch. D'!AU31+'Sch. E'!AU31)/4/12*6,2) -> 0 | AV31: 0 | AW31: =ROUND(('Sch. B'!AW31+'Sch. C'!AW31+'Sch. D'!AW31+'Sch. E'!AW31)/4/12*6,2) -> 0 | AX31: 0 | AY31: =ROUND(('Sch. B'!AY31+'Sch. C'!AY31+'Sch. D'!AY31+'Sch. E'!AY31)/4/12*6,2) -> 0 | AZ31: 0 | BA31: =ROUND(('Sch. B'!BA31+'Sch. C'!BA31+'Sch. D'!BA31+'Sch. E'!BA31)/4/12*6,2) -> 0 | BB31: 0 | BC31: =ROUND(('Sch. B'!BC31+'Sch. C'!BC31+'Sch. D'!BC31+'Sch. E'!BC31)/4/12*6,2) -> 0 | BD31: 0 | BE31: =ROUND(('Sch. B'!BE31+'Sch. C'!BE31+'Sch. D'!BE31+'Sch. E'!BE31)/4/12*6,2) -> 0 | BF31: 0 | BG31: =ROUND(('Sch. B'!BG31+'Sch. C'!BG31+'Sch. D'!BG31+'Sch. E'!BG31)/4/12*6,2) -> 0 | BH31: 0 | BI31: =ROUND(('Sch. B'!BI31+'Sch. C'!BI31+'Sch. D'!BI31+'Sch. E'!BI31)/4/12*6,2) -> 0 | BJ31: 0 | BK31: =ROUND(('Sch. B'!BK31+'Sch. C'!BK31+'Sch. D'!BK31+'Sch. E'!BK31)/4/12*6,2) -> 0 | BL31: 0 | BM31: =ROUND(('Sch. B'!BM31+'Sch. C'!BM31+'Sch. D'!BM31+'Sch. E'!BM31)/4/12*6,2) -> 0 | BN31: 0 | BO31: =ROUND(('Sch. B'!BO31+'Sch. C'!BO31+'Sch. D'!BO31+'Sch. E'!BO31)/4/12*6,2) -> 0 | BP31: 0 | BQ31: =ROUND(('Sch. B'!BQ31+'Sch. C'!BQ31+'Sch. D'!BQ31+'Sch. E'!BQ31)/4/12*6,2) -> 0 | BR31: 0 | BS31: =ROUND(('Sch. B'!BS31+'Sch. C'!BS31+'Sch. D'!BS31+'Sch. E'!BS31)/4/12*6,2) -> 0 | BT31: 0 | BU31: =ROUND(('Sch. B'!BU31+'Sch. C'!BU31+'Sch. D'!BU31+'Sch. E'!BU31)/4/12*6,2) -> 0 | BV31: 0 | BW31: =ROUND(('Sch. B'!BW31+'Sch. C'!BW31+'Sch. D'!BW31+'Sch. E'!BW31)/4/12*6,2) -> 0 | BX31: 0 | BY31: =ROUND(('Sch. B'!BY31+'Sch. C'!BY31+'Sch. D'!BY31+'Sch. E'!BY31)/4/12*6,2) -> 0 | BZ31: 0 | CA31: 322.85 | CB31: 17595.325
A32: =+Index!$K$4+1+0.5-B32 -> 53.5 | B32: 1966 | C32: =ROUND(('Sch. B'!C32+'Sch. C'!C32+'Sch. D'!C32+'Sch. E'!C32)/4/12*6,2) -> 0 | D32: 0 | E32: =ROUND(('Sch. B'!E32+'Sch. C'!E32+'Sch. D'!E32+'Sch. E'!E32)/4/12*6,2) -> 0 | F32: 0 | G32: =ROUND(('Sch. B'!G32+'Sch. C'!G32+'Sch. D'!G32+'Sch. E'!G32)/4/12*6,2) -> 0 | H32: 0 | I32: =ROUND(('Sch. B'!I32+'Sch. C'!I32+'Sch. D'!I32+'Sch. E'!I32)/4/12*6,2) -> 0 | J32: 0 | K32: =ROUND(('Sch. B'!K32+'Sch. C'!K32+'Sch. D'!K32+'Sch. E'!K32)/4/12*6,2) -> 0 | L32: 0 | M32: =ROUND(('Sch. B'!M32+'Sch. C'!M32+'Sch. D'!M32+'Sch. E'!M32)/4/12*6,2) -> 0 | N32: 0 | O32: =ROUND(('Sch. B'!O32+'Sch. C'!O32+'Sch. D'!O32+'Sch. E'!O32)/4/12*6,2) -> 0 | P32: 0 | Q32: =ROUND(('Sch. B'!Q32+'Sch. C'!Q32+'Sch. D'!Q32+'Sch. E'!Q32)/4/12*6,2) -> 0 | R32: 0 | S32: =ROUND(('Sch. B'!S32+'Sch. C'!S32+'Sch. D'!S32+'Sch. E'!S32)/4/12*6,2) -> 0 | T32: 0 | U32: =ROUND(('Sch. B'!U32+'Sch. C'!U32+'Sch. D'!U32+'Sch. E'!U32)/4/12*6,2) -> 0 | V32: 0 | W32: =ROUND(('Sch. B'!W32+'Sch. C'!W32+'Sch. D'!W32+'Sch. E'!W32)/4/12*6,2) -> 20.99 | X32: 1122.965 | Y32: =ROUND(('Sch. B'!Y32+'Sch. C'!Y32+'Sch. D'!Y32+'Sch. E'!Y32)/4/12*6,2) -> 20.45 | Z32: 1094.075 | AA32: =ROUND(('Sch. B'!AA32+'Sch. C'!AA32+'Sch. D'!AA32+'Sch. E'!AA32)/4/12*6,2) -> 0 | AB32: 0 | AC32: =ROUND(('Sch. B'!AC32+'Sch. C'!AC32+'Sch. D'!AC32+'Sch. E'!AC32)/4/12*6,2) -> 0 | AD32: 0 | AE32: =ROUND(('Sch. B'!AE32+'Sch. C'!AE32+'Sch. D'!AE32+'Sch. E'!AE32)/4/12*6,2) -> 199.44 | AF32: 10670.04 | AG32: =ROUND(('Sch. B'!AG32+'Sch. C'!AG32+'Sch. D'!AG32+'Sch. E'!AG32)/4/12*6,2) -> 17.69 | AH32: 946.415 | AI32: =ROUND(('Sch. B'!AI32+'Sch. C'!AI32+'Sch. D'!AI32+'Sch. E'!AI32)/4/12*6,2) -> 18.67 | AJ32: 998.845 | AK32: =ROUND(('Sch. B'!AK32+'Sch. C'!AK32+'Sch. D'!AK32+'Sch. E'!AK32)/4/12*6,2) -> 0 | AL32: 0 | AM32: =ROUND(('Sch. B'!AM32+'Sch. C'!AM32+'Sch. D'!AM32+'Sch. E'!AM32)/4/12*6,2) -> 0 | AN32: 0 | AO32: =ROUND(('Sch. B'!AO32+'Sch. C'!AO32+'Sch. D'!AO32+'Sch. E'!AO32)/4/12*6,2) -> 0 | AP32: 0 | AQ32: =ROUND(('Sch. B'!AQ32+'Sch. C'!AQ32+'Sch. D'!AQ32+'Sch. E'!AQ32)/4/12*6,2) -> 0 | AR32: 0 | AS32: =ROUND(('Sch. B'!AS32+'Sch. C'!AS32+'Sch. D'!AS32+'Sch. E'!AS32)/4/12*6,2) -> 0 | AT32: 0 | AU32: =ROUND(('Sch. B'!AU32+'Sch. C'!AU32+'Sch. D'!AU32+'Sch. E'!AU32)/4/12*6,2) -> 0 | AV32: 0 | AW32: =ROUND(('Sch. B'!AW32+'Sch. C'!AW32+'Sch. D'!AW32+'Sch. E'!AW32)/4/12*6,2) -> 0 | AX32: 0 | AY32: =ROUND(('Sch. B'!AY32+'Sch. C'!AY32+'Sch. D'!AY32+'Sch. E'!AY32)/4/12*6,2) -> 0 | AZ32: 0 | BA32: =ROUND(('Sch. B'!BA32+'Sch. C'!BA32+'Sch. D'!BA32+'Sch. E'!BA32)/4/12*6,2) -> 0 | BB32: 0 | BC32: =ROUND(('Sch. B'!BC32+'Sch. C'!BC32+'Sch. D'!BC32+'Sch. E'!BC32)/4/12*6,2) -> 0 | BD32: 0 | BE32: =ROUND(('Sch. B'!BE32+'Sch. C'!BE32+'Sch. D'!BE32+'Sch. E'!BE32)/4/12*6,2) -> 0 | BF32: 0 | BG32: =ROUND(('Sch. B'!BG32+'Sch. C'!BG32+'Sch. D'!BG32+'Sch. E'!BG32)/4/12*6,2) -> 0 | BH32: 0 | BI32: =ROUND(('Sch. B'!BI32+'Sch. C'!BI32+'Sch. D'!BI32+'Sch. E'!BI32)/4/12*6,2) -> 0 | BJ32: 0 | BK32: =ROUND(('Sch. B'!BK32+'Sch. C'!BK32+'Sch. D'!BK32+'Sch. E'!BK32)/4/12*6,2) -> 0 | BL32: 0 | BM32: =ROUND(('Sch. B'!BM32+'Sch. C'!BM32+'Sch. D'!BM32+'Sch. E'!BM32)/4/12*6,2) -> 0 | BN32: 0 | BO32: =ROUND(('Sch. B'!BO32+'Sch. C'!BO32+'Sch. D'!BO32+'Sch. E'!BO32)/4/12*6,2) -> 0 | BP32: 0 | BQ32: =ROUND(('Sch. B'!BQ32+'Sch. C'!BQ32+'Sch. D'!BQ32+'Sch. E'!BQ32)/4/12*6,2) -> 0 | BR32: 0 | BS32: =ROUND(('Sch. B'!BS32+'Sch. C'!BS32+'Sch. D'!BS32+'Sch. E'!BS32)/4/12*6,2) -> 0 | BT32: 0 | BU32: =ROUND(('Sch. B'!BU32+'Sch. C'!BU32+'Sch. D'!BU32+'Sch. E'!BU32)/4/12*6,2) -> 0 | BV32: 0 | BW32: =ROUND(('Sch. B'!BW32+'Sch. C'!BW32+'Sch. D'!BW32+'Sch. E'!BW32)/4/12*6,2) -> 0 | BX32: 0 | BY32: =ROUND(('Sch. B'!BY32+'Sch. C'!BY32+'Sch. D'!BY32+'Sch. E'!BY32)/4/12*6,2) -> 0 | BZ32: 0 | CA32: 277.24 | CB32: 14832.34
A33: =+Index!$K$4+1+0.5-B33 -> 52.5 | B33: 1967 | C33: =ROUND(('Sch. B'!C33+'Sch. C'!C33+'Sch. D'!C33+'Sch. E'!C33)/4/12*6,2) -> 0 | D33: 0 | E33: =ROUND(('Sch. B'!E33+'Sch. C'!E33+'Sch. D'!E33+'Sch. E'!E33)/4/12*6,2) -> 0 | F33: 0 | G33: =ROUND(('Sch. B'!G33+'Sch. C'!G33+'Sch. D'!G33+'Sch. E'!G33)/4/12*6,2) -> 0 | H33: 0 | I33: =ROUND(('Sch. B'!I33+'Sch. C'!I33+'Sch. D'!I33+'Sch. E'!I33)/4/12*6,2) -> 0 | J33: 0 | K33: =ROUND(('Sch. B'!K33+'Sch. C'!K33+'Sch. D'!K33+'Sch. E'!K33)/4/12*6,2) -> 0 | L33: 0 | M33: =ROUND(('Sch. B'!M33+'Sch. C'!M33+'Sch. D'!M33+'Sch. E'!M33)/4/12*6,2) -> 0 | N33: 0 | O33: =ROUND(('Sch. B'!O33+'Sch. C'!O33+'Sch. D'!O33+'Sch. E'!O33)/4/12*6,2) -> 0 | P33: 0 | Q33: =ROUND(('Sch. B'!Q33+'Sch. C'!Q33+'Sch. D'!Q33+'Sch. E'!Q33)/4/12*6,2) -> 0 | R33: 0 | S33: =ROUND(('Sch. B'!S33+'Sch. C'!S33+'Sch. D'!S33+'Sch. E'!S33)/4/12*6,2) -> 0 | T33: 0 | U33: =ROUND(('Sch. B'!U33+'Sch. C'!U33+'Sch. D'!U33+'Sch. E'!U33)/4/12*6,2) -> 0 | V33: 0 | W33: =ROUND(('Sch. B'!W33+'Sch. C'!W33+'Sch. D'!W33+'Sch. E'!W33)/4/12*6,2) -> 299.84 | X33: 15741.6 | Y33: =ROUND(('Sch. B'!Y33+'Sch. C'!Y33+'Sch. D'!Y33+'Sch. E'!Y33)/4/12*6,2) -> 9.99 | Z33: 524.475 | AA33: =ROUND(('Sch. B'!AA33+'Sch. C'!AA33+'Sch. D'!AA33+'Sch. E'!AA33)/4/12*6,2) -> 0 | AB33: 0 | AC33: =ROUND(('Sch. B'!AC33+'Sch. C'!AC33+'Sch. D'!AC33+'Sch. E'!AC33)/4/12*6,2) -> 0 | AD33: 0 | AE33: =ROUND(('Sch. B'!AE33+'Sch. C'!AE33+'Sch. D'!AE33+'Sch. E'!AE33)/4/12*6,2) -> 84.89 | AF33: 4456.725 | AG33: =ROUND(('Sch. B'!AG33+'Sch. C'!AG33+'Sch. D'!AG33+'Sch. E'!AG33)/4/12*6,2) -> 968.88 | AH33: 50866.2 | AI33: =ROUND(('Sch. B'!AI33+'Sch. C'!AI33+'Sch. D'!AI33+'Sch. E'!AI33)/4/12*6,2) -> 33.5 | AJ33: 1758.75 | AK33: =ROUND(('Sch. B'!AK33+'Sch. C'!AK33+'Sch. D'!AK33+'Sch. E'!AK33)/4/12*6,2) -> 20.72 | AL33: 1087.8 | AM33: =ROUND(('Sch. B'!AM33+'Sch. C'!AM33+'Sch. D'!AM33+'Sch. E'!AM33)/4/12*6,2)+502.32 -> 516.63 | AN33: 27123.075 | AO33: =ROUND(('Sch. B'!AO33+'Sch. C'!AO33+'Sch. D'!AO33+'Sch. E'!AO33)/4/12*6,2) -> 0 | AP33: 0 | AQ33: =ROUND(('Sch. B'!AQ33+'Sch. C'!AQ33+'Sch. D'!AQ33+'Sch. E'!AQ33)/4/12*6,2) -> 0 | AR33: 0 | AS33: =ROUND(('Sch. B'!AS33+'Sch. C'!AS33+'Sch. D'!AS33+'Sch. E'!AS33)/4/12*6,2) -> 0 | AT33: 0 | AU33: =ROUND(('Sch. B'!AU33+'Sch. C'!AU33+'Sch. D'!AU33+'Sch. E'!AU33)/4/12*6,2) -> 0 | AV33: 0 | AW33: =ROUND(('Sch. B'!AW33+'Sch. C'!AW33+'Sch. D'!AW33+'Sch. E'!AW33)/4/12*6,2) -> 0 | AX33: 0 | AY33: =ROUND(('Sch. B'!AY33+'Sch. C'!AY33+'Sch. D'!AY33+'Sch. E'!AY33)/4/12*6,2) -> 0 | AZ33: 0 | BA33: =ROUND(('Sch. B'!BA33+'Sch. C'!BA33+'Sch. D'!BA33+'Sch. E'!BA33)/4/12*6,2) -> 0 | BB33: 0 | BC33: =ROUND(('Sch. B'!BC33+'Sch. C'!BC33+'Sch. D'!BC33+'Sch. E'!BC33)/4/12*6,2) -> 0 | BD33: 0 | BE33: =ROUND(('Sch. B'!BE33+'Sch. C'!BE33+'Sch. D'!BE33+'Sch. E'!BE33)/4/12*6,2) -> 0 | BF33: 0 | BG33: =ROUND(('Sch. B'!BG33+'Sch. C'!BG33+'Sch. D'!BG33+'Sch. E'!BG33)/4/12*6,2) -> 0 | BH33: 0 | BI33: =ROUND(('Sch. B'!BI33+'Sch. C'!BI33+'Sch. D'!BI33+'Sch. E'!BI33)/4/12*6,2) -> 0 | BJ33: 0 | BK33: =ROUND(('Sch. B'!BK33+'Sch. C'!BK33+'Sch. D'!BK33+'Sch. E'!BK33)/4/12*6,2) -> 0 | BL33: 0 | BM33: =ROUND(('Sch. B'!BM33+'Sch. C'!BM33+'Sch. D'!BM33+'Sch. E'!BM33)/4/12*6,2) -> 0 | BN33: 0 | BO33: =ROUND(('Sch. B'!BO33+'Sch. C'!BO33+'Sch. D'!BO33+'Sch. E'!BO33)/4/12*6,2) -> 0 | BP33: 0 | BQ33: =ROUND(('Sch. B'!BQ33+'Sch. C'!BQ33+'Sch. D'!BQ33+'Sch. E'!BQ33)/4/12*6,2) -> 0 | BR33: 0 | BS33: =ROUND(('Sch. B'!BS33+'Sch. C'!BS33+'Sch. D'!BS33+'Sch. E'!BS33)/4/12*6,2) -> 0 | BT33: 0 | BU33: =ROUND(('Sch. B'!BU33+'Sch. C'!BU33+'Sch. D'!BU33+'Sch. E'!BU33)/4/12*6,2) -> 0 | BV33: 0 | BW33: =ROUND(('Sch. B'!BW33+'Sch. C'!BW33+'Sch. D'!BW33+'Sch. E'!BW33)/4/12*6,2) -> 0 | BX33: 0 | BY33: =ROUND(('Sch. B'!BY33+'Sch. C'!BY33+'Sch. D'!BY33+'Sch. E'!BY33)/4/12*6,2) -> 0 | BZ33: 0 | CA33: 1934.45 | CB33: 101558.625
A34: =+Index!$K$4+1+0.5-B34 -> 51.5 | B34: 1968 | C34: =ROUND(('Sch. B'!C34+'Sch. C'!C34+'Sch. D'!C34+'Sch. E'!C34)/4/12*6,2) -> 0 | D34: 0 | E34: =ROUND(('Sch. B'!E34+'Sch. C'!E34+'Sch. D'!E34+'Sch. E'!E34)/4/12*6,2) -> 0 | F34: 0 | G34: =ROUND(('Sch. B'!G34+'Sch. C'!G34+'Sch. D'!G34+'Sch. E'!G34)/4/12*6,2) -> 0 | H34: 0 | I34: =ROUND(('Sch. B'!I34+'Sch. C'!I34+'Sch. D'!I34+'Sch. E'!I34)/4/12*6,2) -> 0 | J34: 0 | K34: =ROUND(('Sch. B'!K34+'Sch. C'!K34+'Sch. D'!K34+'Sch. E'!K34)/4/12*6,2) -> 0 | L34: 0 | M34: =ROUND(('Sch. B'!M34+'Sch. C'!M34+'Sch. D'!M34+'Sch. E'!M34)/4/12*6,2) -> 0 | N34: 0 | O34: =ROUND(('Sch. B'!O34+'Sch. C'!O34+'Sch. D'!O34+'Sch. E'!O34)/4/12*6,2) -> 0 | P34: 0 | Q34: =ROUND(('Sch. B'!Q34+'Sch. C'!Q34+'Sch. D'!Q34+'Sch. E'!Q34)/4/12*6,2) -> 0 | R34: 0 | S34: =ROUND(('Sch. B'!S34+'Sch. C'!S34+'Sch. D'!S34+'Sch. E'!S34)/4/12*6,2) -> 0 | T34: 0 | U34: =ROUND(('Sch. B'!U34+'Sch. C'!U34+'Sch. D'!U34+'Sch. E'!U34)/4/12*6,2) -> 0 | V34: 0 | W34: =ROUND(('Sch. B'!W34+'Sch. C'!W34+'Sch. D'!W34+'Sch. E'!W34)/4/12*6,2)+38.87 -> 199.2 | X34: 10258.8 | Y34: =ROUND(('Sch. B'!Y34+'Sch. C'!Y34+'Sch. D'!Y34+'Sch. E'!Y34)/4/12*6,2) -> 233.51 | Z34: 12025.765 | AA34: =ROUND(('Sch. B'!AA34+'Sch. C'!AA34+'Sch. D'!AA34+'Sch. E'!AA34)/4/12*6,2) -> 0 | AB34: 0 | AC34: =ROUND(('Sch. B'!AC34+'Sch. C'!AC34+'Sch. D'!AC34+'Sch. E'!AC34)/4/12*6,2) -> 0 | AD34: 0 | AE34: =ROUND(('Sch. B'!AE34+'Sch. C'!AE34+'Sch. D'!AE34+'Sch. E'!AE34)/4/12*6,2) -> 80.89 | AF34: 4165.835 | AG34: =ROUND(('Sch. B'!AG34+'Sch. C'!AG34+'Sch. D'!AG34+'Sch. E'!AG34)/4/12*6,2) -> 0 | AH34: 0 | AI34: =ROUND(('Sch. B'!AI34+'Sch. C'!AI34+'Sch. D'!AI34+'Sch. E'!AI34)/4/12*6,2) -> 44.17 | AJ34: 2274.755 | AK34: =ROUND(('Sch. B'!AK34+'Sch. C'!AK34+'Sch. D'!AK34+'Sch. E'!AK34)/4/12*6,2) -> 0 | AL34: 0 | AM34: =ROUND(('Sch. B'!AM34+'Sch. C'!AM34+'Sch. D'!AM34+'Sch. E'!AM34)/4/12*6,2) -> 0.47 | AN34: 24.205 | AO34: =ROUND(('Sch. B'!AO34+'Sch. C'!AO34+'Sch. D'!AO34+'Sch. E'!AO34)/4/12*6,2) -> 0 | AP34: 0 | AQ34: =ROUND(('Sch. B'!AQ34+'Sch. C'!AQ34+'Sch. D'!AQ34+'Sch. E'!AQ34)/4/12*6,2) -> 0 | AR34: 0 | AS34: =ROUND(('Sch. B'!AS34+'Sch. C'!AS34+'Sch. D'!AS34+'Sch. E'!AS34)/4/12*6,2) -> 0 | AT34: 0 | AU34: =ROUND(('Sch. B'!AU34+'Sch. C'!AU34+'Sch. D'!AU34+'Sch. E'!AU34)/4/12*6,2) -> 0 | AV34: 0 | AW34: =ROUND(('Sch. B'!AW34+'Sch. C'!AW34+'Sch. D'!AW34+'Sch. E'!AW34)/4/12*6,2) -> 0 | AX34: 0 | AY34: =ROUND(('Sch. B'!AY34+'Sch. C'!AY34+'Sch. D'!AY34+'Sch. E'!AY34)/4/12*6,2) -> 0 | AZ34: 0 | BA34: =ROUND(('Sch. B'!BA34+'Sch. C'!BA34+'Sch. D'!BA34+'Sch. E'!BA34)/4/12*6,2) -> 0 | BB34: 0 | BC34: =ROUND(('Sch. B'!BC34+'Sch. C'!BC34+'Sch. D'!BC34+'Sch. E'!BC34)/4/12*6,2) -> 0 | BD34: 0 | BE34: =ROUND(('Sch. B'!BE34+'Sch. C'!BE34+'Sch. D'!BE34+'Sch. E'!BE34)/4/12*6,2) -> 0 | BF34: 0 | BG34: =ROUND(('Sch. B'!BG34+'Sch. C'!BG34+'Sch. D'!BG34+'Sch. E'!BG34)/4/12*6,2) -> 0 | BH34: 0 | BI34: =ROUND(('Sch. B'!BI34+'Sch. C'!BI34+'Sch. D'!BI34+'Sch. E'!BI34)/4/12*6,2) -> 0 | BJ34: 0 | BK34: =ROUND(('Sch. B'!BK34+'Sch. C'!BK34+'Sch. D'!BK34+'Sch. E'!BK34)/4/12*6,2) -> 0 | BL34: 0 | BM34: =ROUND(('Sch. B'!BM34+'Sch. C'!BM34+'Sch. D'!BM34+'Sch. E'!BM34)/4/12*6,2) -> 0 | BN34: 0 | BO34: =ROUND(('Sch. B'!BO34+'Sch. C'!BO34+'Sch. D'!BO34+'Sch. E'!BO34)/4/12*6,2) -> 0 | BP34: 0 | BQ34: =ROUND(('Sch. B'!BQ34+'Sch. C'!BQ34+'Sch. D'!BQ34+'Sch. E'!BQ34)/4/12*6,2) -> 0 | BR34: 0 | BS34: =ROUND(('Sch. B'!BS34+'Sch. C'!BS34+'Sch. D'!BS34+'Sch. E'!BS34)/4/12*6,2) -> 0 | BT34: 0 | BU34: =ROUND(('Sch. B'!BU34+'Sch. C'!BU34+'Sch. D'!BU34+'Sch. E'!BU34)/4/12*6,2) -> 0 | BV34: 0 | BW34: =ROUND(('Sch. B'!BW34+'Sch. C'!BW34+'Sch. D'!BW34+'Sch. E'!BW34)/4/12*6,2) -> 0 | BX34: 0 | BY34: =ROUND(('Sch. B'!BY34+'Sch. C'!BY34+'Sch. D'!BY34+'Sch. E'!BY34)/4/12*6,2) -> 0 | BZ34: 0 | CA34: 558.24 | CB34: 28749.36
A35: =+Index!$K$4+1+0.5-B35 -> 50.5 | B35: 1969 | C35: =ROUND(('Sch. B'!C35+'Sch. C'!C35+'Sch. D'!C35+'Sch. E'!C35)/4/12*6,2) -> 0 | D35: 0 | E35: =ROUND(('Sch. B'!E35+'Sch. C'!E35+'Sch. D'!E35+'Sch. E'!E35)/4/12*6,2) -> 0 | F35: 0 | G35: =ROUND(('Sch. B'!G35+'Sch. C'!G35+'Sch. D'!G35+'Sch. E'!G35)/4/12*6,2) -> 0 | H35: 0 | I35: =ROUND(('Sch. B'!I35+'Sch. C'!I35+'Sch. D'!I35+'Sch. E'!I35)/4/12*6,2) -> 0 | J35: 0 | K35: =ROUND(('Sch. B'!K35+'Sch. C'!K35+'Sch. D'!K35+'Sch. E'!K35)/4/12*6,2) -> 0 | L35: 0 | M35: =ROUND(('Sch. B'!M35+'Sch. C'!M35+'Sch. D'!M35+'Sch. E'!M35)/4/12*6,2) -> 0 | N35: 0 | O35: =ROUND(('Sch. B'!O35+'Sch. C'!O35+'Sch. D'!O35+'Sch. E'!O35)/4/12*6,2) -> 0 | P35: 0 | Q35: =ROUND(('Sch. B'!Q35+'Sch. C'!Q35+'Sch. D'!Q35+'Sch. E'!Q35)/4/12*6,2) -> 0 | R35: 0 | S35: =ROUND(('Sch. B'!S35+'Sch. C'!S35+'Sch. D'!S35+'Sch. E'!S35)/4/12*6,2) -> 0 | T35: 0 | U35: =ROUND(('Sch. B'!U35+'Sch. C'!U35+'Sch. D'!U35+'Sch. E'!U35)/4/12*6,2) -> 0 | V35: 0 | W35: =ROUND(('Sch. B'!W35+'Sch. C'!W35+'Sch. D'!W35+'Sch. E'!W35)/4/12*6,2)+479.6 -> 621.96 | X35: 31408.98 | Y35: =ROUND(('Sch. B'!Y35+'Sch. C'!Y35+'Sch. D'!Y35+'Sch. E'!Y35)/4/12*6,2) -> 58.16 | Z35: 2937.08 | AA35: =ROUND(('Sch. B'!AA35+'Sch. C'!AA35+'Sch. D'!AA35+'Sch. E'!AA35)/4/12*6,2) -> 0 | AB35: 0 | AC35: =ROUND(('Sch. B'!AC35+'Sch. C'!AC35+'Sch. D'!AC35+'Sch. E'!AC35)/4/12*6,2) -> 0 | AD35: 0 | AE35: =ROUND(('Sch. B'!AE35+'Sch. C'!AE35+'Sch. D'!AE35+'Sch. E'!AE35)/4/12*6,2) -> 156.99 | AF35: 7927.995 | AG35: =ROUND(('Sch. B'!AG35+'Sch. C'!AG35+'Sch. D'!AG35+'Sch. E'!AG35)/4/12*6,2) -> 276.01 | AH35: 13938.505 | AI35: =ROUND(('Sch. B'!AI35+'Sch. C'!AI35+'Sch. D'!AI35+'Sch. E'!AI35)/4/12*6,2) -> 67.2 | AJ35: 3393.6 | AK35: =ROUND(('Sch. B'!AK35+'Sch. C'!AK35+'Sch. D'!AK35+'Sch. E'!AK35)/4/12*6,2) -> 35.73 | AL35: 1804.365 | AM35: =ROUND(('Sch. B'!AM35+'Sch. C'!AM35+'Sch. D'!AM35+'Sch. E'!AM35)/4/12*6,2) -> 25.5 | AN35: 1287.75 | AO35: =ROUND(('Sch. B'!AO35+'Sch. C'!AO35+'Sch. D'!AO35+'Sch. E'!AO35)/4/12*6,2) -> 0 | AP35: 0 | AQ35: =ROUND(('Sch. B'!AQ35+'Sch. C'!AQ35+'Sch. D'!AQ35+'Sch. E'!AQ35)/4/12*6,2) -> 0 | AR35: 0 | AS35: =ROUND(('Sch. B'!AS35+'Sch. C'!AS35+'Sch. D'!AS35+'Sch. E'!AS35)/4/12*6,2) -> 0 | AT35: 0 | AU35: =ROUND(('Sch. B'!AU35+'Sch. C'!AU35+'Sch. D'!AU35+'Sch. E'!AU35)/4/12*6,2) -> 0 | AV35: 0 | AW35: =ROUND(('Sch. B'!AW35+'Sch. C'!AW35+'Sch. D'!AW35+'Sch. E'!AW35)/4/12*6,2) -> 0 | AX35: 0 | AY35: =ROUND(('Sch. B'!AY35+'Sch. C'!AY35+'Sch. D'!AY35+'Sch. E'!AY35)/4/12*6,2) -> 0 | AZ35: 0 | BA35: =ROUND(('Sch. B'!BA35+'Sch. C'!BA35+'Sch. D'!BA35+'Sch. E'!BA35)/4/12*6,2) -> 0 | BB35: 0 | BC35: =ROUND(('Sch. B'!BC35+'Sch. C'!BC35+'Sch. D'!BC35+'Sch. E'!BC35)/4/12*6,2) -> 0 | BD35: 0 | BE35: =ROUND(('Sch. B'!BE35+'Sch. C'!BE35+'Sch. D'!BE35+'Sch. E'!BE35)/4/12*6,2) -> 0 | BF35: 0 | BG35: =ROUND(('Sch. B'!BG35+'Sch. C'!BG35+'Sch. D'!BG35+'Sch. E'!BG35)/4/12*6,2) -> 0 | BH35: 0 | BI35: =ROUND(('Sch. B'!BI35+'Sch. C'!BI35+'Sch. D'!BI35+'Sch. E'!BI35)/4/12*6,2) -> 0 | BJ35: 0 | BK35: =ROUND(('Sch. B'!BK35+'Sch. C'!BK35+'Sch. D'!BK35+'Sch. E'!BK35)/4/12*6,2) -> 0 | BL35: 0 | BM35: =ROUND(('Sch. B'!BM35+'Sch. C'!BM35+'Sch. D'!BM35+'Sch. E'!BM35)/4/12*6,2) -> 0 | BN35: 0 | BO35: =ROUND(('Sch. B'!BO35+'Sch. C'!BO35+'Sch. D'!BO35+'Sch. E'!BO35)/4/12*6,2) -> 0 | BP35: 0 | BQ35: =ROUND(('Sch. B'!BQ35+'Sch. C'!BQ35+'Sch. D'!BQ35+'Sch. E'!BQ35)/4/12*6,2) -> 0 | BR35: 0 | BS35: =ROUND(('Sch. B'!BS35+'Sch. C'!BS35+'Sch. D'!BS35+'Sch. E'!BS35)/4/12*6,2) -> 0 | BT35: 0 | BU35: =ROUND(('Sch. B'!BU35+'Sch. C'!BU35+'Sch. D'!BU35+'Sch. E'!BU35)/4/12*6,2) -> 0 | BV35: 0 | BW35: =ROUND(('Sch. B'!BW35+'Sch. C'!BW35+'Sch. D'!BW35+'Sch. E'!BW35)/4/12*6,2) -> 0 | BX35: 0 | BY35: =ROUND(('Sch. B'!BY35+'Sch. C'!BY35+'Sch. D'!BY35+'Sch. E'!BY35)/4/12*6,2) -> 0 | BZ35: 0 | CA35: 1241.55 | CB35: 62698.275
A36: =+Index!$K$4+1+0.5-B36 -> 49.5 | B36: 1970 | C36: =ROUND(('Sch. B'!C36+'Sch. C'!C36+'Sch. D'!C36+'Sch. E'!C36)/4/12*6,2) -> 0 | D36: 0 | E36: =ROUND(('Sch. B'!E36+'Sch. C'!E36+'Sch. D'!E36+'Sch. E'!E36)/4/12*6,2) -> 0 | F36: 0 | G36: =ROUND(('Sch. B'!G36+'Sch. C'!G36+'Sch. D'!G36+'Sch. E'!G36)/4/12*6,2) -> 0 | H36: 0 | I36: =ROUND(('Sch. B'!I36+'Sch. C'!I36+'Sch. D'!I36+'Sch. E'!I36)/4/12*6,2) -> 0 | J36: 0 | K36: =ROUND(('Sch. B'!K36+'Sch. C'!K36+'Sch. D'!K36+'Sch. E'!K36)/4/12*6,2) -> 1766.99 | L36: 87466.005 | M36: =ROUND(('Sch. B'!M36+'Sch. C'!M36+'Sch. D'!M36+'Sch. E'!M36)/4/12*6,2) -> 0 | N36: 0 | O36: =ROUND(('Sch. B'!O36+'Sch. C'!O36+'Sch. D'!O36+'Sch. E'!O36)/4/12*6,2) -> 0 | P36: 0 | Q36: =ROUND(('Sch. B'!Q36+'Sch. C'!Q36+'Sch. D'!Q36+'Sch. E'!Q36)/4/12*6,2) -> 0 | R36: 0 | S36: =ROUND(('Sch. B'!S36+'Sch. C'!S36+'Sch. D'!S36+'Sch. E'!S36)/4/12*6,2) -> 0 | T36: 0 | U36: =ROUND(('Sch. B'!U36+'Sch. C'!U36+'Sch. D'!U36+'Sch. E'!U36)/4/12*6,2) -> 0 | V36: 0 | W36: =ROUND(('Sch. B'!W36+'Sch. C'!W36+'Sch. D'!W36+'Sch. E'!W36)/4/12*6,2) -> 631.28 | X36: 31248.36 | Y36: =ROUND(('Sch. B'!Y36+'Sch. C'!Y36+'Sch. D'!Y36+'Sch. E'!Y36)/4/12*6,2)+467.33 -> 920.55 | Z36: 45567.225 | AA36: =ROUND(('Sch. B'!AA36+'Sch. C'!AA36+'Sch. D'!AA36+'Sch. E'!AA36)/4/12*6,2) -> 0 | AB36: 0 | AC36: =ROUND(('Sch. B'!AC36+'Sch. C'!AC36+'Sch. D'!AC36+'Sch. E'!AC36)/4/12*6,2) -> 0 | AD36: 0 | AE36: =ROUND(('Sch. B'!AE36+'Sch. C'!AE36+'Sch. D'!AE36+'Sch. E'!AE36)/4/12*6,2) -> 234.16 | AF36: 11590.92 | AG36: =ROUND(('Sch. B'!AG36+'Sch. C'!AG36+'Sch. D'!AG36+'Sch. E'!AG36)/4/12*6,2) -> 0 | AH36: 0 | AI36: =ROUND(('Sch. B'!AI36+'Sch. C'!AI36+'Sch. D'!AI36+'Sch. E'!AI36)/4/12*6,2) -> 48.19 | AJ36: 2385.405 | AK36: =ROUND(('Sch. B'!AK36+'Sch. C'!AK36+'Sch. D'!AK36+'Sch. E'!AK36)/4/12*6,2) -> 0 | AL36: 0 | AM36: =ROUND(('Sch. B'!AM36+'Sch. C'!AM36+'Sch. D'!AM36+'Sch. E'!AM36)/4/12*6,2) -> 0 | AN36: 0 | AO36: =ROUND(('Sch. B'!AO36+'Sch. C'!AO36+'Sch. D'!AO36+'Sch. E'!AO36)/4/12*6,2) -> 0 | AP36: 0 | AQ36: =ROUND(('Sch. B'!AQ36+'Sch. C'!AQ36+'Sch. D'!AQ36+'Sch. E'!AQ36)/4/12*6,2) -> 0 | AR36: 0 | AS36: =ROUND(('Sch. B'!AS36+'Sch. C'!AS36+'Sch. D'!AS36+'Sch. E'!AS36)/4/12*6,2) -> 0 | AT36: 0 | AU36: =ROUND(('Sch. B'!AU36+'Sch. C'!AU36+'Sch. D'!AU36+'Sch. E'!AU36)/4/12*6,2) -> 0 | AV36: 0 | AW36: =ROUND(('Sch. B'!AW36+'Sch. C'!AW36+'Sch. D'!AW36+'Sch. E'!AW36)/4/12*6,2) -> 0 | AX36: 0 | AY36: =ROUND(('Sch. B'!AY36+'Sch. C'!AY36+'Sch. D'!AY36+'Sch. E'!AY36)/4/12*6,2) -> 0 | AZ36: 0 | BA36: =ROUND(('Sch. B'!BA36+'Sch. C'!BA36+'Sch. D'!BA36+'Sch. E'!BA36)/4/12*6,2) -> 0 | BB36: 0 | BC36: =ROUND(('Sch. B'!BC36+'Sch. C'!BC36+'Sch. D'!BC36+'Sch. E'!BC36)/4/12*6,2) -> 0 | BD36: 0 | BE36: =ROUND(('Sch. B'!BE36+'Sch. C'!BE36+'Sch. D'!BE36+'Sch. E'!BE36)/4/12*6,2) -> 0 | BF36: 0 | BG36: =ROUND(('Sch. B'!BG36+'Sch. C'!BG36+'Sch. D'!BG36+'Sch. E'!BG36)/4/12*6,2) -> 0 | BH36: 0 | BI36: =ROUND(('Sch. B'!BI36+'Sch. C'!BI36+'Sch. D'!BI36+'Sch. E'!BI36)/4/12*6,2) -> 0 | BJ36: 0 | BK36: =ROUND(('Sch. B'!BK36+'Sch. C'!BK36+'Sch. D'!BK36+'Sch. E'!BK36)/4/12*6,2) -> 0 | BL36: 0 | BM36: =ROUND(('Sch. B'!BM36+'Sch. C'!BM36+'Sch. D'!BM36+'Sch. E'!BM36)/4/12*6,2) -> 0 | BN36: 0 | BO36: =ROUND(('Sch. B'!BO36+'Sch. C'!BO36+'Sch. D'!BO36+'Sch. E'!BO36)/4/12*6,2) -> 0 | BP36: 0 | BQ36: =ROUND(('Sch. B'!BQ36+'Sch. C'!BQ36+'Sch. D'!BQ36+'Sch. E'!BQ36)/4/12*6,2) -> 0 | BR36: 0 | BS36: =ROUND(('Sch. B'!BS36+'Sch. C'!BS36+'Sch. D'!BS36+'Sch. E'!BS36)/4/12*6,2) -> 0 | BT36: 0 | BU36: =ROUND(('Sch. B'!BU36+'Sch. C'!BU36+'Sch. D'!BU36+'Sch. E'!BU36)/4/12*6,2) -> 0 | BV36: 0 | BW36: =ROUND(('Sch. B'!BW36+'Sch. C'!BW36+'Sch. D'!BW36+'Sch. E'!BW36)/4/12*6,2) -> 0 | BX36: 0 | BY36: =ROUND(('Sch. B'!BY36+'Sch. C'!BY36+'Sch. D'!BY36+'Sch. E'!BY36)/4/12*6,2) -> 0 | BZ36: 0 | CA36: 3601.17 | CB36: 178257.915
A37: =+Index!$K$4+1+0.5-B37 -> 48.5 | B37: 1971 | C37: =ROUND(('Sch. B'!C37+'Sch. C'!C37+'Sch. D'!C37+'Sch. E'!C37)/4/12*6,2) -> 0 | D37: 0 | E37: =ROUND(('Sch. B'!E37+'Sch. C'!E37+'Sch. D'!E37+'Sch. E'!E37)/4/12*6,2) -> 0 | F37: 0 | G37: =ROUND(('Sch. B'!G37+'Sch. C'!G37+'Sch. D'!G37+'Sch. E'!G37)/4/12*6,2) -> 0 | H37: 0 | I37: =ROUND(('Sch. B'!I37+'Sch. C'!I37+'Sch. D'!I37+'Sch. E'!I37)/4/12*6,2) -> 0 | J37: 0 | K37: =ROUND(('Sch. B'!K37+'Sch. C'!K37+'Sch. D'!K37+'Sch. E'!K37)/4/12*6,2) -> 0 | L37: 0 | M37: =ROUND(('Sch. B'!M37+'Sch. C'!M37+'Sch. D'!M37+'Sch. E'!M37)/4/12*6,2) -> 0 | N37: 0 | O37: =ROUND(('Sch. B'!O37+'Sch. C'!O37+'Sch. D'!O37+'Sch. E'!O37)/4/12*6,2) -> 0 | P37: 0 | Q37: =ROUND(('Sch. B'!Q37+'Sch. C'!Q37+'Sch. D'!Q37+'Sch. E'!Q37)/4/12*6,2) -> 0 | R37: 0 | S37: =ROUND(('Sch. B'!S37+'Sch. C'!S37+'Sch. D'!S37+'Sch. E'!S37)/4/12*6,2) -> 0 | T37: 0 | U37: =ROUND(('Sch. B'!U37+'Sch. C'!U37+'Sch. D'!U37+'Sch. E'!U37)/4/12*6,2) -> 0 | V37: 0 | W37: =ROUND(('Sch. B'!W37+'Sch. C'!W37+'Sch. D'!W37+'Sch. E'!W37)/4/12*6,2)+71.77 -> 1910.88 | X37: 92677.68 | Y37: =ROUND(('Sch. B'!Y37+'Sch. C'!Y37+'Sch. D'!Y37+'Sch. E'!Y37)/4/12*6,2)+129.56 -> 233.58 | Z37: 11328.63 | AA37: =ROUND(('Sch. B'!AA37+'Sch. C'!AA37+'Sch. D'!AA37+'Sch. E'!AA37)/4/12*6,2) -> 0 | AB37: 0 | AC37: =ROUND(('Sch. B'!AC37+'Sch. C'!AC37+'Sch. D'!AC37+'Sch. E'!AC37)/4/12*6,2) -> 0 | AD37: 0 | AE37: =ROUND(('Sch. B'!AE37+'Sch. C'!AE37+'Sch. D'!AE37+'Sch. E'!AE37)/4/12*6,2) -> 356.08 | AF37: 17269.88 | AG37: =ROUND(('Sch. B'!AG37+'Sch. C'!AG37+'Sch. D'!AG37+'Sch. E'!AG37)/4/12*6,2) -> 1888.73 | AH37: 91603.405 | AI37: =ROUND(('Sch. B'!AI37+'Sch. C'!AI37+'Sch. D'!AI37+'Sch. E'!AI37)/4/12*6,2) -> 262.99 | AJ37: 12755.015 | AK37: =ROUND(('Sch. B'!AK37+'Sch. C'!AK37+'Sch. D'!AK37+'Sch. E'!AK37)/4/12*6,2) -> 2.65 | AL37: 128.525 | AM37: =ROUND(('Sch. B'!AM37+'Sch. C'!AM37+'Sch. D'!AM37+'Sch. E'!AM37)/4/12*6,2) -> 20.94 | AN37: 1015.59 | AO37: =ROUND(('Sch. B'!AO37+'Sch. C'!AO37+'Sch. D'!AO37+'Sch. E'!AO37)/4/12*6,2) -> 0 | AP37: 0 | AQ37: =ROUND(('Sch. B'!AQ37+'Sch. C'!AQ37+'Sch. D'!AQ37+'Sch. E'!AQ37)/4/12*6,2) -> 0 | AR37: 0 | AS37: =ROUND(('Sch. B'!AS37+'Sch. C'!AS37+'Sch. D'!AS37+'Sch. E'!AS37)/4/12*6,2) -> 0 | AT37: 0 | AU37: =ROUND(('Sch. B'!AU37+'Sch. C'!AU37+'Sch. D'!AU37+'Sch. E'!AU37)/4/12*6,2) -> 0 | AV37: 0 | AW37: =ROUND(('Sch. B'!AW37+'Sch. C'!AW37+'Sch. D'!AW37+'Sch. E'!AW37)/4/12*6,2) -> 0 | AX37: 0 | AY37: =ROUND(('Sch. B'!AY37+'Sch. C'!AY37+'Sch. D'!AY37+'Sch. E'!AY37)/4/12*6,2) -> 0 | AZ37: 0 | BA37: =ROUND(('Sch. B'!BA37+'Sch. C'!BA37+'Sch. D'!BA37+'Sch. E'!BA37)/4/12*6,2) -> 0 | BB37: 0 | BC37: =ROUND(('Sch. B'!BC37+'Sch. C'!BC37+'Sch. D'!BC37+'Sch. E'!BC37)/4/12*6,2) -> 0 | BD37: 0 | BE37: =ROUND(('Sch. B'!BE37+'Sch. C'!BE37+'Sch. D'!BE37+'Sch. E'!BE37)/4/12*6,2) -> 0 | BF37: 0 | BG37: =ROUND(('Sch. B'!BG37+'Sch. C'!BG37+'Sch. D'!BG37+'Sch. E'!BG37)/4/12*6,2) -> 0 | BH37: 0 | BI37: =ROUND(('Sch. B'!BI37+'Sch. C'!BI37+'Sch. D'!BI37+'Sch. E'!BI37)/4/12*6,2) -> 0 | BJ37: 0 | BK37: =ROUND(('Sch. B'!BK37+'Sch. C'!BK37+'Sch. D'!BK37+'Sch. E'!BK37)/4/12*6,2) -> 0 | BL37: 0 | BM37: =ROUND(('Sch. B'!BM37+'Sch. C'!BM37+'Sch. D'!BM37+'Sch. E'!BM37)/4/12*6,2) -> 0 | BN37: 0 | BO37: =ROUND(('Sch. B'!BO37+'Sch. C'!BO37+'Sch. D'!BO37+'Sch. E'!BO37)/4/12*6,2) -> 0 | BP37: 0 | BQ37: =ROUND(('Sch. B'!BQ37+'Sch. C'!BQ37+'Sch. D'!BQ37+'Sch. E'!BQ37)/4/12*6,2) -> 0 | BR37: 0 | BS37: =ROUND(('Sch. B'!BS37+'Sch. C'!BS37+'Sch. D'!BS37+'Sch. E'!BS37)/4/12*6,2) -> 0 | BT37: 0 | BU37: =ROUND(('Sch. B'!BU37+'Sch. C'!BU37+'Sch. D'!BU37+'Sch. E'!BU37)/4/12*6,2) -> 0 | BV37: 0 | BW37: =ROUND(('Sch. B'!BW37+'Sch. C'!BW37+'Sch. D'!BW37+'Sch. E'!BW37)/4/12*6,2) -> 0 | BX37: 0 | BY37: =ROUND(('Sch. B'!BY37+'Sch. C'!BY37+'Sch. D'!BY37+'Sch. E'!BY37)/4/12*6,2) -> 0 | BZ37: 0 | CA37: 4675.85 | CB37: 226778.725
A38: =+Index!$K$4+1+0.5-B38 -> 47.5 | B38: 1972 | C38: =ROUND(('Sch. B'!C38+'Sch. C'!C38+'Sch. D'!C38+'Sch. E'!C38)/4/12*6,2) -> 0 | D38: 0 | E38: =ROUND(('Sch. B'!E38+'Sch. C'!E38+'Sch. D'!E38+'Sch. E'!E38)/4/12*6,2) -> 0 | F38: 0 | G38: =ROUND(('Sch. B'!G38+'Sch. C'!G38+'Sch. D'!G38+'Sch. E'!G38)/4/12*6,2) -> 0 | H38: 0 | I38: =ROUND(('Sch. B'!I38+'Sch. C'!I38+'Sch. D'!I38+'Sch. E'!I38)/4/12*6,2) -> 0 | J38: 0 | K38: =ROUND(('Sch. B'!K38+'Sch. C'!K38+'Sch. D'!K38+'Sch. E'!K38)/4/12*6,2) -> 0 | L38: 0 | M38: =ROUND(('Sch. B'!M38+'Sch. C'!M38+'Sch. D'!M38+'Sch. E'!M38)/4/12*6,2) -> 1198.16 | N38: 56912.6 | O38: =ROUND(('Sch. B'!O38+'Sch. C'!O38+'Sch. D'!O38+'Sch. E'!O38)/4/12*6,2) -> 0 | P38: 0 | Q38: =ROUND(('Sch. B'!Q38+'Sch. C'!Q38+'Sch. D'!Q38+'Sch. E'!Q38)/4/12*6,2) -> 0 | R38: 0 | S38: =ROUND(('Sch. B'!S38+'Sch. C'!S38+'Sch. D'!S38+'Sch. E'!S38)/4/12*6,2) -> 0 | T38: 0 | U38: =ROUND(('Sch. B'!U38+'Sch. C'!U38+'Sch. D'!U38+'Sch. E'!U38)/4/12*6,2) -> 0 | V38: 0 | W38: =ROUND(('Sch. B'!W38+'Sch. C'!W38+'Sch. D'!W38+'Sch. E'!W38)/4/12*6,2)+140.14 -> 941.09 | X38: 44701.775 | Y38: =ROUND(('Sch. B'!Y38+'Sch. C'!Y38+'Sch. D'!Y38+'Sch. E'!Y38)/4/12*6,2)+673.44 -> 804.6 | Z38: 38218.5 | AA38: =ROUND(('Sch. B'!AA38+'Sch. C'!AA38+'Sch. D'!AA38+'Sch. E'!AA38)/4/12*6,2) -> 0 | AB38: 0 | AC38: =ROUND(('Sch. B'!AC38+'Sch. C'!AC38+'Sch. D'!AC38+'Sch. E'!AC38)/4/12*6,2) -> 0 | AD38: 0 | AE38: =ROUND(('Sch. B'!AE38+'Sch. C'!AE38+'Sch. D'!AE38+'Sch. E'!AE38)/4/12*6,2) -> 367.6 | AF38: 17461 | AG38: =ROUND(('Sch. B'!AG38+'Sch. C'!AG38+'Sch. D'!AG38+'Sch. E'!AG38)/4/12*6,2) -> 472.38 | AH38: 22438.05 | AI38: =ROUND(('Sch. B'!AI38+'Sch. C'!AI38+'Sch. D'!AI38+'Sch. E'!AI38)/4/12*6,2) -> 190.76 | AJ38: 9061.1 | AK38: =ROUND(('Sch. B'!AK38+'Sch. C'!AK38+'Sch. D'!AK38+'Sch. E'!AK38)/4/12*6,2) -> 10.85 | AL38: 515.375 | AM38: =ROUND(('Sch. B'!AM38+'Sch. C'!AM38+'Sch. D'!AM38+'Sch. E'!AM38)/4/12*6,2) -> 38.38 | AN38: 1823.05 | AO38: =ROUND(('Sch. B'!AO38+'Sch. C'!AO38+'Sch. D'!AO38+'Sch. E'!AO38)/4/12*6,2) -> 0 | AP38: 0 | AQ38: =ROUND(('Sch. B'!AQ38+'Sch. C'!AQ38+'Sch. D'!AQ38+'Sch. E'!AQ38)/4/12*6,2) -> 0 | AR38: 0 | AS38: =ROUND(('Sch. B'!AS38+'Sch. C'!AS38+'Sch. D'!AS38+'Sch. E'!AS38)/4/12*6,2) -> 0 | AT38: 0 | AU38: =ROUND(('Sch. B'!AU38+'Sch. C'!AU38+'Sch. D'!AU38+'Sch. E'!AU38)/4/12*6,2) -> 0 | AV38: 0 | AW38: =ROUND(('Sch. B'!AW38+'Sch. C'!AW38+'Sch. D'!AW38+'Sch. E'!AW38)/4/12*6,2) -> 0 | AX38: 0 | AY38: =ROUND(('Sch. B'!AY38+'Sch. C'!AY38+'Sch. D'!AY38+'Sch. E'!AY38)/4/12*6,2) -> 0 | AZ38: 0 | BA38: =ROUND(('Sch. B'!BA38+'Sch. C'!BA38+'Sch. D'!BA38+'Sch. E'!BA38)/4/12*6,2) -> 0 | BB38: 0 | BC38: =ROUND(('Sch. B'!BC38+'Sch. C'!BC38+'Sch. D'!BC38+'Sch. E'!BC38)/4/12*6,2) -> 0 | BD38: 0 | BE38: =ROUND(('Sch. B'!BE38+'Sch. C'!BE38+'Sch. D'!BE38+'Sch. E'!BE38)/4/12*6,2) -> 0 | BF38: 0 | BG38: =ROUND(('Sch. B'!BG38+'Sch. C'!BG38+'Sch. D'!BG38+'Sch. E'!BG38)/4/12*6,2) -> 0 | BH38: 0 | BI38: =ROUND(('Sch. B'!BI38+'Sch. C'!BI38+'Sch. D'!BI38+'Sch. E'!BI38)/4/12*6,2) -> 0 | BJ38: 0 | BK38: =ROUND(('Sch. B'!BK38+'Sch. C'!BK38+'Sch. D'!BK38+'Sch. E'!BK38)/4/12*6,2) -> 0 | BL38: 0 | BM38: =ROUND(('Sch. B'!BM38+'Sch. C'!BM38+'Sch. D'!BM38+'Sch. E'!BM38)/4/12*6,2) -> 0 | BN38: 0 | BO38: =ROUND(('Sch. B'!BO38+'Sch. C'!BO38+'Sch. D'!BO38+'Sch. E'!BO38)/4/12*6,2) -> 0 | BP38: 0 | BQ38: =ROUND(('Sch. B'!BQ38+'Sch. C'!BQ38+'Sch. D'!BQ38+'Sch. E'!BQ38)/4/12*6,2) -> 0 | BR38: 0 | BS38: =ROUND(('Sch. B'!BS38+'Sch. C'!BS38+'Sch. D'!BS38+'Sch. E'!BS38)/4/12*6,2) -> 0 | BT38: 0 | BU38: =ROUND(('Sch. B'!BU38+'Sch. C'!BU38+'Sch. D'!BU38+'Sch. E'!BU38)/4/12*6,2) -> 0 | BV38: 0 | BW38: =ROUND(('Sch. B'!BW38+'Sch. C'!BW38+'Sch. D'!BW38+'Sch. E'!BW38)/4/12*6,2) -> 0 | BX38: 0 | BY38: =ROUND(('Sch. B'!BY38+'Sch. C'!BY38+'Sch. D'!BY38+'Sch. E'!BY38)/4/12*6,2) -> 0 | BZ38: 0 | CA38: =+C38+E38+G38+I38+K38+M38+O38+Q38+S38+U38+W38+Y38+AA38+AC38+AE38+AG38+AI38+AK38+AM38+AO38+AQ38+AS38+AU38+AW38+AY38+BA38+BC38+BE38+BG38+BI38+BK38+BM38+BO38+BQ38+BS38+BU38 -> 4023.82 | CB38: 191131.45
A39: =+Index!$K$4+1+0.5-B39 -> 46.5 | B39: =+B38+1 -> 1973 | C39: =ROUND(('Sch. B'!C39+'Sch. C'!C39+'Sch. D'!C39+'Sch. E'!C39)/4/12*6,2) -> 0 | D39: 0 | E39: =ROUND(('Sch. B'!E39+'Sch. C'!E39+'Sch. D'!E39+'Sch. E'!E39)/4/12*6,2) -> 0 | F39: 0 | G39: =ROUND(('Sch. B'!G39+'Sch. C'!G39+'Sch. D'!G39+'Sch. E'!G39)/4/12*6,2) -> 0 | H39: 0 | I39: =ROUND(('Sch. B'!I39+'Sch. C'!I39+'Sch. D'!I39+'Sch. E'!I39)/4/12*6,2) -> 0 | J39: 0 | K39: =ROUND(('Sch. B'!K39+'Sch. C'!K39+'Sch. D'!K39+'Sch. E'!K39)/4/12*6,2) -> 0 | L39: 0 | M39: =ROUND(('Sch. B'!M39+'Sch. C'!M39+'Sch. D'!M39+'Sch. E'!M39)/4/12*6,2) -> 0 | N39: 0 | O39: =ROUND(('Sch. B'!O39+'Sch. C'!O39+'Sch. D'!O39+'Sch. E'!O39)/4/12*6,2) -> 0 | P39: 0 | Q39: =ROUND(('Sch. B'!Q39+'Sch. C'!Q39+'Sch. D'!Q39+'Sch. E'!Q39)/4/12*6,2) -> 0 | R39: 0 | S39: =ROUND(('Sch. B'!S39+'Sch. C'!S39+'Sch. D'!S39+'Sch. E'!S39)/4/12*6,2) -> 0 | T39: 0 | U39: =ROUND(('Sch. B'!U39+'Sch. C'!U39+'Sch. D'!U39+'Sch. E'!U39)/4/12*6,2) -> 0 | V39: 0 | W39: =ROUND(('Sch. B'!W39+'Sch. C'!W39+'Sch. D'!W39+'Sch. E'!W39)/4/12*6,2)+180.99 -> 1107.52 | X39: 51499.68 | Y39: =ROUND(('Sch. B'!Y39+'Sch. C'!Y39+'Sch. D'!Y39+'Sch. E'!Y39)/4/12*6,2) -> 178.46 | Z39: 8298.39 | AA39: =ROUND(('Sch. B'!AA39+'Sch. C'!AA39+'Sch. D'!AA39+'Sch. E'!AA39)/4/12*6,2) -> 0 | AB39: 0 | AC39: =ROUND(('Sch. B'!AC39+'Sch. C'!AC39+'Sch. D'!AC39+'Sch. E'!AC39)/4/12*6,2) -> 0 | AD39: 0 | AE39: =ROUND(('Sch. B'!AE39+'Sch. C'!AE39+'Sch. D'!AE39+'Sch. E'!AE39)/4/12*6,2) -> 271.41 | AF39: 12620.565 | AG39: =ROUND(('Sch. B'!AG39+'Sch. C'!AG39+'Sch. D'!AG39+'Sch. E'!AG39)/4/12*6,2) -> 781.06 | AH39: 36319.29 | AI39: =ROUND(('Sch. B'!AI39+'Sch. C'!AI39+'Sch. D'!AI39+'Sch. E'!AI39)/4/12*6,2) -> 253.17 | AJ39: 11772.405 | AK39: =ROUND(('Sch. B'!AK39+'Sch. C'!AK39+'Sch. D'!AK39+'Sch. E'!AK39)/4/12*6,2)+337.9 -> 343.93 | AL39: 15992.745 | AM39: =ROUND(('Sch. B'!AM39+'Sch. C'!AM39+'Sch. D'!AM39+'Sch. E'!AM39)/4/12*6,2) -> 15.47 | AN39: 719.355 | AO39: =ROUND(('Sch. B'!AO39+'Sch. C'!AO39+'Sch. D'!AO39+'Sch. E'!AO39)/4/12*6,2) -> 0 | AP39: 0 | AQ39: =ROUND(('Sch. B'!AQ39+'Sch. C'!AQ39+'Sch. D'!AQ39+'Sch. E'!AQ39)/4/12*6,2) -> 0 | AR39: 0 | AS39: =ROUND(('Sch. B'!AS39+'Sch. C'!AS39+'Sch. D'!AS39+'Sch. E'!AS39)/4/12*6,2) -> 0 | AT39: 0 | AU39: =ROUND(('Sch. B'!AU39+'Sch. C'!AU39+'Sch. D'!AU39+'Sch. E'!AU39)/4/12*6,2) -> 0 | AV39: 0 | AW39: =ROUND(('Sch. B'!AW39+'Sch. C'!AW39+'Sch. D'!AW39+'Sch. E'!AW39)/4/12*6,2) -> 0 | AX39: 0 | AY39: =ROUND(('Sch. B'!AY39+'Sch. C'!AY39+'Sch. D'!AY39+'Sch. E'!AY39)/4/12*6,2) -> 0 | AZ39: 0 | BA39: =ROUND(('Sch. B'!BA39+'Sch. C'!BA39+'Sch. D'!BA39+'Sch. E'!BA39)/4/12*6,2) -> 0 | BB39: 0 | BC39: =ROUND(('Sch. B'!BC39+'Sch. C'!BC39+'Sch. D'!BC39+'Sch. E'!BC39)/4/12*6,2) -> 0 | BD39: 0 | BE39: =ROUND(('Sch. B'!BE39+'Sch. C'!BE39+'Sch. D'!BE39+'Sch. E'!BE39)/4/12*6,2) -> 0 | BF39: 0 | BG39: =ROUND(('Sch. B'!BG39+'Sch. C'!BG39+'Sch. D'!BG39+'Sch. E'!BG39)/4/12*6,2) -> 0 | BH39: 0 | BI39: =ROUND(('Sch. B'!BI39+'Sch. C'!BI39+'Sch. D'!BI39+'Sch. E'!BI39)/4/12*6,2) -> 0 | BJ39: 0 | BK39: =ROUND(('Sch. B'!BK39+'Sch. C'!BK39+'Sch. D'!BK39+'Sch. E'!BK39)/4/12*6,2) -> 0 | BL39: 0 | BM39: =ROUND(('Sch. B'!BM39+'Sch. C'!BM39+'Sch. D'!BM39+'Sch. E'!BM39)/4/12*6,2) -> 0 | BN39: 0 | BO39: =ROUND(('Sch. B'!BO39+'Sch. C'!BO39+'Sch. D'!BO39+'Sch. E'!BO39)/4/12*6,2) -> 0 | BP39: 0 | BQ39: =ROUND(('Sch. B'!BQ39+'Sch. C'!BQ39+'Sch. D'!BQ39+'Sch. E'!BQ39)/4/12*6,2) -> 0 | BR39: 0 | BS39: =ROUND(('Sch. B'!BS39+'Sch. C'!BS39+'Sch. D'!BS39+'Sch. E'!BS39)/4/12*6,2) -> 0 | BT39: 0 | BU39: =ROUND(('Sch. B'!BU39+'Sch. C'!BU39+'Sch. D'!BU39+'Sch. E'!BU39)/4/12*6,2) -> 0 | BV39: 0 | BW39: =ROUND(('Sch. B'!BW39+'Sch. C'!BW39+'Sch. D'!BW39+'Sch. E'!BW39)/4/12*6,2) -> 0 | BX39: 0 | BY39: =ROUND(('Sch. B'!BY39+'Sch. C'!BY39+'Sch. D'!BY39+'Sch. E'!BY39)/4/12*6,2) -> 0 | BZ39: 0 | CA39: 2951.02 | CB39: 137222.43
A40: =+Index!$K$4+1+0.5-B40 -> 45.5 | B40: 1974 | C40: =ROUND(('Sch. B'!C40+'Sch. C'!C40+'Sch. D'!C40+'Sch. E'!C40)/4/12*6,2)-2062.5 -> 0 | D40: 0 | E40: =ROUND(('Sch. B'!E40+'Sch. C'!E40+'Sch. D'!E40+'Sch. E'!E40)/4/12*6,2) -> 0 | F40: 0 | G40: =ROUND(('Sch. B'!G40+'Sch. C'!G40+'Sch. D'!G40+'Sch. E'!G40)/4/12*6,2) -> 0 | H40: 0 | I40: =ROUND(('Sch. B'!I40+'Sch. C'!I40+'Sch. D'!I40+'Sch. E'!I40)/4/12*6,2) -> 0 | J40: 0 | K40: =ROUND(('Sch. B'!K40+'Sch. C'!K40+'Sch. D'!K40+'Sch. E'!K40)/4/12*6,2) -> 2500 | L40: 113750 | M40: =ROUND(('Sch. B'!M40+'Sch. C'!M40+'Sch. D'!M40+'Sch. E'!M40)/4/12*6,2) -> 0 | N40: 0 | O40: =ROUND(('Sch. B'!O40+'Sch. C'!O40+'Sch. D'!O40+'Sch. E'!O40)/4/12*6,2) -> 0 | P40: 0 | Q40: =ROUND(('Sch. B'!Q40+'Sch. C'!Q40+'Sch. D'!Q40+'Sch. E'!Q40)/4/12*6,2) -> 0 | R40: 0 | S40: =ROUND(('Sch. B'!S40+'Sch. C'!S40+'Sch. D'!S40+'Sch. E'!S40)/4/12*6,2) -> 0 | T40: 0 | U40: =ROUND(('Sch. B'!U40+'Sch. C'!U40+'Sch. D'!U40+'Sch. E'!U40)/4/12*6,2) -> 0 | V40: 0 | W40: =ROUND(('Sch. B'!W40+'Sch. C'!W40+'Sch. D'!W40+'Sch. E'!W40)/4/12*6,2)+838.59 -> 1929.33 | X40: 87784.515 | Y40: =ROUND(('Sch. B'!Y40+'Sch. C'!Y40+'Sch. D'!Y40+'Sch. E'!Y40)/4/12*6,2) -> 158.2 | Z40: 7198.1 | AA40: =ROUND(('Sch. B'!AA40+'Sch. C'!AA40+'Sch. D'!AA40+'Sch. E'!AA40)/4/12*6,2) -> 0 | AB40: 0 | AC40: =ROUND(('Sch. B'!AC40+'Sch. C'!AC40+'Sch. D'!AC40+'Sch. E'!AC40)/4/12*6,2) -> 0 | AD40: 0 | AE40: =ROUND(('Sch. B'!AE40+'Sch. C'!AE40+'Sch. D'!AE40+'Sch. E'!AE40)/4/12*6,2) -> 114.42 | AF40: 5206.11 | AG40: =ROUND(('Sch. B'!AG40+'Sch. C'!AG40+'Sch. D'!AG40+'Sch. E'!AG40)/4/12*6,2) -> 12.09 | AH40: 550.095 | AI40: =ROUND(('Sch. B'!AI40+'Sch. C'!AI40+'Sch. D'!AI40+'Sch. E'!AI40)/4/12*6,2) -> 528.05 | AJ40: 24026.275 | AK40: =ROUND(('Sch. B'!AK40+'Sch. C'!AK40+'Sch. D'!AK40+'Sch. E'!AK40)/4/12*6,2) -> 21.46 | AL40: 976.43 | AM40: =ROUND(('Sch. B'!AM40+'Sch. C'!AM40+'Sch. D'!AM40+'Sch. E'!AM40)/4/12*6,2) -> 42.78 | AN40: 1946.49 | AO40: =ROUND(('Sch. B'!AO40+'Sch. C'!AO40+'Sch. D'!AO40+'Sch. E'!AO40)/4/12*6,2) -> 0 | AP40: 0 | AQ40: =ROUND(('Sch. B'!AQ40+'Sch. C'!AQ40+'Sch. D'!AQ40+'Sch. E'!AQ40)/4/12*6,2) -> 0 | AR40: 0 | AS40: =ROUND(('Sch. B'!AS40+'Sch. C'!AS40+'Sch. D'!AS40+'Sch. E'!AS40)/4/12*6,2) -> 0 | AT40: 0 | AU40: =ROUND(('Sch. B'!AU40+'Sch. C'!AU40+'Sch. D'!AU40+'Sch. E'!AU40)/4/12*6,2) -> 0 | AV40: 0 | AW40: =ROUND(('Sch. B'!AW40+'Sch. C'!AW40+'Sch. D'!AW40+'Sch. E'!AW40)/4/12*6,2) -> 0 | AX40: 0 | AY40: =ROUND(('Sch. B'!AY40+'Sch. C'!AY40+'Sch. D'!AY40+'Sch. E'!AY40)/4/12*6,2) -> 0 | AZ40: 0 | BA40: =ROUND(('Sch. B'!BA40+'Sch. C'!BA40+'Sch. D'!BA40+'Sch. E'!BA40)/4/12*6,2) -> 0 | BB40: 0 | BC40: =ROUND(('Sch. B'!BC40+'Sch. C'!BC40+'Sch. D'!BC40+'Sch. E'!BC40)/4/12*6,2) -> 0 | BD40: 0 | BE40: =ROUND(('Sch. B'!BE40+'Sch. C'!BE40+'Sch. D'!BE40+'Sch. E'!BE40)/4/12*6,2) -> 0 | BF40: 0 | BG40: =ROUND(('Sch. B'!BG40+'Sch. C'!BG40+'Sch. D'!BG40+'Sch. E'!BG40)/4/12*6,2) -> 0 | BH40: 0 | BI40: =ROUND(('Sch. B'!BI40+'Sch. C'!BI40+'Sch. D'!BI40+'Sch. E'!BI40)/4/12*6,2) -> 0 | BJ40: 0 | BK40: =ROUND(('Sch. B'!BK40+'Sch. C'!BK40+'Sch. D'!BK40+'Sch. E'!BK40)/4/12*6,2) -> 0 | BL40: 0 | BM40: =ROUND(('Sch. B'!BM40+'Sch. C'!BM40+'Sch. D'!BM40+'Sch. E'!BM40)/4/12*6,2) -> 0 | BN40: 0 | BO40: =ROUND(('Sch. B'!BO40+'Sch. C'!BO40+'Sch. D'!BO40+'Sch. E'!BO40)/4/12*6,2) -> 0 | BP40: 0 | BQ40: =ROUND(('Sch. B'!BQ40+'Sch. C'!BQ40+'Sch. D'!BQ40+'Sch. E'!BQ40)/4/12*6,2) -> 0 | BR40: 0 | BS40: =ROUND(('Sch. B'!BS40+'Sch. C'!BS40+'Sch. D'!BS40+'Sch. E'!BS40)/4/12*6,2) -> 0 | BT40: 0 | BU40: =ROUND(('Sch. B'!BU40+'Sch. C'!BU40+'Sch. D'!BU40+'Sch. E'!BU40)/4/12*6,2) -> 0 | BV40: 0 | BW40: =ROUND(('Sch. B'!BW40+'Sch. C'!BW40+'Sch. D'!BW40+'Sch. E'!BW40)/4/12*6,2) -> 0 | BX40: 0 | BY40: =ROUND(('Sch. B'!BY40+'Sch. C'!BY40+'Sch. D'!BY40+'Sch. E'!BY40)/4/12*6,2) -> 0 | BZ40: 0 | CA40: 5306.33 | CB40: 241438.015
A41: =+Index!$K$4+1+0.5-B41 -> 44.5 | B41: 1975 | C41: =ROUND(('Sch. B'!C41+'Sch. C'!C41+'Sch. D'!C41+'Sch. E'!C41)/4/12*6,2) -> 0 | D41: 0 | E41: =ROUND(('Sch. B'!E41+'Sch. C'!E41+'Sch. D'!E41+'Sch. E'!E41)/4/12*6,2) -> 0 | F41: 0 | G41: =ROUND(('Sch. B'!G41+'Sch. C'!G41+'Sch. D'!G41+'Sch. E'!G41)/4/12*6,2) -> 0 | H41: 0 | I41: =ROUND(('Sch. B'!I41+'Sch. C'!I41+'Sch. D'!I41+'Sch. E'!I41)/4/12*6,2) -> 0 | J41: 0 | K41: =ROUND(('Sch. B'!K41+'Sch. C'!K41+'Sch. D'!K41+'Sch. E'!K41)/4/12*6,2) -> 220.87 | L41: 9828.715 | M41: =ROUND(('Sch. B'!M41+'Sch. C'!M41+'Sch. D'!M41+'Sch. E'!M41)/4/12*6,2) -> 5872.53 | N41: 261327.585 | O41: =ROUND(('Sch. B'!O41+'Sch. C'!O41+'Sch. D'!O41+'Sch. E'!O41)/4/12*6,2) -> 0 | P41: 0 | Q41: =ROUND(('Sch. B'!Q41+'Sch. C'!Q41+'Sch. D'!Q41+'Sch. E'!Q41)/4/12*6,2) -> 0 | R41: 0 | S41: =ROUND(('Sch. B'!S41+'Sch. C'!S41+'Sch. D'!S41+'Sch. E'!S41)/4/12*6,2) -> 0 | T41: 0 | U41: =ROUND(('Sch. B'!U41+'Sch. C'!U41+'Sch. D'!U41+'Sch. E'!U41)/4/12*6,2) -> 0 | V41: 0 | W41: =ROUND(('Sch. B'!W41+'Sch. C'!W41+'Sch. D'!W41+'Sch. E'!W41)/4/12*6,2)+409.96 -> 2983.2 | X41: 132752.4 | Y41: =ROUND(('Sch. B'!Y41+'Sch. C'!Y41+'Sch. D'!Y41+'Sch. E'!Y41)/4/12*6,2) -> 697.7 | Z41: 31047.65 | AA41: =ROUND(('Sch. B'!AA41+'Sch. C'!AA41+'Sch. D'!AA41+'Sch. E'!AA41)/4/12*6,2) -> 0 | AB41: 0 | AC41: =ROUND(('Sch. B'!AC41+'Sch. C'!AC41+'Sch. D'!AC41+'Sch. E'!AC41)/4/12*6,2) -> 842.47 | AD41: 37489.915 | AE41: =ROUND(('Sch. B'!AE41+'Sch. C'!AE41+'Sch. D'!AE41+'Sch. E'!AE41)/4/12*6,2)+1641.98 -> 1943.45 | AF41: 86483.525 | AG41: =ROUND(('Sch. B'!AG41+'Sch. C'!AG41+'Sch. D'!AG41+'Sch. E'!AG41)/4/12*6,2) -> 1141.81 | AH41: 50810.545 | AI41: =ROUND(('Sch. B'!AI41+'Sch. C'!AI41+'Sch. D'!AI41+'Sch. E'!AI41)/4/12*6,2) -> 104.28 | AJ41: 4640.46 | AK41: =ROUND(('Sch. B'!AK41+'Sch. C'!AK41+'Sch. D'!AK41+'Sch. E'!AK41)/4/12*6,2) -> 0.24 | AL41: 10.68 | AM41: =ROUND(('Sch. B'!AM41+'Sch. C'!AM41+'Sch. D'!AM41+'Sch. E'!AM41)/4/12*6,2) -> 8.57 | AN41: 381.365 | AO41: =ROUND(('Sch. B'!AO41+'Sch. C'!AO41+'Sch. D'!AO41+'Sch. E'!AO41)/4/12*6,2) -> 0 | AP41: 0 | AQ41: =ROUND(('Sch. B'!AQ41+'Sch. C'!AQ41+'Sch. D'!AQ41+'Sch. E'!AQ41)/4/12*6,2) -> 0 | AR41: 0 | AS41: =ROUND(('Sch. B'!AS41+'Sch. C'!AS41+'Sch. D'!AS41+'Sch. E'!AS41)/4/12*6,2) -> 0 | AT41: 0 | AU41: =ROUND(('Sch. B'!AU41+'Sch. C'!AU41+'Sch. D'!AU41+'Sch. E'!AU41)/4/12*6,2) -> 0 | AV41: 0 | AW41: =ROUND(('Sch. B'!AW41+'Sch. C'!AW41+'Sch. D'!AW41+'Sch. E'!AW41)/4/12*6,2) -> 0 | AX41: 0 | AY41: =ROUND(('Sch. B'!AY41+'Sch. C'!AY41+'Sch. D'!AY41+'Sch. E'!AY41)/4/12*6,2) -> 0 | AZ41: 0 | BA41: =ROUND(('Sch. B'!BA41+'Sch. C'!BA41+'Sch. D'!BA41+'Sch. E'!BA41)/4/12*6,2) -> 0 | BB41: 0 | BC41: =ROUND(('Sch. B'!BC41+'Sch. C'!BC41+'Sch. D'!BC41+'Sch. E'!BC41)/4/12*6,2) -> 0 | BD41: 0 | BE41: =ROUND(('Sch. B'!BE41+'Sch. C'!BE41+'Sch. D'!BE41+'Sch. E'!BE41)/4/12*6,2) -> 0 | BF41: 0 | BG41: =ROUND(('Sch. B'!BG41+'Sch. C'!BG41+'Sch. D'!BG41+'Sch. E'!BG41)/4/12*6,2) -> 0 | BH41: 0 | BI41: =ROUND(('Sch. B'!BI41+'Sch. C'!BI41+'Sch. D'!BI41+'Sch. E'!BI41)/4/12*6,2) -> 0 | BJ41: 0 | BK41: =ROUND(('Sch. B'!BK41+'Sch. C'!BK41+'Sch. D'!BK41+'Sch. E'!BK41)/4/12*6,2) -> 0 | BL41: 0 | BM41: =ROUND(('Sch. B'!BM41+'Sch. C'!BM41+'Sch. D'!BM41+'Sch. E'!BM41)/4/12*6,2) -> 0 | BN41: 0 | BO41: =ROUND(('Sch. B'!BO41+'Sch. C'!BO41+'Sch. D'!BO41+'Sch. E'!BO41)/4/12*6,2) -> 0 | BP41: 0 | BQ41: =ROUND(('Sch. B'!BQ41+'Sch. C'!BQ41+'Sch. D'!BQ41+'Sch. E'!BQ41)/4/12*6,2) -> 0 | BR41: 0 | BS41: =ROUND(('Sch. B'!BS41+'Sch. C'!BS41+'Sch. D'!BS41+'Sch. E'!BS41)/4/12*6,2) -> 0 | BT41: 0 | BU41: =ROUND(('Sch. B'!BU41+'Sch. C'!BU41+'Sch. D'!BU41+'Sch. E'!BU41)/4/12*6,2) -> 0 | BV41: 0 | BW41: =ROUND(('Sch. B'!BW41+'Sch. C'!BW41+'Sch. D'!BW41+'Sch. E'!BW41)/4/12*6,2) -> 0 | BX41: 0 | BY41: =ROUND(('Sch. B'!BY41+'Sch. C'!BY41+'Sch. D'!BY41+'Sch. E'!BY41)/4/12*6,2) -> 0 | BZ41: 0 | CA41: 13815.12 | CB41: 614772.84
A42: =+Index!$K$4+1+0.5-B42 -> 43.5 | B42: 1976 | C42: =ROUND(('Sch. B'!C42+'Sch. C'!C42+'Sch. D'!C42+'Sch. E'!C42)/4/12*6,2) -> 0 | D42: 0 | E42: =ROUND(('Sch. B'!E42+'Sch. C'!E42+'Sch. D'!E42+'Sch. E'!E42)/4/12*6,2) -> 0 | F42: 0 | G42: =ROUND(('Sch. B'!G42+'Sch. C'!G42+'Sch. D'!G42+'Sch. E'!G42)/4/12*6,2) -> 0 | H42: 0 | I42: =ROUND(('Sch. B'!I42+'Sch. C'!I42+'Sch. D'!I42+'Sch. E'!I42)/4/12*6,2) -> 0 | J42: 0 | K42: =ROUND(('Sch. B'!K42+'Sch. C'!K42+'Sch. D'!K42+'Sch. E'!K42)/4/12*6,2) -> 45.63 | L42: 1984.905 | M42: =ROUND(('Sch. B'!M42+'Sch. C'!M42+'Sch. D'!M42+'Sch. E'!M42)/4/12*6,2) -> 0 | N42: 0 | O42: =ROUND(('Sch. B'!O42+'Sch. C'!O42+'Sch. D'!O42+'Sch. E'!O42)/4/12*6,2) -> 0 | P42: 0 | Q42: =ROUND(('Sch. B'!Q42+'Sch. C'!Q42+'Sch. D'!Q42+'Sch. E'!Q42)/4/12*6,2) -> 0 | R42: 0 | S42: =ROUND(('Sch. B'!S42+'Sch. C'!S42+'Sch. D'!S42+'Sch. E'!S42)/4/12*6,2) -> 0 | T42: 0 | U42: =ROUND(('Sch. B'!U42+'Sch. C'!U42+'Sch. D'!U42+'Sch. E'!U42)/4/12*6,2) -> 0 | V42: 0 | W42: =ROUND(('Sch. B'!W42+'Sch. C'!W42+'Sch. D'!W42+'Sch. E'!W42)/4/12*6,2) -> 1150.53 | X42: 50048.055 | Y42: =ROUND(('Sch. B'!Y42+'Sch. C'!Y42+'Sch. D'!Y42+'Sch. E'!Y42)/4/12*6,2) -> 1630.92 | Z42: 70945.02 | AA42: =ROUND(('Sch. B'!AA42+'Sch. C'!AA42+'Sch. D'!AA42+'Sch. E'!AA42)/4/12*6,2) -> 0 | AB42: 0 | AC42: =ROUND(('Sch. B'!AC42+'Sch. C'!AC42+'Sch. D'!AC42+'Sch. E'!AC42)/4/12*6,2) -> 0 | AD42: 0 | AE42: =ROUND(('Sch. B'!AE42+'Sch. C'!AE42+'Sch. D'!AE42+'Sch. E'!AE42)/4/12*6,2) -> 150.76 | AF42: 6558.06 | AG42: =ROUND(('Sch. B'!AG42+'Sch. C'!AG42+'Sch. D'!AG42+'Sch. E'!AG42)/4/12*6,2) -> 20.21 | AH42: 879.135 | AI42: =ROUND(('Sch. B'!AI42+'Sch. C'!AI42+'Sch. D'!AI42+'Sch. E'!AI42)/4/12*6,2) -> 58.6 | AJ42: 2549.1 | AK42: =ROUND(('Sch. B'!AK42+'Sch. C'!AK42+'Sch. D'!AK42+'Sch. E'!AK42)/4/12*6,2)+62.93 -> 102.26 | AL42: 4448.31 | AM42: =ROUND(('Sch. B'!AM42+'Sch. C'!AM42+'Sch. D'!AM42+'Sch. E'!AM42)/4/12*6,2) -> 9.97 | AN42: 433.695 | AO42: =ROUND(('Sch. B'!AO42+'Sch. C'!AO42+'Sch. D'!AO42+'Sch. E'!AO42)/4/12*6,2) -> 0 | AP42: 0 | AQ42: =ROUND(('Sch. B'!AQ42+'Sch. C'!AQ42+'Sch. D'!AQ42+'Sch. E'!AQ42)/4/12*6,2) -> 0 | AR42: 0 | AS42: =ROUND(('Sch. B'!AS42+'Sch. C'!AS42+'Sch. D'!AS42+'Sch. E'!AS42)/4/12*6,2) -> 0 | AT42: 0 | AU42: =ROUND(('Sch. B'!AU42+'Sch. C'!AU42+'Sch. D'!AU42+'Sch. E'!AU42)/4/12*6,2) -> 0 | AV42: 0 | AW42: =ROUND(('Sch. B'!AW42+'Sch. C'!AW42+'Sch. D'!AW42+'Sch. E'!AW42)/4/12*6,2) -> 0 | AX42: 0 | AY42: =ROUND(('Sch. B'!AY42+'Sch. C'!AY42+'Sch. D'!AY42+'Sch. E'!AY42)/4/12*6,2) -> 0 | AZ42: 0 | BA42: =ROUND(('Sch. B'!BA42+'Sch. C'!BA42+'Sch. D'!BA42+'Sch. E'!BA42)/4/12*6,2) -> 0 | BB42: 0 | BC42: =ROUND(('Sch. B'!BC42+'Sch. C'!BC42+'Sch. D'!BC42+'Sch. E'!BC42)/4/12*6,2) -> 0 | BD42: 0 | BE42: =ROUND(('Sch. B'!BE42+'Sch. C'!BE42+'Sch. D'!BE42+'Sch. E'!BE42)/4/12*6,2) -> 0 | BF42: 0 | BG42: =ROUND(('Sch. B'!BG42+'Sch. C'!BG42+'Sch. D'!BG42+'Sch. E'!BG42)/4/12*6,2) -> 0 | BH42: 0 | BI42: =ROUND(('Sch. B'!BI42+'Sch. C'!BI42+'Sch. D'!BI42+'Sch. E'!BI42)/4/12*6,2) -> 0 | BJ42: 0 | BK42: =ROUND(('Sch. B'!BK42+'Sch. C'!BK42+'Sch. D'!BK42+'Sch. E'!BK42)/4/12*6,2) -> 0 | BL42: 0 | BM42: =ROUND(('Sch. B'!BM42+'Sch. C'!BM42+'Sch. D'!BM42+'Sch. E'!BM42)/4/12*6,2) -> 0 | BN42: 0 | BO42: =ROUND(('Sch. B'!BO42+'Sch. C'!BO42+'Sch. D'!BO42+'Sch. E'!BO42)/4/12*6,2) -> 0 | BP42: 0 | BQ42: =ROUND(('Sch. B'!BQ42+'Sch. C'!BQ42+'Sch. D'!BQ42+'Sch. E'!BQ42)/4/12*6,2) -> 0 | BR42: 0 | BS42: =ROUND(('Sch. B'!BS42+'Sch. C'!BS42+'Sch. D'!BS42+'Sch. E'!BS42)/4/12*6,2) -> 0 | BT42: 0 | BU42: =ROUND(('Sch. B'!BU42+'Sch. C'!BU42+'Sch. D'!BU42+'Sch. E'!BU42)/4/12*6,2) -> 0 | BV42: 0 | BW42: =ROUND(('Sch. B'!BW42+'Sch. C'!BW42+'Sch. D'!BW42+'Sch. E'!BW42)/4/12*6,2) -> 0 | BX42: 0 | BY42: =ROUND(('Sch. B'!BY42+'Sch. C'!BY42+'Sch. D'!BY42+'Sch. E'!BY42)/4/12*6,2) -> 0 | BZ42: 0 | CA42: 3168.88 | CB42: 137846.28
A43: =+Index!$K$4+1+0.5-B43 -> 42.5 | B43: 1977 | C43: =ROUND(('Sch. B'!C43+'Sch. C'!C43+'Sch. D'!C43+'Sch. E'!C43)/4/12*6,2) -> 0 | D43: 0 | E43: =ROUND(('Sch. B'!E43+'Sch. C'!E43+'Sch. D'!E43+'Sch. E'!E43)/4/12*6,2) -> 0 | F43: 0 | G43: =ROUND(('Sch. B'!G43+'Sch. C'!G43+'Sch. D'!G43+'Sch. E'!G43)/4/12*6,2) -> 0 | H43: 0 | I43: =ROUND(('Sch. B'!I43+'Sch. C'!I43+'Sch. D'!I43+'Sch. E'!I43)/4/12*6,2) -> 0 | J43: 0 | K43: =ROUND(('Sch. B'!K43+'Sch. C'!K43+'Sch. D'!K43+'Sch. E'!K43)/4/12*6,2) -> 0 | L43: 0 | M43: =ROUND(('Sch. B'!M43+'Sch. C'!M43+'Sch. D'!M43+'Sch. E'!M43)/4/12*6,2) -> 0 | N43: 0 | O43: =ROUND(('Sch. B'!O43+'Sch. C'!O43+'Sch. D'!O43+'Sch. E'!O43)/4/12*6,2) -> 0 | P43: 0 | Q43: =ROUND(('Sch. B'!Q43+'Sch. C'!Q43+'Sch. D'!Q43+'Sch. E'!Q43)/4/12*6,2) -> 0 | R43: 0 | S43: =ROUND(('Sch. B'!S43+'Sch. C'!S43+'Sch. D'!S43+'Sch. E'!S43)/4/12*6,2) -> 0 | T43: 0 | U43: =ROUND(('Sch. B'!U43+'Sch. C'!U43+'Sch. D'!U43+'Sch. E'!U43)/4/12*6,2) -> 0 | V43: 0 | W43: =ROUND(('Sch. B'!W43+'Sch. C'!W43+'Sch. D'!W43+'Sch. E'!W43)/4/12*6,2) -> 63.77 | X43: 2710.225 | Y43: =ROUND(('Sch. B'!Y43+'Sch. C'!Y43+'Sch. D'!Y43+'Sch. E'!Y43)/4/12*6,2) -> 133.79 | Z43: 5686.075 | AA43: =ROUND(('Sch. B'!AA43+'Sch. C'!AA43+'Sch. D'!AA43+'Sch. E'!AA43)/4/12*6,2) -> 0 | AB43: 0 | AC43: =ROUND(('Sch. B'!AC43+'Sch. C'!AC43+'Sch. D'!AC43+'Sch. E'!AC43)/4/12*6,2) -> 0 | AD43: 0 | AE43: =ROUND(('Sch. B'!AE43+'Sch. C'!AE43+'Sch. D'!AE43+'Sch. E'!AE43)/4/12*6,2)+2432.11 -> 2799.55 | AF43: 118980.875 | AG43: =ROUND(('Sch. B'!AG43+'Sch. C'!AG43+'Sch. D'!AG43+'Sch. E'!AG43)/4/12*6,2) -> 1444.84 | AH43: 61405.7 | AI43: =ROUND(('Sch. B'!AI43+'Sch. C'!AI43+'Sch. D'!AI43+'Sch. E'!AI43)/4/12*6,2) -> 96.26 | AJ43: 4091.05 | AK43: =ROUND(('Sch. B'!AK43+'Sch. C'!AK43+'Sch. D'!AK43+'Sch. E'!AK43)/4/12*6,2) -> 0 | AL43: 0 | AM43: =ROUND(('Sch. B'!AM43+'Sch. C'!AM43+'Sch. D'!AM43+'Sch. E'!AM43)/4/12*6,2) -> 3.48 | AN43: 147.9 | AO43: =ROUND(('Sch. B'!AO43+'Sch. C'!AO43+'Sch. D'!AO43+'Sch. E'!AO43)/4/12*6,2) -> 0 | AP43: 0 | AQ43: =ROUND(('Sch. B'!AQ43+'Sch. C'!AQ43+'Sch. D'!AQ43+'Sch. E'!AQ43)/4/12*6,2) -> 0 | AR43: 0 | AS43: =ROUND(('Sch. B'!AS43+'Sch. C'!AS43+'Sch. D'!AS43+'Sch. E'!AS43)/4/12*6,2) -> 0 | AT43: 0 | AU43: =ROUND(('Sch. B'!AU43+'Sch. C'!AU43+'Sch. D'!AU43+'Sch. E'!AU43)/4/12*6,2) -> 0 | AV43: 0 | AW43: =ROUND(('Sch. B'!AW43+'Sch. C'!AW43+'Sch. D'!AW43+'Sch. E'!AW43)/4/12*6,2) -> 0 | AX43: 0 | AY43: =ROUND(('Sch. B'!AY43+'Sch. C'!AY43+'Sch. D'!AY43+'Sch. E'!AY43)/4/12*6,2) -> 0 | AZ43: 0 | BA43: =ROUND(('Sch. B'!BA43+'Sch. C'!BA43+'Sch. D'!BA43+'Sch. E'!BA43)/4/12*6,2) -> 0 | BB43: 0 | BC43: =ROUND(('Sch. B'!BC43+'Sch. C'!BC43+'Sch. D'!BC43+'Sch. E'!BC43)/4/12*6,2) -> 0 | BD43: 0 | BE43: =ROUND(('Sch. B'!BE43+'Sch. C'!BE43+'Sch. D'!BE43+'Sch. E'!BE43)/4/12*6,2) -> 0 | BF43: 0 | BG43: =ROUND(('Sch. B'!BG43+'Sch. C'!BG43+'Sch. D'!BG43+'Sch. E'!BG43)/4/12*6,2) -> 0 | BH43: 0 | BI43: =ROUND(('Sch. B'!BI43+'Sch. C'!BI43+'Sch. D'!BI43+'Sch. E'!BI43)/4/12*6,2) -> 0 | BJ43: 0 | BK43: =ROUND(('Sch. B'!BK43+'Sch. C'!BK43+'Sch. D'!BK43+'Sch. E'!BK43)/4/12*6,2) -> 0 | BL43: 0 | BM43: =ROUND(('Sch. B'!BM43+'Sch. C'!BM43+'Sch. D'!BM43+'Sch. E'!BM43)/4/12*6,2) -> 0 | BN43: 0 | BO43: =ROUND(('Sch. B'!BO43+'Sch. C'!BO43+'Sch. D'!BO43+'Sch. E'!BO43)/4/12*6,2) -> 0 | BP43: 0 | BQ43: =ROUND(('Sch. B'!BQ43+'Sch. C'!BQ43+'Sch. D'!BQ43+'Sch. E'!BQ43)/4/12*6,2) -> 0 | BR43: 0 | BS43: =ROUND(('Sch. B'!BS43+'Sch. C'!BS43+'Sch. D'!BS43+'Sch. E'!BS43)/4/12*6,2) -> 0 | BT43: 0 | BU43: =ROUND(('Sch. B'!BU43+'Sch. C'!BU43+'Sch. D'!BU43+'Sch. E'!BU43)/4/12*6,2) -> 0 | BV43: 0 | BW43: =ROUND(('Sch. B'!BW43+'Sch. C'!BW43+'Sch. D'!BW43+'Sch. E'!BW43)/4/12*6,2) -> 0 | BX43: 0 | BY43: =ROUND(('Sch. B'!BY43+'Sch. C'!BY43+'Sch. D'!BY43+'Sch. E'!BY43)/4/12*6,2) -> 0 | BZ43: 0 | CA43: 4541.69 | CB43: 193021.825
A44: =+Index!$K$4+1+0.5-B44 -> 41.5 | B44: 1978 | C44: =ROUND(('Sch. B'!C44+'Sch. C'!C44+'Sch. D'!C44+'Sch. E'!C44)/4/12*6,2) -> 0 | D44: 0 | E44: =ROUND(('Sch. B'!E44+'Sch. C'!E44+'Sch. D'!E44+'Sch. E'!E44)/4/12*6,2) -> 0 | F44: 0 | G44: =ROUND(('Sch. B'!G44+'Sch. C'!G44+'Sch. D'!G44+'Sch. E'!G44)/4/12*6,2) -> 0 | H44: 0 | I44: =ROUND(('Sch. B'!I44+'Sch. C'!I44+'Sch. D'!I44+'Sch. E'!I44)/4/12*6,2) -> 0 | J44: 0 | K44: =ROUND(('Sch. B'!K44+'Sch. C'!K44+'Sch. D'!K44+'Sch. E'!K44)/4/12*6,2) -> 9294.8 | L44: 385734.2 | M44: =ROUND(('Sch. B'!M44+'Sch. C'!M44+'Sch. D'!M44+'Sch. E'!M44)/4/12*6,2) -> 0 | N44: 0 | O44: =ROUND(('Sch. B'!O44+'Sch. C'!O44+'Sch. D'!O44+'Sch. E'!O44)/4/12*6,2) -> 0 | P44: 0 | Q44: =ROUND(('Sch. B'!Q44+'Sch. C'!Q44+'Sch. D'!Q44+'Sch. E'!Q44)/4/12*6,2) -> 0 | R44: 0 | S44: =ROUND(('Sch. B'!S44+'Sch. C'!S44+'Sch. D'!S44+'Sch. E'!S44)/4/12*6,2) -> 0 | T44: 0 | U44: =ROUND(('Sch. B'!U44+'Sch. C'!U44+'Sch. D'!U44+'Sch. E'!U44)/4/12*6,2) -> 0 | V44: 0 | W44: =ROUND(('Sch. B'!W44+'Sch. C'!W44+'Sch. D'!W44+'Sch. E'!W44)/4/12*6,2)+375.47 -> 1238.07 | X44: 51379.905 | Y44: =ROUND(('Sch. B'!Y44+'Sch. C'!Y44+'Sch. D'!Y44+'Sch. E'!Y44)/4/12*6,2) -> 279.86 | Z44: 11614.19 | AA44: =ROUND(('Sch. B'!AA44+'Sch. C'!AA44+'Sch. D'!AA44+'Sch. E'!AA44)/4/12*6,2) -> 0 | AB44: 0 | AC44: =ROUND(('Sch. B'!AC44+'Sch. C'!AC44+'Sch. D'!AC44+'Sch. E'!AC44)/4/12*6,2) -> 0 | AD44: 0 | AE44: =ROUND(('Sch. B'!AE44+'Sch. C'!AE44+'Sch. D'!AE44+'Sch. E'!AE44)/4/12*6,2) -> 75.37 | AF44: 3127.855 | AG44: =ROUND(('Sch. B'!AG44+'Sch. C'!AG44+'Sch. D'!AG44+'Sch. E'!AG44)/4/12*6,2) -> 2929.93 | AH44: 121592.095 | AI44: =ROUND(('Sch. B'!AI44+'Sch. C'!AI44+'Sch. D'!AI44+'Sch. E'!AI44)/4/12*6,2) -> 398.6 | AJ44: 16541.9 | AK44: =ROUND(('Sch. B'!AK44+'Sch. C'!AK44+'Sch. D'!AK44+'Sch. E'!AK44)/4/12*6,2) -> 3.14 | AL44: 130.31 | AM44: =ROUND(('Sch. B'!AM44+'Sch. C'!AM44+'Sch. D'!AM44+'Sch. E'!AM44)/4/12*6,2) -> 0 | AN44: 0 | AO44: =ROUND(('Sch. B'!AO44+'Sch. C'!AO44+'Sch. D'!AO44+'Sch. E'!AO44)/4/12*6,2) -> 0 | AP44: 0 | AQ44: =ROUND(('Sch. B'!AQ44+'Sch. C'!AQ44+'Sch. D'!AQ44+'Sch. E'!AQ44)/4/12*6,2) -> 0 | AR44: 0 | AS44: =ROUND(('Sch. B'!AS44+'Sch. C'!AS44+'Sch. D'!AS44+'Sch. E'!AS44)/4/12*6,2) -> 0 | AT44: 0 | AU44: =ROUND(('Sch. B'!AU44+'Sch. C'!AU44+'Sch. D'!AU44+'Sch. E'!AU44)/4/12*6,2) -> 0 | AV44: 0 | AW44: =ROUND(('Sch. B'!AW44+'Sch. C'!AW44+'Sch. D'!AW44+'Sch. E'!AW44)/4/12*6,2) -> 0 | AX44: 0 | AY44: =ROUND(('Sch. B'!AY44+'Sch. C'!AY44+'Sch. D'!AY44+'Sch. E'!AY44)/4/12*6,2) -> 0 | AZ44: 0 | BA44: =ROUND(('Sch. B'!BA44+'Sch. C'!BA44+'Sch. D'!BA44+'Sch. E'!BA44)/4/12*6,2) -> 0 | BB44: 0 | BC44: =ROUND(('Sch. B'!BC44+'Sch. C'!BC44+'Sch. D'!BC44+'Sch. E'!BC44)/4/12*6,2) -> 0 | BD44: 0 | BE44: =ROUND(('Sch. B'!BE44+'Sch. C'!BE44+'Sch. D'!BE44+'Sch. E'!BE44)/4/12*6,2) -> 0 | BF44: 0 | BG44: =ROUND(('Sch. B'!BG44+'Sch. C'!BG44+'Sch. D'!BG44+'Sch. E'!BG44)/4/12*6,2) -> 0 | BH44: 0 | BI44: =ROUND(('Sch. B'!BI44+'Sch. C'!BI44+'Sch. D'!BI44+'Sch. E'!BI44)/4/12*6,2) -> 0 | BJ44: 0 | BK44: =ROUND(('Sch. B'!BK44+'Sch. C'!BK44+'Sch. D'!BK44+'Sch. E'!BK44)/4/12*6,2) -> 0 | BL44: 0 | BM44: =ROUND(('Sch. B'!BM44+'Sch. C'!BM44+'Sch. D'!BM44+'Sch. E'!BM44)/4/12*6,2) -> 0 | BN44: 0 | BO44: =ROUND(('Sch. B'!BO44+'Sch. C'!BO44+'Sch. D'!BO44+'Sch. E'!BO44)/4/12*6,2) -> 0 | BP44: 0 | BQ44: =ROUND(('Sch. B'!BQ44+'Sch. C'!BQ44+'Sch. D'!BQ44+'Sch. E'!BQ44)/4/12*6,2) -> 0 | BR44: 0 | BS44: =ROUND(('Sch. B'!BS44+'Sch. C'!BS44+'Sch. D'!BS44+'Sch. E'!BS44)/4/12*6,2) -> 0 | BT44: 0 | BU44: =ROUND(('Sch. B'!BU44+'Sch. C'!BU44+'Sch. D'!BU44+'Sch. E'!BU44)/4/12*6,2) -> 0 | BV44: 0 | BW44: =ROUND(('Sch. B'!BW44+'Sch. C'!BW44+'Sch. D'!BW44+'Sch. E'!BW44)/4/12*6,2) -> 0 | BX44: 0 | BY44: =ROUND(('Sch. B'!BY44+'Sch. C'!BY44+'Sch. D'!BY44+'Sch. E'!BY44)/4/12*6,2) -> 0 | BZ44: 0 | CA44: 14219.77 | CB44: 590120.455
A45: =+Index!$K$4+1+0.5-B45 -> 40.5 | B45: 1979 | C45: =ROUND(('Sch. B'!C45+'Sch. C'!C45+'Sch. D'!C45+'Sch. E'!C45)/4/12*6,2) -> 0 | D45: 0 | E45: =ROUND(('Sch. B'!E45+'Sch. C'!E45+'Sch. D'!E45+'Sch. E'!E45)/4/12*6,2) -> 0 | F45: 0 | G45: =ROUND(('Sch. B'!G45+'Sch. C'!G45+'Sch. D'!G45+'Sch. E'!G45)/4/12*6,2) -> 0 | H45: 0 | I45: =ROUND(('Sch. B'!I45+'Sch. C'!I45+'Sch. D'!I45+'Sch. E'!I45)/4/12*6,2) -> 0 | J45: 0 | K45: =ROUND(('Sch. B'!K45+'Sch. C'!K45+'Sch. D'!K45+'Sch. E'!K45)/4/12*6,2) -> 0 | L45: 0 | M45: =ROUND(('Sch. B'!M45+'Sch. C'!M45+'Sch. D'!M45+'Sch. E'!M45)/4/12*6,2) -> 0 | N45: 0 | O45: =ROUND(('Sch. B'!O45+'Sch. C'!O45+'Sch. D'!O45+'Sch. E'!O45)/4/12*6,2) -> 0 | P45: 0 | Q45: =ROUND(('Sch. B'!Q45+'Sch. C'!Q45+'Sch. D'!Q45+'Sch. E'!Q45)/4/12*6,2) -> 0 | R45: 0 | S45: =ROUND(('Sch. B'!S45+'Sch. C'!S45+'Sch. D'!S45+'Sch. E'!S45)/4/12*6,2) -> 0 | T45: 0 | U45: =ROUND(('Sch. B'!U45+'Sch. C'!U45+'Sch. D'!U45+'Sch. E'!U45)/4/12*6,2) -> 0 | V45: 0 | W45: =ROUND(('Sch. B'!W45+'Sch. C'!W45+'Sch. D'!W45+'Sch. E'!W45)/4/12*6,2) -> 127.24 | X45: 5153.22 | Y45: =ROUND(('Sch. B'!Y45+'Sch. C'!Y45+'Sch. D'!Y45+'Sch. E'!Y45)/4/12*6,2) -> 249.7 | Z45: 10112.85 | AA45: =ROUND(('Sch. B'!AA45+'Sch. C'!AA45+'Sch. D'!AA45+'Sch. E'!AA45)/4/12*6,2) -> 64.66 | AB45: 2618.73 | AC45: =ROUND(('Sch. B'!AC45+'Sch. C'!AC45+'Sch. D'!AC45+'Sch. E'!AC45)/4/12*6,2) -> 271.52 | AD45: 10996.56 | AE45: =ROUND(('Sch. B'!AE45+'Sch. C'!AE45+'Sch. D'!AE45+'Sch. E'!AE45)/4/12*6,2) -> 34.17 | AF45: 1383.885 | AG45: =ROUND(('Sch. B'!AG45+'Sch. C'!AG45+'Sch. D'!AG45+'Sch. E'!AG45)/4/12*6,2) -> 22.68 | AH45: 918.54 | AI45: =ROUND(('Sch. B'!AI45+'Sch. C'!AI45+'Sch. D'!AI45+'Sch. E'!AI45)/4/12*6,2) -> 328.6 | AJ45: 13308.3 | AK45: =ROUND(('Sch. B'!AK45+'Sch. C'!AK45+'Sch. D'!AK45+'Sch. E'!AK45)/4/12*6,2) -> 6.9 | AL45: 279.45 | AM45: =ROUND(('Sch. B'!AM45+'Sch. C'!AM45+'Sch. D'!AM45+'Sch. E'!AM45)/4/12*6,2) -> 0 | AN45: 0 | AO45: =ROUND(('Sch. B'!AO45+'Sch. C'!AO45+'Sch. D'!AO45+'Sch. E'!AO45)/4/12*6,2) -> 0 | AP45: 0 | AQ45: =ROUND(('Sch. B'!AQ45+'Sch. C'!AQ45+'Sch. D'!AQ45+'Sch. E'!AQ45)/4/12*6,2) -> 0 | AR45: 0 | AS45: =ROUND(('Sch. B'!AS45+'Sch. C'!AS45+'Sch. D'!AS45+'Sch. E'!AS45)/4/12*6,2) -> 0 | AT45: 0 | AU45: =ROUND(('Sch. B'!AU45+'Sch. C'!AU45+'Sch. D'!AU45+'Sch. E'!AU45)/4/12*6,2) -> 0 | AV45: 0 | AW45: =ROUND(('Sch. B'!AW45+'Sch. C'!AW45+'Sch. D'!AW45+'Sch. E'!AW45)/4/12*6,2) -> 0 | AX45: 0 | AY45: =ROUND(('Sch. B'!AY45+'Sch. C'!AY45+'Sch. D'!AY45+'Sch. E'!AY45)/4/12*6,2) -> 0 | AZ45: 0 | BA45: =ROUND(('Sch. B'!BA45+'Sch. C'!BA45+'Sch. D'!BA45+'Sch. E'!BA45)/4/12*6,2) -> 0 | BB45: 0 | BC45: =ROUND(('Sch. B'!BC45+'Sch. C'!BC45+'Sch. D'!BC45+'Sch. E'!BC45)/4/12*6,2) -> 0 | BD45: 0 | BE45: =ROUND(('Sch. B'!BE45+'Sch. C'!BE45+'Sch. D'!BE45+'Sch. E'!BE45)/4/12*6,2) -> 0 | BF45: 0 | BG45: =ROUND(('Sch. B'!BG45+'Sch. C'!BG45+'Sch. D'!BG45+'Sch. E'!BG45)/4/12*6,2) -> 0 | BH45: 0 | BI45: =ROUND(('Sch. B'!BI45+'Sch. C'!BI45+'Sch. D'!BI45+'Sch. E'!BI45)/4/12*6,2) -> 0 | BJ45: 0 | BK45: =ROUND(('Sch. B'!BK45+'Sch. C'!BK45+'Sch. D'!BK45+'Sch. E'!BK45)/4/12*6,2) -> 0 | BL45: 0 | BM45: =ROUND(('Sch. B'!BM45+'Sch. C'!BM45+'Sch. D'!BM45+'Sch. E'!BM45)/4/12*6,2) -> 0 | BN45: 0 | BO45: =ROUND(('Sch. B'!BO45+'Sch. C'!BO45+'Sch. D'!BO45+'Sch. E'!BO45)/4/12*6,2) -> 0 | BP45: 0 | BQ45: =ROUND(('Sch. B'!BQ45+'Sch. C'!BQ45+'Sch. D'!BQ45+'Sch. E'!BQ45)/4/12*6,2) -> 0 | BR45: 0 | BS45: =ROUND(('Sch. B'!BS45+'Sch. C'!BS45+'Sch. D'!BS45+'Sch. E'!BS45)/4/12*6,2) -> 0 | BT45: 0 | BU45: =ROUND(('Sch. B'!BU45+'Sch. C'!BU45+'Sch. D'!BU45+'Sch. E'!BU45)/4/12*6,2) -> 0 | BV45: 0 | BW45: =ROUND(('Sch. B'!BW45+'Sch. C'!BW45+'Sch. D'!BW45+'Sch. E'!BW45)/4/12*6,2) -> 0 | BX45: 0 | BY45: =ROUND(('Sch. B'!BY45+'Sch. C'!BY45+'Sch. D'!BY45+'Sch. E'!BY45)/4/12*6,2) -> 0 | BZ45: 0 | CA45: 1105.47 | CB45: 44771.535
A46: =+Index!$K$4+1+0.5-B46 -> 39.5 | B46: 1980 | C46: =ROUND(('Sch. B'!C46+'Sch. C'!C46+'Sch. D'!C46+'Sch. E'!C46)/4/12*6,2) -> 0 | D46: 0 | E46: =ROUND(('Sch. B'!E46+'Sch. C'!E46+'Sch. D'!E46+'Sch. E'!E46)/4/12*6,2) -> 0 | F46: 0 | G46: =ROUND(('Sch. B'!G46+'Sch. C'!G46+'Sch. D'!G46+'Sch. E'!G46)/4/12*6,2) -> 0 | H46: 0 | I46: =ROUND(('Sch. B'!I46+'Sch. C'!I46+'Sch. D'!I46+'Sch. E'!I46)/4/12*6,2) -> 0 | J46: 0 | K46: =ROUND(('Sch. B'!K46+'Sch. C'!K46+'Sch. D'!K46+'Sch. E'!K46)/4/12*6,2) -> 0 | L46: 0 | M46: =ROUND(('Sch. B'!M46+'Sch. C'!M46+'Sch. D'!M46+'Sch. E'!M46)/4/12*6,2) -> 0 | N46: 0 | O46: =ROUND(('Sch. B'!O46+'Sch. C'!O46+'Sch. D'!O46+'Sch. E'!O46)/4/12*6,2) -> 0 | P46: 0 | Q46: =ROUND(('Sch. B'!Q46+'Sch. C'!Q46+'Sch. D'!Q46+'Sch. E'!Q46)/4/12*6,2) -> 0 | R46: 0 | S46: =ROUND(('Sch. B'!S46+'Sch. C'!S46+'Sch. D'!S46+'Sch. E'!S46)/4/12*6,2) -> 0 | T46: 0 | U46: =ROUND(('Sch. B'!U46+'Sch. C'!U46+'Sch. D'!U46+'Sch. E'!U46)/4/12*6,2) -> 0 | V46: 0 | W46: =ROUND(('Sch. B'!W46+'Sch. C'!W46+'Sch. D'!W46+'Sch. E'!W46)/4/12*6,2)+626.99 -> 1418.63 | X46: 56035.885 | Y46: =ROUND(('Sch. B'!Y46+'Sch. C'!Y46+'Sch. D'!Y46+'Sch. E'!Y46)/4/12*6,2)+1008.04 -> 1287.09 | Z46: 50840.055 | AA46: =ROUND(('Sch. B'!AA46+'Sch. C'!AA46+'Sch. D'!AA46+'Sch. E'!AA46)/4/12*6,2) -> 0 | AB46: 0 | AC46: =ROUND(('Sch. B'!AC46+'Sch. C'!AC46+'Sch. D'!AC46+'Sch. E'!AC46)/4/12*6,2)+100.28 -> 230.97 | AD46: 9123.315 | AE46: =ROUND(('Sch. B'!AE46+'Sch. C'!AE46+'Sch. D'!AE46+'Sch. E'!AE46)/4/12*6,2)+1060.97 -> 1161.46 | AF46: 45877.67 | AG46: =ROUND(('Sch. B'!AG46+'Sch. C'!AG46+'Sch. D'!AG46+'Sch. E'!AG46)/4/12*6,2) -> 842.68 | AH46: 33285.86 | AI46: =ROUND(('Sch. B'!AI46+'Sch. C'!AI46+'Sch. D'!AI46+'Sch. E'!AI46)/4/12*6,2) -> 335.19 | AJ46: 13240.005 | AK46: =ROUND(('Sch. B'!AK46+'Sch. C'!AK46+'Sch. D'!AK46+'Sch. E'!AK46)/4/12*6,2) -> 0 | AL46: 0 | AM46: =ROUND(('Sch. B'!AM46+'Sch. C'!AM46+'Sch. D'!AM46+'Sch. E'!AM46)/4/12*6,2) -> 0 | AN46: 0 | AO46: 0 | AP46: 0 | AQ46: =ROUND(('Sch. B'!AQ46+'Sch. C'!AQ46+'Sch. D'!AQ46+'Sch. E'!AQ46)/4/12*6,2) -> 0 | AR46: 0 | AS46: =ROUND(('Sch. B'!AS46+'Sch. C'!AS46+'Sch. D'!AS46+'Sch. E'!AS46)/4/12*6,2) -> 0 | AT46: 0 | AU46: =ROUND(('Sch. B'!AU46+'Sch. C'!AU46+'Sch. D'!AU46+'Sch. E'!AU46)/4/12*6,2) -> 0 | AV46: 0 | AW46: =ROUND(('Sch. B'!AW46+'Sch. C'!AW46+'Sch. D'!AW46+'Sch. E'!AW46)/4/12*6,2) -> 0 | AX46: 0 | AY46: =ROUND(('Sch. B'!AY46+'Sch. C'!AY46+'Sch. D'!AY46+'Sch. E'!AY46)/4/12*6,2) -> 0 | AZ46: 0 | BA46: =ROUND(('Sch. B'!BA46+'Sch. C'!BA46+'Sch. D'!BA46+'Sch. E'!BA46)/4/12*6,2) -> 0 | BB46: 0 | BC46: =ROUND(('Sch. B'!BC46+'Sch. C'!BC46+'Sch. D'!BC46+'Sch. E'!BC46)/4/12*6,2) -> 0 | BD46: 0 | BE46: =ROUND(('Sch. B'!BE46+'Sch. C'!BE46+'Sch. D'!BE46+'Sch. E'!BE46)/4/12*6,2) -> 0 | BF46: 0 | BG46: =ROUND(('Sch. B'!BG46+'Sch. C'!BG46+'Sch. D'!BG46+'Sch. E'!BG46)/4/12*6,2) -> 0 | BH46: 0 | BI46: =ROUND(('Sch. B'!BI46+'Sch. C'!BI46+'Sch. D'!BI46+'Sch. E'!BI46)/4/12*6,2) -> 0 | BJ46: 0 | BK46: =ROUND(('Sch. B'!BK46+'Sch. C'!BK46+'Sch. D'!BK46+'Sch. E'!BK46)/4/12*6,2) -> 0 | BL46: 0 | BM46: =ROUND(('Sch. B'!BM46+'Sch. C'!BM46+'Sch. D'!BM46+'Sch. E'!BM46)/4/12*6,2) -> 0 | BN46: 0 | BO46: =ROUND(('Sch. B'!BO46+'Sch. C'!BO46+'Sch. D'!BO46+'Sch. E'!BO46)/4/12*6,2) -> 0 | BP46: 0 | BQ46: =ROUND(('Sch. B'!BQ46+'Sch. C'!BQ46+'Sch. D'!BQ46+'Sch. E'!BQ46)/4/12*6,2) -> 0 | BR46: 0 | BS46: =ROUND(('Sch. B'!BS46+'Sch. C'!BS46+'Sch. D'!BS46+'Sch. E'!BS46)/4/12*6,2) -> 0 | BT46: 0 | BU46: =ROUND(('Sch. B'!BU46+'Sch. C'!BU46+'Sch. D'!BU46+'Sch. E'!BU46)/4/12*6,2) -> 0 | BV46: 0 | BW46: =ROUND(('Sch. B'!BW46+'Sch. C'!BW46+'Sch. D'!BW46+'Sch. E'!BW46)/4/12*6,2) -> 0 | BX46: 0 | BY46: =ROUND(('Sch. B'!BY46+'Sch. C'!BY46+'Sch. D'!BY46+'Sch. E'!BY46)/4/12*6,2) -> 0 | BZ46: 0 | CA46: 5276.02 | CB46: 208402.79
A47: =+Index!$K$4+1+0.5-B47 -> 38.5 | B47: 1981 | C47: =ROUND(('Sch. B'!C47+'Sch. C'!C47+'Sch. D'!C47+'Sch. E'!C47)/4/12*6,2) -> 0 | D47: 0 | E47: =ROUND(('Sch. B'!E47+'Sch. C'!E47+'Sch. D'!E47+'Sch. E'!E47)/4/12*6,2) -> 0 | F47: 0 | G47: =ROUND(('Sch. B'!G47+'Sch. C'!G47+'Sch. D'!G47+'Sch. E'!G47)/4/12*6,2) -> 0 | H47: 0 | I47: =ROUND(('Sch. B'!I47+'Sch. C'!I47+'Sch. D'!I47+'Sch. E'!I47)/4/12*6,2) -> 0 | J47: 0 | K47: =ROUND(('Sch. B'!K47+'Sch. C'!K47+'Sch. D'!K47+'Sch. E'!K47)/4/12*6,2) -> 0 | L47: 0 | M47: =ROUND(('Sch. B'!M47+'Sch. C'!M47+'Sch. D'!M47+'Sch. E'!M47)/4/12*6,2) -> 0 | N47: 0 | O47: =ROUND(('Sch. B'!O47+'Sch. C'!O47+'Sch. D'!O47+'Sch. E'!O47)/4/12*6,2) -> 0 | P47: 0 | Q47: =ROUND(('Sch. B'!Q47+'Sch. C'!Q47+'Sch. D'!Q47+'Sch. E'!Q47)/4/12*6,2) -> 0 | R47: 0 | S47: =ROUND(('Sch. B'!S47+'Sch. C'!S47+'Sch. D'!S47+'Sch. E'!S47)/4/12*6,2) -> 0 | T47: 0 | U47: =ROUND(('Sch. B'!U47+'Sch. C'!U47+'Sch. D'!U47+'Sch. E'!U47)/4/12*6,2) -> 0 | V47: 0 | W47: =ROUND(('Sch. B'!W47+'Sch. C'!W47+'Sch. D'!W47+'Sch. E'!W47)/4/12*6,2) -> 33.59 | X47: 1293.215 | Y47: =ROUND(('Sch. B'!Y47+'Sch. C'!Y47+'Sch. D'!Y47+'Sch. E'!Y47)/4/12*6,2) -> 65.47 | Z47: 2520.595 | AA47: =ROUND(('Sch. B'!AA47+'Sch. C'!AA47+'Sch. D'!AA47+'Sch. E'!AA47)/4/12*6,2) -> 0 | AB47: 0 | AC47: =ROUND(('Sch. B'!AC47+'Sch. C'!AC47+'Sch. D'!AC47+'Sch. E'!AC47)/4/12*6,2) -> 359.09 | AD47: 13824.965 | AE47: =ROUND(('Sch. B'!AE47+'Sch. C'!AE47+'Sch. D'!AE47+'Sch. E'!AE47)/4/12*6,2) -> 301.23 | AF47: 11597.355 | AG47: =ROUND(('Sch. B'!AG47+'Sch. C'!AG47+'Sch. D'!AG47+'Sch. E'!AG47)/4/12*6,2) -> 110.2 | AH47: 4242.7 | AI47: =ROUND(('Sch. B'!AI47+'Sch. C'!AI47+'Sch. D'!AI47+'Sch. E'!AI47)/4/12*6,2) -> 288.1 | AJ47: 11091.85 | AK47: =ROUND(('Sch. B'!AK47+'Sch. C'!AK47+'Sch. D'!AK47+'Sch. E'!AK47)/4/12*6,2) -> 0 | AL47: 0 | AM47: =ROUND(('Sch. B'!AM47+'Sch. C'!AM47+'Sch. D'!AM47+'Sch. E'!AM47)/4/12*6,2) -> 0 | AN47: 0 | AO47: =ROUND(('Sch. B'!AO47+'Sch. C'!AO47+'Sch. D'!AO47+'Sch. E'!AO47)/4/12*6,2) -> 0 | AP47: 0 | AQ47: =ROUND(('Sch. B'!AQ47+'Sch. C'!AQ47+'Sch. D'!AQ47+'Sch. E'!AQ47)/4/12*6,2) -> 0 | AR47: 0 | AS47: =ROUND(('Sch. B'!AS47+'Sch. C'!AS47+'Sch. D'!AS47+'Sch. E'!AS47)/4/12*6,2) -> 0 | AT47: 0 | AU47: =ROUND(('Sch. B'!AU47+'Sch. C'!AU47+'Sch. D'!AU47+'Sch. E'!AU47)/4/12*6,2) -> 0 | AV47: 0 | AW47: =ROUND(('Sch. B'!AW47+'Sch. C'!AW47+'Sch. D'!AW47+'Sch. E'!AW47)/4/12*6,2) -> 0 | AX47: 0 | AY47: =ROUND(('Sch. B'!AY47+'Sch. C'!AY47+'Sch. D'!AY47+'Sch. E'!AY47)/4/12*6,2) -> 0 | AZ47: 0 | BA47: =ROUND(('Sch. B'!BA47+'Sch. C'!BA47+'Sch. D'!BA47+'Sch. E'!BA47)/4/12*6,2) -> 0 | BB47: 0 | BC47: =ROUND(('Sch. B'!BC47+'Sch. C'!BC47+'Sch. D'!BC47+'Sch. E'!BC47)/4/12*6,2) -> 0 | BD47: 0 | BE47: =ROUND(('Sch. B'!BE47+'Sch. C'!BE47+'Sch. D'!BE47+'Sch. E'!BE47)/4/12*6,2) -> 0 | BF47: 0 | BG47: =ROUND(('Sch. B'!BG47+'Sch. C'!BG47+'Sch. D'!BG47+'Sch. E'!BG47)/4/12*6,2) -> 0 | BH47: 0 | BI47: =ROUND(('Sch. B'!BI47+'Sch. C'!BI47+'Sch. D'!BI47+'Sch. E'!BI47)/4/12*6,2) -> 0 | BJ47: 0 | BK47: =ROUND(('Sch. B'!BK47+'Sch. C'!BK47+'Sch. D'!BK47+'Sch. E'!BK47)/4/12*6,2) -> 0 | BL47: 0 | BM47: =ROUND(('Sch. B'!BM47+'Sch. C'!BM47+'Sch. D'!BM47+'Sch. E'!BM47)/4/12*6,2) -> 0 | BN47: 0 | BO47: =ROUND(('Sch. B'!BO47+'Sch. C'!BO47+'Sch. D'!BO47+'Sch. E'!BO47)/4/12*6,2) -> 0 | BP47: 0 | BQ47: =ROUND(('Sch. B'!BQ47+'Sch. C'!BQ47+'Sch. D'!BQ47+'Sch. E'!BQ47)/4/12*6,2) -> 0 | BR47: 0 | BS47: =ROUND(('Sch. B'!BS47+'Sch. C'!BS47+'Sch. D'!BS47+'Sch. E'!BS47)/4/12*6,2) -> 0 | BT47: 0 | BU47: =ROUND(('Sch. B'!BU47+'Sch. C'!BU47+'Sch. D'!BU47+'Sch. E'!BU47)/4/12*6,2) -> 0 | BV47: 0 | BW47: =ROUND(('Sch. B'!BW47+'Sch. C'!BW47+'Sch. D'!BW47+'Sch. E'!BW47)/4/12*6,2) -> 0 | BX47: 0 | BY47: =ROUND(('Sch. B'!BY47+'Sch. C'!BY47+'Sch. D'!BY47+'Sch. E'!BY47)/4/12*6,2) -> 0 | BZ47: 0 | CA47: 1157.68 | CB47: 44570.68
A48: =+Index!$K$4+1+0.5-B48 -> 37.5 | B48: 1982 | C48: =ROUND(('Sch. B'!C48+'Sch. C'!C48+'Sch. D'!C48+'Sch. E'!C48)/4/12*6,2) -> 0 | D48: 0 | E48: =ROUND(('Sch. B'!E48+'Sch. C'!E48+'Sch. D'!E48+'Sch. E'!E48)/4/12*6,2) -> 0 | F48: 0 | G48: =ROUND(('Sch. B'!G48+'Sch. C'!G48+'Sch. D'!G48+'Sch. E'!G48)/4/12*6,2) -> 0 | H48: 0 | I48: =ROUND(('Sch. B'!I48+'Sch. C'!I48+'Sch. D'!I48+'Sch. E'!I48)/4/12*6,2) -> 0 | J48: 0 | K48: =ROUND(('Sch. B'!K48+'Sch. C'!K48+'Sch. D'!K48+'Sch. E'!K48)/4/12*6,2) -> 0 | L48: 0 | M48: =ROUND(('Sch. B'!M48+'Sch. C'!M48+'Sch. D'!M48+'Sch. E'!M48)/4/12*6,2) -> 0 | N48: 0 | O48: =ROUND(('Sch. B'!O48+'Sch. C'!O48+'Sch. D'!O48+'Sch. E'!O48)/4/12*6,2) -> 0 | P48: 0 | Q48: =ROUND(('Sch. B'!Q48+'Sch. C'!Q48+'Sch. D'!Q48+'Sch. E'!Q48)/4/12*6,2) -> 0 | R48: 0 | S48: =ROUND(('Sch. B'!S48+'Sch. C'!S48+'Sch. D'!S48+'Sch. E'!S48)/4/12*6,2) -> 0 | T48: 0 | U48: =ROUND(('Sch. B'!U48+'Sch. C'!U48+'Sch. D'!U48+'Sch. E'!U48)/4/12*6,2) -> 0 | V48: 0 | W48: =ROUND(('Sch. B'!W48+'Sch. C'!W48+'Sch. D'!W48+'Sch. E'!W48)/4/12*6,2)+145.17 -> 644.16 | X48: 24156 | Y48: =ROUND(('Sch. B'!Y48+'Sch. C'!Y48+'Sch. D'!Y48+'Sch. E'!Y48)/4/12*6,2) -> 163.39 | Z48: 6127.125 | AA48: =ROUND(('Sch. B'!AA48+'Sch. C'!AA48+'Sch. D'!AA48+'Sch. E'!AA48)/4/12*6,2) -> 0 | AB48: 0 | AC48: =ROUND(('Sch. B'!AC48+'Sch. C'!AC48+'Sch. D'!AC48+'Sch. E'!AC48)/4/12*6,2) -> 4.56 | AD48: 171 | AE48: =ROUND(('Sch. B'!AE48+'Sch. C'!AE48+'Sch. D'!AE48+'Sch. E'!AE48)/4/12*6,2) -> 130.54 | AF48: 4895.25 | AG48: =ROUND(('Sch. B'!AG48+'Sch. C'!AG48+'Sch. D'!AG48+'Sch. E'!AG48)/4/12*6,2) -> 255.3 | AH48: 9573.75 | AI48: =ROUND(('Sch. B'!AI48+'Sch. C'!AI48+'Sch. D'!AI48+'Sch. E'!AI48)/4/12*6,2) -> 599.7 | AJ48: 22488.75 | AK48: =ROUND(('Sch. B'!AK48+'Sch. C'!AK48+'Sch. D'!AK48+'Sch. E'!AK48)/4/12*6,2) -> 27.7 | AL48: 1038.75 | AM48: =ROUND(('Sch. B'!AM48+'Sch. C'!AM48+'Sch. D'!AM48+'Sch. E'!AM48)/4/12*6,2) -> 11.52 | AN48: 432 | AO48: =ROUND(('Sch. B'!AO48+'Sch. C'!AO48+'Sch. D'!AO48+'Sch. E'!AO48)/4/12*6,2) -> 0 | AP48: 0 | AQ48: =ROUND(('Sch. B'!AQ48+'Sch. C'!AQ48+'Sch. D'!AQ48+'Sch. E'!AQ48)/4/12*6,2) -> 0 | AR48: 0 | AS48: =ROUND(('Sch. B'!AS48+'Sch. C'!AS48+'Sch. D'!AS48+'Sch. E'!AS48)/4/12*6,2) -> 0 | AT48: 0 | AU48: =ROUND(('Sch. B'!AU48+'Sch. C'!AU48+'Sch. D'!AU48+'Sch. E'!AU48)/4/12*6,2) -> 0 | AV48: 0 | AW48: =ROUND(('Sch. B'!AW48+'Sch. C'!AW48+'Sch. D'!AW48+'Sch. E'!AW48)/4/12*6,2) -> 0 | AX48: 0 | AY48: =ROUND(('Sch. B'!AY48+'Sch. C'!AY48+'Sch. D'!AY48+'Sch. E'!AY48)/4/12*6,2) -> 0 | AZ48: 0 | BA48: =ROUND(('Sch. B'!BA48+'Sch. C'!BA48+'Sch. D'!BA48+'Sch. E'!BA48)/4/12*6,2) -> 0 | BB48: 0 | BC48: =ROUND(('Sch. B'!BC48+'Sch. C'!BC48+'Sch. D'!BC48+'Sch. E'!BC48)/4/12*6,2) -> 0 | BD48: 0 | BE48: =ROUND(('Sch. B'!BE48+'Sch. C'!BE48+'Sch. D'!BE48+'Sch. E'!BE48)/4/12*6,2) -> 0 | BF48: 0 | BG48: =ROUND(('Sch. B'!BG48+'Sch. C'!BG48+'Sch. D'!BG48+'Sch. E'!BG48)/4/12*6,2) -> 0 | BH48: 0 | BI48: =ROUND(('Sch. B'!BI48+'Sch. C'!BI48+'Sch. D'!BI48+'Sch. E'!BI48)/4/12*6,2) -> 0 | BJ48: 0 | BK48: =ROUND(('Sch. B'!BK48+'Sch. C'!BK48+'Sch. D'!BK48+'Sch. E'!BK48)/4/12*6,2) -> 0 | BL48: 0 | BM48: =ROUND(('Sch. B'!BM48+'Sch. C'!BM48+'Sch. D'!BM48+'Sch. E'!BM48)/4/12*6,2) -> 0 | BN48: 0 | BO48: =ROUND(('Sch. B'!BO48+'Sch. C'!BO48+'Sch. D'!BO48+'Sch. E'!BO48)/4/12*6,2) -> 0 | BP48: 0 | BQ48: =ROUND(('Sch. B'!BQ48+'Sch. C'!BQ48+'Sch. D'!BQ48+'Sch. E'!BQ48)/4/12*6,2) -> 0 | BR48: 0 | BS48: =ROUND(('Sch. B'!BS48+'Sch. C'!BS48+'Sch. D'!BS48+'Sch. E'!BS48)/4/12*6,2) -> 0 | BT48: 0 | BU48: =ROUND(('Sch. B'!BU48+'Sch. C'!BU48+'Sch. D'!BU48+'Sch. E'!BU48)/4/12*6,2) -> 0 | BV48: 0 | BW48: =ROUND(('Sch. B'!BW48+'Sch. C'!BW48+'Sch. D'!BW48+'Sch. E'!BW48)/4/12*6,2) -> 0 | BX48: 0 | BY48: =ROUND(('Sch. B'!BY48+'Sch. C'!BY48+'Sch. D'!BY48+'Sch. E'!BY48)/4/12*6,2) -> 0 | BZ48: 0 | CA48: 1836.87 | CB48: 68882.625
A49: =+Index!$K$4+1+0.5-B49 -> 36.5 | B49: 1983 | C49: =ROUND(('Sch. B'!C49+'Sch. C'!C49+'Sch. D'!C49+'Sch. E'!C49)/4/12*6,2) -> 0 | D49: 0 | E49: =ROUND(('Sch. B'!E49+'Sch. C'!E49+'Sch. D'!E49+'Sch. E'!E49)/4/12*6,2) -> 0 | F49: 0 | G49: =ROUND(('Sch. B'!G49+'Sch. C'!G49+'Sch. D'!G49+'Sch. E'!G49)/4/12*6,2) -> 0 | H49: 0 | I49: =ROUND(('Sch. B'!I49+'Sch. C'!I49+'Sch. D'!I49+'Sch. E'!I49)/4/12*6,2) -> 0 | J49: 0 | K49: =ROUND(('Sch. B'!K49+'Sch. C'!K49+'Sch. D'!K49+'Sch. E'!K49)/4/12*6,2) -> 0 | L49: 0 | M49: =ROUND(('Sch. B'!M49+'Sch. C'!M49+'Sch. D'!M49+'Sch. E'!M49)/4/12*6,2) -> 0 | N49: 0 | O49: =ROUND(('Sch. B'!O49+'Sch. C'!O49+'Sch. D'!O49+'Sch. E'!O49)/4/12*6,2) -> 0 | P49: 0 | Q49: =ROUND(('Sch. B'!Q49+'Sch. C'!Q49+'Sch. D'!Q49+'Sch. E'!Q49)/4/12*6,2) -> 0 | R49: 0 | S49: =ROUND(('Sch. B'!S49+'Sch. C'!S49+'Sch. D'!S49+'Sch. E'!S49)/4/12*6,2) -> 0 | T49: 0 | U49: =ROUND(('Sch. B'!U49+'Sch. C'!U49+'Sch. D'!U49+'Sch. E'!U49)/4/12*6,2) -> 0 | V49: 0 | W49: =ROUND(('Sch. B'!W49+'Sch. C'!W49+'Sch. D'!W49+'Sch. E'!W49)/4/12*6,2)+1007.59 -> 1220.88 | X49: 44562.12 | Y49: =ROUND(('Sch. B'!Y49+'Sch. C'!Y49+'Sch. D'!Y49+'Sch. E'!Y49)/4/12*6,2)+98.26 -> 117.91 | Z49: 4303.715 | AA49: =ROUND(('Sch. B'!AA49+'Sch. C'!AA49+'Sch. D'!AA49+'Sch. E'!AA49)/4/12*6,2) -> 0 | AB49: 0 | AC49: =ROUND(('Sch. B'!AC49+'Sch. C'!AC49+'Sch. D'!AC49+'Sch. E'!AC49)/4/12*6,2) -> 205.73 | AD49: 7509.145 | AE49: =ROUND(('Sch. B'!AE49+'Sch. C'!AE49+'Sch. D'!AE49+'Sch. E'!AE49)/4/12*6,2)+1610.18 -> 1634.31 | AF49: 59652.315 | AG49: =ROUND(('Sch. B'!AG49+'Sch. C'!AG49+'Sch. D'!AG49+'Sch. E'!AG49)/4/12*6,2) -> 0 | AH49: 0 | AI49: =ROUND(('Sch. B'!AI49+'Sch. C'!AI49+'Sch. D'!AI49+'Sch. E'!AI49)/4/12*6,2) -> 624.7 | AJ49: 22801.55 | AK49: =ROUND(('Sch. B'!AK49+'Sch. C'!AK49+'Sch. D'!AK49+'Sch. E'!AK49)/4/12*6,2) -> 103.35 | AL49: 3772.275 | AM49: =ROUND(('Sch. B'!AM49+'Sch. C'!AM49+'Sch. D'!AM49+'Sch. E'!AM49)/4/12*6,2) -> 48.21 | AN49: 1759.665 | AO49: =ROUND(('Sch. B'!AO49+'Sch. C'!AO49+'Sch. D'!AO49+'Sch. E'!AO49)/4/12*6,2) -> 0 | AP49: 0 | AQ49: =ROUND(('Sch. B'!AQ49+'Sch. C'!AQ49+'Sch. D'!AQ49+'Sch. E'!AQ49)/4/12*6,2) -> 0 | AR49: 0 | AS49: =ROUND(('Sch. B'!AS49+'Sch. C'!AS49+'Sch. D'!AS49+'Sch. E'!AS49)/4/12*6,2) -> 0 | AT49: 0 | AU49: =ROUND(('Sch. B'!AU49+'Sch. C'!AU49+'Sch. D'!AU49+'Sch. E'!AU49)/4/12*6,2) -> 0 | AV49: 0 | AW49: =ROUND(('Sch. B'!AW49+'Sch. C'!AW49+'Sch. D'!AW49+'Sch. E'!AW49)/4/12*6,2) -> 0 | AX49: 0 | AY49: =ROUND(('Sch. B'!AY49+'Sch. C'!AY49+'Sch. D'!AY49+'Sch. E'!AY49)/4/12*6,2) -> 0 | AZ49: 0 | BA49: =ROUND(('Sch. B'!BA49+'Sch. C'!BA49+'Sch. D'!BA49+'Sch. E'!BA49)/4/12*6,2) -> 0 | BB49: 0 | BC49: =ROUND(('Sch. B'!BC49+'Sch. C'!BC49+'Sch. D'!BC49+'Sch. E'!BC49)/4/12*6,2) -> 0 | BD49: 0 | BE49: =ROUND(('Sch. B'!BE49+'Sch. C'!BE49+'Sch. D'!BE49+'Sch. E'!BE49)/4/12*6,2) -> 0 | BF49: 0 | BG49: =ROUND(('Sch. B'!BG49+'Sch. C'!BG49+'Sch. D'!BG49+'Sch. E'!BG49)/4/12*6,2) -> 0 | BH49: 0 | BI49: =ROUND(('Sch. B'!BI49+'Sch. C'!BI49+'Sch. D'!BI49+'Sch. E'!BI49)/4/12*6,2) -> 0 | BJ49: 0 | BK49: =ROUND(('Sch. B'!BK49+'Sch. C'!BK49+'Sch. D'!BK49+'Sch. E'!BK49)/4/12*6,2) -> 0 | BL49: 0 | BM49: =ROUND(('Sch. B'!BM49+'Sch. C'!BM49+'Sch. D'!BM49+'Sch. E'!BM49)/4/12*6,2) -> 0 | BN49: 0 | BO49: =ROUND(('Sch. B'!BO49+'Sch. C'!BO49+'Sch. D'!BO49+'Sch. E'!BO49)/4/12*6,2) -> 0 | BP49: 0 | BQ49: =ROUND(('Sch. B'!BQ49+'Sch. C'!BQ49+'Sch. D'!BQ49+'Sch. E'!BQ49)/4/12*6,2) -> 0 | BR49: 0 | BS49: =ROUND(('Sch. B'!BS49+'Sch. C'!BS49+'Sch. D'!BS49+'Sch. E'!BS49)/4/12*6,2) -> 0 | BT49: 0 | BU49: =ROUND(('Sch. B'!BU49+'Sch. C'!BU49+'Sch. D'!BU49+'Sch. E'!BU49)/4/12*6,2) -> 0 | BV49: 0 | BW49: =ROUND(('Sch. B'!BW49+'Sch. C'!BW49+'Sch. D'!BW49+'Sch. E'!BW49)/4/12*6,2) -> 0 | BX49: 0 | BY49: =ROUND(('Sch. B'!BY49+'Sch. C'!BY49+'Sch. D'!BY49+'Sch. E'!BY49)/4/12*6,2) -> 0 | BZ49: 0 | CA49: 3955.09 | CB49: 144360.785
A50: =+Index!$K$4+1+0.5-B50 -> 35.5 | B50: 1984 | C50: =ROUND(('Sch. B'!C50+'Sch. C'!C50+'Sch. D'!C50+'Sch. E'!C50)/4/12*6,2) -> 0 | D50: 0 | E50: =ROUND(('Sch. B'!E50+'Sch. C'!E50+'Sch. D'!E50+'Sch. E'!E50)/4/12*6,2) -> 0 | F50: 0 | G50: =ROUND(('Sch. B'!G50+'Sch. C'!G50+'Sch. D'!G50+'Sch. E'!G50)/4/12*6,2) -> 0 | H50: 0 | I50: =ROUND(('Sch. B'!I50+'Sch. C'!I50+'Sch. D'!I50+'Sch. E'!I50)/4/12*6,2) -> 0 | J50: 0 | K50: =ROUND(('Sch. B'!K50+'Sch. C'!K50+'Sch. D'!K50+'Sch. E'!K50)/4/12*6,2) -> 0 | L50: 0 | M50: =ROUND(('Sch. B'!M50+'Sch. C'!M50+'Sch. D'!M50+'Sch. E'!M50)/4/12*6,2) -> 0 | N50: 0 | O50: =ROUND(('Sch. B'!O50+'Sch. C'!O50+'Sch. D'!O50+'Sch. E'!O50)/4/12*6,2) -> 0 | P50: 0 | Q50: =ROUND(('Sch. B'!Q50+'Sch. C'!Q50+'Sch. D'!Q50+'Sch. E'!Q50)/4/12*6,2) -> 0 | R50: 0 | S50: =ROUND(('Sch. B'!S50+'Sch. C'!S50+'Sch. D'!S50+'Sch. E'!S50)/4/12*6,2) -> 0 | T50: 0 | U50: =ROUND(('Sch. B'!U50+'Sch. C'!U50+'Sch. D'!U50+'Sch. E'!U50)/4/12*6,2) -> 0 | V50: 0 | W50: =ROUND(('Sch. B'!W50+'Sch. C'!W50+'Sch. D'!W50+'Sch. E'!W50)/4/12*6,2) -> 296.17 | X50: 10514.035 | Y50: =ROUND(('Sch. B'!Y50+'Sch. C'!Y50+'Sch. D'!Y50+'Sch. E'!Y50)/4/12*6,2) -> 21.36 | Z50: 758.28 | AA50: =ROUND(('Sch. B'!AA50+'Sch. C'!AA50+'Sch. D'!AA50+'Sch. E'!AA50)/4/12*6,2) -> 0 | AB50: 0 | AC50: =ROUND(('Sch. B'!AC50+'Sch. C'!AC50+'Sch. D'!AC50+'Sch. E'!AC50)/4/12*6,2) -> 262.03 | AD50: 9302.065 | AE50: =ROUND(('Sch. B'!AE50+'Sch. C'!AE50+'Sch. D'!AE50+'Sch. E'!AE50)/4/12*6,2) -> 63.49 | AF50: 2253.895 | AG50: =ROUND(('Sch. B'!AG50+'Sch. C'!AG50+'Sch. D'!AG50+'Sch. E'!AG50)/4/12*6,2) -> 96.91 | AH50: 3440.305 | AI50: =ROUND(('Sch. B'!AI50+'Sch. C'!AI50+'Sch. D'!AI50+'Sch. E'!AI50)/4/12*6,2) -> 261.97 | AJ50: 9299.935 | AK50: =ROUND(('Sch. B'!AK50+'Sch. C'!AK50+'Sch. D'!AK50+'Sch. E'!AK50)/4/12*6,2) -> 93.02 | AL50: 3302.21 | AM50: =ROUND(('Sch. B'!AM50+'Sch. C'!AM50+'Sch. D'!AM50+'Sch. E'!AM50)/4/12*6,2) -> 0 | AN50: 0 | AO50: =ROUND(('Sch. B'!AO50+'Sch. C'!AO50+'Sch. D'!AO50+'Sch. E'!AO50)/4/12*6,2) -> 0 | AP50: 0 | AQ50: =ROUND(('Sch. B'!AQ50+'Sch. C'!AQ50+'Sch. D'!AQ50+'Sch. E'!AQ50)/4/12*6,2) -> 0 | AR50: 0 | AS50: =ROUND(('Sch. B'!AS50+'Sch. C'!AS50+'Sch. D'!AS50+'Sch. E'!AS50)/4/12*6,2) -> 0 | AT50: 0 | AU50: =ROUND(('Sch. B'!AU50+'Sch. C'!AU50+'Sch. D'!AU50+'Sch. E'!AU50)/4/12*6,2) -> 0 | AV50: 0 | AW50: =ROUND(('Sch. B'!AW50+'Sch. C'!AW50+'Sch. D'!AW50+'Sch. E'!AW50)/4/12*6,2) -> 0 | AX50: 0 | AY50: =ROUND(('Sch. B'!AY50+'Sch. C'!AY50+'Sch. D'!AY50+'Sch. E'!AY50)/4/12*6,2) -> 0 | AZ50: 0 | BA50: =ROUND(('Sch. B'!BA50+'Sch. C'!BA50+'Sch. D'!BA50+'Sch. E'!BA50)/4/12*6,2) -> 0 | BB50: 0 | BC50: =ROUND(('Sch. B'!BC50+'Sch. C'!BC50+'Sch. D'!BC50+'Sch. E'!BC50)/4/12*6,2) -> 0 | BD50: 0 | BE50: =ROUND(('Sch. B'!BE50+'Sch. C'!BE50+'Sch. D'!BE50+'Sch. E'!BE50)/4/12*6,2) -> 0 | BF50: 0 | BG50: =ROUND(('Sch. B'!BG50+'Sch. C'!BG50+'Sch. D'!BG50+'Sch. E'!BG50)/4/12*6,2) -> 0 | BH50: 0 | BI50: =ROUND(('Sch. B'!BI50+'Sch. C'!BI50+'Sch. D'!BI50+'Sch. E'!BI50)/4/12*6,2) -> 0 | BJ50: 0 | BK50: =ROUND(('Sch. B'!BK50+'Sch. C'!BK50+'Sch. D'!BK50+'Sch. E'!BK50)/4/12*6,2) -> 0 | BL50: 0 | BM50: =ROUND(('Sch. B'!BM50+'Sch. C'!BM50+'Sch. D'!BM50+'Sch. E'!BM50)/4/12*6,2) -> 0 | BN50: 0 | BO50: =ROUND(('Sch. B'!BO50+'Sch. C'!BO50+'Sch. D'!BO50+'Sch. E'!BO50)/4/12*6,2) -> 0 | BP50: 0 | BQ50: =ROUND(('Sch. B'!BQ50+'Sch. C'!BQ50+'Sch. D'!BQ50+'Sch. E'!BQ50)/4/12*6,2) -> 0 | BR50: 0 | BS50: =ROUND(('Sch. B'!BS50+'Sch. C'!BS50+'Sch. D'!BS50+'Sch. E'!BS50)/4/12*6,2) -> 0 | BT50: 0 | BU50: =ROUND(('Sch. B'!BU50+'Sch. C'!BU50+'Sch. D'!BU50+'Sch. E'!BU50)/4/12*6,2) -> 0 | BV50: 0 | BW50: =ROUND(('Sch. B'!BW50+'Sch. C'!BW50+'Sch. D'!BW50+'Sch. E'!BW50)/4/12*6,2) -> 0 | BX50: 0 | BY50: =ROUND(('Sch. B'!BY50+'Sch. C'!BY50+'Sch. D'!BY50+'Sch. E'!BY50)/4/12*6,2) -> 0 | BZ50: 0 | CA50: 1094.95 | CB50: 38870.725
A51: =+Index!$K$4+1+0.5-B51 -> 34.5 | B51: 1985 | C51: =ROUND(('Sch. B'!C51+'Sch. C'!C51+'Sch. D'!C51+'Sch. E'!C51)/4/12*6,2) -> 0 | D51: 0 | E51: =ROUND(('Sch. B'!E51+'Sch. C'!E51+'Sch. D'!E51+'Sch. E'!E51)/4/12*6,2) -> 0 | F51: 0 | G51: =ROUND(('Sch. B'!G51+'Sch. C'!G51+'Sch. D'!G51+'Sch. E'!G51)/4/12*6,2) -> 0 | H51: 0 | I51: =ROUND(('Sch. B'!I51+'Sch. C'!I51+'Sch. D'!I51+'Sch. E'!I51)/4/12*6,2) -> 0 | J51: 0 | K51: =ROUND(('Sch. B'!K51+'Sch. C'!K51+'Sch. D'!K51+'Sch. E'!K51)/4/12*6,2) -> 0 | L51: 0 | M51: =ROUND(('Sch. B'!M51+'Sch. C'!M51+'Sch. D'!M51+'Sch. E'!M51)/4/12*6,2) -> 0 | N51: 0 | O51: =ROUND(('Sch. B'!O51+'Sch. C'!O51+'Sch. D'!O51+'Sch. E'!O51)/4/12*6,2) -> 0 | P51: 0 | Q51: =ROUND(('Sch. B'!Q51+'Sch. C'!Q51+'Sch. D'!Q51+'Sch. E'!Q51)/4/12*6,2) -> 0 | R51: 0 | S51: =ROUND(('Sch. B'!S51+'Sch. C'!S51+'Sch. D'!S51+'Sch. E'!S51)/4/12*6,2) -> 0 | T51: 0 | U51: =ROUND(('Sch. B'!U51+'Sch. C'!U51+'Sch. D'!U51+'Sch. E'!U51)/4/12*6,2) -> 0 | V51: 0 | W51: =ROUND(('Sch. B'!W51+'Sch. C'!W51+'Sch. D'!W51+'Sch. E'!W51)/4/12*6,2) -> 1536.1 | X51: 52995.45 | Y51: =ROUND(('Sch. B'!Y51+'Sch. C'!Y51+'Sch. D'!Y51+'Sch. E'!Y51)/4/12*6,2) -> 63.85 | Z51: 2202.825 | AA51: =ROUND(('Sch. B'!AA51+'Sch. C'!AA51+'Sch. D'!AA51+'Sch. E'!AA51)/4/12*6,2) -> 0 | AB51: 0 | AC51: =ROUND(('Sch. B'!AC51+'Sch. C'!AC51+'Sch. D'!AC51+'Sch. E'!AC51)/4/12*6,2) -> 73.51 | AD51: 2536.095 | AE51: =ROUND(('Sch. B'!AE51+'Sch. C'!AE51+'Sch. D'!AE51+'Sch. E'!AE51)/4/12*6,2)+4492.44 -> 5088.24 | AF51: 175544.28 | AG51: =ROUND(('Sch. B'!AG51+'Sch. C'!AG51+'Sch. D'!AG51+'Sch. E'!AG51)/4/12*6,2) -> 51.41 | AH51: 1773.645 | AI51: =ROUND(('Sch. B'!AI51+'Sch. C'!AI51+'Sch. D'!AI51+'Sch. E'!AI51)/4/12*6,2) -> 379.84 | AJ51: 13104.48 | AK51: =ROUND(('Sch. B'!AK51+'Sch. C'!AK51+'Sch. D'!AK51+'Sch. E'!AK51)/4/12*6,2)+493.38 -> 579.72 | AL51: 20000.34 | AM51: =ROUND(('Sch. B'!AM51+'Sch. C'!AM51+'Sch. D'!AM51+'Sch. E'!AM51)/4/12*6,2) -> 9.88 | AN51: 340.86 | AO51: =ROUND(('Sch. B'!AO51+'Sch. C'!AO51+'Sch. D'!AO51+'Sch. E'!AO51)/4/12*6,2) -> 0 | AP51: 0 | AQ51: =ROUND(('Sch. B'!AQ51+'Sch. C'!AQ51+'Sch. D'!AQ51+'Sch. E'!AQ51)/4/12*6,2) -> 0 | AR51: 0 | AS51: =ROUND(('Sch. B'!AS51+'Sch. C'!AS51+'Sch. D'!AS51+'Sch. E'!AS51)/4/12*6,2) -> 0 | AT51: 0 | AU51: =ROUND(('Sch. B'!AU51+'Sch. C'!AU51+'Sch. D'!AU51+'Sch. E'!AU51)/4/12*6,2) -> 0 | AV51: 0 | AW51: =ROUND(('Sch. B'!AW51+'Sch. C'!AW51+'Sch. D'!AW51+'Sch. E'!AW51)/4/12*6,2) -> 0 | AX51: 0 | AY51: =ROUND(('Sch. B'!AY51+'Sch. C'!AY51+'Sch. D'!AY51+'Sch. E'!AY51)/4/12*6,2) -> 0 | AZ51: 0 | BA51: =ROUND(('Sch. B'!BA51+'Sch. C'!BA51+'Sch. D'!BA51+'Sch. E'!BA51)/4/12*6,2) -> 0 | BB51: 0 | BC51: =ROUND(('Sch. B'!BC51+'Sch. C'!BC51+'Sch. D'!BC51+'Sch. E'!BC51)/4/12*6,2) -> 0 | BD51: 0 | BE51: =ROUND(('Sch. B'!BE51+'Sch. C'!BE51+'Sch. D'!BE51+'Sch. E'!BE51)/4/12*6,2) -> 0 | BF51: 0 | BG51: =ROUND(('Sch. B'!BG51+'Sch. C'!BG51+'Sch. D'!BG51+'Sch. E'!BG51)/4/12*6,2) -> 0 | BH51: 0 | BI51: =ROUND(('Sch. B'!BI51+'Sch. C'!BI51+'Sch. D'!BI51+'Sch. E'!BI51)/4/12*6,2) -> 0 | BJ51: 0 | BK51: =ROUND(('Sch. B'!BK51+'Sch. C'!BK51+'Sch. D'!BK51+'Sch. E'!BK51)/4/12*6,2) -> 0 | BL51: 0 | BM51: =ROUND(('Sch. B'!BM51+'Sch. C'!BM51+'Sch. D'!BM51+'Sch. E'!BM51)/4/12*6,2) -> 0 | BN51: 0 | BO51: =ROUND(('Sch. B'!BO51+'Sch. C'!BO51+'Sch. D'!BO51+'Sch. E'!BO51)/4/12*6,2) -> 0 | BP51: 0 | BQ51: =ROUND(('Sch. B'!BQ51+'Sch. C'!BQ51+'Sch. D'!BQ51+'Sch. E'!BQ51)/4/12*6,2) -> 0 | BR51: 0 | BS51: =ROUND(('Sch. B'!BS51+'Sch. C'!BS51+'Sch. D'!BS51+'Sch. E'!BS51)/4/12*6,2) -> 0 | BT51: 0 | BU51: =ROUND(('Sch. B'!BU51+'Sch. C'!BU51+'Sch. D'!BU51+'Sch. E'!BU51)/4/12*6,2) -> 0 | BV51: 0 | BW51: =ROUND(('Sch. B'!BW51+'Sch. C'!BW51+'Sch. D'!BW51+'Sch. E'!BW51)/4/12*6,2) -> 0 | BX51: 0 | BY51: =ROUND(('Sch. B'!BY51+'Sch. C'!BY51+'Sch. D'!BY51+'Sch. E'!BY51)/4/12*6,2) -> 0 | BZ51: 0 | CA51: 7782.55 | CB51: 268497.975
A52: =+Index!$K$4+1+0.5-B52 -> 33.5 | B52: 1986 | C52: =ROUND(('Sch. B'!C52+'Sch. C'!C52+'Sch. D'!C52+'Sch. E'!C52)/4/12*6,2) -> 0 | D52: 0 | E52: =ROUND(('Sch. B'!E52+'Sch. C'!E52+'Sch. D'!E52+'Sch. E'!E52)/4/12*6,2) -> 0 | F52: 0 | G52: =ROUND(('Sch. B'!G52+'Sch. C'!G52+'Sch. D'!G52+'Sch. E'!G52)/4/12*6,2) -> 0 | H52: 0 | I52: =ROUND(('Sch. B'!I52+'Sch. C'!I52+'Sch. D'!I52+'Sch. E'!I52)/4/12*6,2) -> 0 | J52: 0 | K52: =ROUND(('Sch. B'!K52+'Sch. C'!K52+'Sch. D'!K52+'Sch. E'!K52)/4/12*6,2) -> 0 | L52: 0 | M52: =ROUND(('Sch. B'!M52+'Sch. C'!M52+'Sch. D'!M52+'Sch. E'!M52)/4/12*6,2) -> 391.51 | N52: 13115.585 | O52: =ROUND(('Sch. B'!O52+'Sch. C'!O52+'Sch. D'!O52+'Sch. E'!O52)/4/12*6,2) -> 0 | P52: 0 | Q52: =ROUND(('Sch. B'!Q52+'Sch. C'!Q52+'Sch. D'!Q52+'Sch. E'!Q52)/4/12*6,2) -> 0 | R52: 0 | S52: =ROUND(('Sch. B'!S52+'Sch. C'!S52+'Sch. D'!S52+'Sch. E'!S52)/4/12*6,2) -> 0 | T52: 0 | U52: =ROUND(('Sch. B'!U52+'Sch. C'!U52+'Sch. D'!U52+'Sch. E'!U52)/4/12*6,2) -> 0 | V52: 0 | W52: =ROUND(('Sch. B'!W52+'Sch. C'!W52+'Sch. D'!W52+'Sch. E'!W52)/4/12*6,2)+733.72 -> 1600.38 | X52: 53612.73 | Y52: =ROUND(('Sch. B'!Y52+'Sch. C'!Y52+'Sch. D'!Y52+'Sch. E'!Y52)/4/12*6,2)+132.95 -> 471.33 | Z52: 15789.555 | AA52: =ROUND(('Sch. B'!AA52+'Sch. C'!AA52+'Sch. D'!AA52+'Sch. E'!AA52)/4/12*6,2) -> 0 | AB52: 0 | AC52: =ROUND(('Sch. B'!AC52+'Sch. C'!AC52+'Sch. D'!AC52+'Sch. E'!AC52)/4/12*6,2)+128.73 -> 172.18 | AD52: 5768.03 | AE52: =ROUND(('Sch. B'!AE52+'Sch. C'!AE52+'Sch. D'!AE52+'Sch. E'!AE52)/4/12*6,2) -> 255.83 | AF52: 8570.305 | AG52: =ROUND(('Sch. B'!AG52+'Sch. C'!AG52+'Sch. D'!AG52+'Sch. E'!AG52)/4/12*6,2) -> 19.42 | AH52: 650.57 | AI52: =ROUND(('Sch. B'!AI52+'Sch. C'!AI52+'Sch. D'!AI52+'Sch. E'!AI52)/4/12*6,2) -> 631.16 | AJ52: 21143.86 | AK52: =ROUND(('Sch. B'!AK52+'Sch. C'!AK52+'Sch. D'!AK52+'Sch. E'!AK52)/4/12*6,2)+621.22 -> 912.42 | AL52: 30566.07 | AM52: =ROUND(('Sch. B'!AM52+'Sch. C'!AM52+'Sch. D'!AM52+'Sch. E'!AM52)/4/12*6,2) -> 0 | AN52: 0 | AO52: =ROUND(('Sch. B'!AO52+'Sch. C'!AO52+'Sch. D'!AO52+'Sch. E'!AO52)/4/12*6,2) -> 0 | AP52: 0 | AQ52: =ROUND(('Sch. B'!AQ52+'Sch. C'!AQ52+'Sch. D'!AQ52+'Sch. E'!AQ52)/4/12*6,2) -> 0 | AR52: 0 | AS52: =ROUND(('Sch. B'!AS52+'Sch. C'!AS52+'Sch. D'!AS52+'Sch. E'!AS52)/4/12*6,2) -> 0 | AT52: 0 | AU52: =ROUND(('Sch. B'!AU52+'Sch. C'!AU52+'Sch. D'!AU52+'Sch. E'!AU52)/4/12*6,2) -> 0 | AV52: 0 | AW52: =ROUND(('Sch. B'!AW52+'Sch. C'!AW52+'Sch. D'!AW52+'Sch. E'!AW52)/4/12*6,2) -> 0 | AX52: 0 | AY52: =ROUND(('Sch. B'!AY52+'Sch. C'!AY52+'Sch. D'!AY52+'Sch. E'!AY52)/4/12*6,2) -> 0 | AZ52: 0 | BA52: =ROUND(('Sch. B'!BA52+'Sch. C'!BA52+'Sch. D'!BA52+'Sch. E'!BA52)/4/12*6,2) -> 0 | BB52: 0 | BC52: =ROUND(('Sch. B'!BC52+'Sch. C'!BC52+'Sch. D'!BC52+'Sch. E'!BC52)/4/12*6,2) -> 0 | BD52: 0 | BE52: =ROUND(('Sch. B'!BE52+'Sch. C'!BE52+'Sch. D'!BE52+'Sch. E'!BE52)/4/12*6,2) -> 0 | BF52: 0 | BG52: =ROUND(('Sch. B'!BG52+'Sch. C'!BG52+'Sch. D'!BG52+'Sch. E'!BG52)/4/12*6,2) -> 0 | BH52: 0 | BI52: =ROUND(('Sch. B'!BI52+'Sch. C'!BI52+'Sch. D'!BI52+'Sch. E'!BI52)/4/12*6,2) -> 0 | BJ52: 0 | BK52: =ROUND(('Sch. B'!BK52+'Sch. C'!BK52+'Sch. D'!BK52+'Sch. E'!BK52)/4/12*6,2) -> 0 | BL52: 0 | BM52: =ROUND(('Sch. B'!BM52+'Sch. C'!BM52+'Sch. D'!BM52+'Sch. E'!BM52)/4/12*6,2) -> 0 | BN52: 0 | BO52: =ROUND(('Sch. B'!BO52+'Sch. C'!BO52+'Sch. D'!BO52+'Sch. E'!BO52)/4/12*6,2) -> 0 | BP52: 0 | BQ52: =ROUND(('Sch. B'!BQ52+'Sch. C'!BQ52+'Sch. D'!BQ52+'Sch. E'!BQ52)/4/12*6,2) -> 0 | BR52: 0 | BS52: =ROUND(('Sch. B'!BS52+'Sch. C'!BS52+'Sch. D'!BS52+'Sch. E'!BS52)/4/12*6,2) -> 0 | BT52: 0 | BU52: =ROUND(('Sch. B'!BU52+'Sch. C'!BU52+'Sch. D'!BU52+'Sch. E'!BU52)/4/12*6,2) -> 0 | BV52: 0 | BW52: =ROUND(('Sch. B'!BW52+'Sch. C'!BW52+'Sch. D'!BW52+'Sch. E'!BW52)/4/12*6,2) -> 0 | BX52: 0 | BY52: =ROUND(('Sch. B'!BY52+'Sch. C'!BY52+'Sch. D'!BY52+'Sch. E'!BY52)/4/12*6,2) -> 0 | BZ52: 0 | CA52: 4454.23 | CB52: 149216.705
A53: =+Index!$K$4+1+0.5-B53 -> 32.5 | B53: 1987 | C53: =ROUND(('Sch. B'!C53+'Sch. C'!C53+'Sch. D'!C53+'Sch. E'!C53)/4/12*6,2) -> 0 | D53: 0 | E53: =ROUND(('Sch. B'!E53+'Sch. C'!E53+'Sch. D'!E53+'Sch. E'!E53)/4/12*6,2) -> 0 | F53: 0 | G53: =ROUND(('Sch. B'!G53+'Sch. C'!G53+'Sch. D'!G53+'Sch. E'!G53)/4/12*6,2) -> 0 | H53: 0 | I53: =ROUND(('Sch. B'!I53+'Sch. C'!I53+'Sch. D'!I53+'Sch. E'!I53)/4/12*6,2) -> 0 | J53: 0 | K53: =ROUND(('Sch. B'!K53+'Sch. C'!K53+'Sch. D'!K53+'Sch. E'!K53)/4/12*6,2) -> 0 | L53: 0 | M53: =ROUND(('Sch. B'!M53+'Sch. C'!M53+'Sch. D'!M53+'Sch. E'!M53)/4/12*6,2) -> 0 | N53: 0 | O53: =ROUND(('Sch. B'!O53+'Sch. C'!O53+'Sch. D'!O53+'Sch. E'!O53)/4/12*6,2) -> 0 | P53: 0 | Q53: =ROUND(('Sch. B'!Q53+'Sch. C'!Q53+'Sch. D'!Q53+'Sch. E'!Q53)/4/12*6,2) -> 0 | R53: 0 | S53: =ROUND(('Sch. B'!S53+'Sch. C'!S53+'Sch. D'!S53+'Sch. E'!S53)/4/12*6,2) -> 0 | T53: 0 | U53: =ROUND(('Sch. B'!U53+'Sch. C'!U53+'Sch. D'!U53+'Sch. E'!U53)/4/12*6,2) -> 0 | V53: 0 | W53: =ROUND(('Sch. B'!W53+'Sch. C'!W53+'Sch. D'!W53+'Sch. E'!W53)/4/12*6,2)+626.89 -> 909.44 | X53: 29556.8 | Y53: =ROUND(('Sch. B'!Y53+'Sch. C'!Y53+'Sch. D'!Y53+'Sch. E'!Y53)/4/12*6,2) -> 98.54 | Z53: 3202.55 | AA53: =ROUND(('Sch. B'!AA53+'Sch. C'!AA53+'Sch. D'!AA53+'Sch. E'!AA53)/4/12*6,2) -> 0 | AB53: 0 | AC53: =ROUND(('Sch. B'!AC53+'Sch. C'!AC53+'Sch. D'!AC53+'Sch. E'!AC53)/4/12*6,2) -> 0 | AD53: 0 | AE53: =ROUND(('Sch. B'!AE53+'Sch. C'!AE53+'Sch. D'!AE53+'Sch. E'!AE53)/4/12*6,2) -> 107.83 | AF53: 3504.475 | AG53: =ROUND(('Sch. B'!AG53+'Sch. C'!AG53+'Sch. D'!AG53+'Sch. E'!AG53)/4/12*6,2) -> 53.92 | AH53: 1752.4 | AI53: =ROUND(('Sch. B'!AI53+'Sch. C'!AI53+'Sch. D'!AI53+'Sch. E'!AI53)/4/12*6,2) -> 222.22 | AJ53: 7222.15 | AK53: =ROUND(('Sch. B'!AK53+'Sch. C'!AK53+'Sch. D'!AK53+'Sch. E'!AK53)/4/12*6,2) -> 1757.61 | AL53: 57122.325 | AM53: =ROUND(('Sch. B'!AM53+'Sch. C'!AM53+'Sch. D'!AM53+'Sch. E'!AM53)/4/12*6,2) -> 22.24 | AN53: 722.8 | AO53: =ROUND(('Sch. B'!AO53+'Sch. C'!AO53+'Sch. D'!AO53+'Sch. E'!AO53)/4/12*6,2) -> 0 | AP53: 0 | AQ53: =ROUND(('Sch. B'!AQ53+'Sch. C'!AQ53+'Sch. D'!AQ53+'Sch. E'!AQ53)/4/12*6,2) -> 0 | AR53: 0 | AS53: =ROUND(('Sch. B'!AS53+'Sch. C'!AS53+'Sch. D'!AS53+'Sch. E'!AS53)/4/12*6,2) -> 0 | AT53: 0 | AU53: =ROUND(('Sch. B'!AU53+'Sch. C'!AU53+'Sch. D'!AU53+'Sch. E'!AU53)/4/12*6,2) -> 0 | AV53: 0 | AW53: =ROUND(('Sch. B'!AW53+'Sch. C'!AW53+'Sch. D'!AW53+'Sch. E'!AW53)/4/12*6,2) -> 0 | AX53: 0 | AY53: =ROUND(('Sch. B'!AY53+'Sch. C'!AY53+'Sch. D'!AY53+'Sch. E'!AY53)/4/12*6,2) -> 0 | AZ53: 0 | BA53: =ROUND(('Sch. B'!BA53+'Sch. C'!BA53+'Sch. D'!BA53+'Sch. E'!BA53)/4/12*6,2) -> 0 | BB53: 0 | BC53: =ROUND(('Sch. B'!BC53+'Sch. C'!BC53+'Sch. D'!BC53+'Sch. E'!BC53)/4/12*6,2) -> 0 | BD53: 0 | BE53: =ROUND(('Sch. B'!BE53+'Sch. C'!BE53+'Sch. D'!BE53+'Sch. E'!BE53)/4/12*6,2) -> 0 | BF53: 0 | BG53: =ROUND(('Sch. B'!BG53+'Sch. C'!BG53+'Sch. D'!BG53+'Sch. E'!BG53)/4/12*6,2) -> 0 | BH53: 0 | BI53: =ROUND(('Sch. B'!BI53+'Sch. C'!BI53+'Sch. D'!BI53+'Sch. E'!BI53)/4/12*6,2) -> 0 | BJ53: 0 | BK53: =ROUND(('Sch. B'!BK53+'Sch. C'!BK53+'Sch. D'!BK53+'Sch. E'!BK53)/4/12*6,2) -> 0 | BL53: 0 | BM53: =ROUND(('Sch. B'!BM53+'Sch. C'!BM53+'Sch. D'!BM53+'Sch. E'!BM53)/4/12*6,2) -> 0 | BN53: 0 | BO53: =ROUND(('Sch. B'!BO53+'Sch. C'!BO53+'Sch. D'!BO53+'Sch. E'!BO53)/4/12*6,2) -> 0 | BP53: 0 | BQ53: =ROUND(('Sch. B'!BQ53+'Sch. C'!BQ53+'Sch. D'!BQ53+'Sch. E'!BQ53)/4/12*6,2) -> 0 | BR53: 0 | BS53: =ROUND(('Sch. B'!BS53+'Sch. C'!BS53+'Sch. D'!BS53+'Sch. E'!BS53)/4/12*6,2) -> 0 | BT53: 0 | BU53: =ROUND(('Sch. B'!BU53+'Sch. C'!BU53+'Sch. D'!BU53+'Sch. E'!BU53)/4/12*6,2) -> 0 | BV53: 0 | BW53: =ROUND(('Sch. B'!BW53+'Sch. C'!BW53+'Sch. D'!BW53+'Sch. E'!BW53)/4/12*6,2) -> 0 | BX53: 0 | BY53: =ROUND(('Sch. B'!BY53+'Sch. C'!BY53+'Sch. D'!BY53+'Sch. E'!BY53)/4/12*6,2) -> 0 | BZ53: 0 | CA53: 3171.8 | CB53: 103083.5
A54: =+Index!$K$4+1+0.5-B54 -> 31.5 | B54: 1988 | C54: =ROUND(('Sch. B'!C54+'Sch. C'!C54+'Sch. D'!C54+'Sch. E'!C54)/4/12*6,2) -> 0 | D54: 0 | E54: =ROUND(('Sch. B'!E54+'Sch. C'!E54+'Sch. D'!E54+'Sch. E'!E54)/4/12*6,2) -> 0 | F54: 0 | G54: =ROUND(('Sch. B'!G54+'Sch. C'!G54+'Sch. D'!G54+'Sch. E'!G54)/4/12*6,2) -> 0 | H54: 0 | I54: =ROUND(('Sch. B'!I54+'Sch. C'!I54+'Sch. D'!I54+'Sch. E'!I54)/4/12*6,2) -> 0 | J54: 0 | K54: =ROUND(('Sch. B'!K54+'Sch. C'!K54+'Sch. D'!K54+'Sch. E'!K54)/4/12*6,2) -> 0 | L54: 0 | M54: =ROUND(('Sch. B'!M54+'Sch. C'!M54+'Sch. D'!M54+'Sch. E'!M54)/4/12*6,2) -> 0 | N54: 0 | O54: =ROUND(('Sch. B'!O54+'Sch. C'!O54+'Sch. D'!O54+'Sch. E'!O54)/4/12*6,2) -> 0 | P54: 0 | Q54: =ROUND(('Sch. B'!Q54+'Sch. C'!Q54+'Sch. D'!Q54+'Sch. E'!Q54)/4/12*6,2) -> 0 | R54: 0 | S54: =ROUND(('Sch. B'!S54+'Sch. C'!S54+'Sch. D'!S54+'Sch. E'!S54)/4/12*6,2) -> 0 | T54: 0 | U54: =ROUND(('Sch. B'!U54+'Sch. C'!U54+'Sch. D'!U54+'Sch. E'!U54)/4/12*6,2) -> 0 | V54: 0 | W54: =ROUND(('Sch. B'!W54+'Sch. C'!W54+'Sch. D'!W54+'Sch. E'!W54)/4/12*6,2) -> 310.73 | X54: 9787.995 | Y54: =ROUND(('Sch. B'!Y54+'Sch. C'!Y54+'Sch. D'!Y54+'Sch. E'!Y54)/4/12*6,2) -> 59.61 | Z54: 1877.715 | AA54: =ROUND(('Sch. B'!AA54+'Sch. C'!AA54+'Sch. D'!AA54+'Sch. E'!AA54)/4/12*6,2) -> 0 | AB54: 0 | AC54: =ROUND(('Sch. B'!AC54+'Sch. C'!AC54+'Sch. D'!AC54+'Sch. E'!AC54)/4/12*6,2)+565.84 -> 565.84 | AD54: 17823.96 | AE54: =ROUND(('Sch. B'!AE54+'Sch. C'!AE54+'Sch. D'!AE54+'Sch. E'!AE54)/4/12*6,2)+8174.6 -> 8745.82 | AF54: 275493.33 | AG54: =ROUND(('Sch. B'!AG54+'Sch. C'!AG54+'Sch. D'!AG54+'Sch. E'!AG54)/4/12*6,2) -> 77.53 | AH54: 2442.195 | AI54: =ROUND(('Sch. B'!AI54+'Sch. C'!AI54+'Sch. D'!AI54+'Sch. E'!AI54)/4/12*6,2) -> 265.02 | AJ54: 8348.13 | AK54: =ROUND(('Sch. B'!AK54+'Sch. C'!AK54+'Sch. D'!AK54+'Sch. E'!AK54)/4/12*6,2)+975.35 -> 1079.85 | AL54: 34015.275 | AM54: =ROUND(('Sch. B'!AM54+'Sch. C'!AM54+'Sch. D'!AM54+'Sch. E'!AM54)/4/12*6,2) -> 0 | AN54: 0 | AO54: 0 | AP54: 0 | AQ54: =ROUND(('Sch. B'!AQ54+'Sch. C'!AQ54+'Sch. D'!AQ54+'Sch. E'!AQ54)/4/12*6,2) -> 0 | AR54: 0 | AS54: =ROUND(('Sch. B'!AS54+'Sch. C'!AS54+'Sch. D'!AS54+'Sch. E'!AS54)/4/12*6,2) -> 0 | AT54: 0 | AU54: =ROUND(('Sch. B'!AU54+'Sch. C'!AU54+'Sch. D'!AU54+'Sch. E'!AU54)/4/12*6,2) -> 0 | AV54: 0 | AW54: =ROUND(('Sch. B'!AW54+'Sch. C'!AW54+'Sch. D'!AW54+'Sch. E'!AW54)/4/12*6,2) -> 0 | AX54: 0 | AY54: =ROUND(('Sch. B'!AY54+'Sch. C'!AY54+'Sch. D'!AY54+'Sch. E'!AY54)/4/12*6,2) -> 0 | AZ54: 0 | BA54: =ROUND(('Sch. B'!BA54+'Sch. C'!BA54+'Sch. D'!BA54+'Sch. E'!BA54)/4/12*6,2) -> 0 | BB54: 0 | BC54: =ROUND(('Sch. B'!BC54+'Sch. C'!BC54+'Sch. D'!BC54+'Sch. E'!BC54)/4/12*6,2) -> 0 | BD54: 0 | BE54: =ROUND(('Sch. B'!BE54+'Sch. C'!BE54+'Sch. D'!BE54+'Sch. E'!BE54)/4/12*6,2) -> 0 | BF54: 0 | BG54: =ROUND(('Sch. B'!BG54+'Sch. C'!BG54+'Sch. D'!BG54+'Sch. E'!BG54)/4/12*6,2) -> 0 | BH54: 0 | BI54: =ROUND(('Sch. B'!BI54+'Sch. C'!BI54+'Sch. D'!BI54+'Sch. E'!BI54)/4/12*6,2) -> 0 | BJ54: 0 | BK54: =ROUND(('Sch. B'!BK54+'Sch. C'!BK54+'Sch. D'!BK54+'Sch. E'!BK54)/4/12*6,2) -> 0 | BL54: 0 | BM54: =ROUND(('Sch. B'!BM54+'Sch. C'!BM54+'Sch. D'!BM54+'Sch. E'!BM54)/4/12*6,2) -> 0 | BN54: 0 | BO54: =ROUND(('Sch. B'!BO54+'Sch. C'!BO54+'Sch. D'!BO54+'Sch. E'!BO54)/4/12*6,2) -> 0 | BP54: 0 | BQ54: =ROUND(('Sch. B'!BQ54+'Sch. C'!BQ54+'Sch. D'!BQ54+'Sch. E'!BQ54)/4/12*6,2) -> 0 | BR54: 0 | BS54: =ROUND(('Sch. B'!BS54+'Sch. C'!BS54+'Sch. D'!BS54+'Sch. E'!BS54)/4/12*6,2) -> 0 | BT54: 0 | BU54: =ROUND(('Sch. B'!BU54+'Sch. C'!BU54+'Sch. D'!BU54+'Sch. E'!BU54)/4/12*6,2) -> 0 | BV54: 0 | BW54: =ROUND(('Sch. B'!BW54+'Sch. C'!BW54+'Sch. D'!BW54+'Sch. E'!BW54)/4/12*6,2) -> 0 | BX54: 0 | BY54: =ROUND(('Sch. B'!BY54+'Sch. C'!BY54+'Sch. D'!BY54+'Sch. E'!BY54)/4/12*6,2) -> 0 | BZ54: 0 | CA54: 11104.4 | CB54: 349788.6
A55: =+Index!$K$4+1+0.5-B55 -> 30.5 | B55: 1989 | C55: =ROUND(('Sch. B'!C55+'Sch. C'!C55+'Sch. D'!C55+'Sch. E'!C55)/4/12*6,2) -> 0 | D55: 0 | E55: =ROUND(('Sch. B'!E55+'Sch. C'!E55+'Sch. D'!E55+'Sch. E'!E55)/4/12*6,2) -> 0 | F55: 0 | G55: =ROUND(('Sch. B'!G55+'Sch. C'!G55+'Sch. D'!G55+'Sch. E'!G55)/4/12*6,2) -> 0 | H55: 0 | I55: =ROUND(('Sch. B'!I55+'Sch. C'!I55+'Sch. D'!I55+'Sch. E'!I55)/4/12*6,2) -> 0 | J55: 0 | K55: =ROUND(('Sch. B'!K55+'Sch. C'!K55+'Sch. D'!K55+'Sch. E'!K55)/4/12*6,2) -> 0 | L55: 0 | M55: =ROUND(('Sch. B'!M55+'Sch. C'!M55+'Sch. D'!M55+'Sch. E'!M55)/4/12*6,2) -> 0 | N55: 0 | O55: =ROUND(('Sch. B'!O55+'Sch. C'!O55+'Sch. D'!O55+'Sch. E'!O55)/4/12*6,2) -> 0 | P55: 0 | Q55: =ROUND(('Sch. B'!Q55+'Sch. C'!Q55+'Sch. D'!Q55+'Sch. E'!Q55)/4/12*6,2) -> 0 | R55: 0 | S55: =ROUND(('Sch. B'!S55+'Sch. C'!S55+'Sch. D'!S55+'Sch. E'!S55)/4/12*6,2) -> 0 | T55: 0 | U55: =ROUND(('Sch. B'!U55+'Sch. C'!U55+'Sch. D'!U55+'Sch. E'!U55)/4/12*6,2) -> 0 | V55: 0 | W55: =ROUND(('Sch. B'!W55+'Sch. C'!W55+'Sch. D'!W55+'Sch. E'!W55)/4/12*6,2) -> 285.81 | X55: 8717.205 | Y55: =ROUND(('Sch. B'!Y55+'Sch. C'!Y55+'Sch. D'!Y55+'Sch. E'!Y55)/4/12*6,2) -> 48.11 | Z55: 1467.355 | AA55: =ROUND(('Sch. B'!AA55+'Sch. C'!AA55+'Sch. D'!AA55+'Sch. E'!AA55)/4/12*6,2) -> 0 | AB55: 0 | AC55: =ROUND(('Sch. B'!AC55+'Sch. C'!AC55+'Sch. D'!AC55+'Sch. E'!AC55)/4/12*6,2) -> 0 | AD55: 0 | AE55: =ROUND(('Sch. B'!AE55+'Sch. C'!AE55+'Sch. D'!AE55+'Sch. E'!AE55)/4/12*6,2) -> 48.29 | AF55: 1472.845 | AG55: =ROUND(('Sch. B'!AG55+'Sch. C'!AG55+'Sch. D'!AG55+'Sch. E'!AG55)/4/12*6,2) -> 0 | AH55: 0 | AI55: =ROUND(('Sch. B'!AI55+'Sch. C'!AI55+'Sch. D'!AI55+'Sch. E'!AI55)/4/12*6,2) -> 815.59 | AJ55: 24875.495 | AK55: =ROUND(('Sch. B'!AK55+'Sch. C'!AK55+'Sch. D'!AK55+'Sch. E'!AK55)/4/12*6,2) -> 159.75 | AL55: 4872.375 | AM55: =ROUND(('Sch. B'!AM55+'Sch. C'!AM55+'Sch. D'!AM55+'Sch. E'!AM55)/4/12*6,2) -> 0 | AN55: 0 | AO55: =ROUND(('Sch. B'!AO55+'Sch. C'!AO55+'Sch. D'!AO55+'Sch. E'!AO55)/4/12*6,2) -> 0 | AP55: 0 | AQ55: =ROUND(('Sch. B'!AQ55+'Sch. C'!AQ55+'Sch. D'!AQ55+'Sch. E'!AQ55)/4/12*6,2) -> 0 | AR55: 0 | AS55: =ROUND(('Sch. B'!AS55+'Sch. C'!AS55+'Sch. D'!AS55+'Sch. E'!AS55)/4/12*6,2) -> 0 | AT55: 0 | AU55: =ROUND(('Sch. B'!AU55+'Sch. C'!AU55+'Sch. D'!AU55+'Sch. E'!AU55)/4/12*6,2) -> 0 | AV55: 0 | AW55: =ROUND(('Sch. B'!AW55+'Sch. C'!AW55+'Sch. D'!AW55+'Sch. E'!AW55)/4/12*6,2) -> 0 | AX55: 0 | AY55: =ROUND(('Sch. B'!AY55+'Sch. C'!AY55+'Sch. D'!AY55+'Sch. E'!AY55)/4/12*6,2) -> 0 | AZ55: 0 | BA55: =ROUND(('Sch. B'!BA55+'Sch. C'!BA55+'Sch. D'!BA55+'Sch. E'!BA55)/4/12*6,2) -> 0 | BB55: 0 | BC55: =ROUND(('Sch. B'!BC55+'Sch. C'!BC55+'Sch. D'!BC55+'Sch. E'!BC55)/4/12*6,2) -> 0 | BD55: 0 | BE55: =ROUND(('Sch. B'!BE55+'Sch. C'!BE55+'Sch. D'!BE55+'Sch. E'!BE55)/4/12*6,2) -> 0 | BF55: 0 | BG55: =ROUND(('Sch. B'!BG55+'Sch. C'!BG55+'Sch. D'!BG55+'Sch. E'!BG55)/4/12*6,2) -> 0 | BH55: 0 | BI55: =ROUND(('Sch. B'!BI55+'Sch. C'!BI55+'Sch. D'!BI55+'Sch. E'!BI55)/4/12*6,2) -> 0 | BJ55: 0 | BK55: =ROUND(('Sch. B'!BK55+'Sch. C'!BK55+'Sch. D'!BK55+'Sch. E'!BK55)/4/12*6,2) -> 0 | BL55: 0 | BM55: =ROUND(('Sch. B'!BM55+'Sch. C'!BM55+'Sch. D'!BM55+'Sch. E'!BM55)/4/12*6,2) -> 0 | BN55: 0 | BO55: =ROUND(('Sch. B'!BO55+'Sch. C'!BO55+'Sch. D'!BO55+'Sch. E'!BO55)/4/12*6,2) -> 0 | BP55: 0 | BQ55: =ROUND(('Sch. B'!BQ55+'Sch. C'!BQ55+'Sch. D'!BQ55+'Sch. E'!BQ55)/4/12*6,2) -> 0 | BR55: 0 | BS55: =ROUND(('Sch. B'!BS55+'Sch. C'!BS55+'Sch. D'!BS55+'Sch. E'!BS55)/4/12*6,2) -> 0 | BT55: 0 | BU55: =ROUND(('Sch. B'!BU55+'Sch. C'!BU55+'Sch. D'!BU55+'Sch. E'!BU55)/4/12*6,2) -> 0 | BV55: 0 | BW55: =ROUND(('Sch. B'!BW55+'Sch. C'!BW55+'Sch. D'!BW55+'Sch. E'!BW55)/4/12*6,2) -> 0 | BX55: 0 | BY55: =ROUND(('Sch. B'!BY55+'Sch. C'!BY55+'Sch. D'!BY55+'Sch. E'!BY55)/4/12*6,2) -> 0 | BZ55: 0 | CA55: 1357.55 | CB55: 41405.275
A56: =+Index!$K$4+1+0.5-B56 -> 29.5 | B56: 1990 | C56: =ROUND(('Sch. B'!C56+'Sch. C'!C56+'Sch. D'!C56+'Sch. E'!C56)/4/12*6,2) -> 0 | D56: 0 | E56: =ROUND(('Sch. B'!E56+'Sch. C'!E56+'Sch. D'!E56+'Sch. E'!E56)/4/12*6,2) -> 0 | F56: 0 | G56: =ROUND(('Sch. B'!G56+'Sch. C'!G56+'Sch. D'!G56+'Sch. E'!G56)/4/12*6,2) -> 0 | H56: 0 | I56: =ROUND(('Sch. B'!I56+'Sch. C'!I56+'Sch. D'!I56+'Sch. E'!I56)/4/12*6,2) -> 0 | J56: 0 | K56: =ROUND(('Sch. B'!K56+'Sch. C'!K56+'Sch. D'!K56+'Sch. E'!K56)/4/12*6,2) -> 0 | L56: 0 | M56: =ROUND(('Sch. B'!M56+'Sch. C'!M56+'Sch. D'!M56+'Sch. E'!M56)/4/12*6,2) -> 0 | N56: 0 | O56: =ROUND(('Sch. B'!O56+'Sch. C'!O56+'Sch. D'!O56+'Sch. E'!O56)/4/12*6,2) -> 0 | P56: 0 | Q56: =ROUND(('Sch. B'!Q56+'Sch. C'!Q56+'Sch. D'!Q56+'Sch. E'!Q56)/4/12*6,2) -> 0 | R56: 0 | S56: =ROUND(('Sch. B'!S56+'Sch. C'!S56+'Sch. D'!S56+'Sch. E'!S56)/4/12*6,2) -> 0 | T56: 0 | U56: =ROUND(('Sch. B'!U56+'Sch. C'!U56+'Sch. D'!U56+'Sch. E'!U56)/4/12*6,2) -> 0 | V56: 0 | W56: =ROUND(('Sch. B'!W56+'Sch. C'!W56+'Sch. D'!W56+'Sch. E'!W56)/4/12*6,2)+263.24 -> 517.41 | X56: 15263.595 | Y56: =ROUND(('Sch. B'!Y56+'Sch. C'!Y56+'Sch. D'!Y56+'Sch. E'!Y56)/4/12*6,2) -> 53.82 | Z56: 1587.69 | AA56: =ROUND(('Sch. B'!AA56+'Sch. C'!AA56+'Sch. D'!AA56+'Sch. E'!AA56)/4/12*6,2) -> 0 | AB56: 0 | AC56: =ROUND(('Sch. B'!AC56+'Sch. C'!AC56+'Sch. D'!AC56+'Sch. E'!AC56)/4/12*6,2) -> 0 | AD56: 0 | AE56: =ROUND(('Sch. B'!AE56+'Sch. C'!AE56+'Sch. D'!AE56+'Sch. E'!AE56)/4/12*6,2) -> 104.49 | AF56: 3082.455 | AG56: =ROUND(('Sch. B'!AG56+'Sch. C'!AG56+'Sch. D'!AG56+'Sch. E'!AG56)/4/12*6,2) -> 0 | AH56: 0 | AI56: =ROUND(('Sch. B'!AI56+'Sch. C'!AI56+'Sch. D'!AI56+'Sch. E'!AI56)/4/12*6,2) -> 857.89 | AJ56: 25307.755 | AK56: =ROUND(('Sch. B'!AK56+'Sch. C'!AK56+'Sch. D'!AK56+'Sch. E'!AK56)/4/12*6,2)+6127.42 -> 6216.12 | AL56: 183375.54 | AM56: =ROUND(('Sch. B'!AM56+'Sch. C'!AM56+'Sch. D'!AM56+'Sch. E'!AM56)/4/12*6,2) -> 15.42 | AN56: 454.89 | AO56: =ROUND(('Sch. B'!AO56+'Sch. C'!AO56+'Sch. D'!AO56+'Sch. E'!AO56)/4/12*6,2) -> 0 | AP56: 0 | AQ56: =ROUND(('Sch. B'!AQ56+'Sch. C'!AQ56+'Sch. D'!AQ56+'Sch. E'!AQ56)/4/12*6,2) -> 0 | AR56: 0 | AS56: =ROUND(('Sch. B'!AS56+'Sch. C'!AS56+'Sch. D'!AS56+'Sch. E'!AS56)/4/12*6,2) -> 0 | AT56: 0 | AU56: =ROUND(('Sch. B'!AU56+'Sch. C'!AU56+'Sch. D'!AU56+'Sch. E'!AU56)/4/12*6,2) -> 0 | AV56: 0 | AW56: =ROUND(('Sch. B'!AW56+'Sch. C'!AW56+'Sch. D'!AW56+'Sch. E'!AW56)/4/12*6,2) -> 0 | AX56: 0 | AY56: =ROUND(('Sch. B'!AY56+'Sch. C'!AY56+'Sch. D'!AY56+'Sch. E'!AY56)/4/12*6,2) -> 0 | AZ56: 0 | BA56: =ROUND(('Sch. B'!BA56+'Sch. C'!BA56+'Sch. D'!BA56+'Sch. E'!BA56)/4/12*6,2) -> 0 | BB56: 0 | BC56: =ROUND(('Sch. B'!BC56+'Sch. C'!BC56+'Sch. D'!BC56+'Sch. E'!BC56)/4/12*6,2) -> 0 | BD56: 0 | BE56: =ROUND(('Sch. B'!BE56+'Sch. C'!BE56+'Sch. D'!BE56+'Sch. E'!BE56)/4/12*6,2) -> 0 | BF56: 0 | BG56: =ROUND(('Sch. B'!BG56+'Sch. C'!BG56+'Sch. D'!BG56+'Sch. E'!BG56)/4/12*6,2) -> 0 | BH56: 0 | BI56: =ROUND(('Sch. B'!BI56+'Sch. C'!BI56+'Sch. D'!BI56+'Sch. E'!BI56)/4/12*6,2) -> 0 | BJ56: 0 | BK56: =ROUND(('Sch. B'!BK56+'Sch. C'!BK56+'Sch. D'!BK56+'Sch. E'!BK56)/4/12*6,2) -> 0 | BL56: 0 | BM56: =ROUND(('Sch. B'!BM56+'Sch. C'!BM56+'Sch. D'!BM56+'Sch. E'!BM56)/4/12*6,2) -> 0 | BN56: 0 | BO56: =ROUND(('Sch. B'!BO56+'Sch. C'!BO56+'Sch. D'!BO56+'Sch. E'!BO56)/4/12*6,2) -> 0 | BP56: 0 | BQ56: =ROUND(('Sch. B'!BQ56+'Sch. C'!BQ56+'Sch. D'!BQ56+'Sch. E'!BQ56)/4/12*6,2) -> 0 | BR56: 0 | BS56: =ROUND(('Sch. B'!BS56+'Sch. C'!BS56+'Sch. D'!BS56+'Sch. E'!BS56)/4/12*6,2) -> 0 | BT56: 0 | BU56: =ROUND(('Sch. B'!BU56+'Sch. C'!BU56+'Sch. D'!BU56+'Sch. E'!BU56)/4/12*6,2) -> 0 | BV56: 0 | BW56: =ROUND(('Sch. B'!BW56+'Sch. C'!BW56+'Sch. D'!BW56+'Sch. E'!BW56)/4/12*6,2) -> 0 | BX56: 0 | BY56: =ROUND(('Sch. B'!BY56+'Sch. C'!BY56+'Sch. D'!BY56+'Sch. E'!BY56)/4/12*6,2) -> 0 | BZ56: 0 | CA56: 7765.15 | CB56: 229071.925
A57: =+Index!$K$4+1+0.5-B57 -> 28.5 | B57: 1991 | C57: =ROUND(('Sch. B'!C57+'Sch. C'!C57+'Sch. D'!C57+'Sch. E'!C57)/4/12*6,2) -> 0 | D57: 0 | E57: =ROUND(('Sch. B'!E57+'Sch. C'!E57+'Sch. D'!E57+'Sch. E'!E57)/4/12*6,2) -> 0 | F57: 0 | G57: =ROUND(('Sch. B'!G57+'Sch. C'!G57+'Sch. D'!G57+'Sch. E'!G57)/4/12*6,2) -> 0 | H57: 0 | I57: =ROUND(('Sch. B'!I57+'Sch. C'!I57+'Sch. D'!I57+'Sch. E'!I57)/4/12*6,2) -> 0 | J57: 0 | K57: =ROUND(('Sch. B'!K57+'Sch. C'!K57+'Sch. D'!K57+'Sch. E'!K57)/4/12*6,2) -> 11250.01 | L57: 320625.285 | M57: =ROUND(('Sch. B'!M57+'Sch. C'!M57+'Sch. D'!M57+'Sch. E'!M57)/4/12*6,2) -> 0 | N57: 0 | O57: =ROUND(('Sch. B'!O57+'Sch. C'!O57+'Sch. D'!O57+'Sch. E'!O57)/4/12*6,2) -> 0 | P57: 0 | Q57: =ROUND(('Sch. B'!Q57+'Sch. C'!Q57+'Sch. D'!Q57+'Sch. E'!Q57)/4/12*6,2) -> 0 | R57: 0 | S57: =ROUND(('Sch. B'!S57+'Sch. C'!S57+'Sch. D'!S57+'Sch. E'!S57)/4/12*6,2) -> 0 | T57: 0 | U57: =ROUND(('Sch. B'!U57+'Sch. C'!U57+'Sch. D'!U57+'Sch. E'!U57)/4/12*6,2) -> 0 | V57: 0 | W57: =ROUND(('Sch. B'!W57+'Sch. C'!W57+'Sch. D'!W57+'Sch. E'!W57)/4/12*6,2) -> 420.81 | X57: 11993.085 | Y57: =ROUND(('Sch. B'!Y57+'Sch. C'!Y57+'Sch. D'!Y57+'Sch. E'!Y57)/4/12*6,2) -> 928.64 | Z57: 26466.24 | AA57: =ROUND(('Sch. B'!AA57+'Sch. C'!AA57+'Sch. D'!AA57+'Sch. E'!AA57)/4/12*6,2) -> 0 | AB57: 0 | AC57: =ROUND(('Sch. B'!AC57+'Sch. C'!AC57+'Sch. D'!AC57+'Sch. E'!AC57)/4/12*6,2) -> 50.38 | AD57: 1435.83 | AE57: =ROUND(('Sch. B'!AE57+'Sch. C'!AE57+'Sch. D'!AE57+'Sch. E'!AE57)/4/12*6,2) -> 228.78 | AF57: 6520.23 | AG57: =ROUND(('Sch. B'!AG57+'Sch. C'!AG57+'Sch. D'!AG57+'Sch. E'!AG57)/4/12*6,2) -> 121.8 | AH57: 3471.3 | AI57: =ROUND(('Sch. B'!AI57+'Sch. C'!AI57+'Sch. D'!AI57+'Sch. E'!AI57)/4/12*6,2) -> 583.47 | AJ57: 16628.895 | AK57: =ROUND(('Sch. B'!AK57+'Sch. C'!AK57+'Sch. D'!AK57+'Sch. E'!AK57)/4/12*6,2) -> 384.42 | AL57: 10955.97 | AM57: =ROUND(('Sch. B'!AM57+'Sch. C'!AM57+'Sch. D'!AM57+'Sch. E'!AM57)/4/12*6,2)+157.4 -> 161.75 | AN57: 4609.875 | AO57: =ROUND(('Sch. B'!AO57+'Sch. C'!AO57+'Sch. D'!AO57+'Sch. E'!AO57)/4/12*6,2) -> 0 | AP57: 0 | AQ57: =ROUND(('Sch. B'!AQ57+'Sch. C'!AQ57+'Sch. D'!AQ57+'Sch. E'!AQ57)/4/12*6,2) -> 0 | AR57: 0 | AS57: =ROUND(('Sch. B'!AS57+'Sch. C'!AS57+'Sch. D'!AS57+'Sch. E'!AS57)/4/12*6,2) -> 0 | AT57: 0 | AU57: =ROUND(('Sch. B'!AU57+'Sch. C'!AU57+'Sch. D'!AU57+'Sch. E'!AU57)/4/12*6,2) -> 0 | AV57: 0 | AW57: =ROUND(('Sch. B'!AW57+'Sch. C'!AW57+'Sch. D'!AW57+'Sch. E'!AW57)/4/12*6,2) -> 0 | AX57: 0 | AY57: =ROUND(('Sch. B'!AY57+'Sch. C'!AY57+'Sch. D'!AY57+'Sch. E'!AY57)/4/12*6,2) -> 0 | AZ57: 0 | BA57: =ROUND(('Sch. B'!BA57+'Sch. C'!BA57+'Sch. D'!BA57+'Sch. E'!BA57)/4/12*6,2) -> 0 | BB57: 0 | BC57: =ROUND(('Sch. B'!BC57+'Sch. C'!BC57+'Sch. D'!BC57+'Sch. E'!BC57)/4/12*6,2) -> 0 | BD57: =+BC57*$A57 -> 0 | BE57: =ROUND(('Sch. B'!BE57+'Sch. C'!BE57+'Sch. D'!BE57+'Sch. E'!BE57)/4/12*6,2) -> 0 | BF57: 0 | BG57: =ROUND(('Sch. B'!BG57+'Sch. C'!BG57+'Sch. D'!BG57+'Sch. E'!BG57)/4/12*6,2) -> 0 | BH57: 0 | BI57: =ROUND(('Sch. B'!BI57+'Sch. C'!BI57+'Sch. D'!BI57+'Sch. E'!BI57)/4/12*6,2) -> 0 | BJ57: 0 | BK57: =ROUND(('Sch. B'!BK57+'Sch. C'!BK57+'Sch. D'!BK57+'Sch. E'!BK57)/4/12*6,2) -> 0 | BL57: 0 | BM57: =ROUND(('Sch. B'!BM57+'Sch. C'!BM57+'Sch. D'!BM57+'Sch. E'!BM57)/4/12*6,2) -> 0 | BN57: 0 | BO57: =ROUND(('Sch. B'!BO57+'Sch. C'!BO57+'Sch. D'!BO57+'Sch. E'!BO57)/4/12*6,2) -> 0 | BP57: 0 | BQ57: =ROUND(('Sch. B'!BQ57+'Sch. C'!BQ57+'Sch. D'!BQ57+'Sch. E'!BQ57)/4/12*6,2) -> 0 | BR57: 0 | BS57: =ROUND(('Sch. B'!BS57+'Sch. C'!BS57+'Sch. D'!BS57+'Sch. E'!BS57)/4/12*6,2) -> 0 | BT57: 0 | BU57: =ROUND(('Sch. B'!BU57+'Sch. C'!BU57+'Sch. D'!BU57+'Sch. E'!BU57)/4/12*6,2) -> 0 | BV57: 0 | BW57: =ROUND(('Sch. B'!BW57+'Sch. C'!BW57+'Sch. D'!BW57+'Sch. E'!BW57)/4/12*6,2) -> 0 | BX57: 0 | BY57: =ROUND(('Sch. B'!BY57+'Sch. C'!BY57+'Sch. D'!BY57+'Sch. E'!BY57)/4/12*6,2) -> 0 | BZ57: 0 | CA57: 14130.06 | CB57: 402706.71
A58: =+Index!$K$4+1+0.5-B58 -> 27.5 | B58: 1992 | C58: =ROUND(('Sch. B'!C58+'Sch. C'!C58+'Sch. D'!C58+'Sch. E'!C58)/4/12*6,2) -> 0 | D58: 0 | E58: =ROUND(('Sch. B'!E58+'Sch. C'!E58+'Sch. D'!E58+'Sch. E'!E58)/4/12*6,2) -> 0 | F58: 0 | G58: =ROUND(('Sch. B'!G58+'Sch. C'!G58+'Sch. D'!G58+'Sch. E'!G58)/4/12*6,2) -> 0 | H58: 0 | I58: =ROUND(('Sch. B'!I58+'Sch. C'!I58+'Sch. D'!I58+'Sch. E'!I58)/4/12*6,2) -> 0 | J58: 0 | K58: =ROUND(('Sch. B'!K58+'Sch. C'!K58+'Sch. D'!K58+'Sch. E'!K58)/4/12*6,2) -> 0 | L58: 0 | M58: =ROUND(('Sch. B'!M58+'Sch. C'!M58+'Sch. D'!M58+'Sch. E'!M58)/4/12*6,2) -> 2988.38 | N58: 82180.45 | O58: =ROUND(('Sch. B'!O58+'Sch. C'!O58+'Sch. D'!O58+'Sch. E'!O58)/4/12*6,2) -> 0 | P58: 0 | Q58: =ROUND(('Sch. B'!Q58+'Sch. C'!Q58+'Sch. D'!Q58+'Sch. E'!Q58)/4/12*6,2) -> 0 | R58: 0 | S58: =ROUND(('Sch. B'!S58+'Sch. C'!S58+'Sch. D'!S58+'Sch. E'!S58)/4/12*6,2) -> 0 | T58: 0 | U58: =ROUND(('Sch. B'!U58+'Sch. C'!U58+'Sch. D'!U58+'Sch. E'!U58)/4/12*6,2) -> 0 | V58: 0 | W58: =ROUND(('Sch. B'!W58+'Sch. C'!W58+'Sch. D'!W58+'Sch. E'!W58)/4/12*6,2) -> 447.72 | X58: 12312.3 | Y58: =ROUND(('Sch. B'!Y58+'Sch. C'!Y58+'Sch. D'!Y58+'Sch. E'!Y58)/4/12*6,2) -> 948.02 | Z58: 26070.55 | AA58: =ROUND(('Sch. B'!AA58+'Sch. C'!AA58+'Sch. D'!AA58+'Sch. E'!AA58)/4/12*6,2) -> 0 | AB58: 0 | AC58: =ROUND(('Sch. B'!AC58+'Sch. C'!AC58+'Sch. D'!AC58+'Sch. E'!AC58)/4/12*6,2) -> 0 | AD58: 0 | AE58: =ROUND(('Sch. B'!AE58+'Sch. C'!AE58+'Sch. D'!AE58+'Sch. E'!AE58)/4/12*6,2)+6730.69 -> 6794.81 | AF58: 186857.275 | AG58: =ROUND(('Sch. B'!AG58+'Sch. C'!AG58+'Sch. D'!AG58+'Sch. E'!AG58)/4/12*6,2) -> 0 | AH58: 0 | AI58: =ROUND(('Sch. B'!AI58+'Sch. C'!AI58+'Sch. D'!AI58+'Sch. E'!AI58)/4/12*6,2) -> 529.69 | AJ58: 14566.475 | AK58: =ROUND(('Sch. B'!AK58+'Sch. C'!AK58+'Sch. D'!AK58+'Sch. E'!AK58)/4/12*6,2) -> 66.18 | AL58: 1819.95 | AM58: =ROUND(('Sch. B'!AM58+'Sch. C'!AM58+'Sch. D'!AM58+'Sch. E'!AM58)/4/12*6,2) -> 42.12 | AN58: 1158.3 | AO58: =ROUND(('Sch. B'!AO58+'Sch. C'!AO58+'Sch. D'!AO58+'Sch. E'!AO58)/4/12*6,2) -> 0 | AP58: 0 | AQ58: =ROUND(('Sch. B'!AQ58+'Sch. C'!AQ58+'Sch. D'!AQ58+'Sch. E'!AQ58)/4/12*6,2) -> 0 | AR58: 0 | AS58: =ROUND(('Sch. B'!AS58+'Sch. C'!AS58+'Sch. D'!AS58+'Sch. E'!AS58)/4/12*6,2) -> 0 | AT58: 0 | AU58: =ROUND(('Sch. B'!AU58+'Sch. C'!AU58+'Sch. D'!AU58+'Sch. E'!AU58)/4/12*6,2) -> 0 | AV58: 0 | AW58: =ROUND(('Sch. B'!AW58+'Sch. C'!AW58+'Sch. D'!AW58+'Sch. E'!AW58)/4/12*6,2) -> 0 | AX58: 0 | AY58: =ROUND(('Sch. B'!AY58+'Sch. C'!AY58+'Sch. D'!AY58+'Sch. E'!AY58)/4/12*6,2) -> 0 | AZ58: 0 | BA58: =ROUND(('Sch. B'!BA58+'Sch. C'!BA58+'Sch. D'!BA58+'Sch. E'!BA58)/4/12*6,2) -> 0 | BB58: 0 | BC58: =ROUND(('Sch. B'!BC58+'Sch. C'!BC58+'Sch. D'!BC58+'Sch. E'!BC58)/4/12*6,2) -> 0 | BD58: 0 | BE58: =ROUND(('Sch. B'!BE58+'Sch. C'!BE58+'Sch. D'!BE58+'Sch. E'!BE58)/4/12*6,2) -> 0 | BF58: 0 | BG58: =ROUND(('Sch. B'!BG58+'Sch. C'!BG58+'Sch. D'!BG58+'Sch. E'!BG58)/4/12*6,2) -> 0 | BH58: 0 | BI58: =ROUND(('Sch. B'!BI58+'Sch. C'!BI58+'Sch. D'!BI58+'Sch. E'!BI58)/4/12*6,2) -> 0 | BJ58: 0 | BK58: =ROUND(('Sch. B'!BK58+'Sch. C'!BK58+'Sch. D'!BK58+'Sch. E'!BK58)/4/12*6,2) -> 0 | BL58: 0 | BM58: =ROUND(('Sch. B'!BM58+'Sch. C'!BM58+'Sch. D'!BM58+'Sch. E'!BM58)/4/12*6,2) -> 0 | BN58: 0 | BO58: =ROUND(('Sch. B'!BO58+'Sch. C'!BO58+'Sch. D'!BO58+'Sch. E'!BO58)/4/12*6,2) -> 0 | BP58: 0 | BQ58: =ROUND(('Sch. B'!BQ58+'Sch. C'!BQ58+'Sch. D'!BQ58+'Sch. E'!BQ58)/4/12*6,2) -> 0 | BR58: 0 | BS58: =ROUND(('Sch. B'!BS58+'Sch. C'!BS58+'Sch. D'!BS58+'Sch. E'!BS58)/4/12*6,2) -> 0 | BT58: 0 | BU58: =ROUND(('Sch. B'!BU58+'Sch. C'!BU58+'Sch. D'!BU58+'Sch. E'!BU58)/4/12*6,2) -> 0 | BV58: 0 | BW58: =ROUND(('Sch. B'!BW58+'Sch. C'!BW58+'Sch. D'!BW58+'Sch. E'!BW58)/4/12*6,2) -> 0 | BX58: 0 | BY58: =ROUND(('Sch. B'!BY58+'Sch. C'!BY58+'Sch. D'!BY58+'Sch. E'!BY58)/4/12*6,2) -> 0 | BZ58: 0 | CA58: 11816.92 | CB58: 324965.3
A59: =+Index!$K$4+1+0.5-B59 -> 26.5 | B59: 1993 | C59: =ROUND(('Sch. B'!C59+'Sch. C'!C59+'Sch. D'!C59+'Sch. E'!C59)/4/12*6,2) -> 0 | D59: 0 | E59: =ROUND(('Sch. B'!E59+'Sch. C'!E59+'Sch. D'!E59+'Sch. E'!E59)/4/12*6,2) -> 0 | F59: 0 | G59: =ROUND(('Sch. B'!G59+'Sch. C'!G59+'Sch. D'!G59+'Sch. E'!G59)/4/12*6,2) -> 0 | H59: 0 | I59: =ROUND(('Sch. B'!I59+'Sch. C'!I59+'Sch. D'!I59+'Sch. E'!I59)/4/12*6,2) -> 0 | J59: 0 | K59: =ROUND(('Sch. B'!K59+'Sch. C'!K59+'Sch. D'!K59+'Sch. E'!K59)/4/12*6,2) -> 0 | L59: 0 | M59: =ROUND(('Sch. B'!M59+'Sch. C'!M59+'Sch. D'!M59+'Sch. E'!M59)/4/12*6,2) -> 0 | N59: 0 | O59: =ROUND(('Sch. B'!O59+'Sch. C'!O59+'Sch. D'!O59+'Sch. E'!O59)/4/12*6,2) -> 0 | P59: 0 | Q59: =ROUND(('Sch. B'!Q59+'Sch. C'!Q59+'Sch. D'!Q59+'Sch. E'!Q59)/4/12*6,2) -> 0 | R59: 0 | S59: =ROUND(('Sch. B'!S59+'Sch. C'!S59+'Sch. D'!S59+'Sch. E'!S59)/4/12*6,2) -> 0 | T59: 0 | U59: =ROUND(('Sch. B'!U59+'Sch. C'!U59+'Sch. D'!U59+'Sch. E'!U59)/4/12*6,2) -> 0 | V59: 0 | W59: =ROUND(('Sch. B'!W59+'Sch. C'!W59+'Sch. D'!W59+'Sch. E'!W59)/4/12*6,2) -> 757.44 | X59: 20072.16 | Y59: =ROUND(('Sch. B'!Y59+'Sch. C'!Y59+'Sch. D'!Y59+'Sch. E'!Y59)/4/12*6,2) -> 574.82 | Z59: 15232.73 | AA59: =ROUND(('Sch. B'!AA59+'Sch. C'!AA59+'Sch. D'!AA59+'Sch. E'!AA59)/4/12*6,2) -> 0 | AB59: 0 | AC59: =ROUND(('Sch. B'!AC59+'Sch. C'!AC59+'Sch. D'!AC59+'Sch. E'!AC59)/4/12*6,2) -> 78.39 | AD59: 2077.335 | AE59: =ROUND(('Sch. B'!AE59+'Sch. C'!AE59+'Sch. D'!AE59+'Sch. E'!AE59)/4/12*6,2) -> 48.31 | AF59: 1280.215 | AG59: =ROUND(('Sch. B'!AG59+'Sch. C'!AG59+'Sch. D'!AG59+'Sch. E'!AG59)/4/12*6,2) -> 0 | AH59: 0 | AI59: =ROUND(('Sch. B'!AI59+'Sch. C'!AI59+'Sch. D'!AI59+'Sch. E'!AI59)/4/12*6,2) -> 577.36 | AJ59: 15300.04 | AK59: =ROUND(('Sch. B'!AK59+'Sch. C'!AK59+'Sch. D'!AK59+'Sch. E'!AK59)/4/12*6,2) -> 269.71 | AL59: 7147.315 | AM59: =ROUND(('Sch. B'!AM59+'Sch. C'!AM59+'Sch. D'!AM59+'Sch. E'!AM59)/4/12*6,2) -> 46.85 | AN59: 1241.525 | AO59: 0 | AP59: 0 | AQ59: =ROUND(('Sch. B'!AQ59+'Sch. C'!AQ59+'Sch. D'!AQ59+'Sch. E'!AQ59)/4/12*6,2) -> 0 | AR59: 0 | AS59: =ROUND(('Sch. B'!AS59+'Sch. C'!AS59+'Sch. D'!AS59+'Sch. E'!AS59)/4/12*6,2) -> 0 | AT59: 0 | AU59: =ROUND(('Sch. B'!AU59+'Sch. C'!AU59+'Sch. D'!AU59+'Sch. E'!AU59)/4/12*6,2) -> 0 | AV59: 0 | AW59: =ROUND(('Sch. B'!AW59+'Sch. C'!AW59+'Sch. D'!AW59+'Sch. E'!AW59)/4/12*6,2) -> 0 | AX59: 0 | AY59: =ROUND(('Sch. B'!AY59+'Sch. C'!AY59+'Sch. D'!AY59+'Sch. E'!AY59)/4/12*6,2) -> 0 | AZ59: 0 | BA59: =ROUND(('Sch. B'!BA59+'Sch. C'!BA59+'Sch. D'!BA59+'Sch. E'!BA59)/4/12*6,2) -> 0 | BB59: 0 | BC59: =ROUND(('Sch. B'!BC59+'Sch. C'!BC59+'Sch. D'!BC59+'Sch. E'!BC59)/4/12*6,2) -> 0 | BD59: 0 | BE59: =ROUND(('Sch. B'!BE59+'Sch. C'!BE59+'Sch. D'!BE59+'Sch. E'!BE59)/4/12*6,2) -> 0 | BF59: 0 | BG59: =ROUND(('Sch. B'!BG59+'Sch. C'!BG59+'Sch. D'!BG59+'Sch. E'!BG59)/4/12*6,2) -> 0 | BH59: 0 | BI59: =ROUND(('Sch. B'!BI59+'Sch. C'!BI59+'Sch. D'!BI59+'Sch. E'!BI59)/4/12*6,2) -> 0 | BJ59: 0 | BK59: =ROUND(('Sch. B'!BK59+'Sch. C'!BK59+'Sch. D'!BK59+'Sch. E'!BK59)/4/12*6,2) -> 0 | BL59: 0 | BM59: =ROUND(('Sch. B'!BM59+'Sch. C'!BM59+'Sch. D'!BM59+'Sch. E'!BM59)/4/12*6,2) -> 0 | BN59: 0 | BO59: =ROUND(('Sch. B'!BO59+'Sch. C'!BO59+'Sch. D'!BO59+'Sch. E'!BO59)/4/12*6,2) -> 0 | BP59: 0 | BQ59: =ROUND(('Sch. B'!BQ59+'Sch. C'!BQ59+'Sch. D'!BQ59+'Sch. E'!BQ59)/4/12*6,2) -> 0 | BR59: 0 | BS59: =ROUND(('Sch. B'!BS59+'Sch. C'!BS59+'Sch. D'!BS59+'Sch. E'!BS59)/4/12*6,2) -> 0 | BT59: 0 | BU59: =ROUND(('Sch. B'!BU59+'Sch. C'!BU59+'Sch. D'!BU59+'Sch. E'!BU59)/4/12*6,2) -> 0 | BV59: 0 | BW59: =ROUND(('Sch. B'!BW59+'Sch. C'!BW59+'Sch. D'!BW59+'Sch. E'!BW59)/4/12*6,2) -> 0 | BX59: 0 | BY59: =ROUND(('Sch. B'!BY59+'Sch. C'!BY59+'Sch. D'!BY59+'Sch. E'!BY59)/4/12*6,2) -> 0 | BZ59: 0 | CA59: 2352.88 | CB59: 62351.32
A60: =+Index!$K$4+1+0.5-B60 -> 25.5 | B60: 1994 | C60: =ROUND(('Sch. B'!C60+'Sch. C'!C60+'Sch. D'!C60+'Sch. E'!C60)/4/12*6,2) -> 0 | D60: 0 | E60: =ROUND(('Sch. B'!E60+'Sch. C'!E60+'Sch. D'!E60+'Sch. E'!E60)/4/12*6,2) -> 0 | F60: 0 | G60: =ROUND(('Sch. B'!G60+'Sch. C'!G60+'Sch. D'!G60+'Sch. E'!G60)/4/12*6,2) -> 0 | H60: 0 | I60: =ROUND(('Sch. B'!I60+'Sch. C'!I60+'Sch. D'!I60+'Sch. E'!I60)/4/12*6,2) -> 0 | J60: 0 | K60: =ROUND(('Sch. B'!K60+'Sch. C'!K60+'Sch. D'!K60+'Sch. E'!K60)/4/12*6,2) -> 0 | L60: 0 | M60: =ROUND(('Sch. B'!M60+'Sch. C'!M60+'Sch. D'!M60+'Sch. E'!M60)/4/12*6,2) -> 0 | N60: 0 | O60: =ROUND(('Sch. B'!O60+'Sch. C'!O60+'Sch. D'!O60+'Sch. E'!O60)/4/12*6,2) -> 0 | P60: 0 | Q60: =ROUND(('Sch. B'!Q60+'Sch. C'!Q60+'Sch. D'!Q60+'Sch. E'!Q60)/4/12*6,2) -> 0 | R60: 0 | S60: =ROUND(('Sch. B'!S60+'Sch. C'!S60+'Sch. D'!S60+'Sch. E'!S60)/4/12*6,2) -> 0 | T60: 0 | U60: =ROUND(('Sch. B'!U60+'Sch. C'!U60+'Sch. D'!U60+'Sch. E'!U60)/4/12*6,2) -> 0 | V60: 0 | W60: =ROUND(('Sch. B'!W60+'Sch. C'!W60+'Sch. D'!W60+'Sch. E'!W60)/4/12*6,2)+561.74 -> 909.23 | X60: 23185.365 | Y60: =ROUND(('Sch. B'!Y60+'Sch. C'!Y60+'Sch. D'!Y60+'Sch. E'!Y60)/4/12*6,2)+656.91 -> 686.94 | Z60: 17516.97 | AA60: =ROUND(('Sch. B'!AA60+'Sch. C'!AA60+'Sch. D'!AA60+'Sch. E'!AA60)/4/12*6,2) -> 0 | AB60: 0 | AC60: =ROUND(('Sch. B'!AC60+'Sch. C'!AC60+'Sch. D'!AC60+'Sch. E'!AC60)/4/12*6,2) -> 0 | AD60: 0 | AE60: =ROUND(('Sch. B'!AE60+'Sch. C'!AE60+'Sch. D'!AE60+'Sch. E'!AE60)/4/12*6,2)+1702.52 -> 1722.02 | AF60: 43911.51 | AG60: =ROUND(('Sch. B'!AG60+'Sch. C'!AG60+'Sch. D'!AG60+'Sch. E'!AG60)/4/12*6,2) -> 0 | AH60: 0 | AI60: =ROUND(('Sch. B'!AI60+'Sch. C'!AI60+'Sch. D'!AI60+'Sch. E'!AI60)/4/12*6,2) -> 1188.5 | AJ60: 30306.75 | AK60: =ROUND(('Sch. B'!AK60+'Sch. C'!AK60+'Sch. D'!AK60+'Sch. E'!AK60)/4/12*6,2)+705.38 -> 834.53 | AL60: 21280.515 | AM60: =ROUND(('Sch. B'!AM60+'Sch. C'!AM60+'Sch. D'!AM60+'Sch. E'!AM60)/4/12*6,2) -> 66.49 | AN60: 1695.495 | AO60: 0 | AP60: 0 | AQ60: =ROUND(('Sch. B'!AQ60+'Sch. C'!AQ60+'Sch. D'!AQ60+'Sch. E'!AQ60)/4/12*6,2) -> 0 | AR60: 0 | AS60: =ROUND(('Sch. B'!AS60+'Sch. C'!AS60+'Sch. D'!AS60+'Sch. E'!AS60)/4/12*6,2) -> 0 | AT60: 0 | AU60: =ROUND(('Sch. B'!AU60+'Sch. C'!AU60+'Sch. D'!AU60+'Sch. E'!AU60)/4/12*6,2) -> 0 | AV60: 0 | AW60: =ROUND(('Sch. B'!AW60+'Sch. C'!AW60+'Sch. D'!AW60+'Sch. E'!AW60)/4/12*6,2) -> 0 | AX60: 0 | AY60: =ROUND(('Sch. B'!AY60+'Sch. C'!AY60+'Sch. D'!AY60+'Sch. E'!AY60)/4/12*6,2) -> 0 | AZ60: 0 | BA60: =ROUND(('Sch. B'!BA60+'Sch. C'!BA60+'Sch. D'!BA60+'Sch. E'!BA60)/4/12*6,2) -> 0 | BB60: 0 | BC60: =ROUND(('Sch. B'!BC60+'Sch. C'!BC60+'Sch. D'!BC60+'Sch. E'!BC60)/4/12*6,2) -> 0 | BD60: 0 | BE60: =ROUND(('Sch. B'!BE60+'Sch. C'!BE60+'Sch. D'!BE60+'Sch. E'!BE60)/4/12*6,2) -> 0 | BF60: 0 | BG60: =ROUND(('Sch. B'!BG60+'Sch. C'!BG60+'Sch. D'!BG60+'Sch. E'!BG60)/4/12*6,2) -> 0 | BH60: 0 | BI60: =ROUND(('Sch. B'!BI60+'Sch. C'!BI60+'Sch. D'!BI60+'Sch. E'!BI60)/4/12*6,2) -> 0 | BJ60: 0 | BK60: =ROUND(('Sch. B'!BK60+'Sch. C'!BK60+'Sch. D'!BK60+'Sch. E'!BK60)/4/12*6,2) -> 0 | BL60: 0 | BM60: =ROUND(('Sch. B'!BM60+'Sch. C'!BM60+'Sch. D'!BM60+'Sch. E'!BM60)/4/12*6,2) -> 0 | BN60: 0 | BO60: =ROUND(('Sch. B'!BO60+'Sch. C'!BO60+'Sch. D'!BO60+'Sch. E'!BO60)/4/12*6,2) -> 0 | BP60: 0 | BQ60: =ROUND(('Sch. B'!BQ60+'Sch. C'!BQ60+'Sch. D'!BQ60+'Sch. E'!BQ60)/4/12*6,2) -> 0 | BR60: 0 | BS60: =ROUND(('Sch. B'!BS60+'Sch. C'!BS60+'Sch. D'!BS60+'Sch. E'!BS60)/4/12*6,2) -> 0 | BT60: 0 | BU60: =ROUND(('Sch. B'!BU60+'Sch. C'!BU60+'Sch. D'!BU60+'Sch. E'!BU60)/4/12*6,2) -> 0 | BV60: 0 | BW60: =ROUND(('Sch. B'!BW60+'Sch. C'!BW60+'Sch. D'!BW60+'Sch. E'!BW60)/4/12*6,2) -> 0 | BX60: 0 | BY60: =ROUND(('Sch. B'!BY60+'Sch. C'!BY60+'Sch. D'!BY60+'Sch. E'!BY60)/4/12*6,2) -> 0 | BZ60: 0 | CA60: 5407.71 | CB60: 137896.605
A61: =+Index!$K$4+1+0.5-B61 -> 24.5 | B61: 1995 | C61: =ROUND(('Sch. B'!C61+'Sch. C'!C61+'Sch. D'!C61+'Sch. E'!C61)/4/12*6,2) -> 0 | D61: 0 | E61: =ROUND(('Sch. B'!E61+'Sch. C'!E61+'Sch. D'!E61+'Sch. E'!E61)/4/12*6,2) -> 0 | F61: 0 | G61: =ROUND(('Sch. B'!G61+'Sch. C'!G61+'Sch. D'!G61+'Sch. E'!G61)/4/12*6,2) -> 0 | H61: 0 | I61: =ROUND(('Sch. B'!I61+'Sch. C'!I61+'Sch. D'!I61+'Sch. E'!I61)/4/12*6,2) -> 0 | J61: 0 | K61: =ROUND(('Sch. B'!K61+'Sch. C'!K61+'Sch. D'!K61+'Sch. E'!K61)/4/12*6,2) -> 0 | L61: 0 | M61: =ROUND(('Sch. B'!M61+'Sch. C'!M61+'Sch. D'!M61+'Sch. E'!M61)/4/12*6,2) -> 0 | N61: 0 | O61: =ROUND(('Sch. B'!O61+'Sch. C'!O61+'Sch. D'!O61+'Sch. E'!O61)/4/12*6,2) -> 0 | P61: 0 | Q61: =ROUND(('Sch. B'!Q61+'Sch. C'!Q61+'Sch. D'!Q61+'Sch. E'!Q61)/4/12*6,2) -> 0 | R61: 0 | S61: =ROUND(('Sch. B'!S61+'Sch. C'!S61+'Sch. D'!S61+'Sch. E'!S61)/4/12*6,2) -> 0 | T61: 0 | U61: =ROUND(('Sch. B'!U61+'Sch. C'!U61+'Sch. D'!U61+'Sch. E'!U61)/4/12*6,2) -> 0 | V61: 0 | W61: =ROUND(('Sch. B'!W61+'Sch. C'!W61+'Sch. D'!W61+'Sch. E'!W61)/4/12*6,2)+236.78 -> 1382.54 | X61: 33872.23 | Y61: =ROUND(('Sch. B'!Y61+'Sch. C'!Y61+'Sch. D'!Y61+'Sch. E'!Y61)/4/12*6,2) -> 583.01 | Z61: 14283.745 | AA61: =ROUND(('Sch. B'!AA61+'Sch. C'!AA61+'Sch. D'!AA61+'Sch. E'!AA61)/4/12*6,2) -> 0 | AB61: 0 | AC61: =ROUND(('Sch. B'!AC61+'Sch. C'!AC61+'Sch. D'!AC61+'Sch. E'!AC61)/4/12*6,2) -> 0 | AD61: 0 | AE61: =ROUND(('Sch. B'!AE61+'Sch. C'!AE61+'Sch. D'!AE61+'Sch. E'!AE61)/4/12*6,2) -> 15.29 | AF61: 374.605 | AG61: =ROUND(('Sch. B'!AG61+'Sch. C'!AG61+'Sch. D'!AG61+'Sch. E'!AG61)/4/12*6,2) -> 428.43 | AH61: 10496.535 | AI61: =ROUND(('Sch. B'!AI61+'Sch. C'!AI61+'Sch. D'!AI61+'Sch. E'!AI61)/4/12*6,2) -> 629.51 | AJ61: 15422.995 | AK61: =ROUND(('Sch. B'!AK61+'Sch. C'!AK61+'Sch. D'!AK61+'Sch. E'!AK61)/4/12*6,2) -> 0 | AL61: 0 | AM61: =ROUND(('Sch. B'!AM61+'Sch. C'!AM61+'Sch. D'!AM61+'Sch. E'!AM61)/4/12*6,2) -> 96.89 | AN61: 2373.805 | AO61: =ROUND(('Sch. B'!AO61+'Sch. C'!AO61+'Sch. D'!AO61+'Sch. E'!AO61)/4/12*6,2) -> 0 | AP61: 0 | AQ61: =ROUND(('Sch. B'!AQ61+'Sch. C'!AQ61+'Sch. D'!AQ61+'Sch. E'!AQ61)/4/12*6,2) -> 0 | AR61: 0 | AS61: =ROUND(('Sch. B'!AS61+'Sch. C'!AS61+'Sch. D'!AS61+'Sch. E'!AS61)/4/12*6,2) -> 0 | AT61: 0 | AU61: =ROUND(('Sch. B'!AU61+'Sch. C'!AU61+'Sch. D'!AU61+'Sch. E'!AU61)/4/12*6,2) -> 0 | AV61: 0 | AW61: =ROUND(('Sch. B'!AW61+'Sch. C'!AW61+'Sch. D'!AW61+'Sch. E'!AW61)/4/12*6,2) -> 0 | AX61: 0 | AY61: =ROUND(('Sch. B'!AY61+'Sch. C'!AY61+'Sch. D'!AY61+'Sch. E'!AY61)/4/12*6,2) -> 0 | AZ61: 0 | BA61: =ROUND(('Sch. B'!BA61+'Sch. C'!BA61+'Sch. D'!BA61+'Sch. E'!BA61)/4/12*6,2) -> 0 | BB61: 0 | BC61: =ROUND(('Sch. B'!BC61+'Sch. C'!BC61+'Sch. D'!BC61+'Sch. E'!BC61)/4/12*6,2) -> 0 | BD61: 0 | BE61: =ROUND(('Sch. B'!BE61+'Sch. C'!BE61+'Sch. D'!BE61+'Sch. E'!BE61)/4/12*6,2)+'Sch. K (2018)'!G52+'Sch. K (2018)'!G53 -> 119480.02 | BF61: 2927260.49 | BG61: =ROUND(('Sch. B'!BG61+'Sch. C'!BG61+'Sch. D'!BG61+'Sch. E'!BG61)/4/12*6,2) -> 0 | BH61: 0 | BI61: =ROUND(('Sch. B'!BI61+'Sch. C'!BI61+'Sch. D'!BI61+'Sch. E'!BI61)/4/12*6,2) -> 0 | BJ61: 0 | BK61: =ROUND(('Sch. B'!BK61+'Sch. C'!BK61+'Sch. D'!BK61+'Sch. E'!BK61)/4/12*6,2) -> 0 | BL61: 0 | BM61: =ROUND(('Sch. B'!BM61+'Sch. C'!BM61+'Sch. D'!BM61+'Sch. E'!BM61)/4/12*6,2) -> 0 | BN61: 0 | BO61: =ROUND(('Sch. B'!BO61+'Sch. C'!BO61+'Sch. D'!BO61+'Sch. E'!BO61)/4/12*6,2) -> 0 | BP61: 0 | BQ61: =ROUND(('Sch. B'!BQ61+'Sch. C'!BQ61+'Sch. D'!BQ61+'Sch. E'!BQ61)/4/12*6,2) -> 0 | BR61: 0 | BS61: =ROUND(('Sch. B'!BS61+'Sch. C'!BS61+'Sch. D'!BS61+'Sch. E'!BS61)/4/12*6,2) -> 0 | BT61: 0 | BU61: =ROUND(('Sch. B'!BU61+'Sch. C'!BU61+'Sch. D'!BU61+'Sch. E'!BU61)/4/12*6,2) -> 0 | BV61: 0 | BW61: =ROUND(('Sch. B'!BW61+'Sch. C'!BW61+'Sch. D'!BW61+'Sch. E'!BW61)/4/12*6,2) -> 0 | BX61: 0 | BY61: =ROUND(('Sch. B'!BY61+'Sch. C'!BY61+'Sch. D'!BY61+'Sch. E'!BY61)/4/12*6,2) -> 0 | BZ61: 0 | CA61: 122615.69 | CB61: 3004084.405
A62: =+Index!$K$4+1+0.5-B62 -> 23.5 | B62: 1996 | C62: =ROUND(('Sch. B'!C62+'Sch. C'!C62+'Sch. D'!C62+'Sch. E'!C62)/4/12*6,2) -> 0 | D62: 0 | E62: =ROUND(('Sch. B'!E62+'Sch. C'!E62+'Sch. D'!E62+'Sch. E'!E62)/4/12*6,2) -> 0 | F62: 0 | G62: =ROUND(('Sch. B'!G62+'Sch. C'!G62+'Sch. D'!G62+'Sch. E'!G62)/4/12*6,2) -> 0 | H62: 0 | I62: =ROUND(('Sch. B'!I62+'Sch. C'!I62+'Sch. D'!I62+'Sch. E'!I62)/4/12*6,2) -> 0 | J62: 0 | K62: =ROUND(('Sch. B'!K62+'Sch. C'!K62+'Sch. D'!K62+'Sch. E'!K62)/4/12*6,2) -> 0 | L62: 0 | M62: =ROUND(('Sch. B'!M62+'Sch. C'!M62+'Sch. D'!M62+'Sch. E'!M62)/4/12*6,2) -> 0 | N62: 0 | O62: =ROUND(('Sch. B'!O62+'Sch. C'!O62+'Sch. D'!O62+'Sch. E'!O62)/4/12*6,2) -> 0 | P62: 0 | Q62: =ROUND(('Sch. B'!Q62+'Sch. C'!Q62+'Sch. D'!Q62+'Sch. E'!Q62)/4/12*6,2) -> 0 | R62: 0 | S62: =ROUND(('Sch. B'!S62+'Sch. C'!S62+'Sch. D'!S62+'Sch. E'!S62)/4/12*6,2) -> 0 | T62: 0 | U62: =ROUND(('Sch. B'!U62+'Sch. C'!U62+'Sch. D'!U62+'Sch. E'!U62)/4/12*6,2) -> 0 | V62: 0 | W62: =ROUND(('Sch. B'!W62+'Sch. C'!W62+'Sch. D'!W62+'Sch. E'!W62)/4/12*6,2) -> 256.5 | X62: 6027.75 | Y62: =ROUND(('Sch. B'!Y62+'Sch. C'!Y62+'Sch. D'!Y62+'Sch. E'!Y62)/4/12*6,2) -> 0 | Z62: 0 | AA62: =ROUND(('Sch. B'!AA62+'Sch. C'!AA62+'Sch. D'!AA62+'Sch. E'!AA62)/4/12*6,2) -> 0 | AB62: 0 | AC62: =ROUND(('Sch. B'!AC62+'Sch. C'!AC62+'Sch. D'!AC62+'Sch. E'!AC62)/4/12*6,2) -> 54.89 | AD62: 1289.915 | AE62: =ROUND(('Sch. B'!AE62+'Sch. C'!AE62+'Sch. D'!AE62+'Sch. E'!AE62)/4/12*6,2)+2970.85 -> 2970.85 | AF62: 69814.975 | AG62: =ROUND(('Sch. B'!AG62+'Sch. C'!AG62+'Sch. D'!AG62+'Sch. E'!AG62)/4/12*6,2) -> 0 | AH62: 0 | AI62: =ROUND(('Sch. B'!AI62+'Sch. C'!AI62+'Sch. D'!AI62+'Sch. E'!AI62)/4/12*6,2) -> 711.62 | AJ62: 16723.07 | AK62: =ROUND(('Sch. B'!AK62+'Sch. C'!AK62+'Sch. D'!AK62+'Sch. E'!AK62)/4/12*6,2)+1305.61 -> 1895.28 | AL62: 44539.08 | AM62: =ROUND(('Sch. B'!AM62+'Sch. C'!AM62+'Sch. D'!AM62+'Sch. E'!AM62)/4/12*6,2)+8131.02 -> 8206.79 | AN62: 192859.565 | AO62: 0 | AP62: 0 | AQ62: =ROUND(('Sch. B'!AQ62+'Sch. C'!AQ62+'Sch. D'!AQ62+'Sch. E'!AQ62)/4/12*6,2) -> 0 | AR62: 0 | AS62: =ROUND(('Sch. B'!AS62+'Sch. C'!AS62+'Sch. D'!AS62+'Sch. E'!AS62)/4/12*6,2) -> 0 | AT62: 0 | AU62: =ROUND(('Sch. B'!AU62+'Sch. C'!AU62+'Sch. D'!AU62+'Sch. E'!AU62)/4/12*6,2) -> 0 | AV62: 0 | AW62: =ROUND(('Sch. B'!AW62+'Sch. C'!AW62+'Sch. D'!AW62+'Sch. E'!AW62)/4/12*6,2) -> 0 | AX62: 0 | AY62: =ROUND(('Sch. B'!AY62+'Sch. C'!AY62+'Sch. D'!AY62+'Sch. E'!AY62)/4/12*6,2) -> 0 | AZ62: 0 | BA62: =ROUND(('Sch. B'!BA62+'Sch. C'!BA62+'Sch. D'!BA62+'Sch. E'!BA62)/4/12*6,2) -> 0 | BB62: 0 | BC62: =ROUND(('Sch. B'!BC62+'Sch. C'!BC62+'Sch. D'!BC62+'Sch. E'!BC62)/4/12*6,2) -> 0 | BD62: 0 | BE62: =ROUND(('Sch. B'!BE62+'Sch. C'!BE62+'Sch. D'!BE62+'Sch. E'!BE62)/4/12*6,2) -> 0 | BF62: 0 | BG62: =ROUND(('Sch. B'!BG62+'Sch. C'!BG62+'Sch. D'!BG62+'Sch. E'!BG62)/4/12*6,2) -> 0 | BH62: 0 | BI62: =ROUND(('Sch. B'!BI62+'Sch. C'!BI62+'Sch. D'!BI62+'Sch. E'!BI62)/4/12*6,2) -> 0 | BJ62: 0 | BK62: =ROUND(('Sch. B'!BK62+'Sch. C'!BK62+'Sch. D'!BK62+'Sch. E'!BK62)/4/12*6,2) -> 0 | BL62: 0 | BM62: =ROUND(('Sch. B'!BM62+'Sch. C'!BM62+'Sch. D'!BM62+'Sch. E'!BM62)/4/12*6,2) -> 0 | BN62: 0 | BO62: =ROUND(('Sch. B'!BO62+'Sch. C'!BO62+'Sch. D'!BO62+'Sch. E'!BO62)/4/12*6,2) -> 0 | BP62: 0 | BQ62: =ROUND(('Sch. B'!BQ62+'Sch. C'!BQ62+'Sch. D'!BQ62+'Sch. E'!BQ62)/4/12*6,2) -> 0 | BR62: 0 | BS62: =ROUND(('Sch. B'!BS62+'Sch. C'!BS62+'Sch. D'!BS62+'Sch. E'!BS62)/4/12*6,2) -> 0 | BT62: 0 | BU62: =ROUND(('Sch. B'!BU62+'Sch. C'!BU62+'Sch. D'!BU62+'Sch. E'!BU62)/4/12*6,2) -> 0 | BV62: 0 | BW62: =ROUND(('Sch. B'!BW62+'Sch. C'!BW62+'Sch. D'!BW62+'Sch. E'!BW62)/4/12*6,2) -> 0 | BX62: 0 | BY62: =ROUND(('Sch. B'!BY62+'Sch. C'!BY62+'Sch. D'!BY62+'Sch. E'!BY62)/4/12*6,2) -> 0 | BZ62: 0 | CA62: 14095.93 | CB62: 331254.355
A63: =+Index!$K$4+1+0.5-B63 -> 22.5 | B63: =+B62+1 -> 1997 | C63: =ROUND(('Sch. B'!C63+'Sch. C'!C63+'Sch. D'!C63+'Sch. E'!C63)/4/12*6,2) -> 0 | D63: 0 | E63: =ROUND(('Sch. B'!E63+'Sch. C'!E63+'Sch. D'!E63+'Sch. E'!E63)/4/12*6,2) -> 0 | F63: 0 | G63: =ROUND(('Sch. B'!G63+'Sch. C'!G63+'Sch. D'!G63+'Sch. E'!G63)/4/12*6,2) -> 0 | H63: 0 | I63: =ROUND(('Sch. B'!I63+'Sch. C'!I63+'Sch. D'!I63+'Sch. E'!I63)/4/12*6,2) -> 0 | J63: 0 | K63: =ROUND(('Sch. B'!K63+'Sch. C'!K63+'Sch. D'!K63+'Sch. E'!K63)/4/12*6,2) -> 0 | L63: 0 | M63: =ROUND(('Sch. B'!M63+'Sch. C'!M63+'Sch. D'!M63+'Sch. E'!M63)/4/12*6,2) -> 0 | N63: 0 | O63: =ROUND(('Sch. B'!O63+'Sch. C'!O63+'Sch. D'!O63+'Sch. E'!O63)/4/12*6,2) -> 0 | P63: 0 | Q63: =ROUND(('Sch. B'!Q63+'Sch. C'!Q63+'Sch. D'!Q63+'Sch. E'!Q63)/4/12*6,2) -> 0 | R63: 0 | S63: =ROUND(('Sch. B'!S63+'Sch. C'!S63+'Sch. D'!S63+'Sch. E'!S63)/4/12*6,2) -> 0 | T63: 0 | U63: =ROUND(('Sch. B'!U63+'Sch. C'!U63+'Sch. D'!U63+'Sch. E'!U63)/4/12*6,2) -> 0 | V63: 0 | W63: =ROUND(('Sch. B'!W63+'Sch. C'!W63+'Sch. D'!W63+'Sch. E'!W63)/4/12*6,2)+521.2 -> 899.5 | X63: 20238.75 | Y63: =ROUND(('Sch. B'!Y63+'Sch. C'!Y63+'Sch. D'!Y63+'Sch. E'!Y63)/4/12*6,2) -> 45.72 | Z63: 1028.7 | AA63: =ROUND(('Sch. B'!AA63+'Sch. C'!AA63+'Sch. D'!AA63+'Sch. E'!AA63)/4/12*6,2) -> 0 | AB63: 0 | AC63: =ROUND(('Sch. B'!AC63+'Sch. C'!AC63+'Sch. D'!AC63+'Sch. E'!AC63)/4/12*6,2) -> 172.91 | AD63: 3890.475 | AE63: =ROUND(('Sch. B'!AE63+'Sch. C'!AE63+'Sch. D'!AE63+'Sch. E'!AE63)/4/12*6,2)+8311.53 -> 8471.08 | AF63: 190599.3 | AG63: =ROUND(('Sch. B'!AG63+'Sch. C'!AG63+'Sch. D'!AG63+'Sch. E'!AG63)/4/12*6,2) -> 2053.56 | AH63: 46205.1 | AI63: =ROUND(('Sch. B'!AI63+'Sch. C'!AI63+'Sch. D'!AI63+'Sch. E'!AI63)/4/12*6,2) -> 627.27 | AJ63: 14113.575 | AK63: =ROUND(('Sch. B'!AK63+'Sch. C'!AK63+'Sch. D'!AK63+'Sch. E'!AK63)/4/12*6,2)+805.82 -> 805.82 | AL63: 18130.95 | AM63: =ROUND(('Sch. B'!AM63+'Sch. C'!AM63+'Sch. D'!AM63+'Sch. E'!AM63)/4/12*6,2) -> 59.94 | AN63: 1348.65 | AO63: =ROUND(('Sch. B'!AO63+'Sch. C'!AO63+'Sch. D'!AO63+'Sch. E'!AO63)/4/12*6,2) -> 0 | AP63: 0 | AQ63: =ROUND(('Sch. B'!AQ63+'Sch. C'!AQ63+'Sch. D'!AQ63+'Sch. E'!AQ63)/4/12*6,2) -> 0 | AR63: 0 | AS63: =ROUND(('Sch. B'!AS63+'Sch. C'!AS63+'Sch. D'!AS63+'Sch. E'!AS63)/4/12*6,2) -> 0 | AT63: 0 | AU63: =ROUND(('Sch. B'!AU63+'Sch. C'!AU63+'Sch. D'!AU63+'Sch. E'!AU63)/4/12*6,2) -> 0 | AV63: 0 | AW63: =ROUND(('Sch. B'!AW63+'Sch. C'!AW63+'Sch. D'!AW63+'Sch. E'!AW63)/4/12*6,2) -> 0 | AX63: 0 | AY63: =ROUND(('Sch. B'!AY63+'Sch. C'!AY63+'Sch. D'!AY63+'Sch. E'!AY63)/4/12*6,2) -> 0 | AZ63: 0 | BA63: =ROUND(('Sch. B'!BA63+'Sch. C'!BA63+'Sch. D'!BA63+'Sch. E'!BA63)/4/12*6,2) -> 0 | BB63: 0 | BC63: =ROUND(('Sch. B'!BC63+'Sch. C'!BC63+'Sch. D'!BC63+'Sch. E'!BC63)/4/12*6,2) -> 0 | BD63: 0 | BE63: =ROUND(('Sch. B'!BE63+'Sch. C'!BE63+'Sch. D'!BE63+'Sch. E'!BE63)/4/12*6,2) -> 0 | BF63: 0 | BG63: =ROUND(('Sch. B'!BG63+'Sch. C'!BG63+'Sch. D'!BG63+'Sch. E'!BG63)/4/12*6,2) -> 0 | BH63: 0 | BI63: =ROUND(('Sch. B'!BI63+'Sch. C'!BI63+'Sch. D'!BI63+'Sch. E'!BI63)/4/12*6,2) -> 0 | BJ63: 0 | BK63: =ROUND(('Sch. B'!BK63+'Sch. C'!BK63+'Sch. D'!BK63+'Sch. E'!BK63)/4/12*6,2) -> 0 | BL63: 0 | BM63: =ROUND(('Sch. B'!BM63+'Sch. C'!BM63+'Sch. D'!BM63+'Sch. E'!BM63)/4/12*6,2) -> 0 | BN63: 0 | BO63: =ROUND(('Sch. B'!BO63+'Sch. C'!BO63+'Sch. D'!BO63+'Sch. E'!BO63)/4/12*6,2) -> 0 | BP63: 0 | BQ63: =ROUND(('Sch. B'!BQ63+'Sch. C'!BQ63+'Sch. D'!BQ63+'Sch. E'!BQ63)/4/12*6,2) -> 0 | BR63: 0 | BS63: =ROUND(('Sch. B'!BS63+'Sch. C'!BS63+'Sch. D'!BS63+'Sch. E'!BS63)/4/12*6,2) -> 0 | BT63: 0 | BU63: =ROUND(('Sch. B'!BU63+'Sch. C'!BU63+'Sch. D'!BU63+'Sch. E'!BU63)/4/12*6,2) -> 0 | BV63: 0 | BW63: =ROUND(('Sch. B'!BW63+'Sch. C'!BW63+'Sch. D'!BW63+'Sch. E'!BW63)/4/12*6,2) -> 0 | BX63: 0 | BY63: =ROUND(('Sch. B'!BY63+'Sch. C'!BY63+'Sch. D'!BY63+'Sch. E'!BY63)/4/12*6,2) -> 0 | BZ63: 0 | CA63: 13135.8 | CB63: 295555.5
A64: =+Index!$K$4+1+0.5-B64 -> 21.5 | B64: =+B63+1 -> 1998 | C64: =ROUND(('Sch. B'!C64+'Sch. C'!C64+'Sch. D'!C64+'Sch. E'!C64)/4/12*6,2) -> 0 | D64: 0 | E64: =ROUND(('Sch. B'!E64+'Sch. C'!E64+'Sch. D'!E64+'Sch. E'!E64)/4/12*6,2) -> 0 | F64: 0 | G64: =ROUND(('Sch. B'!G64+'Sch. C'!G64+'Sch. D'!G64+'Sch. E'!G64)/4/12*6,2) -> 0 | H64: 0 | I64: =ROUND(('Sch. B'!I64+'Sch. C'!I64+'Sch. D'!I64+'Sch. E'!I64)/4/12*6,2) -> 0 | J64: 0 | K64: =ROUND(('Sch. B'!K64+'Sch. C'!K64+'Sch. D'!K64+'Sch. E'!K64)/4/12*6,2) -> 0 | L64: 0 | M64: =ROUND(('Sch. B'!M64+'Sch. C'!M64+'Sch. D'!M64+'Sch. E'!M64)/4/12*6,2) -> 0 | N64: 0 | O64: =ROUND(('Sch. B'!O64+'Sch. C'!O64+'Sch. D'!O64+'Sch. E'!O64)/4/12*6,2) -> 0 | P64: 0 | Q64: =ROUND(('Sch. B'!Q64+'Sch. C'!Q64+'Sch. D'!Q64+'Sch. E'!Q64)/4/12*6,2) -> 0 | R64: 0 | S64: =ROUND(('Sch. B'!S64+'Sch. C'!S64+'Sch. D'!S64+'Sch. E'!S64)/4/12*6,2) -> 0 | T64: 0 | U64: =ROUND(('Sch. B'!U64+'Sch. C'!U64+'Sch. D'!U64+'Sch. E'!U64)/4/12*6,2) -> 0 | V64: 0 | W64: =ROUND(('Sch. B'!W64+'Sch. C'!W64+'Sch. D'!W64+'Sch. E'!W64)/4/12*6,2)+2938.52 -> 3548.85 | X64: 76300.275 | Y64: =ROUND(('Sch. B'!Y64+'Sch. C'!Y64+'Sch. D'!Y64+'Sch. E'!Y64)/4/12*6,2) -> 29.45 | Z64: 633.175 | AA64: =ROUND(('Sch. B'!AA64+'Sch. C'!AA64+'Sch. D'!AA64+'Sch. E'!AA64)/4/12*6,2) -> 0 | AB64: 0 | AC64: =ROUND(('Sch. B'!AC64+'Sch. C'!AC64+'Sch. D'!AC64+'Sch. E'!AC64)/4/12*6,2) -> 0 | AD64: 0 | AE64: =ROUND(('Sch. B'!AE64+'Sch. C'!AE64+'Sch. D'!AE64+'Sch. E'!AE64)/4/12*6,2) -> 22.89 | AF64: 492.135 | AG64: =ROUND(('Sch. B'!AG64+'Sch. C'!AG64+'Sch. D'!AG64+'Sch. E'!AG64)/4/12*6,2) -> 169.84 | AH64: 3651.56 | AI64: =ROUND(('Sch. B'!AI64+'Sch. C'!AI64+'Sch. D'!AI64+'Sch. E'!AI64)/4/12*6,2) -> 587.51 | AJ64: 12631.465 | AK64: =ROUND(('Sch. B'!AK64+'Sch. C'!AK64+'Sch. D'!AK64+'Sch. E'!AK64)/4/12*6,2) -> 351.01 | AL64: 7546.715 | AM64: =ROUND(('Sch. B'!AM64+'Sch. C'!AM64+'Sch. D'!AM64+'Sch. E'!AM64)/4/12*6,2)+748.96 -> 882.95 | AN64: 18983.425 | AO64: =ROUND(('Sch. B'!AO64+'Sch. C'!AO64+'Sch. D'!AO64+'Sch. E'!AO64)/4/12*6,2) -> 0 | AP64: 0 | AQ64: =ROUND(('Sch. B'!AQ64+'Sch. C'!AQ64+'Sch. D'!AQ64+'Sch. E'!AQ64)/4/12*6,2) -> 0 | AR64: 0 | AS64: =ROUND(('Sch. B'!AS64+'Sch. C'!AS64+'Sch. D'!AS64+'Sch. E'!AS64)/4/12*6,2) -> 0 | AT64: 0 | AU64: =ROUND(('Sch. B'!AU64+'Sch. C'!AU64+'Sch. D'!AU64+'Sch. E'!AU64)/4/12*6,2) -> 0 | AV64: 0 | AW64: =ROUND(('Sch. B'!AW64+'Sch. C'!AW64+'Sch. D'!AW64+'Sch. E'!AW64)/4/12*6,2) -> 0 | AX64: 0 | AY64: =ROUND(('Sch. B'!AY64+'Sch. C'!AY64+'Sch. D'!AY64+'Sch. E'!AY64)/4/12*6,2) -> 0 | AZ64: 0 | BA64: =ROUND(('Sch. B'!BA64+'Sch. C'!BA64+'Sch. D'!BA64+'Sch. E'!BA64)/4/12*6,2) -> 0 | BB64: 0 | BC64: =ROUND(('Sch. B'!BC64+'Sch. C'!BC64+'Sch. D'!BC64+'Sch. E'!BC64)/4/12*6,2) -> 0 | BD64: 0 | BE64: =ROUND(('Sch. B'!BE64+'Sch. C'!BE64+'Sch. D'!BE64+'Sch. E'!BE64)/4/12*6,2) -> 0 | BF64: 0 | BG64: =ROUND(('Sch. B'!BG64+'Sch. C'!BG64+'Sch. D'!BG64+'Sch. E'!BG64)/4/12*6,2) -> 0 | BH64: 0 | BI64: =ROUND(('Sch. B'!BI64+'Sch. C'!BI64+'Sch. D'!BI64+'Sch. E'!BI64)/4/12*6,2) -> 0 | BJ64: 0 | BK64: =ROUND(('Sch. B'!BK64+'Sch. C'!BK64+'Sch. D'!BK64+'Sch. E'!BK64)/4/12*6,2) -> 0 | BL64: 0 | BM64: =ROUND(('Sch. B'!BM64+'Sch. C'!BM64+'Sch. D'!BM64+'Sch. E'!BM64)/4/12*6,2) -> 0 | BN64: 0 | BO64: =ROUND(('Sch. B'!BO64+'Sch. C'!BO64+'Sch. D'!BO64+'Sch. E'!BO64)/4/12*6,2) -> 0 | BP64: 0 | BQ64: =ROUND(('Sch. B'!BQ64+'Sch. C'!BQ64+'Sch. D'!BQ64+'Sch. E'!BQ64)/4/12*6,2) -> 0 | BR64: 0 | BS64: =ROUND(('Sch. B'!BS64+'Sch. C'!BS64+'Sch. D'!BS64+'Sch. E'!BS64)/4/12*6,2) -> 0 | BT64: 0 | BU64: =ROUND(('Sch. B'!BU64+'Sch. C'!BU64+'Sch. D'!BU64+'Sch. E'!BU64)/4/12*6,2) -> 0 | BV64: 0 | BW64: =ROUND(('Sch. B'!BW64+'Sch. C'!BW64+'Sch. D'!BW64+'Sch. E'!BW64)/4/12*6,2) -> 0 | BX64: 0 | BY64: =ROUND(('Sch. B'!BY64+'Sch. C'!BY64+'Sch. D'!BY64+'Sch. E'!BY64)/4/12*6,2) -> 0 | BZ64: 0 | CA64: 5592.5 | CB64: 120238.75
A65: =+Index!$K$4+1+0.5-B65 -> 20.5 | B65: =+B64+1 -> 1999 | C65: =ROUND(('Sch. B'!C65+'Sch. C'!C65+'Sch. D'!C65+'Sch. E'!C65)/4/12*6,2) -> 0 | D65: 0 | E65: =ROUND(('Sch. B'!E65+'Sch. C'!E65+'Sch. D'!E65+'Sch. E'!E65)/4/12*6,2) -> 0 | F65: 0 | G65: =ROUND(('Sch. B'!G65+'Sch. C'!G65+'Sch. D'!G65+'Sch. E'!G65)/4/12*6,2) -> 0 | H65: 0 | I65: =ROUND(('Sch. B'!I65+'Sch. C'!I65+'Sch. D'!I65+'Sch. E'!I65)/4/12*6,2) -> 0 | J65: 0 | K65: =ROUND(('Sch. B'!K65+'Sch. C'!K65+'Sch. D'!K65+'Sch. E'!K65)/4/12*6,2) -> 0 | L65: 0 | M65: =ROUND(('Sch. B'!M65+'Sch. C'!M65+'Sch. D'!M65+'Sch. E'!M65)/4/12*6,2) -> 910.02 | N65: 18655.41 | O65: =ROUND(('Sch. B'!O65+'Sch. C'!O65+'Sch. D'!O65+'Sch. E'!O65)/4/12*6,2) -> 0 | P65: 0 | Q65: =ROUND(('Sch. B'!Q65+'Sch. C'!Q65+'Sch. D'!Q65+'Sch. E'!Q65)/4/12*6,2) -> 0 | R65: 0 | S65: =ROUND(('Sch. B'!S65+'Sch. C'!S65+'Sch. D'!S65+'Sch. E'!S65)/4/12*6,2) -> 0 | T65: 0 | U65: =ROUND(('Sch. B'!U65+'Sch. C'!U65+'Sch. D'!U65+'Sch. E'!U65)/4/12*6,2) -> 0 | V65: 0 | W65: =ROUND(('Sch. B'!W65+'Sch. C'!W65+'Sch. D'!W65+'Sch. E'!W65)/4/12*6,2)+1104.42 -> 1294.31 | X65: 26533.355 | Y65: =ROUND(('Sch. B'!Y65+'Sch. C'!Y65+'Sch. D'!Y65+'Sch. E'!Y65)/4/12*6,2) -> 134.69 | Z65: 2761.145 | AA65: =ROUND(('Sch. B'!AA65+'Sch. C'!AA65+'Sch. D'!AA65+'Sch. E'!AA65)/4/12*6,2) -> 0 | AB65: 0 | AC65: =ROUND(('Sch. B'!AC65+'Sch. C'!AC65+'Sch. D'!AC65+'Sch. E'!AC65)/4/12*6,2) -> 0 | AD65: 0 | AE65: =ROUND(('Sch. B'!AE65+'Sch. C'!AE65+'Sch. D'!AE65+'Sch. E'!AE65)/4/12*6,2) -> 21.76 | AF65: 446.08 | AG65: =ROUND(('Sch. B'!AG65+'Sch. C'!AG65+'Sch. D'!AG65+'Sch. E'!AG65)/4/12*6,2) -> 198.91 | AH65: 4077.655 | AI65: =ROUND(('Sch. B'!AI65+'Sch. C'!AI65+'Sch. D'!AI65+'Sch. E'!AI65)/4/12*6,2) -> 665.21 | AJ65: 13636.805 | AK65: =ROUND(('Sch. B'!AK65+'Sch. C'!AK65+'Sch. D'!AK65+'Sch. E'!AK65)/4/12*6,2)+692.98 -> 1758.18 | AL65: 36042.69 | AM65: =ROUND(('Sch. B'!AM65+'Sch. C'!AM65+'Sch. D'!AM65+'Sch. E'!AM65)/4/12*6,2) -> 16.73 | AN65: 342.965 | AO65: =ROUND(('Sch. B'!AO65+'Sch. C'!AO65+'Sch. D'!AO65+'Sch. E'!AO65)/4/12*6,2) -> 0 | AP65: 0 | AQ65: =ROUND(('Sch. B'!AQ65+'Sch. C'!AQ65+'Sch. D'!AQ65+'Sch. E'!AQ65)/4/12*6,2) -> 0 | AR65: 0 | AS65: =ROUND(('Sch. B'!AS65+'Sch. C'!AS65+'Sch. D'!AS65+'Sch. E'!AS65)/4/12*6,2) -> 0 | AT65: 0 | AU65: =ROUND(('Sch. B'!AU65+'Sch. C'!AU65+'Sch. D'!AU65+'Sch. E'!AU65)/4/12*6,2) -> 0 | AV65: 0 | AW65: =ROUND(('Sch. B'!AW65+'Sch. C'!AW65+'Sch. D'!AW65+'Sch. E'!AW65)/4/12*6,2) -> 0 | AX65: 0 | AY65: =ROUND(('Sch. B'!AY65+'Sch. C'!AY65+'Sch. D'!AY65+'Sch. E'!AY65)/4/12*6,2) -> 0 | AZ65: 0 | BA65: =ROUND(('Sch. B'!BA65+'Sch. C'!BA65+'Sch. D'!BA65+'Sch. E'!BA65)/4/12*6,2) -> 0 | BB65: 0 | BC65: =ROUND(('Sch. B'!BC65+'Sch. C'!BC65+'Sch. D'!BC65+'Sch. E'!BC65)/4/12*6,2) -> 0 | BD65: 0 | BE65: =ROUND(('Sch. B'!BE65+'Sch. C'!BE65+'Sch. D'!BE65+'Sch. E'!BE65)/4/12*6,2)+'Sch. K (2018)'!G57 -> 125012.24 | BF65: 2562750.92 | BG65: =ROUND(('Sch. B'!BG65+'Sch. C'!BG65+'Sch. D'!BG65+'Sch. E'!BG65)/4/12*6,2) -> 0 | BH65: 0 | BI65: =ROUND(('Sch. B'!BI65+'Sch. C'!BI65+'Sch. D'!BI65+'Sch. E'!BI65)/4/12*6,2) -> 0 | BJ65: 0 | BK65: =ROUND(('Sch. B'!BK65+'Sch. C'!BK65+'Sch. D'!BK65+'Sch. E'!BK65)/4/12*6,2) -> 0 | BL65: 0 | BM65: =ROUND(('Sch. B'!BM65+'Sch. C'!BM65+'Sch. D'!BM65+'Sch. E'!BM65)/4/12*6,2) -> 0 | BN65: 0 | BO65: =ROUND(('Sch. B'!BO65+'Sch. C'!BO65+'Sch. D'!BO65+'Sch. E'!BO65)/4/12*6,2) -> 0 | BP65: 0 | BQ65: =ROUND(('Sch. B'!BQ65+'Sch. C'!BQ65+'Sch. D'!BQ65+'Sch. E'!BQ65)/4/12*6,2) -> 0 | BR65: 0 | BS65: =ROUND(('Sch. B'!BS65+'Sch. C'!BS65+'Sch. D'!BS65+'Sch. E'!BS65)/4/12*6,2) -> 0 | BT65: 0 | BU65: =ROUND(('Sch. B'!BU65+'Sch. C'!BU65+'Sch. D'!BU65+'Sch. E'!BU65)/4/12*6,2) -> 0 | BV65: 0 | BW65: =ROUND(('Sch. B'!BW65+'Sch. C'!BW65+'Sch. D'!BW65+'Sch. E'!BW65)/4/12*6,2) -> 0 | BX65: 0 | BY65: =ROUND(('Sch. B'!BY65+'Sch. C'!BY65+'Sch. D'!BY65+'Sch. E'!BY65)/4/12*6,2) -> 0 | BZ65: 0 | CA65: 130012.05 | CB65: 2665247.025
A66: =+Index!$K$4+1+0.5-B66 -> 19.5 | B66: =+B65+1 -> 2000 | C66: =ROUND(('Sch. B'!C66+'Sch. C'!C66+'Sch. D'!C66+'Sch. E'!C66)/4/12*6,2) -> 0 | D66: 0 | E66: =ROUND(('Sch. B'!E66+'Sch. C'!E66+'Sch. D'!E66+'Sch. E'!E66)/4/12*6,2) -> 0 | F66: 0 | G66: =ROUND(('Sch. B'!G66+'Sch. C'!G66+'Sch. D'!G66+'Sch. E'!G66)/4/12*6,2) -> 0 | H66: 0 | I66: =ROUND(('Sch. B'!I66+'Sch. C'!I66+'Sch. D'!I66+'Sch. E'!I66)/4/12*6,2) -> 0 | J66: 0 | K66: =ROUND(('Sch. B'!K66+'Sch. C'!K66+'Sch. D'!K66+'Sch. E'!K66)/4/12*6,2) -> 0 | L66: 0 | M66: =ROUND(('Sch. B'!M66+'Sch. C'!M66+'Sch. D'!M66+'Sch. E'!M66)/4/12*6,2) -> 0 | N66: 0 | O66: =ROUND(('Sch. B'!O66+'Sch. C'!O66+'Sch. D'!O66+'Sch. E'!O66)/4/12*6,2) -> 0 | P66: 0 | Q66: =ROUND(('Sch. B'!Q66+'Sch. C'!Q66+'Sch. D'!Q66+'Sch. E'!Q66)/4/12*6,2) -> 0 | R66: 0 | S66: =ROUND(('Sch. B'!S66+'Sch. C'!S66+'Sch. D'!S66+'Sch. E'!S66)/4/12*6,2) -> 0 | T66: 0 | U66: =ROUND(('Sch. B'!U66+'Sch. C'!U66+'Sch. D'!U66+'Sch. E'!U66)/4/12*6,2) -> 0 | V66: 0 | W66: =ROUND(('Sch. B'!W66+'Sch. C'!W66+'Sch. D'!W66+'Sch. E'!W66)/4/12*6,2)+121.1 -> 1145.18 | X66: 22331.01 | Y66: =ROUND(('Sch. B'!Y66+'Sch. C'!Y66+'Sch. D'!Y66+'Sch. E'!Y66)/4/12*6,2) -> 21.56 | Z66: 420.42 | AA66: =ROUND(('Sch. B'!AA66+'Sch. C'!AA66+'Sch. D'!AA66+'Sch. E'!AA66)/4/12*6,2) -> 101.16 | AB66: 1972.62 | AC66: =ROUND(('Sch. B'!AC66+'Sch. C'!AC66+'Sch. D'!AC66+'Sch. E'!AC66)/4/12*6,2) -> 0 | AD66: 0 | AE66: =ROUND(('Sch. B'!AE66+'Sch. C'!AE66+'Sch. D'!AE66+'Sch. E'!AE66)/4/12*6,2) -> 16.06 | AF66: 313.17 | AG66: =ROUND(('Sch. B'!AG66+'Sch. C'!AG66+'Sch. D'!AG66+'Sch. E'!AG66)/4/12*6,2) -> 721.78 | AH66: 14074.71 | AI66: =ROUND(('Sch. B'!AI66+'Sch. C'!AI66+'Sch. D'!AI66+'Sch. E'!AI66)/4/12*6,2) -> 628.98 | AJ66: 12265.11 | AK66: =ROUND(('Sch. B'!AK66+'Sch. C'!AK66+'Sch. D'!AK66+'Sch. E'!AK66)/4/12*6,2)+544.4 -> 1917.69 | AL66: 37394.955 | AM66: =ROUND(('Sch. B'!AM66+'Sch. C'!AM66+'Sch. D'!AM66+'Sch. E'!AM66)/4/12*6,2) -> 41.42 | AN66: 807.69 | AO66: =ROUND(('Sch. B'!AO66+'Sch. C'!AO66+'Sch. D'!AO66+'Sch. E'!AO66)/4/12*6,2) -> 0 | AP66: 0 | AQ66: =ROUND(('Sch. B'!AQ66+'Sch. C'!AQ66+'Sch. D'!AQ66+'Sch. E'!AQ66)/4/12*6,2) -> 0 | AR66: 0 | AS66: =ROUND(('Sch. B'!AS66+'Sch. C'!AS66+'Sch. D'!AS66+'Sch. E'!AS66)/4/12*6,2) -> 0 | AT66: 0 | AU66: =ROUND(('Sch. B'!AU66+'Sch. C'!AU66+'Sch. D'!AU66+'Sch. E'!AU66)/4/12*6,2) -> 0 | AV66: 0 | AW66: =ROUND(('Sch. B'!AW66+'Sch. C'!AW66+'Sch. D'!AW66+'Sch. E'!AW66)/4/12*6,2) -> 0 | AX66: 0 | AY66: =ROUND(('Sch. B'!AY66+'Sch. C'!AY66+'Sch. D'!AY66+'Sch. E'!AY66)/4/12*6,2) -> 0 | AZ66: 0 | BA66: =ROUND(('Sch. B'!BA66+'Sch. C'!BA66+'Sch. D'!BA66+'Sch. E'!BA66)/4/12*6,2) -> 0 | BB66: 0 | BC66: =ROUND(('Sch. B'!BC66+'Sch. C'!BC66+'Sch. D'!BC66+'Sch. E'!BC66)/4/12*6,2) -> 0 | BD66: 0 | BE66: =ROUND(('Sch. B'!BE66+'Sch. C'!BE66+'Sch. D'!BE66+'Sch. E'!BE66)/4/12*6,2) -> 0 | BF66: 0 | BG66: =ROUND(('Sch. B'!BG66+'Sch. C'!BG66+'Sch. D'!BG66+'Sch. E'!BG66)/4/12*6,2) -> 0 | BH66: 0 | BI66: =ROUND(('Sch. B'!BI66+'Sch. C'!BI66+'Sch. D'!BI66+'Sch. E'!BI66)/4/12*6,2) -> 0 | BJ66: 0 | BK66: =ROUND(('Sch. B'!BK66+'Sch. C'!BK66+'Sch. D'!BK66+'Sch. E'!BK66)/4/12*6,2) -> 0 | BL66: 0 | BM66: =ROUND(('Sch. B'!BM66+'Sch. C'!BM66+'Sch. D'!BM66+'Sch. E'!BM66)/4/12*6,2) -> 0 | BN66: 0 | BO66: =ROUND(('Sch. B'!BO66+'Sch. C'!BO66+'Sch. D'!BO66+'Sch. E'!BO66)/4/12*6,2) -> 0 | BP66: 0 | BQ66: =ROUND(('Sch. B'!BQ66+'Sch. C'!BQ66+'Sch. D'!BQ66+'Sch. E'!BQ66)/4/12*6,2) -> 0 | BR66: 0 | BS66: =ROUND(('Sch. B'!BS66+'Sch. C'!BS66+'Sch. D'!BS66+'Sch. E'!BS66)/4/12*6,2) -> 0 | BT66: 0 | BU66: =ROUND(('Sch. B'!BU66+'Sch. C'!BU66+'Sch. D'!BU66+'Sch. E'!BU66)/4/12*6,2) -> 0 | BV66: 0 | BW66: =ROUND(('Sch. B'!BW66+'Sch. C'!BW66+'Sch. D'!BW66+'Sch. E'!BW66)/4/12*6,2) -> 0 | BX66: 0 | BY66: =ROUND(('Sch. B'!BY66+'Sch. C'!BY66+'Sch. D'!BY66+'Sch. E'!BY66)/4/12*6,2) -> 0 | BZ66: 0 | CA66: 4593.83 | CB66: 89579.685
A67: =+Index!$K$4+1+0.5-B67 -> 18.5 | B67: 2001 | C67: =ROUND(('Sch. B'!C67+'Sch. C'!C67+'Sch. D'!C67+'Sch. E'!C67)/4/12*6,2) -> 0 | D67: 0 | E67: =ROUND(('Sch. B'!E67+'Sch. C'!E67+'Sch. D'!E67+'Sch. E'!E67)/4/12*6,2) -> 0 | F67: 0 | G67: =ROUND(('Sch. B'!G67+'Sch. C'!G67+'Sch. D'!G67+'Sch. E'!G67)/4/12*6,2) -> 0 | H67: 0 | I67: =ROUND(('Sch. B'!I67+'Sch. C'!I67+'Sch. D'!I67+'Sch. E'!I67)/4/12*6,2) -> 0 | J67: 0 | K67: =ROUND(('Sch. B'!K67+'Sch. C'!K67+'Sch. D'!K67+'Sch. E'!K67)/4/12*6,2) -> 0 | L67: 0 | M67: =ROUND(('Sch. B'!M67+'Sch. C'!M67+'Sch. D'!M67+'Sch. E'!M67)/4/12*6,2) -> 0 | N67: 0 | O67: =ROUND(('Sch. B'!O67+'Sch. C'!O67+'Sch. D'!O67+'Sch. E'!O67)/4/12*6,2) -> 0 | P67: 0 | Q67: =ROUND(('Sch. B'!Q67+'Sch. C'!Q67+'Sch. D'!Q67+'Sch. E'!Q67)/4/12*6,2) -> 0 | R67: 0 | S67: =ROUND(('Sch. B'!S67+'Sch. C'!S67+'Sch. D'!S67+'Sch. E'!S67)/4/12*6,2) -> 0 | T67: 0 | U67: =ROUND(('Sch. B'!U67+'Sch. C'!U67+'Sch. D'!U67+'Sch. E'!U67)/4/12*6,2) -> 0 | V67: 0 | W67: =ROUND(('Sch. B'!W67+'Sch. C'!W67+'Sch. D'!W67+'Sch. E'!W67)/4/12*6,2) -> 316.36 | X67: 5852.66 | Y67: =ROUND(('Sch. B'!Y67+'Sch. C'!Y67+'Sch. D'!Y67+'Sch. E'!Y67)/4/12*6,2) -> 5 | Z67: 92.5 | AA67: =ROUND(('Sch. B'!AA67+'Sch. C'!AA67+'Sch. D'!AA67+'Sch. E'!AA67)/4/12*6,2) -> 0 | AB67: 0 | AC67: =ROUND(('Sch. B'!AC67+'Sch. C'!AC67+'Sch. D'!AC67+'Sch. E'!AC67)/4/12*6,2) -> 21.89 | AD67: 404.965 | AE67: =ROUND(('Sch. B'!AE67+'Sch. C'!AE67+'Sch. D'!AE67+'Sch. E'!AE67)/4/12*6,2) -> 367.66 | AF67: 6801.71 | AG67: =ROUND(('Sch. B'!AG67+'Sch. C'!AG67+'Sch. D'!AG67+'Sch. E'!AG67)/4/12*6,2) -> 427.57 | AH67: 7910.045 | AI67: =ROUND(('Sch. B'!AI67+'Sch. C'!AI67+'Sch. D'!AI67+'Sch. E'!AI67)/4/12*6,2) -> 272.27 | AJ67: 5036.995 | AK67: =ROUND(('Sch. B'!AK67+'Sch. C'!AK67+'Sch. D'!AK67+'Sch. E'!AK67)/4/12*6,2)+3547.66 -> 5195.29 | AL67: 96112.865 | AM67: =ROUND(('Sch. B'!AM67+'Sch. C'!AM67+'Sch. D'!AM67+'Sch. E'!AM67)/4/12*6,2) -> 152.83 | AN67: 2827.355 | AO67: 0 | AP67: 0 | AQ67: =ROUND(('Sch. B'!AQ67+'Sch. C'!AQ67+'Sch. D'!AQ67+'Sch. E'!AQ67)/4/12*6,2) -> 0 | AR67: 0 | AS67: =ROUND(('Sch. B'!AS67+'Sch. C'!AS67+'Sch. D'!AS67+'Sch. E'!AS67)/4/12*6,2) -> 0 | AT67: 0 | AU67: =ROUND(('Sch. B'!AU67+'Sch. C'!AU67+'Sch. D'!AU67+'Sch. E'!AU67)/4/12*6,2) -> 0 | AV67: 0 | AW67: =ROUND(('Sch. B'!AW67+'Sch. C'!AW67+'Sch. D'!AW67+'Sch. E'!AW67)/4/12*6,2) -> 0 | AX67: 0 | AY67: =ROUND(('Sch. B'!AY67+'Sch. C'!AY67+'Sch. D'!AY67+'Sch. E'!AY67)/4/12*6,2) -> 0 | AZ67: 0 | BA67: =ROUND(('Sch. B'!BA67+'Sch. C'!BA67+'Sch. D'!BA67+'Sch. E'!BA67)/4/12*6,2) -> 0 | BB67: 0 | BC67: =ROUND(('Sch. B'!BC67+'Sch. C'!BC67+'Sch. D'!BC67+'Sch. E'!BC67)/4/12*6,2)+'Sch. K (2018)'!G11 -> 19134.28 | BD67: 353984.18 | BE67: =ROUND(('Sch. B'!BE67+'Sch. C'!BE67+'Sch. D'!BE67+'Sch. E'!BE67)/4/12*6,2) -> 0 | BF67: 0 | BG67: =ROUND(('Sch. B'!BG67+'Sch. C'!BG67+'Sch. D'!BG67+'Sch. E'!BG67)/4/12*6,2) -> 0 | BH67: 0 | BI67: =ROUND(('Sch. B'!BI67+'Sch. C'!BI67+'Sch. D'!BI67+'Sch. E'!BI67)/4/12*6,2) -> 0 | BJ67: 0 | BK67: =ROUND(('Sch. B'!BK67+'Sch. C'!BK67+'Sch. D'!BK67+'Sch. E'!BK67)/4/12*6,2) -> 0 | BL67: 0 | BM67: =ROUND(('Sch. B'!BM67+'Sch. C'!BM67+'Sch. D'!BM67+'Sch. E'!BM67)/4/12*6,2) -> 0 | BN67: 0 | BO67: =ROUND(('Sch. B'!BO67+'Sch. C'!BO67+'Sch. D'!BO67+'Sch. E'!BO67)/4/12*6,2) -> 0 | BP67: 0 | BQ67: =ROUND(('Sch. B'!BQ67+'Sch. C'!BQ67+'Sch. D'!BQ67+'Sch. E'!BQ67)/4/12*6,2) -> 0 | BR67: 0 | BS67: =ROUND(('Sch. B'!BS67+'Sch. C'!BS67+'Sch. D'!BS67+'Sch. E'!BS67)/4/12*6,2) -> 0 | BT67: 0 | BU67: =ROUND(('Sch. B'!BU67+'Sch. C'!BU67+'Sch. D'!BU67+'Sch. E'!BU67)/4/12*6,2) -> 0 | BV67: 0 | BW67: =ROUND(('Sch. B'!BW67+'Sch. C'!BW67+'Sch. D'!BW67+'Sch. E'!BW67)/4/12*6,2) -> 0 | BX67: 0 | BY67: =ROUND(('Sch. B'!BY67+'Sch. C'!BY67+'Sch. D'!BY67+'Sch. E'!BY67)/4/12*6,2) -> 0 | BZ67: 0 | CA67: 25893.15 | CB67: 479023.275
A68: =+Index!$K$4+1+0.5-B68 -> 17.5 | B68: 2002 | C68: =ROUND(('Sch. B'!C68+'Sch. C'!C68+'Sch. D'!C68+'Sch. E'!C68)/4/12*6,2) -> 0 | D68: 0 | E68: =ROUND(('Sch. B'!E68+'Sch. C'!E68+'Sch. D'!E68+'Sch. E'!E68)/4/12*6,2) -> 0 | F68: 0 | G68: =ROUND(('Sch. B'!G68+'Sch. C'!G68+'Sch. D'!G68+'Sch. E'!G68)/4/12*6,2) -> 0 | H68: 0 | I68: =ROUND(('Sch. B'!I68+'Sch. C'!I68+'Sch. D'!I68+'Sch. E'!I68)/4/12*6,2) -> 0 | J68: 0 | K68: =ROUND(('Sch. B'!K68+'Sch. C'!K68+'Sch. D'!K68+'Sch. E'!K68)/4/12*6,2) -> 61287.14 | L68: 1072524.95 | M68: =ROUND(('Sch. B'!M68+'Sch. C'!M68+'Sch. D'!M68+'Sch. E'!M68)/4/12*6,2) -> 97248.49 | N68: 1701848.575 | O68: =ROUND(('Sch. B'!O68+'Sch. C'!O68+'Sch. D'!O68+'Sch. E'!O68)/4/12*6,2) -> 0 | P68: 0 | Q68: =ROUND(('Sch. B'!Q68+'Sch. C'!Q68+'Sch. D'!Q68+'Sch. E'!Q68)/4/12*6,2) -> 0 | R68: 0 | S68: =ROUND(('Sch. B'!S68+'Sch. C'!S68+'Sch. D'!S68+'Sch. E'!S68)/4/12*6,2) -> 0 | T68: 0 | U68: =ROUND(('Sch. B'!U68+'Sch. C'!U68+'Sch. D'!U68+'Sch. E'!U68)/4/12*6,2) -> 0 | V68: 0 | W68: =ROUND(('Sch. B'!W68+'Sch. C'!W68+'Sch. D'!W68+'Sch. E'!W68)/4/12*6,2) -> 995.89 | X68: 17428.075 | Y68: =ROUND(('Sch. B'!Y68+'Sch. C'!Y68+'Sch. D'!Y68+'Sch. E'!Y68)/4/12*6,2) -> 92.81 | Z68: 1624.175 | AA68: =ROUND(('Sch. B'!AA68+'Sch. C'!AA68+'Sch. D'!AA68+'Sch. E'!AA68)/4/12*6,2) -> 559.23 | AB68: 9786.525 | AC68: =ROUND(('Sch. B'!AC68+'Sch. C'!AC68+'Sch. D'!AC68+'Sch. E'!AC68)/4/12*6,2) -> 914.77 | AD68: 16008.475 | AE68: =ROUND(('Sch. B'!AE68+'Sch. C'!AE68+'Sch. D'!AE68+'Sch. E'!AE68)/4/12*6,2) -> 0 | AF68: 0 | AG68: =ROUND(('Sch. B'!AG68+'Sch. C'!AG68+'Sch. D'!AG68+'Sch. E'!AG68)/4/12*6,2) -> 0 | AH68: 0 | AI68: =ROUND(('Sch. B'!AI68+'Sch. C'!AI68+'Sch. D'!AI68+'Sch. E'!AI68)/4/12*6,2) -> 697.43 | AJ68: 12205.025 | AK68: =ROUND(('Sch. B'!AK68+'Sch. C'!AK68+'Sch. D'!AK68+'Sch. E'!AK68)/4/12*6,2)+1193.47 -> 1936.56 | AL68: 33889.8 | AM68: =ROUND(('Sch. B'!AM68+'Sch. C'!AM68+'Sch. D'!AM68+'Sch. E'!AM68)/4/12*6,2) -> 260.54 | AN68: 4559.45 | AO68: 0 | AP68: 0 | AQ68: =ROUND(('Sch. B'!AQ68+'Sch. C'!AQ68+'Sch. D'!AQ68+'Sch. E'!AQ68)/4/12*6,2) -> 0 | AR68: 0 | AS68: =ROUND(('Sch. B'!AS68+'Sch. C'!AS68+'Sch. D'!AS68+'Sch. E'!AS68)/4/12*6,2) -> 0 | AT68: 0 | AU68: =ROUND(('Sch. B'!AU68+'Sch. C'!AU68+'Sch. D'!AU68+'Sch. E'!AU68)/4/12*6,2) -> 0 | AV68: 0 | AW68: =ROUND(('Sch. B'!AW68+'Sch. C'!AW68+'Sch. D'!AW68+'Sch. E'!AW68)/4/12*6,2) -> 0 | AX68: 0 | AY68: =ROUND(('Sch. B'!AY68+'Sch. C'!AY68+'Sch. D'!AY68+'Sch. E'!AY68)/4/12*6,2) -> 0 | AZ68: 0 | BA68: =ROUND(('Sch. B'!BA68+'Sch. C'!BA68+'Sch. D'!BA68+'Sch. E'!BA68)/4/12*6,2) -> 0 | BB68: 0 | BC68: =ROUND(('Sch. B'!BC68+'Sch. C'!BC68+'Sch. D'!BC68+'Sch. E'!BC68)/4/12*6,2)+'Sch. K (2018)'!G12 -> 21157.1 | BD68: 370249.25 | BE68: =ROUND(('Sch. B'!BE68+'Sch. C'!BE68+'Sch. D'!BE68+'Sch. E'!BE68)/4/12*6,2) -> 0 | BF68: 0 | BG68: =ROUND(('Sch. B'!BG68+'Sch. C'!BG68+'Sch. D'!BG68+'Sch. E'!BG68)/4/12*6,2) -> 0 | BH68: 0 | BI68: =ROUND(('Sch. B'!BI68+'Sch. C'!BI68+'Sch. D'!BI68+'Sch. E'!BI68)/4/12*6,2) -> 0 | BJ68: 0 | BK68: =ROUND(('Sch. B'!BK68+'Sch. C'!BK68+'Sch. D'!BK68+'Sch. E'!BK68)/4/12*6,2) -> 0 | BL68: 0 | BM68: =ROUND(('Sch. B'!BM68+'Sch. C'!BM68+'Sch. D'!BM68+'Sch. E'!BM68)/4/12*6,2) -> 0 | BN68: 0 | BO68: =ROUND(('Sch. B'!BO68+'Sch. C'!BO68+'Sch. D'!BO68+'Sch. E'!BO68)/4/12*6,2) -> 0 | BP68: 0 | BQ68: =ROUND(('Sch. B'!BQ68+'Sch. C'!BQ68+'Sch. D'!BQ68+'Sch. E'!BQ68)/4/12*6,2) -> 0 | BR68: 0 | BS68: =ROUND(('Sch. B'!BS68+'Sch. C'!BS68+'Sch. D'!BS68+'Sch. E'!BS68)/4/12*6,2) -> 0 | BT68: 0 | BU68: =ROUND(('Sch. B'!BU68+'Sch. C'!BU68+'Sch. D'!BU68+'Sch. E'!BU68)/4/12*6,2) -> 0 | BV68: 0 | BW68: =ROUND(('Sch. B'!BW68+'Sch. C'!BW68+'Sch. D'!BW68+'Sch. E'!BW68)/4/12*6,2) -> 0 | BX68: 0 | BY68: =ROUND(('Sch. B'!BY68+'Sch. C'!BY68+'Sch. D'!BY68+'Sch. E'!BY68)/4/12*6,2) -> 0 | BZ68: 0 | CA68: 185149.96 | CB68: 3240124.3
A69: =+Index!$K$4+1+0.5-B69 -> 16.5 | B69: 2003 | C69: =ROUND(('Sch. B'!C69+'Sch. C'!C69+'Sch. D'!C69+'Sch. E'!C69)/4/12*6,2) -> 0 | D69: 0 | E69: =ROUND(('Sch. B'!E69+'Sch. C'!E69+'Sch. D'!E69+'Sch. E'!E69)/4/12*6,2) -> 0 | F69: 0 | G69: =ROUND(('Sch. B'!G69+'Sch. C'!G69+'Sch. D'!G69+'Sch. E'!G69)/4/12*6,2) -> 0 | H69: 0 | I69: =ROUND(('Sch. B'!I69+'Sch. C'!I69+'Sch. D'!I69+'Sch. E'!I69)/4/12*6,2) -> 0 | J69: 0 | K69: =ROUND(('Sch. B'!K69+'Sch. C'!K69+'Sch. D'!K69+'Sch. E'!K69)/4/12*6,2) -> 0 | L69: 0 | M69: =ROUND(('Sch. B'!M69+'Sch. C'!M69+'Sch. D'!M69+'Sch. E'!M69)/4/12*6,2) -> 1142.63 | N69: 18853.395 | O69: =ROUND(('Sch. B'!O69+'Sch. C'!O69+'Sch. D'!O69+'Sch. E'!O69)/4/12*6,2) -> 0 | P69: 0 | Q69: =ROUND(('Sch. B'!Q69+'Sch. C'!Q69+'Sch. D'!Q69+'Sch. E'!Q69)/4/12*6,2) -> 0 | R69: 0 | S69: =ROUND(('Sch. B'!S69+'Sch. C'!S69+'Sch. D'!S69+'Sch. E'!S69)/4/12*6,2) -> 0 | T69: 0 | U69: =ROUND(('Sch. B'!U69+'Sch. C'!U69+'Sch. D'!U69+'Sch. E'!U69)/4/12*6,2) -> 0 | V69: 0 | W69: =ROUND(('Sch. B'!W69+'Sch. C'!W69+'Sch. D'!W69+'Sch. E'!W69)/4/12*6,2)+303.18 -> 303.18 | X69: 5002.47 | Y69: =ROUND(('Sch. B'!Y69+'Sch. C'!Y69+'Sch. D'!Y69+'Sch. E'!Y69)/4/12*6,2) -> 161.37 | Z69: 2662.605 | AA69: =ROUND(('Sch. B'!AA69+'Sch. C'!AA69+'Sch. D'!AA69+'Sch. E'!AA69)/4/12*6,2) -> 0 | AB69: 0 | AC69: =ROUND(('Sch. B'!AC69+'Sch. C'!AC69+'Sch. D'!AC69+'Sch. E'!AC69)/4/12*6,2) -> 0 | AD69: 0 | AE69: =ROUND(('Sch. B'!AE69+'Sch. C'!AE69+'Sch. D'!AE69+'Sch. E'!AE69)/4/12*6,2) -> 263.53 | AF69: 4348.245 | AG69: =ROUND(('Sch. B'!AG69+'Sch. C'!AG69+'Sch. D'!AG69+'Sch. E'!AG69)/4/12*6,2) -> 0 | AH69: 0 | AI69: =ROUND(('Sch. B'!AI69+'Sch. C'!AI69+'Sch. D'!AI69+'Sch. E'!AI69)/4/12*6,2) -> 1507.11 | AJ69: 24867.315 | AK69: =ROUND(('Sch. B'!AK69+'Sch. C'!AK69+'Sch. D'!AK69+'Sch. E'!AK69)/4/12*6,2)+1793.44 -> 2220.75 | AL69: 36642.375 | AM69: =ROUND(('Sch. B'!AM69+'Sch. C'!AM69+'Sch. D'!AM69+'Sch. E'!AM69)/4/12*6,2) -> 351.24 | AN69: 5795.46 | AO69: =ROUND(('Sch. B'!AO69+'Sch. C'!AO69+'Sch. D'!AO69+'Sch. E'!AO69)/4/12*6,2) -> 0 | AP69: 0 | AQ69: =ROUND(('Sch. B'!AQ69+'Sch. C'!AQ69+'Sch. D'!AQ69+'Sch. E'!AQ69)/4/12*6,2) -> 0 | AR69: 0 | AS69: =ROUND(('Sch. B'!AS69+'Sch. C'!AS69+'Sch. D'!AS69+'Sch. E'!AS69)/4/12*6,2) -> 0 | AT69: 0 | AU69: =ROUND(('Sch. B'!AU69+'Sch. C'!AU69+'Sch. D'!AU69+'Sch. E'!AU69)/4/12*6,2) -> 0 | AV69: 0 | AW69: =ROUND(('Sch. B'!AW69+'Sch. C'!AW69+'Sch. D'!AW69+'Sch. E'!AW69)/4/12*6,2) -> 0 | AX69: 0 | AY69: =ROUND(('Sch. B'!AY69+'Sch. C'!AY69+'Sch. D'!AY69+'Sch. E'!AY69)/4/12*6,2) -> 0 | AZ69: 0 | BA69: =ROUND(('Sch. B'!BA69+'Sch. C'!BA69+'Sch. D'!BA69+'Sch. E'!BA69)/4/12*6,2) -> 0 | BB69: 0 | BC69: =ROUND(('Sch. B'!BC69+'Sch. C'!BC69+'Sch. D'!BC69+'Sch. E'!BC69)/4/12*6,2)-2227.92 -> 0 | BD69: 0 | BE69: =ROUND(('Sch. B'!BE69+'Sch. C'!BE69+'Sch. D'!BE69+'Sch. E'!BE69)/4/12*6,2) -> 0 | BF69: 0 | BG69: =ROUND(('Sch. B'!BG69+'Sch. C'!BG69+'Sch. D'!BG69+'Sch. E'!BG69)/4/12*6,2) -> 0 | BH69: 0 | BI69: =ROUND(('Sch. B'!BI69+'Sch. C'!BI69+'Sch. D'!BI69+'Sch. E'!BI69)/4/12*6,2) -> 0 | BJ69: 0 | BK69: =ROUND(('Sch. B'!BK69+'Sch. C'!BK69+'Sch. D'!BK69+'Sch. E'!BK69)/4/12*6,2) -> 0 | BL69: 0 | BM69: =ROUND(('Sch. B'!BM69+'Sch. C'!BM69+'Sch. D'!BM69+'Sch. E'!BM69)/4/12*6,2) -> 0 | BN69: 0 | BO69: =ROUND(('Sch. B'!BO69+'Sch. C'!BO69+'Sch. D'!BO69+'Sch. E'!BO69)/4/12*6,2) -> 0 | BP69: 0 | BQ69: =ROUND(('Sch. B'!BQ69+'Sch. C'!BQ69+'Sch. D'!BQ69+'Sch. E'!BQ69)/4/12*6,2) -> 0 | BR69: 0 | BS69: =ROUND(('Sch. B'!BS69+'Sch. C'!BS69+'Sch. D'!BS69+'Sch. E'!BS69)/4/12*6,2) -> 0 | BT69: 0 | BU69: =ROUND(('Sch. B'!BU69+'Sch. C'!BU69+'Sch. D'!BU69+'Sch. E'!BU69)/4/12*6,2) -> 0 | BV69: 0 | BW69: =ROUND(('Sch. B'!BW69+'Sch. C'!BW69+'Sch. D'!BW69+'Sch. E'!BW69)/4/12*6,2) -> 0 | BX69: 0 | BY69: =ROUND(('Sch. B'!BY69+'Sch. C'!BY69+'Sch. D'!BY69+'Sch. E'!BY69)/4/12*6,2) -> 0 | BZ69: 0 | CA69: 5949.81 | CB69: 98171.865
A70: =+Index!$K$4+1+0.5-B70 -> 15.5 | B70: 2004 | C70: =ROUND(('Sch. B'!C70+'Sch. C'!C70+'Sch. D'!C70+'Sch. E'!C70)/4/12*6,2) -> 0 | D70: 0 | E70: =ROUND(('Sch. B'!E70+'Sch. C'!E70+'Sch. D'!E70+'Sch. E'!E70)/4/12*6,2) -> 0 | F70: 0 | G70: =ROUND(('Sch. B'!G70+'Sch. C'!G70+'Sch. D'!G70+'Sch. E'!G70)/4/12*6,2) -> 0 | H70: 0 | I70: =ROUND(('Sch. B'!I70+'Sch. C'!I70+'Sch. D'!I70+'Sch. E'!I70)/4/12*6,2) -> 0 | J70: 0 | K70: =ROUND(('Sch. B'!K70+'Sch. C'!K70+'Sch. D'!K70+'Sch. E'!K70)/4/12*6,2) -> 0 | L70: 0 | M70: =ROUND(('Sch. B'!M70+'Sch. C'!M70+'Sch. D'!M70+'Sch. E'!M70)/4/12*6,2) -> 0 | N70: 0 | O70: =ROUND(('Sch. B'!O70+'Sch. C'!O70+'Sch. D'!O70+'Sch. E'!O70)/4/12*6,2) -> 0 | P70: 0 | Q70: =ROUND(('Sch. B'!Q70+'Sch. C'!Q70+'Sch. D'!Q70+'Sch. E'!Q70)/4/12*6,2) -> 0 | R70: 0 | S70: =ROUND(('Sch. B'!S70+'Sch. C'!S70+'Sch. D'!S70+'Sch. E'!S70)/4/12*6,2) -> 0 | T70: 0 | U70: =ROUND(('Sch. B'!U70+'Sch. C'!U70+'Sch. D'!U70+'Sch. E'!U70)/4/12*6,2) -> 0 | V70: 0 | W70: =ROUND(('Sch. B'!W70+'Sch. C'!W70+'Sch. D'!W70+'Sch. E'!W70)/4/12*6,2) -> 514.18 | X70: 7969.79 | Y70: =ROUND(('Sch. B'!Y70+'Sch. C'!Y70+'Sch. D'!Y70+'Sch. E'!Y70)/4/12*6,2) -> 0 | Z70: 0 | AA70: =ROUND(('Sch. B'!AA70+'Sch. C'!AA70+'Sch. D'!AA70+'Sch. E'!AA70)/4/12*6,2) -> 0 | AB70: 0 | AC70: =ROUND(('Sch. B'!AC70+'Sch. C'!AC70+'Sch. D'!AC70+'Sch. E'!AC70)/4/12*6,2) -> 0 | AD70: 0 | AE70: =ROUND(('Sch. B'!AE70+'Sch. C'!AE70+'Sch. D'!AE70+'Sch. E'!AE70)/4/12*6,2) -> 0 | AF70: 0 | AG70: =ROUND(('Sch. B'!AG70+'Sch. C'!AG70+'Sch. D'!AG70+'Sch. E'!AG70)/4/12*6,2) -> 0 | AH70: 0 | AI70: =ROUND(('Sch. B'!AI70+'Sch. C'!AI70+'Sch. D'!AI70+'Sch. E'!AI70)/4/12*6,2) -> 838.13 | AJ70: 12991.015 | AK70: =ROUND(('Sch. B'!AK70+'Sch. C'!AK70+'Sch. D'!AK70+'Sch. E'!AK70)/4/12*6,2)+1644.23 -> 2474.82 | AL70: 38359.71 | AM70: =ROUND(('Sch. B'!AM70+'Sch. C'!AM70+'Sch. D'!AM70+'Sch. E'!AM70)/4/12*6,2)+371.8 -> 443.3 | AN70: 6871.15 | AO70: =ROUND(('Sch. B'!AO70+'Sch. C'!AO70+'Sch. D'!AO70+'Sch. E'!AO70)/4/12*6,2) -> 0 | AP70: 0 | AQ70: =ROUND(('Sch. B'!AQ70+'Sch. C'!AQ70+'Sch. D'!AQ70+'Sch. E'!AQ70)/4/12*6,2) -> 0 | AR70: 0 | AS70: =ROUND(('Sch. B'!AS70+'Sch. C'!AS70+'Sch. D'!AS70+'Sch. E'!AS70)/4/12*6,2) -> 0 | AT70: 0 | AU70: =ROUND(('Sch. B'!AU70+'Sch. C'!AU70+'Sch. D'!AU70+'Sch. E'!AU70)/4/12*6,2) -> 0 | AV70: 0 | AW70: =ROUND(('Sch. B'!AW70+'Sch. C'!AW70+'Sch. D'!AW70+'Sch. E'!AW70)/4/12*6,2) -> 0 | AX70: 0 | AY70: =ROUND(('Sch. B'!AY70+'Sch. C'!AY70+'Sch. D'!AY70+'Sch. E'!AY70)/4/12*6,2) -> 0 | AZ70: 0 | BA70: =ROUND(('Sch. B'!BA70+'Sch. C'!BA70+'Sch. D'!BA70+'Sch. E'!BA70)/4/12*6,2) -> 0 | BB70: 0 | BC70: =ROUND(('Sch. B'!BC70+'Sch. C'!BC70+'Sch. D'!BC70+'Sch. E'!BC70)/4/12*6,2) -> 0 | BD70: 0 | BE70: =+'Sch. K (2018)'!G62 -> 136513.35 | BF70: 2115956.925 | BG70: =ROUND(('Sch. B'!BG70+'Sch. C'!BG70+'Sch. D'!BG70+'Sch. E'!BG70)/4/12*6,2) -> 0 | BH70: 0 | BI70: =ROUND(('Sch. B'!BI70+'Sch. C'!BI70+'Sch. D'!BI70+'Sch. E'!BI70)/4/12*6,2) -> 0 | BJ70: 0 | BK70: =ROUND(('Sch. B'!BK70+'Sch. C'!BK70+'Sch. D'!BK70+'Sch. E'!BK70)/4/12*6,2) -> 0 | BL70: 0 | BM70: =ROUND(('Sch. B'!BM70+'Sch. C'!BM70+'Sch. D'!BM70+'Sch. E'!BM70)/4/12*6,2) -> 0 | BN70: 0 | BO70: =ROUND(('Sch. B'!BO70+'Sch. C'!BO70+'Sch. D'!BO70+'Sch. E'!BO70)/4/12*6,2) -> 0 | BP70: 0 | BQ70: =ROUND(('Sch. B'!BQ70+'Sch. C'!BQ70+'Sch. D'!BQ70+'Sch. E'!BQ70)/4/12*6,2) -> 0 | BR70: 0 | BS70: =ROUND(('Sch. B'!BS70+'Sch. C'!BS70+'Sch. D'!BS70+'Sch. E'!BS70)/4/12*6,2) -> 0 | BT70: 0 | BU70: =ROUND(('Sch. B'!BU70+'Sch. C'!BU70+'Sch. D'!BU70+'Sch. E'!BU70)/4/12*6,2) -> 0 | BV70: 0 | BW70: =ROUND(('Sch. B'!BW70+'Sch. C'!BW70+'Sch. D'!BW70+'Sch. E'!BW70)/4/12*6,2) -> 0 | BX70: 0 | BY70: =ROUND(('Sch. B'!BY70+'Sch. C'!BY70+'Sch. D'!BY70+'Sch. E'!BY70)/4/12*6,2) -> 0 | BZ70: 0 | CA70: =+C70+E70+G70+I70+K70+M70+O70+Q70+S70+U70+W70+Y70+AA70+AC70+AE70+AG70+AI70+AK70+AM70+AO70+AQ70+AS70+AU70+AW70+AY70+BA70+BC70+BE70+BG70+BI70+BK70+BM70+BO70+BQ70+BS70+BU70 -> 140783.78 | CB70: 2182148.59
A71: =+Index!$K$4+1+0.5-B71 -> 14.5 | B71: 2005 | C71: =ROUND(('Sch. B'!C71+'Sch. C'!C71+'Sch. D'!C71+'Sch. E'!C71)/4/12*6,2) -> 0 | D71: =+C71*$A71 -> 0 | E71: =ROUND(('Sch. B'!E71+'Sch. C'!E71+'Sch. D'!E71+'Sch. E'!E71)/4/12*6,2) -> 0 | F71: =+E71*$A71 -> 0 | G71: =ROUND(('Sch. B'!G71+'Sch. C'!G71+'Sch. D'!G71+'Sch. E'!G71)/4/12*6,2) -> 0 | H71: =+G71*$A71 -> 0 | I71: =ROUND(('Sch. B'!I71+'Sch. C'!I71+'Sch. D'!I71+'Sch. E'!I71)/4/12*6,2) -> 0 | J71: =+I71*$A71 -> 0 | K71: =ROUND(('Sch. B'!K71+'Sch. C'!K71+'Sch. D'!K71+'Sch. E'!K71)/4/12*6,2) -> 0 | L71: =+K71*$A71 -> 0 | M71: =ROUND(('Sch. B'!M71+'Sch. C'!M71+'Sch. D'!M71+'Sch. E'!M71)/4/12*6,2) -> 0 | N71: =+M71*$A71 -> 0 | O71: =ROUND(('Sch. B'!O71+'Sch. C'!O71+'Sch. D'!O71+'Sch. E'!O71)/4/12*6,2) -> 0 | P71: =+O71*$A71 -> 0 | Q71: =ROUND(('Sch. B'!Q71+'Sch. C'!Q71+'Sch. D'!Q71+'Sch. E'!Q71)/4/12*6,2) -> 0 | R71: =+Q71*$A71 -> 0 | S71: =ROUND(('Sch. B'!S71+'Sch. C'!S71+'Sch. D'!S71+'Sch. E'!S71)/4/12*6,2) -> 0 | T71: =+S71*$A71 -> 0 | U71: =ROUND(('Sch. B'!U71+'Sch. C'!U71+'Sch. D'!U71+'Sch. E'!U71)/4/12*6,2) -> 0 | V71: =+U71*$A71 -> 0 | W71: =ROUND(('Sch. B'!W71+'Sch. C'!W71+'Sch. D'!W71+'Sch. E'!W71)/4/12*6,2) -> 0 | X71: =+W71*$A71 -> 0 | Y71: =ROUND(('Sch. B'!Y71+'Sch. C'!Y71+'Sch. D'!Y71+'Sch. E'!Y71)/4/12*6,2) -> 0 | Z71: =+Y71*$A71 -> 0 | AA71: =ROUND(('Sch. B'!AA71+'Sch. C'!AA71+'Sch. D'!AA71+'Sch. E'!AA71)/4/12*6,2) -> 0 | AB71: =+AA71*$A71 -> 0 | AC71: =ROUND(('Sch. B'!AC71+'Sch. C'!AC71+'Sch. D'!AC71+'Sch. E'!AC71)/4/12*6,2) -> 41.17 | AD71: =+AC71*$A71 -> 596.965 | AE71: =ROUND(('Sch. B'!AE71+'Sch. C'!AE71+'Sch. D'!AE71+'Sch. E'!AE71)/4/12*6,2) -> 26.37 | AF71: =+AE71*$A71 -> 382.365 | AG71: =ROUND(('Sch. B'!AG71+'Sch. C'!AG71+'Sch. D'!AG71+'Sch. E'!AG71)/4/12*6,2) -> 0 | AH71: =+AG71*$A71 -> 0 | AI71: =ROUND(('Sch. B'!AI71+'Sch. C'!AI71+'Sch. D'!AI71+'Sch. E'!AI71)/4/12*6,2) -> 1019.58 | AJ71: =+AI71*$A71 -> 14783.91 | AK71: =ROUND(('Sch. B'!AK71+'Sch. C'!AK71+'Sch. D'!AK71+'Sch. E'!AK71)/4/12*6,2)+1361.3 -> 2480.81 | AL71: =+AK71*$A71 -> 35971.745 | AM71: =ROUND(('Sch. B'!AM71+'Sch. C'!AM71+'Sch. D'!AM71+'Sch. E'!AM71)/4/12*6,2) -> 208.82 | AN71: =+AM71*$A71 -> 3027.89 | AO71: 3050 | AP71: =+AO71*$A71 -> 44225 | AQ71: =ROUND(('Sch. B'!AQ71+'Sch. C'!AQ71+'Sch. D'!AQ71+'Sch. E'!AQ71)/4/12*6,2) -> 0 | AR71: =+AQ71*$A71 -> 0 | AS71: =ROUND(('Sch. B'!AS71+'Sch. C'!AS71+'Sch. D'!AS71+'Sch. E'!AS71)/4/12*6,2) -> 0 | AT71: =+AS71*$A71 -> 0 | AU71: =ROUND(('Sch. B'!AU71+'Sch. C'!AU71+'Sch. D'!AU71+'Sch. E'!AU71)/4/12*6,2) -> 0 | AV71: =+AU71*$A71 -> 0 | AW71: =ROUND(('Sch. B'!AW71+'Sch. C'!AW71+'Sch. D'!AW71+'Sch. E'!AW71)/4/12*6,2) -> 0 | AX71: =+AW71*$A71 -> 0 | AY71: =ROUND(('Sch. B'!AY71+'Sch. C'!AY71+'Sch. D'!AY71+'Sch. E'!AY71)/4/12*6,2) -> 0 | AZ71: =+AY71*$A71 -> 0 | BA71: =ROUND(('Sch. B'!BA71+'Sch. C'!BA71+'Sch. D'!BA71+'Sch. E'!BA71)/4/12*6,2) -> 0 | BB71: =+BA71*$A71 -> 0 | BC71: =ROUND(('Sch. B'!BC71+'Sch. C'!BC71+'Sch. D'!BC71+'Sch. E'!BC71)/4/12*6,2) -> 0 | BD71: 0 | BE71: =ROUND(('Sch. B'!BE71+'Sch. C'!BE71+'Sch. D'!BE71+'Sch. E'!BE71)/4/12*6,2) -> 0 | BF71: =+BE71*$A71 -> 0 | BG71: =ROUND(('Sch. B'!BG71+'Sch. C'!BG71+'Sch. D'!BG71+'Sch. E'!BG71)/4/12*6,2) -> 0 | BH71: =+BG71*$A71 -> 0 | BI71: =ROUND(('Sch. B'!BI71+'Sch. C'!BI71+'Sch. D'!BI71+'Sch. E'!BI71)/4/12*6,2) -> 0 | BJ71: =+BI71*$A71 -> 0 | BK71: =ROUND(('Sch. B'!BK71+'Sch. C'!BK71+'Sch. D'!BK71+'Sch. E'!BK71)/4/12*6,2) -> 0 | BL71: =+BK71*$A71 -> 0 | BM71: =ROUND(('Sch. B'!BM71+'Sch. C'!BM71+'Sch. D'!BM71+'Sch. E'!BM71)/4/12*6,2) -> 0 | BN71: =+BM71*$A71 -> 0 | BO71: =ROUND(('Sch. B'!BO71+'Sch. C'!BO71+'Sch. D'!BO71+'Sch. E'!BO71)/4/12*6,2) -> 0 | BP71: =+BO71*$A71 -> 0 | BQ71: =ROUND(('Sch. B'!BQ71+'Sch. C'!BQ71+'Sch. D'!BQ71+'Sch. E'!BQ71)/4/12*6,2) -> 0 | BR71: =+BQ71*$A71 -> 0 | BS71: =ROUND(('Sch. B'!BS71+'Sch. C'!BS71+'Sch. D'!BS71+'Sch. E'!BS71)/4/12*6,2) -> 0 | BT71: =+BS71*$A71 -> 0 | BU71: =ROUND(('Sch. B'!BU71+'Sch. C'!BU71+'Sch. D'!BU71+'Sch. E'!BU71)/4/12*6,2) -> 0 | BV71: =+BU71*$A71 -> 0 | BW71: =ROUND(('Sch. B'!BW71+'Sch. C'!BW71+'Sch. D'!BW71+'Sch. E'!BW71)/4/12*6,2) -> 0 | BX71: =+BW71*$A71 -> 0 | BY71: =ROUND(('Sch. B'!BY71+'Sch. C'!BY71+'Sch. D'!BY71+'Sch. E'!BY71)/4/12*6,2) -> 0 | BZ71: =+BY71*$A71 -> 0 | CA71: 6826.75 | CB71: =+CA71*$A71 -> 98987.875
A72: =+Index!$K$4+1+0.5-B72 -> 13.5 | B72: 2006 | C72: =ROUND(('Sch. B'!C72+'Sch. C'!C72+'Sch. D'!C72+'Sch. E'!C72)/4/12*6,2) -> 0 | D72: 0 | E72: =ROUND(('Sch. B'!E72+'Sch. C'!E72+'Sch. D'!E72+'Sch. E'!E72)/4/12*6,2) -> 0 | F72: 0 | G72: =ROUND(('Sch. B'!G72+'Sch. C'!G72+'Sch. D'!G72+'Sch. E'!G72)/4/12*6,2) -> 0 | H72: 0 | I72: =ROUND(('Sch. B'!I72+'Sch. C'!I72+'Sch. D'!I72+'Sch. E'!I72)/4/12*6,2) -> 0 | J72: 0 | K72: =ROUND(('Sch. B'!K72+'Sch. C'!K72+'Sch. D'!K72+'Sch. E'!K72)/4/12*6,2) -> 1572.71 | L72: 21231.585 | M72: =ROUND(('Sch. B'!M72+'Sch. C'!M72+'Sch. D'!M72+'Sch. E'!M72)/4/12*6,2) -> 3420.82 | N72: 46181.07 | O72: =ROUND(('Sch. B'!O72+'Sch. C'!O72+'Sch. D'!O72+'Sch. E'!O72)/4/12*6,2) -> 0 | P72: 0 | Q72: =ROUND(('Sch. B'!Q72+'Sch. C'!Q72+'Sch. D'!Q72+'Sch. E'!Q72)/4/12*6,2) -> 0 | R72: 0 | S72: =ROUND(('Sch. B'!S72+'Sch. C'!S72+'Sch. D'!S72+'Sch. E'!S72)/4/12*6,2) -> 0 | T72: 0 | U72: =ROUND(('Sch. B'!U72+'Sch. C'!U72+'Sch. D'!U72+'Sch. E'!U72)/4/12*6,2) -> 0 | V72: 0 | W72: =ROUND(('Sch. B'!W72+'Sch. C'!W72+'Sch. D'!W72+'Sch. E'!W72)/4/12*6,2) -> 0 | X72: 0 | Y72: =ROUND(('Sch. B'!Y72+'Sch. C'!Y72+'Sch. D'!Y72+'Sch. E'!Y72)/4/12*6,2) -> 0 | Z72: 0 | AA72: =ROUND(('Sch. B'!AA72+'Sch. C'!AA72+'Sch. D'!AA72+'Sch. E'!AA72)/4/12*6,2) -> 0 | AB72: 0 | AC72: =ROUND(('Sch. B'!AC72+'Sch. C'!AC72+'Sch. D'!AC72+'Sch. E'!AC72)/4/12*6,2) -> 0 | AD72: 0 | AE72: =ROUND(('Sch. B'!AE72+'Sch. C'!AE72+'Sch. D'!AE72+'Sch. E'!AE72)/4/12*6,2) -> 0 | AF72: 0 | AG72: =ROUND(('Sch. B'!AG72+'Sch. C'!AG72+'Sch. D'!AG72+'Sch. E'!AG72)/4/12*6,2) -> 0 | AH72: 0 | AI72: =ROUND(('Sch. B'!AI72+'Sch. C'!AI72+'Sch. D'!AI72+'Sch. E'!AI72)/4/12*6,2) -> 771.53 | AJ72: 10415.655 | AK72: =ROUND(('Sch. B'!AK72+'Sch. C'!AK72+'Sch. D'!AK72+'Sch. E'!AK72)/4/12*6,2) -> 726.75 | AL72: 9811.125 | AM72: =ROUND(('Sch. B'!AM72+'Sch. C'!AM72+'Sch. D'!AM72+'Sch. E'!AM72)/4/12*6,2) -> 0 | AN72: 0 | AO72: =ROUND(('Sch. B'!AO72+'Sch. C'!AO72+'Sch. D'!AO72+'Sch. E'!AO72)/4/12*6,2) -> 0 | AP72: 0 | AQ72: =ROUND(('Sch. B'!AQ72+'Sch. C'!AQ72+'Sch. D'!AQ72+'Sch. E'!AQ72)/4/12*6,2) -> 0 | AR72: 0 | AS72: =ROUND(('Sch. B'!AS72+'Sch. C'!AS72+'Sch. D'!AS72+'Sch. E'!AS72)/4/12*6,2) -> 0 | AT72: 0 | AU72: =ROUND(('Sch. B'!AU72+'Sch. C'!AU72+'Sch. D'!AU72+'Sch. E'!AU72)/4/12*6,2) -> 0 | AV72: 0 | AW72: =ROUND(('Sch. B'!AW72+'Sch. C'!AW72+'Sch. D'!AW72+'Sch. E'!AW72)/4/12*6,2) -> 0 | AX72: 0 | AY72: =ROUND(('Sch. B'!AY72+'Sch. C'!AY72+'Sch. D'!AY72+'Sch. E'!AY72)/4/12*6,2) -> 0 | AZ72: 0 | BA72: =ROUND(('Sch. B'!BA72+'Sch. C'!BA72+'Sch. D'!BA72+'Sch. E'!BA72)/4/12*6,2) -> 0 | BB72: 0 | BC72: =ROUND(('Sch. B'!BC72+'Sch. C'!BC72+'Sch. D'!BC72+'Sch. E'!BC72)/4/12*6,2)+'Sch. K (2018)'!G13 -> 21019.67 | BD72: 283765.545 | BE72: =ROUND(('Sch. B'!BE72+'Sch. C'!BE72+'Sch. D'!BE72+'Sch. E'!BE72)/4/12*6,2) -> 0 | BF72: 0 | BG72: =ROUND(('Sch. B'!BG72+'Sch. C'!BG72+'Sch. D'!BG72+'Sch. E'!BG72)/4/12*6,2) -> 0 | BH72: 0 | BI72: =ROUND(('Sch. B'!BI72+'Sch. C'!BI72+'Sch. D'!BI72+'Sch. E'!BI72)/4/12*6,2) -> 0 | BJ72: 0 | BK72: =ROUND(('Sch. B'!BK72+'Sch. C'!BK72+'Sch. D'!BK72+'Sch. E'!BK72)/4/12*6,2) -> 0 | BL72: 0 | BM72: =ROUND(('Sch. B'!BM72+'Sch. C'!BM72+'Sch. D'!BM72+'Sch. E'!BM72)/4/12*6,2) -> 0 | BN72: 0 | BO72: =ROUND(('Sch. B'!BO72+'Sch. C'!BO72+'Sch. D'!BO72+'Sch. E'!BO72)/4/12*6,2) -> 0 | BP72: 0 | BQ72: =ROUND(('Sch. B'!BQ72+'Sch. C'!BQ72+'Sch. D'!BQ72+'Sch. E'!BQ72)/4/12*6,2) -> 0 | BR72: 0 | BS72: =ROUND(('Sch. B'!BS72+'Sch. C'!BS72+'Sch. D'!BS72+'Sch. E'!BS72)/4/12*6,2) -> 0 | BT72: 0 | BU72: =ROUND(('Sch. B'!BU72+'Sch. C'!BU72+'Sch. D'!BU72+'Sch. E'!BU72)/4/12*6,2) -> 0 | BV72: 0 | BW72: =ROUND(('Sch. B'!BW72+'Sch. C'!BW72+'Sch. D'!BW72+'Sch. E'!BW72)/4/12*6,2) -> 0 | BX72: 0 | BY72: =ROUND(('Sch. B'!BY72+'Sch. C'!BY72+'Sch. D'!BY72+'Sch. E'!BY72)/4/12*6,2) -> 0 | BZ72: 0 | CA72: 27511.48 | CB72: 371404.98
A73: =+Index!$K$4+1+0.5-B73 -> 12.5 | B73: 2007 | C73: =ROUND(('Sch. B'!C73+'Sch. C'!C73+'Sch. D'!C73+'Sch. E'!C73)/4/12*6,2) -> 0 | D73: 0 | E73: =ROUND(('Sch. B'!E73+'Sch. C'!E73+'Sch. D'!E73+'Sch. E'!E73)/4/12*6,2) -> 0 | F73: 0 | G73: =ROUND(('Sch. B'!G73+'Sch. C'!G73+'Sch. D'!G73+'Sch. E'!G73)/4/12*6,2) -> 0 | H73: 0 | I73: =ROUND(('Sch. B'!I73+'Sch. C'!I73+'Sch. D'!I73+'Sch. E'!I73)/4/12*6,2) -> 0 | J73: 0 | K73: =ROUND(('Sch. B'!K73+'Sch. C'!K73+'Sch. D'!K73+'Sch. E'!K73)/4/12*6,2) -> 0 | L73: 0 | M73: =ROUND(('Sch. B'!M73+'Sch. C'!M73+'Sch. D'!M73+'Sch. E'!M73)/4/12*6,2) -> 0 | N73: 0 | O73: =ROUND(('Sch. B'!O73+'Sch. C'!O73+'Sch. D'!O73+'Sch. E'!O73)/4/12*6,2) -> 0 | P73: 0 | Q73: =ROUND(('Sch. B'!Q73+'Sch. C'!Q73+'Sch. D'!Q73+'Sch. E'!Q73)/4/12*6,2) -> 0 | R73: 0 | S73: =ROUND(('Sch. B'!S73+'Sch. C'!S73+'Sch. D'!S73+'Sch. E'!S73)/4/12*6,2) -> 0 | T73: 0 | U73: =ROUND(('Sch. B'!U73+'Sch. C'!U73+'Sch. D'!U73+'Sch. E'!U73)/4/12*6,2) -> 0 | V73: 0 | W73: =ROUND(('Sch. B'!W73+'Sch. C'!W73+'Sch. D'!W73+'Sch. E'!W73)/4/12*6,2) -> 0 | X73: 0 | Y73: =ROUND(('Sch. B'!Y73+'Sch. C'!Y73+'Sch. D'!Y73+'Sch. E'!Y73)/4/12*6,2) -> 0 | Z73: 0 | AA73: =ROUND(('Sch. B'!AA73+'Sch. C'!AA73+'Sch. D'!AA73+'Sch. E'!AA73)/4/12*6,2) -> 0 | AB73: 0 | AC73: =ROUND(('Sch. B'!AC73+'Sch. C'!AC73+'Sch. D'!AC73+'Sch. E'!AC73)/4/12*6,2) -> 0 | AD73: 0 | AE73: =ROUND(('Sch. B'!AE73+'Sch. C'!AE73+'Sch. D'!AE73+'Sch. E'!AE73)/4/12*6,2) -> 0 | AF73: 0 | AG73: =ROUND(('Sch. B'!AG73+'Sch. C'!AG73+'Sch. D'!AG73+'Sch. E'!AG73)/4/12*6,2) -> 0 | AH73: 0 | AI73: =ROUND(('Sch. B'!AI73+'Sch. C'!AI73+'Sch. D'!AI73+'Sch. E'!AI73)/4/12*6,2) -> 1891.39 | AJ73: 23642.375 | AK73: =ROUND(('Sch. B'!AK73+'Sch. C'!AK73+'Sch. D'!AK73+'Sch. E'!AK73)/4/12*6,2)+2140.96 -> 2423.4 | AL73: 30292.5 | AM73: =ROUND(('Sch. B'!AM73+'Sch. C'!AM73+'Sch. D'!AM73+'Sch. E'!AM73)/4/12*6,2) -> 31.82 | AN73: 397.75 | AO73: =ROUND(('Sch. B'!AO73+'Sch. C'!AO73+'Sch. D'!AO73+'Sch. E'!AO73)/4/12*6,2) -> 0 | AP73: 0 | AQ73: =ROUND(('Sch. B'!AQ73+'Sch. C'!AQ73+'Sch. D'!AQ73+'Sch. E'!AQ73)/4/12*6,2) -> 0 | AR73: 0 | AS73: =ROUND(('Sch. B'!AS73+'Sch. C'!AS73+'Sch. D'!AS73+'Sch. E'!AS73)/4/12*6,2) -> 0 | AT73: 0 | AU73: =ROUND(('Sch. B'!AU73+'Sch. C'!AU73+'Sch. D'!AU73+'Sch. E'!AU73)/4/12*6,2) -> 0 | AV73: 0 | AW73: =ROUND(('Sch. B'!AW73+'Sch. C'!AW73+'Sch. D'!AW73+'Sch. E'!AW73)/4/12*6,2) -> 0 | AX73: 0 | AY73: =ROUND(('Sch. B'!AY73+'Sch. C'!AY73+'Sch. D'!AY73+'Sch. E'!AY73)/4/12*6,2) -> 0 | AZ73: 0 | BA73: =ROUND(('Sch. B'!BA73+'Sch. C'!BA73+'Sch. D'!BA73+'Sch. E'!BA73)/4/12*6,2) -> 0 | BB73: 0 | BC73: =+'Sch. K (2018)'!G15 -> 23206.45 | BD73: 290080.625 | BE73: =ROUND(('Sch. B'!BE73+'Sch. C'!BE73+'Sch. D'!BE73+'Sch. E'!BE73)/4/12*6,2) -> 0 | BF73: 0 | BG73: =ROUND(('Sch. B'!BG73+'Sch. C'!BG73+'Sch. D'!BG73+'Sch. E'!BG73)/4/12*6,2) -> 0 | BH73: 0 | BI73: =ROUND(('Sch. B'!BI73+'Sch. C'!BI73+'Sch. D'!BI73+'Sch. E'!BI73)/4/12*6,2) -> 0 | BJ73: 0 | BK73: =ROUND(('Sch. B'!BK73+'Sch. C'!BK73+'Sch. D'!BK73+'Sch. E'!BK73)/4/12*6,2) -> 0 | BL73: 0 | BM73: =ROUND(('Sch. B'!BM73+'Sch. C'!BM73+'Sch. D'!BM73+'Sch. E'!BM73)/4/12*6,2) -> 0 | BN73: 0 | BO73: =ROUND(('Sch. B'!BO73+'Sch. C'!BO73+'Sch. D'!BO73+'Sch. E'!BO73)/4/12*6,2) -> 0 | BP73: 0 | BQ73: =ROUND(('Sch. B'!BQ73+'Sch. C'!BQ73+'Sch. D'!BQ73+'Sch. E'!BQ73)/4/12*6,2) -> 0 | BR73: 0 | BS73: =ROUND(('Sch. B'!BS73+'Sch. C'!BS73+'Sch. D'!BS73+'Sch. E'!BS73)/4/12*6,2) -> 0 | BT73: 0 | BU73: =ROUND(('Sch. B'!BU73+'Sch. C'!BU73+'Sch. D'!BU73+'Sch. E'!BU73)/4/12*6,2) -> 0 | BV73: 0 | BW73: =ROUND(('Sch. B'!BW73+'Sch. C'!BW73+'Sch. D'!BW73+'Sch. E'!BW73)/4/12*6,2) -> 0 | BX73: 0 | BY73: =ROUND(('Sch. B'!BY73+'Sch. C'!BY73+'Sch. D'!BY73+'Sch. E'!BY73)/4/12*6,2) -> 0 | BZ73: 0 | CA73: 27553.06 | CB73: 344413.25
